Workbook

Sheet TOT
A1: =COUNT(B40:B99999) -> 22 | E1: 4.57
A2: =COUNT(C40:C99999) -> 22
B39: № | C39: G | D39: 1 | E39: 2 | F39: NN | G39: DN | H39: M | I39: Date | J39: Start | K39: B | L39: Room | M39: Name | N39: Max | O39: T | P39: K | Q39: GTD | R39: Bounty | S39: Win | T39: R | U39: F | V39: B$ | W39: KO$ | X39: WIN$ | Y39: Profit | Z39: AFS | AA39: Grafik | AB39: Столбец1
A40: =A39+1 -> 1 | B40: 1 | C40: =IFERROR(VLOOKUP(B40,Baza[[№]:[Profit]],2,0),"") -> 2021 | D40: =IF(Таблица2[[#This Row],[NN]]="","",TEXT(Таблица2[[#This Row],[Start]],"ч:мм")&" "&IF(OR(Таблица2[[#This Row],[Room]]="WN",Таблица2[[#This Row],[Room]]="ES"),"€","$")&Таблица2[[#This Row],[B]]&" "&"["&Таблица2[[#This Row],[Room]]&"] "&Таблица2[[#This Row],[Name]]) -> 11:00 $1,1 [PP] Bounty Hunter | E40: =IF(Таблица2[[#This Row],[NN]]="","",IF(OR(Таблица2[[#This Row],[Room]]="WN",Таблица2[[#This Row],[Room]]="ES"),"€","$")&Таблица2[[#This Row],[B]]&" "&"["&Таблица2[[#This Row],[Room]]&"] "&Таблица2[[#This Row],[Name]]) -> $1,1 [PP] Bounty Hunter | F40: =IFERROR(VLOOKUP(B40,Baza[[№]:[Profit]],3,0),"") -> 1 | G40: =IFERROR(VLOOKUP(B40,Baza[[№]:[Profit]],4,0),"") -> пятница | H40: =IFERROR(VLOOKUP(B40,Baza[[№]:[Profit]],5,0),"") -> январь | I40: =IFERROR(VLOOKUP(B40,Baza[[№]:[Profit]],6,0),"") -> 2021-01-01 | J40: =IFERROR(VLOOKUP(B40,Baza[[№]:[Profit]],7,0),"") -> 11:00:00 | K40: =IFERROR(VLOOKUP(B40,Baza[[№]:[Profit]],8,0),"") -> 1.1 | L40: =IFERROR(VLOOKUP(B40,Baza[[№]:[Profit]],9,0),"") -> PP | M40: =IFERROR(VLOOKUP(B40,Baza[[№]:[Profit]],10,0),"") -> Bounty Hunter | N40: =IFERROR(IF(VLOOKUP(B40,Baza[[№]:[Profit]],11,0)=0,"-",VLOOKUP(B40,Baza[[№]:[Profit]],11,0)),"") -> 8 | O40: =IFERROR(IF(VLOOKUP(B40,Baza[[№]:[Profit]],12,0)=0,"-",VLOOKUP(B40,Baza[[№]:[Profit]],12,0)),"") -> - | P40: =IFERROR(IF(VLOOKUP(B40,Baza[[№]:[Profit]],13,0)=0,"-",VLOOKUP(B40,Baza[[№]:[Profit]],13,0)),"") -> K | Q40: =IFERROR(IF(VLOOKUP(B40,Baza[[№]:[Profit]],15,0)=0,"-",VLOOKUP(B40,Baza[[№]:[Profit]],15,0)),"") -> 50 | R40: =IFERROR(IF(VLOOKUP(B40,Baza[[№]:[Profit]],16,0)=0,"-",VLOOKUP(B40,Baza[[№]:[Profit]],16,0)),"") -> - | S40: =IFERROR(IF(VLOOKUP(B40,Baza[[№]:[Profit]],17,0)=0,"-",VLOOKUP(B40,Baza[[№]:[Profit]],17,0)),"") -> - | T40: =IFERROR(IF(VLOOKUP(B40,Baza[[№]:[Profit]],18,0)=0,"-",VLOOKUP(B40,Baza[[№]:[Profit]],18,0)),"") -> - | U40: =IFERROR(IF(VLOOKUP(B40,Baza[[№]:[Profit]],19,0)=0,"-",VLOOKUP(B40,Baza[[№]:[Profit]],19,0)),"") -> - | V40: =IFERROR(VLOOKUP(B40,Baza[[№]:[Profit]],20,0),"") -> 1.1 | W40: =IFERROR(IF(VLOOKUP(B40,Baza[[№]:[Profit]],21,0)=0,"-",VLOOKUP(B40,Baza[[№]:[Profit]],21,0)),"") -> - | X40: =IFERROR(IF(VLOOKUP(B40,Baza[[№]:[Profit]],22,0)=0,"-",VLOOKUP(B40,Baza[[№]:[Profit]],22,0)),"") -> - | Y40: =IFERROR(VLOOKUP(B40,Baza[[№]:[Profit]],23,0),"") -> -1.1 | Z40: =IFERROR(VLOOKUP(B40,Baza[[№]:[AFS]],24,0),"") -> 45.45454545 | AA40: =IF(Таблица2[[#This Row],[Profit]]="","#Н/Д",SUM($Y$40:Y40)) -> -1.1 | AB40: =IF(Таблица2[[#This Row],[Grafik]]="#Н/Д",FALSE,TRUE) -> TRUE
A41: =A40+1 -> 2 | B41: 2 | C41: =IFERROR(VLOOKUP(B41,Baza[[№]:[Profit]],2,0),"") -> 2021 | D41: =IF(Таблица2[[#This Row],[NN]]="","",TEXT(Таблица2[[#This Row],[Start]],"ч:мм")&" "&IF(OR(Таблица2[[#This Row],[Room]]="WN",Таблица2[[#This Row],[Room]]="ES"),"€","$")&Таблица2[[#This Row],[B]]&" "&"["&Таблица2[[#This Row],[Room]]&"] "&Таблица2[[#This Row],[Name]]) -> 11:00 €1 [WN] Monster Stack | E41: =IF(Таблица2[[#This Row],[NN]]="","",IF(OR(Таблица2[[#This Row],[Room]]="WN",Таблица2[[#This Row],[Room]]="ES"),"€","$")&Таблица2[[#This Row],[B]]&" "&"["&Таблица2[[#This Row],[Room]]&"] "&Таблица2[[#This Row],[Name]]) -> €1 [WN] Monster Stack | F41: =IFERROR(VLOOKUP(B41,Baza[[№]:[Profit]],3,0),"") -> 1 | G41: =IFERROR(VLOOKUP(B41,Baza[[№]:[Profit]],4,0),"") -> пятница | H41: =IFERROR(VLOOKUP(B41,Baza[[№]:[Profit]],5,0),"") -> январь | I41: =IFERROR(VLOOKUP(B41,Baza[[№]:[Profit]],6,0),"") -> 2021-01-01 | J41: =IFERROR(VLOOKUP(B41,Baza[[№]:[Profit]],7,0),"") -> 11:00:00 | K41: =IFERROR(VLOOKUP(B41,Baza[[№]:[Profit]],8,0),"") -> 1 | L41: =IFERROR(VLOOKUP(B41,Baza[[№]:[Profit]],9,0),"") -> WN | M41: =IFERROR(VLOOKUP(B41,Baza[[№]:[Profit]],10,0),"") -> Monster Stack | N41: =IFERROR(IF(VLOOKUP(B41,Baza[[№]:[Profit]],11,0)=0,"-",VLOOKUP(B41,Baza[[№]:[Profit]],11,0)),"") -> 6 | O41: =IFERROR(IF(VLOOKUP(B41,Baza[[№]:[Profit]],12,0)=0,"-",VLOOKUP(B41,Baza[[№]:[Profit]],12,0)),"") -> - | P41: =IFERROR(IF(VLOOKUP(B41,Baza[[№]:[Profit]],13,0)=0,"-",VLOOKUP(B41,Baza[[№]:[Profit]],13,0)),"") -> - | Q41: =IFERROR(IF(VLOOKUP(B41,Baza[[№]:[Profit]],15,0)=0,"-",VLOOKUP(B41,Baza[[№]:[Profit]],15,0)),"") -> 150 | R41: =IFERROR(IF(VLOOKUP(B41,Baza[[№]:[Profit]],16,0)=0,"-",VLOOKUP(B41,Baza[[№]:[Profit]],16,0)),"") -> - | S41: =IFERROR(IF(VLOOKUP(B41,Baza[[№]:[Profit]],17,0)=0,"-",VLOOKUP(B41,Baza[[№]:[Profit]],17,0)),"") -> - | T41: =IFERROR(IF(VLOOKUP(B41,Baza[[№]:[Profit]],18,0)=0,"-",VLOOKUP(B41,Baza[[№]:[Profit]],18,0)),"") -> - | U41: =IFERROR(IF(VLOOKUP(B41,Baza[[№]:[Profit]],19,0)=0,"-",VLOOKUP(B41,Baza[[№]:[Profit]],19,0)),"") -> - | V41: =IFERROR(VLOOKUP(B41,Baza[[№]:[Profit]],20,0),"") -> 1.12 | W41: =IFERROR(IF(VLOOKUP(B41,Baza[[№]:[Profit]],21,0)=0,"-",VLOOKUP(B41,Baza[[№]:[Profit]],21,0)),"") -> - | X41: =IFERROR(IF(VLOOKUP(B41,Baza[[№]:[Profit]],22,0)=0,"-",VLOOKUP(B41,Baza[[№]:[Profit]],22,0)),"") -> - | Y41: =IFERROR(VLOOKUP(B41,Baza[[№]:[Profit]],23,0),"") -> -1.12 | Z41: =IFERROR(VLOOKUP(B41,Baza[[№]:[AFS]],24,0),"") -> 150 | AA41: =IF(Таблица2[[#This Row],[Profit]]="","#Н/Д",SUM($Y$40:Y41)) -> -2.22 | AB41: =IF(Таблица2[[#This Row],[Grafik]]="#Н/Д",FALSE,TRUE) -> TRUE
A42: 3 | B42: 3 | C42: =IFERROR(VLOOKUP(B42,Baza[[№]:[Profit]],2,0),"") -> 2021 | D42: =IF(Таблица2[[#This Row],[NN]]="","",TEXT(Таблица2[[#This Row],[Start]],"ч:мм")&" "&IF(OR(Таблица2[[#This Row],[Room]]="WN",Таблица2[[#This Row],[Room]]="ES"),"€","$")&Таблица2[[#This Row],[B]]&" "&"["&Таблица2[[#This Row],[Room]]&"] "&Таблица2[[#This Row],[Name]]) -> 11:15 $2,2 [PP] Deepstack | E42: =IF(Таблица2[[#This Row],[NN]]="","",IF(OR(Таблица2[[#This Row],[Room]]="WN",Таблица2[[#This Row],[Room]]="ES"),"€","$")&Таблица2[[#This Row],[B]]&" "&"["&Таблица2[[#This Row],[Room]]&"] "&Таблица2[[#This Row],[Name]]) -> $2,2 [PP] Deepstack | F42: =IFERROR(VLOOKUP(B42,Baza[[№]:[Profit]],3,0),"") -> 1 | G42: =IFERROR(VLOOKUP(B42,Baza[[№]:[Profit]],4,0),"") -> пятница | H42: =IFERROR(VLOOKUP(B42,Baza[[№]:[Profit]],5,0),"") -> январь | I42: =IFERROR(VLOOKUP(B42,Baza[[№]:[Profit]],6,0),"") -> 2021-01-01 | J42: =IFERROR(VLOOKUP(B42,Baza[[№]:[Profit]],7,0),"") -> 11:15:00 | K42: =IFERROR(VLOOKUP(B42,Baza[[№]:[Profit]],8,0),"") -> 2.2 | L42: =IFERROR(VLOOKUP(B42,Baza[[№]:[Profit]],9,0),"") -> PP | M42: =IFERROR(VLOOKUP(B42,Baza[[№]:[Profit]],10,0),"") -> Deepstack | N42: =IFERROR(IF(VLOOKUP(B42,Baza[[№]:[Profit]],11,0)=0,"-",VLOOKUP(B42,Baza[[№]:[Profit]],11,0)),"") -> 8 | O42: =IFERROR(IF(VLOOKUP(B42,Baza[[№]:[Profit]],12,0)=0,"-",VLOOKUP(B42,Baza[[№]:[Profit]],12,0)),"") -> - | P42: =IFERROR(IF(VLOOKUP(B42,Baza[[№]:[Profit]],13,0)=0,"-",VLOOKUP(B42,Baza[[№]:[Profit]],13,0)),"") -> - | Q42: =IFERROR(IF(VLOOKUP(B42,Baza[[№]:[Profit]],15,0)=0,"-",VLOOKUP(B42,Baza[[№]:[Profit]],15,0)),"") -> 200 | R42: =IFERROR(IF(VLOOKUP(B42,Baza[[№]:[Profit]],16,0)=0,"-",VLOOKUP(B42,Baza[[№]:[Profit]],16,0)),"") -> - | S42: =IFERROR(IF(VLOOKUP(B42,Baza[[№]:[Profit]],17,0)=0,"-",VLOOKUP(B42,Baza[[№]:[Profit]],17,0)),"") -> - | T42: =IFERROR(IF(VLOOKUP(B42,Baza[[№]:[Profit]],18,0)=0,"-",VLOOKUP(B42,Baza[[№]:[Profit]],18,0)),"") -> - | U42: =IFERROR(IF(VLOOKUP(B42,Baza[[№]:[Profit]],19,0)=0,"-",VLOOKUP(B42,Baza[[№]:[Profit]],19,0)),"") -> - | V42: =IFERROR(VLOOKUP(B42,Baza[[№]:[Profit]],20,0),"") -> 2.2 | W42: =IFERROR(IF(VLOOKUP(B42,Baza[[№]:[Profit]],21,0)=0,"-",VLOOKUP(B42,Baza[[№]:[Profit]],21,0)),"") -> - | X42: =IFERROR(IF(VLOOKUP(B42,Baza[[№]:[Profit]],22,0)=0,"-",VLOOKUP(B42,Baza[[№]:[Profit]],22,0)),"") -> - | Y42: =IFERROR(VLOOKUP(B42,Baza[[№]:[Profit]],23,0),"") -> -2.2 | Z42: =IFERROR(VLOOKUP(B42,Baza[[№]:[AFS]],24,0),"") -> 90.90909091 | AA42: =IF(Таблица2[[#This Row],[Profit]]="","#Н/Д",SUM($Y$40:Y42)) -> -4.42 | AB42: =IF(Таблица2[[#This Row],[Grafik]]="#Н/Д",FALSE,TRUE) -> TRUE
A43: 4 | B43: 4 | C43: =IFERROR(VLOOKUP(B43,Baza[[№]:[Profit]],2,0),"") -> 2021 | D43: =IF(Таблица2[[#This Row],[NN]]="","",TEXT(Таблица2[[#This Row],[Start]],"ч:мм")&" "&IF(OR(Таблица2[[#This Row],[Room]]="WN",Таблица2[[#This Row],[Room]]="ES"),"€","$")&Таблица2[[#This Row],[B]]&" "&"["&Таблица2[[#This Row],[Room]]&"] "&Таблица2[[#This Row],[Name]]) -> 11:30 $2,1 [GG] Bounty Hunters | E43: =IF(Таблица2[[#This Row],[NN]]="","",IF(OR(Таблица2[[#This Row],[Room]]="WN",Таблица2[[#This Row],[Room]]="ES"),"€","$")&Таблица2[[#This Row],[B]]&" "&"["&Таблица2[[#This Row],[Room]]&"] "&Таблица2[[#This Row],[Name]]) -> $2,1 [GG] Bounty Hunters | F43: =IFERROR(VLOOKUP(B43,Baza[[№]:[Profit]],3,0),"") -> 1 | G43: =IFERROR(VLOOKUP(B43,Baza[[№]:[Profit]],4,0),"") -> пятница | H43: =IFERROR(VLOOKUP(B43,Baza[[№]:[Profit]],5,0),"") -> январь | I43: =IFERROR(VLOOKUP(B43,Baza[[№]:[Profit]],6,0),"") -> 2021-01-01 | J43: =IFERROR(VLOOKUP(B43,Baza[[№]:[Profit]],7,0),"") -> 11:30:00 | K43: =IFERROR(VLOOKUP(B43,Baza[[№]:[Profit]],8,0),"") -> 2.1 | L43: =IFERROR(VLOOKUP(B43,Baza[[№]:[Profit]],9,0),"") -> GG | M43: =IFERROR(VLOOKUP(B43,Baza[[№]:[Profit]],10,0),"") -> Bounty Hunters | N43: =IFERROR(IF(VLOOKUP(B43,Baza[[№]:[Profit]],11,0)=0,"-",VLOOKUP(B43,Baza[[№]:[Profit]],11,0)),"") -> 8 | O43: =IFERROR(IF(VLOOKUP(B43,Baza[[№]:[Profit]],12,0)=0,"-",VLOOKUP(B43,Baza[[№]:[Profit]],12,0)),"") -> - | P43: =IFERROR(IF(VLOOKUP(B43,Baza[[№]:[Profit]],13,0)=0,"-",VLOOKUP(B43,Baza[[№]:[Profit]],13,0)),"") -> K | Q43: =IFERROR(IF(VLOOKUP(B43,Baza[[№]:[Profit]],15,0)=0,"-",VLOOKUP(B43,Baza[[№]:[Profit]],15,0)),"") -> 1200 | R43: =IFERROR(IF(VLOOKUP(B43,Baza[[№]:[Profit]],16,0)=0,"-",VLOOKUP(B43,Baza[[№]:[Profit]],16,0)),"") -> - | S43: =IFERROR(IF(VLOOKUP(B43,Baza[[№]:[Profit]],17,0)=0,"-",VLOOKUP(B43,Baza[[№]:[Profit]],17,0)),"") -> - | T43: =IFERROR(IF(VLOOKUP(B43,Baza[[№]:[Profit]],18,0)=0,"-",VLOOKUP(B43,Baza[[№]:[Profit]],18,0)),"") -> - | U43: =IFERROR(IF(VLOOKUP(B43,Baza[[№]:[Profit]],19,0)=0,"-",VLOOKUP(B43,Baza[[№]:[Profit]],19,0)),"") -> - | V43: =IFERROR(VLOOKUP(B43,Baza[[№]:[Profit]],20,0),"") -> 2.1 | W43: =IFERROR(IF(VLOOKUP(B43,Baza[[№]:[Profit]],21,0)=0,"-",VLOOKUP(B43,Baza[[№]:[Profit]],21,0)),"") -> - | X43: =IFERROR(IF(VLOOKUP(B43,Baza[[№]:[Profit]],22,0)=0,"-",VLOOKUP(B43,Baza[[№]:[Profit]],22,0)),"") -> - | Y43: =IFERROR(VLOOKUP(B43,Baza[[№]:[Profit]],23,0),"") -> -2.1 | Z43: =IFERROR(VLOOKUP(B43,Baza[[№]:[AFS]],24,0),"") -> 571.4285714 | AA43: =IF(Таблица2[[#This Row],[Profit]]="","#Н/Д",SUM($Y$40:Y43)) -> -6.52 | AB43: =IF(Таблица2[[#This Row],[Grafik]]="#Н/Д",FALSE,TRUE) -> TRUE
A44: 5 | B44: 5 | C44: =IFERROR(VLOOKUP(B44,Baza[[№]:[Profit]],2,0),"") -> 2021 | D44: =IF(Таблица2[[#This Row],[NN]]="","",TEXT(Таблица2[[#This Row],[Start]],"ч:мм")&" "&IF(OR(Таблица2[[#This Row],[Room]]="WN",Таблица2[[#This Row],[Room]]="ES"),"€","$")&Таблица2[[#This Row],[B]]&" "&"["&Таблица2[[#This Row],[Room]]&"] "&Таблица2[[#This Row],[Name]]) -> 12:00 $1,1 [PP] Deepstack | E44: =IF(Таблица2[[#This Row],[NN]]="","",IF(OR(Таблица2[[#This Row],[Room]]="WN",Таблица2[[#This Row],[Room]]="ES"),"€","$")&Таблица2[[#This Row],[B]]&" "&"["&Таблица2[[#This Row],[Room]]&"] "&Таблица2[[#This Row],[Name]]) -> $1,1 [PP] Deepstack | F44: =IFERROR(VLOOKUP(B44,Baza[[№]:[Profit]],3,0),"") -> 1 | G44: =IFERROR(VLOOKUP(B44,Baza[[№]:[Profit]],4,0),"") -> пятница | H44: =IFERROR(VLOOKUP(B44,Baza[[№]:[Profit]],5,0),"") -> январь | I44: =IFERROR(VLOOKUP(B44,Baza[[№]:[Profit]],6,0),"") -> 2021-01-01 | J44: =IFERROR(VLOOKUP(B44,Baza[[№]:[Profit]],7,0),"") -> 12:00:00 | K44: =IFERROR(VLOOKUP(B44,Baza[[№]:[Profit]],8,0),"") -> 1.1 | L44: =IFERROR(VLOOKUP(B44,Baza[[№]:[Profit]],9,0),"") -> PP | M44: =IFERROR(VLOOKUP(B44,Baza[[№]:[Profit]],10,0),"") -> Deepstack | N44: =IFERROR(IF(VLOOKUP(B44,Baza[[№]:[Profit]],11,0)=0,"-",VLOOKUP(B44,Baza[[№]:[Profit]],11,0)),"") -> 8 | O44: =IFERROR(IF(VLOOKUP(B44,Baza[[№]:[Profit]],12,0)=0,"-",VLOOKUP(B44,Baza[[№]:[Profit]],12,0)),"") -> - | P44: =IFERROR(IF(VLOOKUP(B44,Baza[[№]:[Profit]],13,0)=0,"-",VLOOKUP(B44,Baza[[№]:[Profit]],13,0)),"") -> - | Q44: =IFERROR(IF(VLOOKUP(B44,Baza[[№]:[Profit]],15,0)=0,"-",VLOOKUP(B44,Baza[[№]:[Profit]],15,0)),"") -> 150 | R44: =IFERROR(IF(VLOOKUP(B44,Baza[[№]:[Profit]],16,0)=0,"-",VLOOKUP(B44,Baza[[№]:[Profit]],16,0)),"") -> - | S44: =IFERROR(IF(VLOOKUP(B44,Baza[[№]:[Profit]],17,0)=0,"-",VLOOKUP(B44,Baza[[№]:[Profit]],17,0)),"") -> - | T44: =IFERROR(IF(VLOOKUP(B44,Baza[[№]:[Profit]],18,0)=0,"-",VLOOKUP(B44,Baza[[№]:[Profit]],18,0)),"") -> - | U44: =IFERROR(IF(VLOOKUP(B44,Baza[[№]:[Profit]],19,0)=0,"-",VLOOKUP(B44,Baza[[№]:[Profit]],19,0)),"") -> - | V44: =IFERROR(VLOOKUP(B44,Baza[[№]:[Profit]],20,0),"") -> 1.1 | W44: =IFERROR(IF(VLOOKUP(B44,Baza[[№]:[Profit]],21,0)=0,"-",VLOOKUP(B44,Baza[[№]:[Profit]],21,0)),"") -> - | X44: =IFERROR(IF(VLOOKUP(B44,Baza[[№]:[Profit]],22,0)=0,"-",VLOOKUP(B44,Baza[[№]:[Profit]],22,0)),"") -> - | Y44: =IFERROR(VLOOKUP(B44,Baza[[№]:[Profit]],23,0),"") -> -1.1 | Z44: =IFERROR(VLOOKUP(B44,Baza[[№]:[AFS]],24,0),"") -> 136.3636364 | AA44: =IF(Таблица2[[#This Row],[Profit]]="","#Н/Д",SUM($Y$40:Y44)) -> -7.62 | AB44: =IF(Таблица2[[#This Row],[Grafik]]="#Н/Д",FALSE,TRUE) -> TRUE
A45: 6 | B45: 6 | C45: =IFERROR(VLOOKUP(B45,Baza[[№]:[Profit]],2,0),"") -> 2021 | D45: =IF(Таблица2[[#This Row],[NN]]="","",TEXT(Таблица2[[#This Row],[Start]],"ч:мм")&" "&IF(OR(Таблица2[[#This Row],[Room]]="WN",Таблица2[[#This Row],[Room]]="ES"),"€","$")&Таблица2[[#This Row],[B]]&" "&"["&Таблица2[[#This Row],[Room]]&"] "&Таблица2[[#This Row],[Name]]) -> 12:00 $1,1 [PS] Big | E45: =IF(Таблица2[[#This Row],[NN]]="","",IF(OR(Таблица2[[#This Row],[Room]]="WN",Таблица2[[#This Row],[Room]]="ES"),"€","$")&Таблица2[[#This Row],[B]]&" "&"["&Таблица2[[#This Row],[Room]]&"] "&Таблица2[[#This Row],[Name]]) -> $1,1 [PS] Big | F45: =IFERROR(VLOOKUP(B45,Baza[[№]:[Profit]],3,0),"") -> 1 | G45: =IFERROR(VLOOKUP(B45,Baza[[№]:[Profit]],4,0),"") -> пятница | H45: =IFERROR(VLOOKUP(B45,Baza[[№]:[Profit]],5,0),"") -> январь | I45: =IFERROR(VLOOKUP(B45,Baza[[№]:[Profit]],6,0),"") -> 2021-01-01 | J45: =IFERROR(VLOOKUP(B45,Baza[[№]:[Profit]],7,0),"") -> 12:00:00 | K45: =IFERROR(VLOOKUP(B45,Baza[[№]:[Profit]],8,0),"") -> 1.1 | L45: =IFERROR(VLOOKUP(B45,Baza[[№]:[Profit]],9,0),"") -> PS | M45: =IFERROR(VLOOKUP(B45,Baza[[№]:[Profit]],10,0),"") -> Big | N45: =IFERROR(IF(VLOOKUP(B45,Baza[[№]:[Profit]],11,0)=0,"-",VLOOKUP(B45,Baza[[№]:[Profit]],11,0)),"") -> 9 | O45: =IFERROR(IF(VLOOKUP(B45,Baza[[№]:[Profit]],12,0)=0,"-",VLOOKUP(B45,Baza[[№]:[Profit]],12,0)),"") -> - | P45: =IFERROR(IF(VLOOKUP(B45,Baza[[№]:[Profit]],13,0)=0,"-",VLOOKUP(B45,Baza[[№]:[Profit]],13,0)),"") -> - | Q45: =IFERROR(IF(VLOOKUP(B45,Baza[[№]:[Profit]],15,0)=0,"-",VLOOKUP(B45,Baza[[№]:[Profit]],15,0)),"") -> 500 | R45: =IFERROR(IF(VLOOKUP(B45,Baza[[№]:[Profit]],16,0)=0,"-",VLOOKUP(B45,Baza[[№]:[Profit]],16,0)),"") -> - | S45: =IFERROR(IF(VLOOKUP(B45,Baza[[№]:[Profit]],17,0)=0,"-",VLOOKUP(B45,Baza[[№]:[Profit]],17,0)),"") -> 6.26 | T45: =IFERROR(IF(VLOOKUP(B45,Baza[[№]:[Profit]],18,0)=0,"-",VLOOKUP(B45,Baza[[№]:[Profit]],18,0)),"") -> - | U45: =IFERROR(IF(VLOOKUP(B45,Baza[[№]:[Profit]],19,0)=0,"-",VLOOKUP(B45,Baza[[№]:[Profit]],19,0)),"") -> 42 | V45: =IFERROR(VLOOKUP(B45,Baza[[№]:[Profit]],20,0),"") -> 1.1 | W45: =IFERROR(IF(VLOOKUP(B45,Baza[[№]:[Profit]],21,0)=0,"-",VLOOKUP(B45,Baza[[№]:[Profit]],21,0)),"") -> - | X45: =IFERROR(IF(VLOOKUP(B45,Baza[[№]:[Profit]],22,0)=0,"-",VLOOKUP(B45,Baza[[№]:[Profit]],22,0)),"") -> 6.26 | Y45: =IFERROR(VLOOKUP(B45,Baza[[№]:[Profit]],23,0),"") -> 5.16 | Z45: =IFERROR(VLOOKUP(B45,Baza[[№]:[AFS]],24,0),"") -> 454.5454545 | AA45: =IF(Таблица2[[#This Row],[Profit]]="","#Н/Д",SUM($Y$40:Y45)) -> -2.46 | AB45: =IF(Таблица2[[#This Row],[Grafik]]="#Н/Д",FALSE,TRUE) -> TRUE
A46: 7 | B46: 7 | C46: =IFERROR(VLOOKUP(B46,Baza[[№]:[Profit]],2,0),"") -> 2021 | D46: =IF(Таблица2[[#This Row],[NN]]="","",TEXT(Таблица2[[#This Row],[Start]],"ч:мм")&" "&IF(OR(Таблица2[[#This Row],[Room]]="WN",Таблица2[[#This Row],[Room]]="ES"),"€","$")&Таблица2[[#This Row],[B]]&" "&"["&Таблица2[[#This Row],[Room]]&"] "&Таблица2[[#This Row],[Name]]) -> 12:00 €2 [WN] Monster Stack | E46: =IF(Таблица2[[#This Row],[NN]]="","",IF(OR(Таблица2[[#This Row],[Room]]="WN",Таблица2[[#This Row],[Room]]="ES"),"€","$")&Таблица2[[#This Row],[B]]&" "&"["&Таблица2[[#This Row],[Room]]&"] "&Таблица2[[#This Row],[Name]]) -> €2 [WN] Monster Stack | F46: =IFERROR(VLOOKUP(B46,Baza[[№]:[Profit]],3,0),"") -> 1 | G46: =IFERROR(VLOOKUP(B46,Baza[[№]:[Profit]],4,0),"") -> пятница | H46: =IFERROR(VLOOKUP(B46,Baza[[№]:[Profit]],5,0),"") -> январь | I46: =IFERROR(VLOOKUP(B46,Baza[[№]:[Profit]],6,0),"") -> 2021-01-01 | J46: =IFERROR(VLOOKUP(B46,Baza[[№]:[Profit]],7,0),"") -> 12:00:00 | K46: =IFERROR(VLOOKUP(B46,Baza[[№]:[Profit]],8,0),"") -> 2 | L46: =IFERROR(VLOOKUP(B46,Baza[[№]:[Profit]],9,0),"") -> WN | M46: =IFERROR(VLOOKUP(B46,Baza[[№]:[Profit]],10,0),"") -> Monster Stack | N46: =IFERROR(IF(VLOOKUP(B46,Baza[[№]:[Profit]],11,0)=0,"-",VLOOKUP(B46,Baza[[№]:[Profit]],11,0)),"") -> 6 | O46: =IFERROR(IF(VLOOKUP(B46,Baza[[№]:[Profit]],12,0)=0,"-",VLOOKUP(B46,Baza[[№]:[Profit]],12,0)),"") -> - | P46: =IFERROR(IF(VLOOKUP(B46,Baza[[№]:[Profit]],13,0)=0,"-",VLOOKUP(B46,Baza[[№]:[Profit]],13,0)),"") -> - | Q46: =IFERROR(IF(VLOOKUP(B46,Baza[[№]:[Profit]],15,0)=0,"-",VLOOKUP(B46,Baza[[№]:[Profit]],15,0)),"") -> 200 | R46: =IFERROR(IF(VLOOKUP(B46,Baza[[№]:[Profit]],16,0)=0,"-",VLOOKUP(B46,Baza[[№]:[Profit]],16,0)),"") -> - | S46: =IFERROR(IF(VLOOKUP(B46,Baza[[№]:[Profit]],17,0)=0,"-",VLOOKUP(B46,Baza[[№]:[Profit]],17,0)),"") -> - | T46: =IFERROR(IF(VLOOKUP(B46,Baza[[№]:[Profit]],18,0)=0,"-",VLOOKUP(B46,Baza[[№]:[Profit]],18,0)),"") -> - | U46: =IFERROR(IF(VLOOKUP(B46,Baza[[№]:[Profit]],19,0)=0,"-",VLOOKUP(B46,Baza[[№]:[Profit]],19,0)),"") -> - | V46: =IFERROR(VLOOKUP(B46,Baza[[№]:[Profit]],20,0),"") -> 2.24 | W46: =IFERROR(IF(VLOOKUP(B46,Baza[[№]:[Profit]],21,0)=0,"-",VLOOKUP(B46,Baza[[№]:[Profit]],21,0)),"") -> - | X46: =IFERROR(IF(VLOOKUP(B46,Baza[[№]:[Profit]],22,0)=0,"-",VLOOKUP(B46,Baza[[№]:[Profit]],22,0)),"") -> - | Y46: =IFERROR(VLOOKUP(B46,Baza[[№]:[Profit]],23,0),"") -> -2.24 | Z46: =IFERROR(VLOOKUP(B46,Baza[[№]:[AFS]],24,0),"") -> 100 | AA46: =IF(Таблица2[[#This Row],[Profit]]="","#Н/Д",SUM($Y$40:Y46)) -> -4.7 | AB46: =IF(Таблица2[[#This Row],[Grafik]]="#Н/Д",FALSE,TRUE) -> TRUE
A47: 8 | B47: 8 | C47: =IFERROR(VLOOKUP(B47,Baza[[№]:[Profit]],2,0),"") -> 2021 | D47: =IF(Таблица2[[#This Row],[NN]]="","",TEXT(Таблица2[[#This Row],[Start]],"ч:мм")&" "&IF(OR(Таблица2[[#This Row],[Room]]="WN",Таблица2[[#This Row],[Room]]="ES"),"€","$")&Таблица2[[#This Row],[B]]&" "&"["&Таблица2[[#This Row],[Room]]&"] "&Таблица2[[#This Row],[Name]]) -> 12:30 $1,05 [GG] Bounty Hunters | E47: =IF(Таблица2[[#This Row],[NN]]="","",IF(OR(Таблица2[[#This Row],[Room]]="WN",Таблица2[[#This Row],[Room]]="ES"),"€","$")&Таблица2[[#This Row],[B]]&" "&"["&Таблица2[[#This Row],[Room]]&"] "&Таблица2[[#This Row],[Name]]) -> $1,05 [GG] Bounty Hunters | F47: =IFERROR(VLOOKUP(B47,Baza[[№]:[Profit]],3,0),"") -> 1 | G47: =IFERROR(VLOOKUP(B47,Baza[[№]:[Profit]],4,0),"") -> пятница | H47: =IFERROR(VLOOKUP(B47,Baza[[№]:[Profit]],5,0),"") -> январь | I47: =IFERROR(VLOOKUP(B47,Baza[[№]:[Profit]],6,0),"") -> 2021-01-01 | J47: =IFERROR(VLOOKUP(B47,Baza[[№]:[Profit]],7,0),"") -> 12:30:00 | K47: =IFERROR(VLOOKUP(B47,Baza[[№]:[Profit]],8,0),"") -> 1.05 | L47: =IFERROR(VLOOKUP(B47,Baza[[№]:[Profit]],9,0),"") -> GG | M47: =IFERROR(VLOOKUP(B47,Baza[[№]:[Profit]],10,0),"") -> Bounty Hunters | N47: =IFERROR(IF(VLOOKUP(B47,Baza[[№]:[Profit]],11,0)=0,"-",VLOOKUP(B47,Baza[[№]:[Profit]],11,0)),"") -> 8 | O47: =IFERROR(IF(VLOOKUP(B47,Baza[[№]:[Profit]],12,0)=0,"-",VLOOKUP(B47,Baza[[№]:[Profit]],12,0)),"") -> - | P47: =IFERROR(IF(VLOOKUP(B47,Baza[[№]:[Profit]],13,0)=0,"-",VLOOKUP(B47,Baza[[№]:[Profit]],13,0)),"") -> K | Q47: =IFERROR(IF(VLOOKUP(B47,Baza[[№]:[Profit]],15,0)=0,"-",VLOOKUP(B47,Baza[[№]:[Profit]],15,0)),"") -> 750 | R47: =IFERROR(IF(VLOOKUP(B47,Baza[[№]:[Profit]],16,0)=0,"-",VLOOKUP(B47,Baza[[№]:[Profit]],16,0)),"") -> 5.04 | S47: =IFERROR(IF(VLOOKUP(B47,Baza[[№]:[Profit]],17,0)=0,"-",VLOOKUP(B47,Baza[[№]:[Profit]],17,0)),"") -> 3.98 | T47: =IFERROR(IF(VLOOKUP(B47,Baza[[№]:[Profit]],18,0)=0,"-",VLOOKUP(B47,Baza[[№]:[Profit]],18,0)),"") -> - | U47: =IFERROR(IF(VLOOKUP(B47,Baza[[№]:[Profit]],19,0)=0,"-",VLOOKUP(B47,Baza[[№]:[Profit]],19,0)),"") -> 20 | V47: =IFERROR(VLOOKUP(B47,Baza[[№]:[Profit]],20,0),"") -> 1.05 | W47: =IFERROR(IF(VLOOKUP(B47,Baza[[№]:[Profit]],21,0)=0,"-",VLOOKUP(B47,Baza[[№]:[Profit]],21,0)),"") -> 5.04 | X47: =IFERROR(IF(VLOOKUP(B47,Baza[[№]:[Profit]],22,0)=0,"-",VLOOKUP(B47,Baza[[№]:[Profit]],22,0)),"") -> 3.98 | Y47: =IFERROR(VLOOKUP(B47,Baza[[№]:[Profit]],23,0),"") -> 7.97 | Z47: =IFERROR(VLOOKUP(B47,Baza[[№]:[AFS]],24,0),"") -> 714.2857143 | AA47: =IF(Таблица2[[#This Row],[Profit]]="","#Н/Д",SUM($Y$40:Y47)) -> 3.27 | AB47: =IF(Таблица2[[#This Row],[Grafik]]="#Н/Д",FALSE,TRUE) -> TRUE
A48: 9 | B48: 9 | C48: =IFERROR(VLOOKUP(B48,Baza[[№]:[Profit]],2,0),"") -> 2021 | D48: =IF(Таблица2[[#This Row],[NN]]="","",TEXT(Таблица2[[#This Row],[Start]],"ч:мм")&" "&IF(OR(Таблица2[[#This Row],[Room]]="WN",Таблица2[[#This Row],[Room]]="ES"),"€","$")&Таблица2[[#This Row],[B]]&" "&"["&Таблица2[[#This Row],[Room]]&"] "&Таблица2[[#This Row],[Name]]) -> 12:30 $1 [PAC] Guaranteed | E48: =IF(Таблица2[[#This Row],[NN]]="","",IF(OR(Таблица2[[#This Row],[Room]]="WN",Таблица2[[#This Row],[Room]]="ES"),"€","$")&Таблица2[[#This Row],[B]]&" "&"["&Таблица2[[#This Row],[Room]]&"] "&Таблица2[[#This Row],[Name]]) -> $1 [PAC] Guaranteed | F48: =IFERROR(VLOOKUP(B48,Baza[[№]:[Profit]],3,0),"") -> 1 | G48: =IFERROR(VLOOKUP(B48,Baza[[№]:[Profit]],4,0),"") -> пятница | H48: =IFERROR(VLOOKUP(B48,Baza[[№]:[Profit]],5,0),"") -> январь | I48: =IFERROR(VLOOKUP(B48,Baza[[№]:[Profit]],6,0),"") -> 2021-01-01 | J48: =IFERROR(VLOOKUP(B48,Baza[[№]:[Profit]],7,0),"") -> 12:30:00 | K48: =IFERROR(VLOOKUP(B48,Baza[[№]:[Profit]],8,0),"") -> 1 | L48: =IFERROR(VLOOKUP(B48,Baza[[№]:[Profit]],9,0),"") -> PAC | M48: =IFERROR(VLOOKUP(B48,Baza[[№]:[Profit]],10,0),"") -> Guaranteed | N48: =IFERROR(IF(VLOOKUP(B48,Baza[[№]:[Profit]],11,0)=0,"-",VLOOKUP(B48,Baza[[№]:[Profit]],11,0)),"") -> 9 | O48: =IFERROR(IF(VLOOKUP(B48,Baza[[№]:[Profit]],12,0)=0,"-",VLOOKUP(B48,Baza[[№]:[Profit]],12,0)),"") -> - | P48: =IFERROR(IF(VLOOKUP(B48,Baza[[№]:[Profit]],13,0)=0,"-",VLOOKUP(B48,Baza[[№]:[Profit]],13,0)),"") -> - | Q48: =IFERROR(IF(VLOOKUP(B48,Baza[[№]:[Profit]],15,0)=0,"-",VLOOKUP(B48,Baza[[№]:[Profit]],15,0)),"") -> 200 | R48: =IFERROR(IF(VLOOKUP(B48,Baza[[№]:[Profit]],16,0)=0,"-",VLOOKUP(B48,Baza[[№]:[Profit]],16,0)),"") -> - | S48: =IFERROR(IF(VLOOKUP(B48,Baza[[№]:[Profit]],17,0)=0,"-",VLOOKUP(B48,Baza[[№]:[Profit]],17,0)),"") -> - | T48: =IFERROR(IF(VLOOKUP(B48,Baza[[№]:[Profit]],18,0)=0,"-",VLOOKUP(B48,Baza[[№]:[Profit]],18,0)),"") -> - | U48: =IFERROR(IF(VLOOKUP(B48,Baza[[№]:[Profit]],19,0)=0,"-",VLOOKUP(B48,Baza[[№]:[Profit]],19,0)),"") -> - | V48: =IFERROR(VLOOKUP(B48,Baza[[№]:[Profit]],20,0),"") -> 1 | W48: =IFERROR(IF(VLOOKUP(B48,Baza[[№]:[Profit]],21,0)=0,"-",VLOOKUP(B48,Baza[[№]:[Profit]],21,0)),"") -> - | X48: =IFERROR(IF(VLOOKUP(B48,Baza[[№]:[Profit]],22,0)=0,"-",VLOOKUP(B48,Baza[[№]:[Profit]],22,0)),"") -> - | Y48: =IFERROR(VLOOKUP(B48,Baza[[№]:[Profit]],23,0),"") -> -1 | Z48: =IFERROR(VLOOKUP(B48,Baza[[№]:[AFS]],24,0),"") -> 200 | AA48: =IF(Таблица2[[#This Row],[Profit]]="","#Н/Д",SUM($Y$40:Y48)) -> 2.27 | AB48: =IF(Таблица2[[#This Row],[Grafik]]="#Н/Д",FALSE,TRUE) -> TRUE
A49: 10 | B49: 10 | C49: =IFERROR(VLOOKUP(B49,Baza[[№]:[Profit]],2,0),"") -> 2021 | D49: =IF(Таблица2[[#This Row],[NN]]="","",TEXT(Таблица2[[#This Row],[Start]],"ч:мм")&" "&IF(OR(Таблица2[[#This Row],[Room]]="WN",Таблица2[[#This Row],[Room]]="ES"),"€","$")&Таблица2[[#This Row],[B]]&" "&"["&Таблица2[[#This Row],[Room]]&"] "&Таблица2[[#This Row],[Name]]) -> 12:30 $2,2 [PP] Bounty Hunter | E49: =IF(Таблица2[[#This Row],[NN]]="","",IF(OR(Таблица2[[#This Row],[Room]]="WN",Таблица2[[#This Row],[Room]]="ES"),"€","$")&Таблица2[[#This Row],[B]]&" "&"["&Таблица2[[#This Row],[Room]]&"] "&Таблица2[[#This Row],[Name]]) -> $2,2 [PP] Bounty Hunter | F49: =IFERROR(VLOOKUP(B49,Baza[[№]:[Profit]],3,0),"") -> 1 | G49: =IFERROR(VLOOKUP(B49,Baza[[№]:[Profit]],4,0),"") -> пятница | H49: =IFERROR(VLOOKUP(B49,Baza[[№]:[Profit]],5,0),"") -> январь | I49: =IFERROR(VLOOKUP(B49,Baza[[№]:[Profit]],6,0),"") -> 2021-01-01 | J49: =IFERROR(VLOOKUP(B49,Baza[[№]:[Profit]],7,0),"") -> 12:30:00 | K49: =IFERROR(VLOOKUP(B49,Baza[[№]:[Profit]],8,0),"") -> 2.2 | L49: =IFERROR(VLOOKUP(B49,Baza[[№]:[Profit]],9,0),"") -> PP | M49: =IFERROR(VLOOKUP(B49,Baza[[№]:[Profit]],10,0),"") -> Bounty Hunter | N49: =IFERROR(IF(VLOOKUP(B49,Baza[[№]:[Profit]],11,0)=0,"-",VLOOKUP(B49,Baza[[№]:[Profit]],11,0)),"") -> 8 | O49: =IFERROR(IF(VLOOKUP(B49,Baza[[№]:[Profit]],12,0)=0,"-",VLOOKUP(B49,Baza[[№]:[Profit]],12,0)),"") -> - | P49: =IFERROR(IF(VLOOKUP(B49,Baza[[№]:[Profit]],13,0)=0,"-",VLOOKUP(B49,Baza[[№]:[Profit]],13,0)),"") -> K | Q49: =IFERROR(IF(VLOOKUP(B49,Baza[[№]:[Profit]],15,0)=0,"-",VLOOKUP(B49,Baza[[№]:[Profit]],15,0)),"") -> 200 | R49: =IFERROR(IF(VLOOKUP(B49,Baza[[№]:[Profit]],16,0)=0,"-",VLOOKUP(B49,Baza[[№]:[Profit]],16,0)),"") -> - | S49: =IFERROR(IF(VLOOKUP(B49,Baza[[№]:[Profit]],17,0)=0,"-",VLOOKUP(B49,Baza[[№]:[Profit]],17,0)),"") -> - | T49: =IFERROR(IF(VLOOKUP(B49,Baza[[№]:[Profit]],18,0)=0,"-",VLOOKUP(B49,Baza[[№]:[Profit]],18,0)),"") -> - | U49: =IFERROR(IF(VLOOKUP(B49,Baza[[№]:[Profit]],19,0)=0,"-",VLOOKUP(B49,Baza[[№]:[Profit]],19,0)),"") -> - | V49: =IFERROR(VLOOKUP(B49,Baza[[№]:[Profit]],20,0),"") -> 2.2 | W49: =IFERROR(IF(VLOOKUP(B49,Baza[[№]:[Profit]],21,0)=0,"-",VLOOKUP(B49,Baza[[№]:[Profit]],21,0)),"") -> - | X49: =IFERROR(IF(VLOOKUP(B49,Baza[[№]:[Profit]],22,0)=0,"-",VLOOKUP(B49,Baza[[№]:[Profit]],22,0)),"") -> - | Y49: =IFERROR(VLOOKUP(B49,Baza[[№]:[Profit]],23,0),"") -> -2.2 | Z49: =IFERROR(VLOOKUP(B49,Baza[[№]:[AFS]],24,0),"") -> 90.90909091 | AA49: =IF(Таблица2[[#This Row],[Profit]]="","#Н/Д",SUM($Y$40:Y49)) -> 0.07 | AB49: =IF(Таблица2[[#This Row],[Grafik]]="#Н/Д",FALSE,TRUE) -> TRUE
A50: 11 | B50: 11 | C50: =IFERROR(VLOOKUP(B50,Baza[[№]:[Profit]],2,0),"") -> 2021 | D50: =IF(Таблица2[[#This Row],[NN]]="","",TEXT(Таблица2[[#This Row],[Start]],"ч:мм")&" "&IF(OR(Таблица2[[#This Row],[Room]]="WN",Таблица2[[#This Row],[Room]]="ES"),"€","$")&Таблица2[[#This Row],[B]]&" "&"["&Таблица2[[#This Row],[Room]]&"] "&Таблица2[[#This Row],[Name]]) -> 13:00 $2 [GG] Big | E50: =IF(Таблица2[[#This Row],[NN]]="","",IF(OR(Таблица2[[#This Row],[Room]]="WN",Таблица2[[#This Row],[Room]]="ES"),"€","$")&Таблица2[[#This Row],[B]]&" "&"["&Таблица2[[#This Row],[Room]]&"] "&Таблица2[[#This Row],[Name]]) -> $2 [GG] Big | F50: =IFERROR(VLOOKUP(B50,Baza[[№]:[Profit]],3,0),"") -> 1 | G50: =IFERROR(VLOOKUP(B50,Baza[[№]:[Profit]],4,0),"") -> пятница | H50: =IFERROR(VLOOKUP(B50,Baza[[№]:[Profit]],5,0),"") -> январь | I50: =IFERROR(VLOOKUP(B50,Baza[[№]:[Profit]],6,0),"") -> 2021-01-01 | J50: =IFERROR(VLOOKUP(B50,Baza[[№]:[Profit]],7,0),"") -> 13:00:00 | K50: =IFERROR(VLOOKUP(B50,Baza[[№]:[Profit]],8,0),"") -> 2 | L50: =IFERROR(VLOOKUP(B50,Baza[[№]:[Profit]],9,0),"") -> GG | M50: =IFERROR(VLOOKUP(B50,Baza[[№]:[Profit]],10,0),"") -> Big | N50: =IFERROR(IF(VLOOKUP(B50,Baza[[№]:[Profit]],11,0)=0,"-",VLOOKUP(B50,Baza[[№]:[Profit]],11,0)),"") -> 8 | O50: =IFERROR(IF(VLOOKUP(B50,Baza[[№]:[Profit]],12,0)=0,"-",VLOOKUP(B50,Baza[[№]:[Profit]],12,0)),"") -> - | P50: =IFERROR(IF(VLOOKUP(B50,Baza[[№]:[Profit]],13,0)=0,"-",VLOOKUP(B50,Baza[[№]:[Profit]],13,0)),"") -> - | Q50: =IFERROR(IF(VLOOKUP(B50,Baza[[№]:[Profit]],15,0)=0,"-",VLOOKUP(B50,Baza[[№]:[Profit]],15,0)),"") -> 750 | R50: =IFERROR(IF(VLOOKUP(B50,Baza[[№]:[Profit]],16,0)=0,"-",VLOOKUP(B50,Baza[[№]:[Profit]],16,0)),"") -> - | S50: =IFERROR(IF(VLOOKUP(B50,Baza[[№]:[Profit]],17,0)=0,"-",VLOOKUP(B50,Baza[[№]:[Profit]],17,0)),"") -> - | T50: =IFERROR(IF(VLOOKUP(B50,Baza[[№]:[Profit]],18,0)=0,"-",VLOOKUP(B50,Baza[[№]:[Profit]],18,0)),"") -> - | U50: =IFERROR(IF(VLOOKUP(B50,Baza[[№]:[Profit]],19,0)=0,"-",VLOOKUP(B50,Baza[[№]:[Profit]],19,0)),"") -> - | V50: =IFERROR(VLOOKUP(B50,Baza[[№]:[Profit]],20,0),"") -> 2 | W50: =IFERROR(IF(VLOOKUP(B50,Baza[[№]:[Profit]],21,0)=0,"-",VLOOKUP(B50,Baza[[№]:[Profit]],21,0)),"") -> - | X50: =IFERROR(IF(VLOOKUP(B50,Baza[[№]:[Profit]],22,0)=0,"-",VLOOKUP(B50,Baza[[№]:[Profit]],22,0)),"") -> - | Y50: =IFERROR(VLOOKUP(B50,Baza[[№]:[Profit]],23,0),"") -> -2 | Z50: =IFERROR(VLOOKUP(B50,Baza[[№]:[AFS]],24,0),"") -> 375 | AA50: =IF(Таблица2[[#This Row],[Profit]]="","#Н/Д",SUM($Y$40:Y50)) -> -1.93 | AB50: =IF(Таблица2[[#This Row],[Grafik]]="#Н/Д",FALSE,TRUE) -> TRUE
A51: 12 | B51: 12 | C51: =IFERROR(VLOOKUP(B51,Baza[[№]:[Profit]],2,0),"") -> 2021 | D51: =IF(Таблица2[[#This Row],[NN]]="","",TEXT(Таблица2[[#This Row],[Start]],"ч:мм")&" "&IF(OR(Таблица2[[#This Row],[Room]]="WN",Таблица2[[#This Row],[Room]]="ES"),"€","$")&Таблица2[[#This Row],[B]]&" "&"["&Таблица2[[#This Row],[Room]]&"] "&Таблица2[[#This Row],[Name]]) -> 13:00 $1,1 [PP] Bounty Hunter | E51: =IF(Таблица2[[#This Row],[NN]]="","",IF(OR(Таблица2[[#This Row],[Room]]="WN",Таблица2[[#This Row],[Room]]="ES"),"€","$")&Таблица2[[#This Row],[B]]&" "&"["&Таблица2[[#This Row],[Room]]&"] "&Таблица2[[#This Row],[Name]]) -> $1,1 [PP] Bounty Hunter | F51: =IFERROR(VLOOKUP(B51,Baza[[№]:[Profit]],3,0),"") -> 1 | G51: =IFERROR(VLOOKUP(B51,Baza[[№]:[Profit]],4,0),"") -> пятница | H51: =IFERROR(VLOOKUP(B51,Baza[[№]:[Profit]],5,0),"") -> январь | I51: =IFERROR(VLOOKUP(B51,Baza[[№]:[Profit]],6,0),"") -> 2021-01-01 | J51: =IFERROR(VLOOKUP(B51,Baza[[№]:[Profit]],7,0),"") -> 13:00:00 | K51: =IFERROR(VLOOKUP(B51,Baza[[№]:[Profit]],8,0),"") -> 1.1 | L51: =IFERROR(VLOOKUP(B51,Baza[[№]:[Profit]],9,0),"") -> PP | M51: =IFERROR(VLOOKUP(B51,Baza[[№]:[Profit]],10,0),"") -> Bounty Hunter | N51: =IFERROR(IF(VLOOKUP(B51,Baza[[№]:[Profit]],11,0)=0,"-",VLOOKUP(B51,Baza[[№]:[Profit]],11,0)),"") -> 8 | O51: =IFERROR(IF(VLOOKUP(B51,Baza[[№]:[Profit]],12,0)=0,"-",VLOOKUP(B51,Baza[[№]:[Profit]],12,0)),"") -> - | P51: =IFERROR(IF(VLOOKUP(B51,Baza[[№]:[Profit]],13,0)=0,"-",VLOOKUP(B51,Baza[[№]:[Profit]],13,0)),"") -> K | Q51: =IFERROR(IF(VLOOKUP(B51,Baza[[№]:[Profit]],15,0)=0,"-",VLOOKUP(B51,Baza[[№]:[Profit]],15,0)),"") -> 100 | R51: =IFERROR(IF(VLOOKUP(B51,Baza[[№]:[Profit]],16,0)=0,"-",VLOOKUP(B51,Baza[[№]:[Profit]],16,0)),"") -> 1.37 | S51: =IFERROR(IF(VLOOKUP(B51,Baza[[№]:[Profit]],17,0)=0,"-",VLOOKUP(B51,Baza[[№]:[Profit]],17,0)),"") -> 1.25 | T51: =IFERROR(IF(VLOOKUP(B51,Baza[[№]:[Profit]],18,0)=0,"-",VLOOKUP(B51,Baza[[№]:[Profit]],18,0)),"") -> - | U51: =IFERROR(IF(VLOOKUP(B51,Baza[[№]:[Profit]],19,0)=0,"-",VLOOKUP(B51,Baza[[№]:[Profit]],19,0)),"") -> 18 | V51: =IFERROR(VLOOKUP(B51,Baza[[№]:[Profit]],20,0),"") -> 1.1 | W51: =IFERROR(IF(VLOOKUP(B51,Baza[[№]:[Profit]],21,0)=0,"-",VLOOKUP(B51,Baza[[№]:[Profit]],21,0)),"") -> 1.37 | X51: =IFERROR(IF(VLOOKUP(B51,Baza[[№]:[Profit]],22,0)=0,"-",VLOOKUP(B51,Baza[[№]:[Profit]],22,0)),"") -> 1.25 | Y51: =IFERROR(VLOOKUP(B51,Baza[[№]:[Profit]],23,0),"") -> 1.52 | Z51: =IFERROR(VLOOKUP(B51,Baza[[№]:[AFS]],24,0),"") -> 90.90909091 | AA51: =IF(Таблица2[[#This Row],[Profit]]="","#Н/Д",SUM($Y$40:Y51)) -> -0.41 | AB51: =IF(Таблица2[[#This Row],[Grafik]]="#Н/Д",FALSE,TRUE) -> TRUE
A52: 13 | B52: 13 | C52: =IFERROR(VLOOKUP(B52,Baza[[№]:[Profit]],2,0),"") -> 2021 | D52: =IF(Таблица2[[#This Row],[NN]]="","",TEXT(Таблица2[[#This Row],[Start]],"ч:мм")&" "&IF(OR(Таблица2[[#This Row],[Room]]="WN",Таблица2[[#This Row],[Room]]="ES"),"€","$")&Таблица2[[#This Row],[B]]&" "&"["&Таблица2[[#This Row],[Room]]&"] "&Таблица2[[#This Row],[Name]]) -> 14:00 $2,2 [PAC] Guaranteed | E52: =IF(Таблица2[[#This Row],[NN]]="","",IF(OR(Таблица2[[#This Row],[Room]]="WN",Таблица2[[#This Row],[Room]]="ES"),"€","$")&Таблица2[[#This Row],[B]]&" "&"["&Таблица2[[#This Row],[Room]]&"] "&Таблица2[[#This Row],[Name]]) -> $2,2 [PAC] Guaranteed | F52: =IFERROR(VLOOKUP(B52,Baza[[№]:[Profit]],3,0),"") -> 1 | G52: =IFERROR(VLOOKUP(B52,Baza[[№]:[Profit]],4,0),"") -> пятница | H52: =IFERROR(VLOOKUP(B52,Baza[[№]:[Profit]],5,0),"") -> январь | I52: =IFERROR(VLOOKUP(B52,Baza[[№]:[Profit]],6,0),"") -> 2021-01-01 | J52: =IFERROR(VLOOKUP(B52,Baza[[№]:[Profit]],7,0),"") -> 14:00:00 | K52: =IFERROR(VLOOKUP(B52,Baza[[№]:[Profit]],8,0),"") -> 2.2 | L52: =IFERROR(VLOOKUP(B52,Baza[[№]:[Profit]],9,0),"") -> PAC | M52: =IFERROR(VLOOKUP(B52,Baza[[№]:[Profit]],10,0),"") -> Guaranteed | N52: =IFERROR(IF(VLOOKUP(B52,Baza[[№]:[Profit]],11,0)=0,"-",VLOOKUP(B52,Baza[[№]:[Profit]],11,0)),"") -> 9 | O52: =IFERROR(IF(VLOOKUP(B52,Baza[[№]:[Profit]],12,0)=0,"-",VLOOKUP(B52,Baza[[№]:[Profit]],12,0)),"") -> - | P52: =IFERROR(IF(VLOOKUP(B52,Baza[[№]:[Profit]],13,0)=0,"-",VLOOKUP(B52,Baza[[№]:[Profit]],13,0)),"") -> - | Q52: =IFERROR(IF(VLOOKUP(B52,Baza[[№]:[Profit]],15,0)=0,"-",VLOOKUP(B52,Baza[[№]:[Profit]],15,0)),"") -> 500 | R52: =IFERROR(IF(VLOOKUP(B52,Baza[[№]:[Profit]],16,0)=0,"-",VLOOKUP(B52,Baza[[№]:[Profit]],16,0)),"") -> - | S52: =IFERROR(IF(VLOOKUP(B52,Baza[[№]:[Profit]],17,0)=0,"-",VLOOKUP(B52,Baza[[№]:[Profit]],17,0)),"") -> - | T52: =IFERROR(IF(VLOOKUP(B52,Baza[[№]:[Profit]],18,0)=0,"-",VLOOKUP(B52,Baza[[№]:[Profit]],18,0)),"") -> - | U52: =IFERROR(IF(VLOOKUP(B52,Baza[[№]:[Profit]],19,0)=0,"-",VLOOKUP(B52,Baza[[№]:[Profit]],19,0)),"") -> - | V52: =IFERROR(VLOOKUP(B52,Baza[[№]:[Profit]],20,0),"") -> 2.2 | W52: =IFERROR(IF(VLOOKUP(B52,Baza[[№]:[Profit]],21,0)=0,"-",VLOOKUP(B52,Baza[[№]:[Profit]],21,0)),"") -> - | X52: =IFERROR(IF(VLOOKUP(B52,Baza[[№]:[Profit]],22,0)=0,"-",VLOOKUP(B52,Baza[[№]:[Profit]],22,0)),"") -> - | Y52: =IFERROR(VLOOKUP(B52,Baza[[№]:[Profit]],23,0),"") -> -2.2 | Z52: =IFERROR(VLOOKUP(B52,Baza[[№]:[AFS]],24,0),"") -> 227.2727273 | AA52: =IF(Таблица2[[#This Row],[Profit]]="","#Н/Д",SUM($Y$40:Y52)) -> -2.61 | AB52: =IF(Таблица2[[#This Row],[Grafik]]="#Н/Д",FALSE,TRUE) -> TRUE
A53: 14 | B53: 14 | C53: =IFERROR(VLOOKUP(B53,Baza[[№]:[Profit]],2,0),"") -> 2021 | D53: =IF(Таблица2[[#This Row],[NN]]="","",TEXT(Таблица2[[#This Row],[Start]],"ч:мм")&" "&IF(OR(Таблица2[[#This Row],[Room]]="WN",Таблица2[[#This Row],[Room]]="ES"),"€","$")&Таблица2[[#This Row],[B]]&" "&"["&Таблица2[[#This Row],[Room]]&"] "&Таблица2[[#This Row],[Name]]) -> 14:20 $1,1 [PS] Progressive KO | E53: =IF(Таблица2[[#This Row],[NN]]="","",IF(OR(Таблица2[[#This Row],[Room]]="WN",Таблица2[[#This Row],[Room]]="ES"),"€","$")&Таблица2[[#This Row],[B]]&" "&"["&Таблица2[[#This Row],[Room]]&"] "&Таблица2[[#This Row],[Name]]) -> $1,1 [PS] Progressive KO | F53: =IFERROR(VLOOKUP(B53,Baza[[№]:[Profit]],3,0),"") -> 1 | G53: =IFERROR(VLOOKUP(B53,Baza[[№]:[Profit]],4,0),"") -> пятница | H53: =IFERROR(VLOOKUP(B53,Baza[[№]:[Profit]],5,0),"") -> январь | I53: =IFERROR(VLOOKUP(B53,Baza[[№]:[Profit]],6,0),"") -> 2021-01-01 | J53: =IFERROR(VLOOKUP(B53,Baza[[№]:[Profit]],7,0),"") -> 14:20:00 | K53: =IFERROR(VLOOKUP(B53,Baza[[№]:[Profit]],8,0),"") -> 1.1 | L53: =IFERROR(VLOOKUP(B53,Baza[[№]:[Profit]],9,0),"") -> PS | M53: =IFERROR(VLOOKUP(B53,Baza[[№]:[Profit]],10,0),"") -> Progressive KO | N53: =IFERROR(IF(VLOOKUP(B53,Baza[[№]:[Profit]],11,0)=0,"-",VLOOKUP(B53,Baza[[№]:[Profit]],11,0)),"") -> 9 | O53: =IFERROR(IF(VLOOKUP(B53,Baza[[№]:[Profit]],12,0)=0,"-",VLOOKUP(B53,Baza[[№]:[Profit]],12,0)),"") -> - | P53: =IFERROR(IF(VLOOKUP(B53,Baza[[№]:[Profit]],13,0)=0,"-",VLOOKUP(B53,Baza[[№]:[Profit]],13,0)),"") -> K | Q53: =IFERROR(IF(VLOOKUP(B53,Baza[[№]:[Profit]],15,0)=0,"-",VLOOKUP(B53,Baza[[№]:[Profit]],15,0)),"") -> 2000 | R53: =IFERROR(IF(VLOOKUP(B53,Baza[[№]:[Profit]],16,0)=0,"-",VLOOKUP(B53,Baza[[№]:[Profit]],16,0)),"") -> - | S53: =IFERROR(IF(VLOOKUP(B53,Baza[[№]:[Profit]],17,0)=0,"-",VLOOKUP(B53,Baza[[№]:[Profit]],17,0)),"") -> - | T53: =IFERROR(IF(VLOOKUP(B53,Baza[[№]:[Profit]],18,0)=0,"-",VLOOKUP(B53,Baza[[№]:[Profit]],18,0)),"") -> - | U53: =IFERROR(IF(VLOOKUP(B53,Baza[[№]:[Profit]],19,0)=0,"-",VLOOKUP(B53,Baza[[№]:[Profit]],19,0)),"") -> - | V53: =IFERROR(VLOOKUP(B53,Baza[[№]:[Profit]],20,0),"") -> 1.1 | W53: =IFERROR(IF(VLOOKUP(B53,Baza[[№]:[Profit]],21,0)=0,"-",VLOOKUP(B53,Baza[[№]:[Profit]],21,0)),"") -> - | X53: =IFERROR(IF(VLOOKUP(B53,Baza[[№]:[Profit]],22,0)=0,"-",VLOOKUP(B53,Baza[[№]:[Profit]],22,0)),"") -> - | Y53: =IFERROR(VLOOKUP(B53,Baza[[№]:[Profit]],23,0),"") -> -1.1 | Z53: =IFERROR(VLOOKUP(B53,Baza[[№]:[AFS]],24,0),"") -> 1818.181818 | AA53: =IF(Таблица2[[#This Row],[Profit]]="","#Н/Д",SUM($Y$40:Y53)) -> -3.71 | AB53: =IF(Таблица2[[#This Row],[Grafik]]="#Н/Д",FALSE,TRUE) -> TRUE
A54: 15 | B54: 15 | C54: =IFERROR(VLOOKUP(B54,Baza[[№]:[Profit]],2,0),"") -> 2021 | D54: =IF(Таблица2[[#This Row],[NN]]="","",TEXT(Таблица2[[#This Row],[Start]],"ч:мм")&" "&IF(OR(Таблица2[[#This Row],[Room]]="WN",Таблица2[[#This Row],[Room]]="ES"),"€","$")&Таблица2[[#This Row],[B]]&" "&"["&Таблица2[[#This Row],[Room]]&"] "&Таблица2[[#This Row],[Name]]) -> 14:30 $1,05 [GG] Bounty Hunters | E54: =IF(Таблица2[[#This Row],[NN]]="","",IF(OR(Таблица2[[#This Row],[Room]]="WN",Таблица2[[#This Row],[Room]]="ES"),"€","$")&Таблица2[[#This Row],[B]]&" "&"["&Таблица2[[#This Row],[Room]]&"] "&Таблица2[[#This Row],[Name]]) -> $1,05 [GG] Bounty Hunters | F54: =IFERROR(VLOOKUP(B54,Baza[[№]:[Profit]],3,0),"") -> 1 | G54: =IFERROR(VLOOKUP(B54,Baza[[№]:[Profit]],4,0),"") -> пятница | H54: =IFERROR(VLOOKUP(B54,Baza[[№]:[Profit]],5,0),"") -> январь | I54: =IFERROR(VLOOKUP(B54,Baza[[№]:[Profit]],6,0),"") -> 2021-01-01 | J54: =IFERROR(VLOOKUP(B54,Baza[[№]:[Profit]],7,0),"") -> 14:30:00 | K54: =IFERROR(VLOOKUP(B54,Baza[[№]:[Profit]],8,0),"") -> 1.05 | L54: =IFERROR(VLOOKUP(B54,Baza[[№]:[Profit]],9,0),"") -> GG | M54: =IFERROR(VLOOKUP(B54,Baza[[№]:[Profit]],10,0),"") -> Bounty Hunters | N54: =IFERROR(IF(VLOOKUP(B54,Baza[[№]:[Profit]],11,0)=0,"-",VLOOKUP(B54,Baza[[№]:[Profit]],11,0)),"") -> 8 | O54: =IFERROR(IF(VLOOKUP(B54,Baza[[№]:[Profit]],12,0)=0,"-",VLOOKUP(B54,Baza[[№]:[Profit]],12,0)),"") -> - | P54: =IFERROR(IF(VLOOKUP(B54,Baza[[№]:[Profit]],13,0)=0,"-",VLOOKUP(B54,Baza[[№]:[Profit]],13,0)),"") -> K | Q54: =IFERROR(IF(VLOOKUP(B54,Baza[[№]:[Profit]],15,0)=0,"-",VLOOKUP(B54,Baza[[№]:[Profit]],15,0)),"") -> 750 | R54: =IFERROR(IF(VLOOKUP(B54,Baza[[№]:[Profit]],16,0)=0,"-",VLOOKUP(B54,Baza[[№]:[Profit]],16,0)),"") -> - | S54: =IFERROR(IF(VLOOKUP(B54,Baza[[№]:[Profit]],17,0)=0,"-",VLOOKUP(B54,Baza[[№]:[Profit]],17,0)),"") -> - | T54: =IFERROR(IF(VLOOKUP(B54,Baza[[№]:[Profit]],18,0)=0,"-",VLOOKUP(B54,Baza[[№]:[Profit]],18,0)),"") -> - | U54: =IFERROR(IF(VLOOKUP(B54,Baza[[№]:[Profit]],19,0)=0,"-",VLOOKUP(B54,Baza[[№]:[Profit]],19,0)),"") -> - | V54: =IFERROR(VLOOKUP(B54,Baza[[№]:[Profit]],20,0),"") -> 1.05 | W54: =IFERROR(IF(VLOOKUP(B54,Baza[[№]:[Profit]],21,0)=0,"-",VLOOKUP(B54,Baza[[№]:[Profit]],21,0)),"") -> - | X54: =IFERROR(IF(VLOOKUP(B54,Baza[[№]:[Profit]],22,0)=0,"-",VLOOKUP(B54,Baza[[№]:[Profit]],22,0)),"") -> - | Y54: =IFERROR(VLOOKUP(B54,Baza[[№]:[Profit]],23,0),"") -> -1.05 | Z54: =IFERROR(VLOOKUP(B54,Baza[[№]:[AFS]],24,0),"") -> 714.2857143 | AA54: =IF(Таблица2[[#This Row],[Profit]]="","#Н/Д",SUM($Y$40:Y54)) -> -4.76 | AB54: =IF(Таблица2[[#This Row],[Grafik]]="#Н/Д",FALSE,TRUE) -> TRUE
A55: 16 | B55: 16 | C55: =IFERROR(VLOOKUP(B55,Baza[[№]:[Profit]],2,0),"") -> 2021 | D55: =IF(Таблица2[[#This Row],[NN]]="","",TEXT(Таблица2[[#This Row],[Start]],"ч:мм")&" "&IF(OR(Таблица2[[#This Row],[Room]]="WN",Таблица2[[#This Row],[Room]]="ES"),"€","$")&Таблица2[[#This Row],[B]]&" "&"["&Таблица2[[#This Row],[Room]]&"] "&Таблица2[[#This Row],[Name]]) -> 15:00 $1,1 [PP] Bounty Hunter | E55: =IF(Таблица2[[#This Row],[NN]]="","",IF(OR(Таблица2[[#This Row],[Room]]="WN",Таблица2[[#This Row],[Room]]="ES"),"€","$")&Таблица2[[#This Row],[B]]&" "&"["&Таблица2[[#This Row],[Room]]&"] "&Таблица2[[#This Row],[Name]]) -> $1,1 [PP] Bounty Hunter | F55: =IFERROR(VLOOKUP(B55,Baza[[№]:[Profit]],3,0),"") -> 1 | G55: =IFERROR(VLOOKUP(B55,Baza[[№]:[Profit]],4,0),"") -> пятница | H55: =IFERROR(VLOOKUP(B55,Baza[[№]:[Profit]],5,0),"") -> январь | I55: =IFERROR(VLOOKUP(B55,Baza[[№]:[Profit]],6,0),"") -> 2021-01-01 | J55: =IFERROR(VLOOKUP(B55,Baza[[№]:[Profit]],7,0),"") -> 15:00:00 | K55: =IFERROR(VLOOKUP(B55,Baza[[№]:[Profit]],8,0),"") -> 1.1 | L55: =IFERROR(VLOOKUP(B55,Baza[[№]:[Profit]],9,0),"") -> PP | M55: =IFERROR(VLOOKUP(B55,Baza[[№]:[Profit]],10,0),"") -> Bounty Hunter | N55: =IFERROR(IF(VLOOKUP(B55,Baza[[№]:[Profit]],11,0)=0,"-",VLOOKUP(B55,Baza[[№]:[Profit]],11,0)),"") -> 8 | O55: =IFERROR(IF(VLOOKUP(B55,Baza[[№]:[Profit]],12,0)=0,"-",VLOOKUP(B55,Baza[[№]:[Profit]],12,0)),"") -> - | P55: =IFERROR(IF(VLOOKUP(B55,Baza[[№]:[Profit]],13,0)=0,"-",VLOOKUP(B55,Baza[[№]:[Profit]],13,0)),"") -> K | Q55: =IFERROR(IF(VLOOKUP(B55,Baza[[№]:[Profit]],15,0)=0,"-",VLOOKUP(B55,Baza[[№]:[Profit]],15,0)),"") -> 200 | R55: =IFERROR(IF(VLOOKUP(B55,Baza[[№]:[Profit]],16,0)=0,"-",VLOOKUP(B55,Baza[[№]:[Profit]],16,0)),"") -> - | S55: =IFERROR(IF(VLOOKUP(B55,Baza[[№]:[Profit]],17,0)=0,"-",VLOOKUP(B55,Baza[[№]:[Profit]],17,0)),"") -> - | T55: =IFERROR(IF(VLOOKUP(B55,Baza[[№]:[Profit]],18,0)=0,"-",VLOOKUP(B55,Baza[[№]:[Profit]],18,0)),"") -> - | U55: =IFERROR(IF(VLOOKUP(B55,Baza[[№]:[Profit]],19,0)=0,"-",VLOOKUP(B55,Baza[[№]:[Profit]],19,0)),"") -> - | V55: =IFERROR(VLOOKUP(B55,Baza[[№]:[Profit]],20,0),"") -> 1.1 | W55: =IFERROR(IF(VLOOKUP(B55,Baza[[№]:[Profit]],21,0)=0,"-",VLOOKUP(B55,Baza[[№]:[Profit]],21,0)),"") -> - | X55: =IFERROR(IF(VLOOKUP(B55,Baza[[№]:[Profit]],22,0)=0,"-",VLOOKUP(B55,Baza[[№]:[Profit]],22,0)),"") -> - | Y55: =IFERROR(VLOOKUP(B55,Baza[[№]:[Profit]],23,0),"") -> -1.1 | Z55: =IFERROR(VLOOKUP(B55,Baza[[№]:[AFS]],24,0),"") -> 181.8181818 | AA55: =IF(Таблица2[[#This Row],[Profit]]="","#Н/Д",SUM($Y$40:Y55)) -> -5.86 | AB55: =IF(Таблица2[[#This Row],[Grafik]]="#Н/Д",FALSE,TRUE) -> TRUE
A56: 17 | B56: 17 | C56: =IFERROR(VLOOKUP(B56,Baza[[№]:[Profit]],2,0),"") -> 2021 | D56: =IF(Таблица2[[#This Row],[NN]]="","",TEXT(Таблица2[[#This Row],[Start]],"ч:мм")&" "&IF(OR(Таблица2[[#This Row],[Room]]="WN",Таблица2[[#This Row],[Room]]="ES"),"€","$")&Таблица2[[#This Row],[B]]&" "&"["&Таблица2[[#This Row],[Room]]&"] "&Таблица2[[#This Row],[Name]]) -> 15:00 $1,1 [PS] GTD | E56: =IF(Таблица2[[#This Row],[NN]]="","",IF(OR(Таблица2[[#This Row],[Room]]="WN",Таблица2[[#This Row],[Room]]="ES"),"€","$")&Таблица2[[#This Row],[B]]&" "&"["&Таблица2[[#This Row],[Room]]&"] "&Таблица2[[#This Row],[Name]]) -> $1,1 [PS] GTD | F56: =IFERROR(VLOOKUP(B56,Baza[[№]:[Profit]],3,0),"") -> 1 | G56: =IFERROR(VLOOKUP(B56,Baza[[№]:[Profit]],4,0),"") -> пятница | H56: =IFERROR(VLOOKUP(B56,Baza[[№]:[Profit]],5,0),"") -> январь | I56: =IFERROR(VLOOKUP(B56,Baza[[№]:[Profit]],6,0),"") -> 2021-01-01 | J56: =IFERROR(VLOOKUP(B56,Baza[[№]:[Profit]],7,0),"") -> 15:00:00 | K56: =IFERROR(VLOOKUP(B56,Baza[[№]:[Profit]],8,0),"") -> 1.1 | L56: =IFERROR(VLOOKUP(B56,Baza[[№]:[Profit]],9,0),"") -> PS | M56: =IFERROR(VLOOKUP(B56,Baza[[№]:[Profit]],10,0),"") -> GTD | N56: =IFERROR(IF(VLOOKUP(B56,Baza[[№]:[Profit]],11,0)=0,"-",VLOOKUP(B56,Baza[[№]:[Profit]],11,0)),"") -> 9 | O56: =IFERROR(IF(VLOOKUP(B56,Baza[[№]:[Profit]],12,0)=0,"-",VLOOKUP(B56,Baza[[№]:[Profit]],12,0)),"") -> - | P56: =IFERROR(IF(VLOOKUP(B56,Baza[[№]:[Profit]],13,0)=0,"-",VLOOKUP(B56,Baza[[№]:[Profit]],13,0)),"") -> - | Q56: =IFERROR(IF(VLOOKUP(B56,Baza[[№]:[Profit]],15,0)=0,"-",VLOOKUP(B56,Baza[[№]:[Profit]],15,0)),"") -> 750 | R56: =IFERROR(IF(VLOOKUP(B56,Baza[[№]:[Profit]],16,0)=0,"-",VLOOKUP(B56,Baza[[№]:[Profit]],16,0)),"") -> - | S56: =IFERROR(IF(VLOOKUP(B56,Baza[[№]:[Profit]],17,0)=0,"-",VLOOKUP(B56,Baza[[№]:[Profit]],17,0)),"") -> 6.47 | T56: =IFERROR(IF(VLOOKUP(B56,Baza[[№]:[Profit]],18,0)=0,"-",VLOOKUP(B56,Baza[[№]:[Profit]],18,0)),"") -> - | U56: =IFERROR(IF(VLOOKUP(B56,Baza[[№]:[Profit]],19,0)=0,"-",VLOOKUP(B56,Baza[[№]:[Profit]],19,0)),"") -> 19 | V56: =IFERROR(VLOOKUP(B56,Baza[[№]:[Profit]],20,0),"") -> 1.1 | W56: =IFERROR(IF(VLOOKUP(B56,Baza[[№]:[Profit]],21,0)=0,"-",VLOOKUP(B56,Baza[[№]:[Profit]],21,0)),"") -> - | X56: =IFERROR(IF(VLOOKUP(B56,Baza[[№]:[Profit]],22,0)=0,"-",VLOOKUP(B56,Baza[[№]:[Profit]],22,0)),"") -> 6.47 | Y56: =IFERROR(VLOOKUP(B56,Baza[[№]:[Profit]],23,0),"") -> 5.37 | Z56: =IFERROR(VLOOKUP(B56,Baza[[№]:[AFS]],24,0),"") -> 681.8181818 | AA56: =IF(Таблица2[[#This Row],[Profit]]="","#Н/Д",SUM($Y$40:Y56)) -> -0.49 | AB56: =IF(Таблица2[[#This Row],[Grafik]]="#Н/Д",FALSE,TRUE) -> TRUE
A57: 18 | B57: 18 | C57: =IFERROR(VLOOKUP(B57,Baza[[№]:[Profit]],2,0),"") -> 2021 | D57: =IF(Таблица2[[#This Row],[NN]]="","",TEXT(Таблица2[[#This Row],[Start]],"ч:мм")&" "&IF(OR(Таблица2[[#This Row],[Room]]="WN",Таблица2[[#This Row],[Room]]="ES"),"€","$")&Таблица2[[#This Row],[B]]&" "&"["&Таблица2[[#This Row],[Room]]&"] "&Таблица2[[#This Row],[Name]]) -> 15:00 €1 [WN] Monster Stack | E57: =IF(Таблица2[[#This Row],[NN]]="","",IF(OR(Таблица2[[#This Row],[Room]]="WN",Таблица2[[#This Row],[Room]]="ES"),"€","$")&Таблица2[[#This Row],[B]]&" "&"["&Таблица2[[#This Row],[Room]]&"] "&Таблица2[[#This Row],[Name]]) -> €1 [WN] Monster Stack | F57: =IFERROR(VLOOKUP(B57,Baza[[№]:[Profit]],3,0),"") -> 1 | G57: =IFERROR(VLOOKUP(B57,Baza[[№]:[Profit]],4,0),"") -> пятница | H57: =IFERROR(VLOOKUP(B57,Baza[[№]:[Profit]],5,0),"") -> январь | I57: =IFERROR(VLOOKUP(B57,Baza[[№]:[Profit]],6,0),"") -> 2021-01-01 | J57: =IFERROR(VLOOKUP(B57,Baza[[№]:[Profit]],7,0),"") -> 15:00:00 | K57: =IFERROR(VLOOKUP(B57,Baza[[№]:[Profit]],8,0),"") -> 1 | L57: =IFERROR(VLOOKUP(B57,Baza[[№]:[Profit]],9,0),"") -> WN | M57: =IFERROR(VLOOKUP(B57,Baza[[№]:[Profit]],10,0),"") -> Monster Stack | N57: =IFERROR(IF(VLOOKUP(B57,Baza[[№]:[Profit]],11,0)=0,"-",VLOOKUP(B57,Baza[[№]:[Profit]],11,0)),"") -> 6 | O57: =IFERROR(IF(VLOOKUP(B57,Baza[[№]:[Profit]],12,0)=0,"-",VLOOKUP(B57,Baza[[№]:[Profit]],12,0)),"") -> - | P57: =IFERROR(IF(VLOOKUP(B57,Baza[[№]:[Profit]],13,0)=0,"-",VLOOKUP(B57,Baza[[№]:[Profit]],13,0)),"") -> - | Q57: =IFERROR(IF(VLOOKUP(B57,Baza[[№]:[Profit]],15,0)=0,"-",VLOOKUP(B57,Baza[[№]:[Profit]],15,0)),"") -> 250 | R57: =IFERROR(IF(VLOOKUP(B57,Baza[[№]:[Profit]],16,0)=0,"-",VLOOKUP(B57,Baza[[№]:[Profit]],16,0)),"") -> - | S57: =IFERROR(IF(VLOOKUP(B57,Baza[[№]:[Profit]],17,0)=0,"-",VLOOKUP(B57,Baza[[№]:[Profit]],17,0)),"") -> - | T57: =IFERROR(IF(VLOOKUP(B57,Baza[[№]:[Profit]],18,0)=0,"-",VLOOKUP(B57,Baza[[№]:[Profit]],18,0)),"") -> - | U57: =IFERROR(IF(VLOOKUP(B57,Baza[[№]:[Profit]],19,0)=0,"-",VLOOKUP(B57,Baza[[№]:[Profit]],19,0)),"") -> - | V57: =IFERROR(VLOOKUP(B57,Baza[[№]:[Profit]],20,0),"") -> 1.12 | W57: =IFERROR(IF(VLOOKUP(B57,Baza[[№]:[Profit]],21,0)=0,"-",VLOOKUP(B57,Baza[[№]:[Profit]],21,0)),"") -> - | X57: =IFERROR(IF(VLOOKUP(B57,Baza[[№]:[Profit]],22,0)=0,"-",VLOOKUP(B57,Baza[[№]:[Profit]],22,0)),"") -> - | Y57: =IFERROR(VLOOKUP(B57,Baza[[№]:[Profit]],23,0),"") -> -1.12 | Z57: =IFERROR(VLOOKUP(B57,Baza[[№]:[AFS]],24,0),"") -> 250 | AA57: =IF(Таблица2[[#This Row],[Profit]]="","#Н/Д",SUM($Y$40:Y57)) -> -1.61 | AB57: =IF(Таблица2[[#This Row],[Grafik]]="#Н/Д",FALSE,TRUE) -> TRUE
A58: 19 | B58: 19 | C58: =IFERROR(VLOOKUP(B58,Baza[[№]:[Profit]],2,0),"") -> 2021 | D58: =IF(Таблица2[[#This Row],[NN]]="","",TEXT(Таблица2[[#This Row],[Start]],"ч:мм")&" "&IF(OR(Таблица2[[#This Row],[Room]]="WN",Таблица2[[#This Row],[Room]]="ES"),"€","$")&Таблица2[[#This Row],[B]]&" "&"["&Таблица2[[#This Row],[Room]]&"] "&Таблица2[[#This Row],[Name]]) -> 16:00 $1 [PAC] 6-Max Think Fast | E58: =IF(Таблица2[[#This Row],[NN]]="","",IF(OR(Таблица2[[#This Row],[Room]]="WN",Таблица2[[#This Row],[Room]]="ES"),"€","$")&Таблица2[[#This Row],[B]]&" "&"["&Таблица2[[#This Row],[Room]]&"] "&Таблица2[[#This Row],[Name]]) -> $1 [PAC] 6-Max Think Fast | F58: =IFERROR(VLOOKUP(B58,Baza[[№]:[Profit]],3,0),"") -> 1 | G58: =IFERROR(VLOOKUP(B58,Baza[[№]:[Profit]],4,0),"") -> пятница | H58: =IFERROR(VLOOKUP(B58,Baza[[№]:[Profit]],5,0),"") -> январь | I58: =IFERROR(VLOOKUP(B58,Baza[[№]:[Profit]],6,0),"") -> 2021-01-01 | J58: =IFERROR(VLOOKUP(B58,Baza[[№]:[Profit]],7,0),"") -> 16:00:00 | K58: =IFERROR(VLOOKUP(B58,Baza[[№]:[Profit]],8,0),"") -> 1 | L58: =IFERROR(VLOOKUP(B58,Baza[[№]:[Profit]],9,0),"") -> PAC | M58: =IFERROR(VLOOKUP(B58,Baza[[№]:[Profit]],10,0),"") -> 6-Max Think Fast | N58: =IFERROR(IF(VLOOKUP(B58,Baza[[№]:[Profit]],11,0)=0,"-",VLOOKUP(B58,Baza[[№]:[Profit]],11,0)),"") -> 6 | O58: =IFERROR(IF(VLOOKUP(B58,Baza[[№]:[Profit]],12,0)=0,"-",VLOOKUP(B58,Baza[[№]:[Profit]],12,0)),"") -> - | P58: =IFERROR(IF(VLOOKUP(B58,Baza[[№]:[Profit]],13,0)=0,"-",VLOOKUP(B58,Baza[[№]:[Profit]],13,0)),"") -> - | Q58: =IFERROR(IF(VLOOKUP(B58,Baza[[№]:[Profit]],15,0)=0,"-",VLOOKUP(B58,Baza[[№]:[Profit]],15,0)),"") -> 300 | R58: =IFERROR(IF(VLOOKUP(B58,Baza[[№]:[Profit]],16,0)=0,"-",VLOOKUP(B58,Baza[[№]:[Profit]],16,0)),"") -> - | S58: =IFERROR(IF(VLOOKUP(B58,Baza[[№]:[Profit]],17,0)=0,"-",VLOOKUP(B58,Baza[[№]:[Profit]],17,0)),"") -> - | T58: =IFERROR(IF(VLOOKUP(B58,Baza[[№]:[Profit]],18,0)=0,"-",VLOOKUP(B58,Baza[[№]:[Profit]],18,0)),"") -> - | U58: =IFERROR(IF(VLOOKUP(B58,Baza[[№]:[Profit]],19,0)=0,"-",VLOOKUP(B58,Baza[[№]:[Profit]],19,0)),"") -> - | V58: =IFERROR(VLOOKUP(B58,Baza[[№]:[Profit]],20,0),"") -> 1 | W58: =IFERROR(IF(VLOOKUP(B58,Baza[[№]:[Profit]],21,0)=0,"-",VLOOKUP(B58,Baza[[№]:[Profit]],21,0)),"") -> - | X58: =IFERROR(IF(VLOOKUP(B58,Baza[[№]:[Profit]],22,0)=0,"-",VLOOKUP(B58,Baza[[№]:[Profit]],22,0)),"") -> - | Y58: =IFERROR(VLOOKUP(B58,Baza[[№]:[Profit]],23,0),"") -> -1 | Z58: =IFERROR(VLOOKUP(B58,Baza[[№]:[AFS]],24,0),"") -> 300 | AA58: =IF(Таблица2[[#This Row],[Profit]]="","#Н/Д",SUM($Y$40:Y58)) -> -2.61 | AB58: =IF(Таблица2[[#This Row],[Grafik]]="#Н/Д",FALSE,TRUE) -> TRUE
A59: 20 | B59: 20 | C59: =IFERROR(VLOOKUP(B59,Baza[[№]:[Profit]],2,0),"") -> 2021 | D59: =IF(Таблица2[[#This Row],[NN]]="","",TEXT(Таблица2[[#This Row],[Start]],"ч:мм")&" "&IF(OR(Таблица2[[#This Row],[Room]]="WN",Таблица2[[#This Row],[Room]]="ES"),"€","$")&Таблица2[[#This Row],[B]]&" "&"["&Таблица2[[#This Row],[Room]]&"] "&Таблица2[[#This Row],[Name]]) -> 16:15 $1,1 [PAC] Guaranteed PKO | E59: =IF(Таблица2[[#This Row],[NN]]="","",IF(OR(Таблица2[[#This Row],[Room]]="WN",Таблица2[[#This Row],[Room]]="ES"),"€","$")&Таблица2[[#This Row],[B]]&" "&"["&Таблица2[[#This Row],[Room]]&"] "&Таблица2[[#This Row],[Name]]) -> $1,1 [PAC] Guaranteed PKO | F59: =IFERROR(VLOOKUP(B59,Baza[[№]:[Profit]],3,0),"") -> 1 | G59: =IFERROR(VLOOKUP(B59,Baza[[№]:[Profit]],4,0),"") -> пятница | H59: =IFERROR(VLOOKUP(B59,Baza[[№]:[Profit]],5,0),"") -> январь | I59: =IFERROR(VLOOKUP(B59,Baza[[№]:[Profit]],6,0),"") -> 2021-01-01 | J59: =IFERROR(VLOOKUP(B59,Baza[[№]:[Profit]],7,0),"") -> 16:15:00 | K59: =IFERROR(VLOOKUP(B59,Baza[[№]:[Profit]],8,0),"") -> 1.1 | L59: =IFERROR(VLOOKUP(B59,Baza[[№]:[Profit]],9,0),"") -> PAC | M59: =IFERROR(VLOOKUP(B59,Baza[[№]:[Profit]],10,0),"") -> Guaranteed PKO | N59: =IFERROR(IF(VLOOKUP(B59,Baza[[№]:[Profit]],11,0)=0,"-",VLOOKUP(B59,Baza[[№]:[Profit]],11,0)),"") -> 9 | O59: =IFERROR(IF(VLOOKUP(B59,Baza[[№]:[Profit]],12,0)=0,"-",VLOOKUP(B59,Baza[[№]:[Profit]],12,0)),"") -> - | P59: =IFERROR(IF(VLOOKUP(B59,Baza[[№]:[Profit]],13,0)=0,"-",VLOOKUP(B59,Baza[[№]:[Profit]],13,0)),"") -> K | Q59: =IFERROR(IF(VLOOKUP(B59,Baza[[№]:[Profit]],15,0)=0,"-",VLOOKUP(B59,Baza[[№]:[Profit]],15,0)),"") -> 300 | R59: =IFERROR(IF(VLOOKUP(B59,Baza[[№]:[Profit]],16,0)=0,"-",VLOOKUP(B59,Baza[[№]:[Profit]],16,0)),"") -> 0.25 | S59: =IFERROR(IF(VLOOKUP(B59,Baza[[№]:[Profit]],17,0)=0,"-",VLOOKUP(B59,Baza[[№]:[Profit]],17,0)),"") -> - | T59: =IFERROR(IF(VLOOKUP(B59,Baza[[№]:[Profit]],18,0)=0,"-",VLOOKUP(B59,Baza[[№]:[Profit]],18,0)),"") -> - | U59: =IFERROR(IF(VLOOKUP(B59,Baza[[№]:[Profit]],19,0)=0,"-",VLOOKUP(B59,Baza[[№]:[Profit]],19,0)),"") -> - | V59: =IFERROR(VLOOKUP(B59,Baza[[№]:[Profit]],20,0),"") -> 1.1 | W59: =IFERROR(IF(VLOOKUP(B59,Baza[[№]:[Profit]],21,0)=0,"-",VLOOKUP(B59,Baza[[№]:[Profit]],21,0)),"") -> 0.25 | X59: =IFERROR(IF(VLOOKUP(B59,Baza[[№]:[Profit]],22,0)=0,"-",VLOOKUP(B59,Baza[[№]:[Profit]],22,0)),"") -> - | Y59: =IFERROR(VLOOKUP(B59,Baza[[№]:[Profit]],23,0),"") -> -0.85 | Z59: =IFERROR(VLOOKUP(B59,Baza[[№]:[AFS]],24,0),"") -> 272.7272727 | AA59: =IF(Таблица2[[#This Row],[Profit]]="","#Н/Д",SUM($Y$40:Y59)) -> -3.46 | AB59: =IF(Таблица2[[#This Row],[Grafik]]="#Н/Д",FALSE,TRUE) -> TRUE
A60: 21 | B60: 21 | C60: =IFERROR(VLOOKUP(B60,Baza[[№]:[Profit]],2,0),"") -> 2021 | D60: =IF(Таблица2[[#This Row],[NN]]="","",TEXT(Таблица2[[#This Row],[Start]],"ч:мм")&" "&IF(OR(Таблица2[[#This Row],[Room]]="WN",Таблица2[[#This Row],[Room]]="ES"),"€","$")&Таблица2[[#This Row],[B]]&" "&"["&Таблица2[[#This Row],[Room]]&"] "&Таблица2[[#This Row],[Name]]) -> 16:15 $1,1 [PS] GTD | E60: =IF(Таблица2[[#This Row],[NN]]="","",IF(OR(Таблица2[[#This Row],[Room]]="WN",Таблица2[[#This Row],[Room]]="ES"),"€","$")&Таблица2[[#This Row],[B]]&" "&"["&Таблица2[[#This Row],[Room]]&"] "&Таблица2[[#This Row],[Name]]) -> $1,1 [PS] GTD | F60: =IFERROR(VLOOKUP(B60,Baza[[№]:[Profit]],3,0),"") -> 1 | G60: =IFERROR(VLOOKUP(B60,Baza[[№]:[Profit]],4,0),"") -> пятница | H60: =IFERROR(VLOOKUP(B60,Baza[[№]:[Profit]],5,0),"") -> январь | I60: =IFERROR(VLOOKUP(B60,Baza[[№]:[Profit]],6,0),"") -> 2021-01-01 | J60: =IFERROR(VLOOKUP(B60,Baza[[№]:[Profit]],7,0),"") -> 16:15:00 | K60: =IFERROR(VLOOKUP(B60,Baza[[№]:[Profit]],8,0),"") -> 1.1 | L60: =IFERROR(VLOOKUP(B60,Baza[[№]:[Profit]],9,0),"") -> PS | M60: =IFERROR(VLOOKUP(B60,Baza[[№]:[Profit]],10,0),"") -> GTD | N60: =IFERROR(IF(VLOOKUP(B60,Baza[[№]:[Profit]],11,0)=0,"-",VLOOKUP(B60,Baza[[№]:[Profit]],11,0)),"") -> 9 | O60: =IFERROR(IF(VLOOKUP(B60,Baza[[№]:[Profit]],12,0)=0,"-",VLOOKUP(B60,Baza[[№]:[Profit]],12,0)),"") -> - | P60: =IFERROR(IF(VLOOKUP(B60,Baza[[№]:[Profit]],13,0)=0,"-",VLOOKUP(B60,Baza[[№]:[Profit]],13,0)),"") -> - | Q60: =IFERROR(IF(VLOOKUP(B60,Baza[[№]:[Profit]],15,0)=0,"-",VLOOKUP(B60,Baza[[№]:[Profit]],15,0)),"") -> 1500 | R60: =IFERROR(IF(VLOOKUP(B60,Baza[[№]:[Profit]],16,0)=0,"-",VLOOKUP(B60,Baza[[№]:[Profit]],16,0)),"") -> - | S60: =IFERROR(IF(VLOOKUP(B60,Baza[[№]:[Profit]],17,0)=0,"-",VLOOKUP(B60,Baza[[№]:[Profit]],17,0)),"") -> 3.97 | T60: =IFERROR(IF(VLOOKUP(B60,Baza[[№]:[Profit]],18,0)=0,"-",VLOOKUP(B60,Baza[[№]:[Profit]],18,0)),"") -> - | U60: =IFERROR(IF(VLOOKUP(B60,Baza[[№]:[Profit]],19,0)=0,"-",VLOOKUP(B60,Baza[[№]:[Profit]],19,0)),"") -> 145 | V60: =IFERROR(VLOOKUP(B60,Baza[[№]:[Profit]],20,0),"") -> 1.1 | W60: =IFERROR(IF(VLOOKUP(B60,Baza[[№]:[Profit]],21,0)=0,"-",VLOOKUP(B60,Baza[[№]:[Profit]],21,0)),"") -> - | X60: =IFERROR(IF(VLOOKUP(B60,Baza[[№]:[Profit]],22,0)=0,"-",VLOOKUP(B60,Baza[[№]:[Profit]],22,0)),"") -> 3.97 | Y60: =IFERROR(VLOOKUP(B60,Baza[[№]:[Profit]],23,0),"") -> 2.87 | Z60: =IFERROR(VLOOKUP(B60,Baza[[№]:[AFS]],24,0),"") -> 1363.636364 | AA60: =IF(Таблица2[[#This Row],[Profit]]="","#Н/Д",SUM($Y$40:Y60)) -> -0.59 | AB60: =IF(Таблица2[[#This Row],[Grafik]]="#Н/Д",FALSE,TRUE) -> TRUE
A61: 22 | B61: 22 | C61: =IFERROR(VLOOKUP(B61,Baza[[№]:[Profit]],2,0),"") -> 2021 | D61: =IF(Таблица2[[#This Row],[NN]]="","",TEXT(Таблица2[[#This Row],[Start]],"ч:мм")&" "&IF(OR(Таблица2[[#This Row],[Room]]="WN",Таблица2[[#This Row],[Room]]="ES"),"€","$")&Таблица2[[#This Row],[B]]&" "&"["&Таблица2[[#This Row],[Room]]&"] "&Таблица2[[#This Row],[Name]]) -> 16:30 $2,2 [PAC] Guaranteed | E61: =IF(Таблица2[[#This Row],[NN]]="","",IF(OR(Таблица2[[#This Row],[Room]]="WN",Таблица2[[#This Row],[Room]]="ES"),"€","$")&Таблица2[[#This Row],[B]]&" "&"["&Таблица2[[#This Row],[Room]]&"] "&Таблица2[[#This Row],[Name]]) -> $2,2 [PAC] Guaranteed | F61: =IFERROR(VLOOKUP(B61,Baza[[№]:[Profit]],3,0),"") -> 1 | G61: =IFERROR(VLOOKUP(B61,Baza[[№]:[Profit]],4,0),"") -> пятница | H61: =IFERROR(VLOOKUP(B61,Baza[[№]:[Profit]],5,0),"") -> январь | I61: =IFERROR(VLOOKUP(B61,Baza[[№]:[Profit]],6,0),"") -> 2021-01-01 | J61: =IFERROR(VLOOKUP(B61,Baza[[№]:[Profit]],7,0),"") -> 16:30:00 | K61: =IFERROR(VLOOKUP(B61,Baza[[№]:[Profit]],8,0),"") -> 2.2 | L61: =IFERROR(VLOOKUP(B61,Baza[[№]:[Profit]],9,0),"") -> PAC | M61: =IFERROR(VLOOKUP(B61,Baza[[№]:[Profit]],10,0),"") -> Guaranteed | N61: =IFERROR(IF(VLOOKUP(B61,Baza[[№]:[Profit]],11,0)=0,"-",VLOOKUP(B61,Baza[[№]:[Profit]],11,0)),"") -> 9 | O61: =IFERROR(IF(VLOOKUP(B61,Baza[[№]:[Profit]],12,0)=0,"-",VLOOKUP(B61,Baza[[№]:[Profit]],12,0)),"") -> - | P61: =IFERROR(IF(VLOOKUP(B61,Baza[[№]:[Profit]],13,0)=0,"-",VLOOKUP(B61,Baza[[№]:[Profit]],13,0)),"") -> - | Q61: =IFERROR(IF(VLOOKUP(B61,Baza[[№]:[Profit]],15,0)=0,"-",VLOOKUP(B61,Baza[[№]:[Profit]],15,0)),"") -> 500 | R61: =IFERROR(IF(VLOOKUP(B61,Baza[[№]:[Profit]],16,0)=0,"-",VLOOKUP(B61,Baza[[№]:[Profit]],16,0)),"") -> - | S61: =IFERROR(IF(VLOOKUP(B61,Baza[[№]:[Profit]],17,0)=0,"-",VLOOKUP(B61,Baza[[№]:[Profit]],17,0)),"") -> - | T61: =IFERROR(IF(VLOOKUP(B61,Baza[[№]:[Profit]],18,0)=0,"-",VLOOKUP(B61,Baza[[№]:[Profit]],18,0)),"") -> - | U61: =IFERROR(IF(VLOOKUP(B61,Baza[[№]:[Profit]],19,0)=0,"-",VLOOKUP(B61,Baza[[№]:[Profit]],19,0)),"") -> - | V61: =IFERROR(VLOOKUP(B61,Baza[[№]:[Profit]],20,0),"") -> 2.2 | W61: =IFERROR(IF(VLOOKUP(B61,Baza[[№]:[Profit]],21,0)=0,"-",VLOOKUP(B61,Baza[[№]:[Profit]],21,0)),"") -> - | X61: =IFERROR(IF(VLOOKUP(B61,Baza[[№]:[Profit]],22,0)=0,"-",VLOOKUP(B61,Baza[[№]:[Profit]],22,0)),"") -> - | Y61: =IFERROR(VLOOKUP(B61,Baza[[№]:[Profit]],23,0),"") -> -2.2 | Z61: =IFERROR(VLOOKUP(B61,Baza[[№]:[AFS]],24,0),"") -> 227.2727273 | AA61: =IF(Таблица2[[#This Row],[Profit]]="","#Н/Д",SUM($Y$40:Y61)) -> -2.79 | AB61: =IF(Таблица2[[#This Row],[Grafik]]="#Н/Д",FALSE,TRUE) -> TRUE
A62: 23 | C62: =IFERROR(VLOOKUP(B62,Baza[[№]:[Profit]],2,0),"") ->  | D62: =IF(Таблица2[[#This Row],[NN]]="","",TEXT(Таблица2[[#This Row],[Start]],"ч:мм")&" "&IF(OR(Таблица2[[#This Row],[Room]]="WN",Таблица2[[#This Row],[Room]]="ES"),"€","$")&Таблица2[[#This Row],[B]]&" "&"["&Таблица2[[#This Row],[Room]]&"] "&Таблица2[[#This Row],[Name]]) ->  | E62: =IF(Таблица2[[#This Row],[NN]]="","",IF(OR(Таблица2[[#This Row],[Room]]="WN",Таблица2[[#This Row],[Room]]="ES"),"€","$")&Таблица2[[#This Row],[B]]&" "&"["&Таблица2[[#This Row],[Room]]&"] "&Таблица2[[#This Row],[Name]]) ->  | F62: =IFERROR(VLOOKUP(B62,Baza[[№]:[Profit]],3,0),"") ->  | G62: =IFERROR(VLOOKUP(B62,Baza[[№]:[Profit]],4,0),"") ->  | H62: =IFERROR(VLOOKUP(B62,Baza[[№]:[Profit]],5,0),"") ->  | I62: =IFERROR(VLOOKUP(B62,Baza[[№]:[Profit]],6,0),"") ->  | J62: =IFERROR(VLOOKUP(B62,Baza[[№]:[Profit]],7,0),"") ->  | K62: =IFERROR(VLOOKUP(B62,Baza[[№]:[Profit]],8,0),"") ->  | L62: =IFERROR(VLOOKUP(B62,Baza[[№]:[Profit]],9,0),"") ->  | M62: =IFERROR(VLOOKUP(B62,Baza[[№]:[Profit]],10,0),"") ->  | N62: =IFERROR(IF(VLOOKUP(B62,Baza[[№]:[Profit]],11,0)=0,"-",VLOOKUP(B62,Baza[[№]:[Profit]],11,0)),"") ->  | O62: =IFERROR(IF(VLOOKUP(B62,Baza[[№]:[Profit]],12,0)=0,"-",VLOOKUP(B62,Baza[[№]:[Profit]],12,0)),"") ->  | P62: =IFERROR(IF(VLOOKUP(B62,Baza[[№]:[Profit]],13,0)=0,"-",VLOOKUP(B62,Baza[[№]:[Profit]],13,0)),"") ->  | Q62: =IFERROR(IF(VLOOKUP(B62,Baza[[№]:[Profit]],15,0)=0,"-",VLOOKUP(B62,Baza[[№]:[Profit]],15,0)),"") ->  | R62: =IFERROR(IF(VLOOKUP(B62,Baza[[№]:[Profit]],16,0)=0,"-",VLOOKUP(B62,Baza[[№]:[Profit]],16,0)),"") ->  | S62: =IFERROR(IF(VLOOKUP(B62,Baza[[№]:[Profit]],17,0)=0,"-",VLOOKUP(B62,Baza[[№]:[Profit]],17,0)),"") ->  | T62: =IFERROR(IF(VLOOKUP(B62,Baza[[№]:[Profit]],18,0)=0,"-",VLOOKUP(B62,Baza[[№]:[Profit]],18,0)),"") ->  | U62: =IFERROR(IF(VLOOKUP(B62,Baza[[№]:[Profit]],19,0)=0,"-",VLOOKUP(B62,Baza[[№]:[Profit]],19,0)),"") ->  | V62: =IFERROR(VLOOKUP(B62,Baza[[№]:[Profit]],20,0),"") ->  | W62: =IFERROR(IF(VLOOKUP(B62,Baza[[№]:[Profit]],21,0)=0,"-",VLOOKUP(B62,Baza[[№]:[Profit]],21,0)),"") ->  | X62: =IFERROR(IF(VLOOKUP(B62,Baza[[№]:[Profit]],22,0)=0,"-",VLOOKUP(B62,Baza[[№]:[Profit]],22,0)),"") ->  | Y62: =IFERROR(VLOOKUP(B62,Baza[[№]:[Profit]],23,0),"") ->  | Z62: =IFERROR(VLOOKUP(B62,Baza[[№]:[AFS]],24,0),"") ->  | AA62: =IF(Таблица2[[#This Row],[Profit]]="","#Н/Д",SUM($Y$40:Y62)) -> #Н/Д | AB62: =IF(Таблица2[[#This Row],[Grafik]]="#Н/Д",FALSE,TRUE) -> FALSE
A63: 24 | C63: =IFERROR(VLOOKUP(B63,Baza[[№]:[Profit]],2,0),"") ->  | D63: =IF(Таблица2[[#This Row],[NN]]="","",TEXT(Таблица2[[#This Row],[Start]],"ч:мм")&" "&IF(OR(Таблица2[[#This Row],[Room]]="WN",Таблица2[[#This Row],[Room]]="ES"),"€","$")&Таблица2[[#This Row],[B]]&" "&"["&Таблица2[[#This Row],[Room]]&"] "&Таблица2[[#This Row],[Name]]) ->  | E63: =IF(Таблица2[[#This Row],[NN]]="","",IF(OR(Таблица2[[#This Row],[Room]]="WN",Таблица2[[#This Row],[Room]]="ES"),"€","$")&Таблица2[[#This Row],[B]]&" "&"["&Таблица2[[#This Row],[Room]]&"] "&Таблица2[[#This Row],[Name]]) ->  | F63: =IFERROR(VLOOKUP(B63,Baza[[№]:[Profit]],3,0),"") ->  | G63: =IFERROR(VLOOKUP(B63,Baza[[№]:[Profit]],4,0),"") ->  | H63: =IFERROR(VLOOKUP(B63,Baza[[№]:[Profit]],5,0),"") ->  | I63: =IFERROR(VLOOKUP(B63,Baza[[№]:[Profit]],6,0),"") ->  | J63: =IFERROR(VLOOKUP(B63,Baza[[№]:[Profit]],7,0),"") ->  | K63: =IFERROR(VLOOKUP(B63,Baza[[№]:[Profit]],8,0),"") ->  | L63: =IFERROR(VLOOKUP(B63,Baza[[№]:[Profit]],9,0),"") ->  | M63: =IFERROR(VLOOKUP(B63,Baza[[№]:[Profit]],10,0),"") ->  | N63: =IFERROR(IF(VLOOKUP(B63,Baza[[№]:[Profit]],11,0)=0,"-",VLOOKUP(B63,Baza[[№]:[Profit]],11,0)),"") ->  | O63: =IFERROR(IF(VLOOKUP(B63,Baza[[№]:[Profit]],12,0)=0,"-",VLOOKUP(B63,Baza[[№]:[Profit]],12,0)),"") ->  | P63: =IFERROR(IF(VLOOKUP(B63,Baza[[№]:[Profit]],13,0)=0,"-",VLOOKUP(B63,Baza[[№]:[Profit]],13,0)),"") ->  | Q63: =IFERROR(IF(VLOOKUP(B63,Baza[[№]:[Profit]],15,0)=0,"-",VLOOKUP(B63,Baza[[№]:[Profit]],15,0)),"") ->  | R63: =IFERROR(IF(VLOOKUP(B63,Baza[[№]:[Profit]],16,0)=0,"-",VLOOKUP(B63,Baza[[№]:[Profit]],16,0)),"") ->  | S63: =IFERROR(IF(VLOOKUP(B63,Baza[[№]:[Profit]],17,0)=0,"-",VLOOKUP(B63,Baza[[№]:[Profit]],17,0)),"") ->  | T63: =IFERROR(IF(VLOOKUP(B63,Baza[[№]:[Profit]],18,0)=0,"-",VLOOKUP(B63,Baza[[№]:[Profit]],18,0)),"") ->  | U63: =IFERROR(IF(VLOOKUP(B63,Baza[[№]:[Profit]],19,0)=0,"-",VLOOKUP(B63,Baza[[№]:[Profit]],19,0)),"") ->  | V63: =IFERROR(VLOOKUP(B63,Baza[[№]:[Profit]],20,0),"") ->  | W63: =IFERROR(IF(VLOOKUP(B63,Baza[[№]:[Profit]],21,0)=0,"-",VLOOKUP(B63,Baza[[№]:[Profit]],21,0)),"") ->  | X63: =IFERROR(IF(VLOOKUP(B63,Baza[[№]:[Profit]],22,0)=0,"-",VLOOKUP(B63,Baza[[№]:[Profit]],22,0)),"") ->  | Y63: =IFERROR(VLOOKUP(B63,Baza[[№]:[Profit]],23,0),"") ->  | Z63: =IFERROR(VLOOKUP(B63,Baza[[№]:[AFS]],24,0),"") ->  | AA63: =IF(Таблица2[[#This Row],[Profit]]="","#Н/Д",SUM($Y$40:Y63)) -> #Н/Д | AB63: =IF(Таблица2[[#This Row],[Grafik]]="#Н/Д",FALSE,TRUE) -> FALSE
A64: 25 | C64: =IFERROR(VLOOKUP(B64,Baza[[№]:[Profit]],2,0),"") ->  | D64: =IF(Таблица2[[#This Row],[NN]]="","",TEXT(Таблица2[[#This Row],[Start]],"ч:мм")&" "&IF(OR(Таблица2[[#This Row],[Room]]="WN",Таблица2[[#This Row],[Room]]="ES"),"€","$")&Таблица2[[#This Row],[B]]&" "&"["&Таблица2[[#This Row],[Room]]&"] "&Таблица2[[#This Row],[Name]]) ->  | E64: =IF(Таблица2[[#This Row],[NN]]="","",IF(OR(Таблица2[[#This Row],[Room]]="WN",Таблица2[[#This Row],[Room]]="ES"),"€","$")&Таблица2[[#This Row],[B]]&" "&"["&Таблица2[[#This Row],[Room]]&"] "&Таблица2[[#This Row],[Name]]) ->  | F64: =IFERROR(VLOOKUP(B64,Baza[[№]:[Profit]],3,0),"") ->  | G64: =IFERROR(VLOOKUP(B64,Baza[[№]:[Profit]],4,0),"") ->  | H64: =IFERROR(VLOOKUP(B64,Baza[[№]:[Profit]],5,0),"") ->  | I64: =IFERROR(VLOOKUP(B64,Baza[[№]:[Profit]],6,0),"") ->  | J64: =IFERROR(VLOOKUP(B64,Baza[[№]:[Profit]],7,0),"") ->  | K64: =IFERROR(VLOOKUP(B64,Baza[[№]:[Profit]],8,0),"") ->  | L64: =IFERROR(VLOOKUP(B64,Baza[[№]:[Profit]],9,0),"") ->  | M64: =IFERROR(VLOOKUP(B64,Baza[[№]:[Profit]],10,0),"") ->  | N64: =IFERROR(IF(VLOOKUP(B64,Baza[[№]:[Profit]],11,0)=0,"-",VLOOKUP(B64,Baza[[№]:[Profit]],11,0)),"") ->  | O64: =IFERROR(IF(VLOOKUP(B64,Baza[[№]:[Profit]],12,0)=0,"-",VLOOKUP(B64,Baza[[№]:[Profit]],12,0)),"") ->  | P64: =IFERROR(IF(VLOOKUP(B64,Baza[[№]:[Profit]],13,0)=0,"-",VLOOKUP(B64,Baza[[№]:[Profit]],13,0)),"") ->  | Q64: =IFERROR(IF(VLOOKUP(B64,Baza[[№]:[Profit]],15,0)=0,"-",VLOOKUP(B64,Baza[[№]:[Profit]],15,0)),"") ->  | R64: =IFERROR(IF(VLOOKUP(B64,Baza[[№]:[Profit]],16,0)=0,"-",VLOOKUP(B64,Baza[[№]:[Profit]],16,0)),"") ->  | S64: =IFERROR(IF(VLOOKUP(B64,Baza[[№]:[Profit]],17,0)=0,"-",VLOOKUP(B64,Baza[[№]:[Profit]],17,0)),"") ->  | T64: =IFERROR(IF(VLOOKUP(B64,Baza[[№]:[Profit]],18,0)=0,"-",VLOOKUP(B64,Baza[[№]:[Profit]],18,0)),"") ->  | U64: =IFERROR(IF(VLOOKUP(B64,Baza[[№]:[Profit]],19,0)=0,"-",VLOOKUP(B64,Baza[[№]:[Profit]],19,0)),"") ->  | V64: =IFERROR(VLOOKUP(B64,Baza[[№]:[Profit]],20,0),"") ->  | W64: =IFERROR(IF(VLOOKUP(B64,Baza[[№]:[Profit]],21,0)=0,"-",VLOOKUP(B64,Baza[[№]:[Profit]],21,0)),"") ->  | X64: =IFERROR(IF(VLOOKUP(B64,Baza[[№]:[Profit]],22,0)=0,"-",VLOOKUP(B64,Baza[[№]:[Profit]],22,0)),"") ->  | Y64: =IFERROR(VLOOKUP(B64,Baza[[№]:[Profit]],23,0),"") ->  | Z64: =IFERROR(VLOOKUP(B64,Baza[[№]:[AFS]],24,0),"") ->  | AA64: =IF(Таблица2[[#This Row],[Profit]]="","#Н/Д",SUM($Y$40:Y64)) -> #Н/Д | AB64: =IF(Таблица2[[#This Row],[Grafik]]="#Н/Д",FALSE,TRUE) -> FALSE
A65: 26 | C65: =IFERROR(VLOOKUP(B65,Baza[[№]:[Profit]],2,0),"") ->  | D65: =IF(Таблица2[[#This Row],[NN]]="","",TEXT(Таблица2[[#This Row],[Start]],"ч:мм")&" "&IF(OR(Таблица2[[#This Row],[Room]]="WN",Таблица2[[#This Row],[Room]]="ES"),"€","$")&Таблица2[[#This Row],[B]]&" "&"["&Таблица2[[#This Row],[Room]]&"] "&Таблица2[[#This Row],[Name]]) ->  | E65: =IF(Таблица2[[#This Row],[NN]]="","",IF(OR(Таблица2[[#This Row],[Room]]="WN",Таблица2[[#This Row],[Room]]="ES"),"€","$")&Таблица2[[#This Row],[B]]&" "&"["&Таблица2[[#This Row],[Room]]&"] "&Таблица2[[#This Row],[Name]]) ->  | F65: =IFERROR(VLOOKUP(B65,Baza[[№]:[Profit]],3,0),"") ->  | G65: =IFERROR(VLOOKUP(B65,Baza[[№]:[Profit]],4,0),"") ->  | H65: =IFERROR(VLOOKUP(B65,Baza[[№]:[Profit]],5,0),"") ->  | I65: =IFERROR(VLOOKUP(B65,Baza[[№]:[Profit]],6,0),"") ->  | J65: =IFERROR(VLOOKUP(B65,Baza[[№]:[Profit]],7,0),"") ->  | K65: =IFERROR(VLOOKUP(B65,Baza[[№]:[Profit]],8,0),"") ->  | L65: =IFERROR(VLOOKUP(B65,Baza[[№]:[Profit]],9,0),"") ->  | M65: =IFERROR(VLOOKUP(B65,Baza[[№]:[Profit]],10,0),"") ->  | N65: =IFERROR(IF(VLOOKUP(B65,Baza[[№]:[Profit]],11,0)=0,"-",VLOOKUP(B65,Baza[[№]:[Profit]],11,0)),"") ->  | O65: =IFERROR(IF(VLOOKUP(B65,Baza[[№]:[Profit]],12,0)=0,"-",VLOOKUP(B65,Baza[[№]:[Profit]],12,0)),"") ->  | P65: =IFERROR(IF(VLOOKUP(B65,Baza[[№]:[Profit]],13,0)=0,"-",VLOOKUP(B65,Baza[[№]:[Profit]],13,0)),"") ->  | Q65: =IFERROR(IF(VLOOKUP(B65,Baza[[№]:[Profit]],15,0)=0,"-",VLOOKUP(B65,Baza[[№]:[Profit]],15,0)),"") ->  | R65: =IFERROR(IF(VLOOKUP(B65,Baza[[№]:[Profit]],16,0)=0,"-",VLOOKUP(B65,Baza[[№]:[Profit]],16,0)),"") ->  | S65: =IFERROR(IF(VLOOKUP(B65,Baza[[№]:[Profit]],17,0)=0,"-",VLOOKUP(B65,Baza[[№]:[Profit]],17,0)),"") ->  | T65: =IFERROR(IF(VLOOKUP(B65,Baza[[№]:[Profit]],18,0)=0,"-",VLOOKUP(B65,Baza[[№]:[Profit]],18,0)),"") ->  | U65: =IFERROR(IF(VLOOKUP(B65,Baza[[№]:[Profit]],19,0)=0,"-",VLOOKUP(B65,Baza[[№]:[Profit]],19,0)),"") ->  | V65: =IFERROR(VLOOKUP(B65,Baza[[№]:[Profit]],20,0),"") ->  | W65: =IFERROR(IF(VLOOKUP(B65,Baza[[№]:[Profit]],21,0)=0,"-",VLOOKUP(B65,Baza[[№]:[Profit]],21,0)),"") ->  | X65: =IFERROR(IF(VLOOKUP(B65,Baza[[№]:[Profit]],22,0)=0,"-",VLOOKUP(B65,Baza[[№]:[Profit]],22,0)),"") ->  | Y65: =IFERROR(VLOOKUP(B65,Baza[[№]:[Profit]],23,0),"") ->  | Z65: =IFERROR(VLOOKUP(B65,Baza[[№]:[AFS]],24,0),"") ->  | AA65: =IF(Таблица2[[#This Row],[Profit]]="","#Н/Д",SUM($Y$40:Y65)) -> #Н/Д | AB65: =IF(Таблица2[[#This Row],[Grafik]]="#Н/Д",FALSE,TRUE) -> FALSE
A66: 27 | C66: =IFERROR(VLOOKUP(B66,Baza[[№]:[Profit]],2,0),"") ->  | D66: =IF(Таблица2[[#This Row],[NN]]="","",TEXT(Таблица2[[#This Row],[Start]],"ч:мм")&" "&IF(OR(Таблица2[[#This Row],[Room]]="WN",Таблица2[[#This Row],[Room]]="ES"),"€","$")&Таблица2[[#This Row],[B]]&" "&"["&Таблица2[[#This Row],[Room]]&"] "&Таблица2[[#This Row],[Name]]) ->  | E66: =IF(Таблица2[[#This Row],[NN]]="","",IF(OR(Таблица2[[#This Row],[Room]]="WN",Таблица2[[#This Row],[Room]]="ES"),"€","$")&Таблица2[[#This Row],[B]]&" "&"["&Таблица2[[#This Row],[Room]]&"] "&Таблица2[[#This Row],[Name]]) ->  | F66: =IFERROR(VLOOKUP(B66,Baza[[№]:[Profit]],3,0),"") ->  | G66: =IFERROR(VLOOKUP(B66,Baza[[№]:[Profit]],4,0),"") ->  | H66: =IFERROR(VLOOKUP(B66,Baza[[№]:[Profit]],5,0),"") ->  | I66: =IFERROR(VLOOKUP(B66,Baza[[№]:[Profit]],6,0),"") ->  | J66: =IFERROR(VLOOKUP(B66,Baza[[№]:[Profit]],7,0),"") ->  | K66: =IFERROR(VLOOKUP(B66,Baza[[№]:[Profit]],8,0),"") ->  | L66: =IFERROR(VLOOKUP(B66,Baza[[№]:[Profit]],9,0),"") ->  | M66: =IFERROR(VLOOKUP(B66,Baza[[№]:[Profit]],10,0),"") ->  | N66: =IFERROR(IF(VLOOKUP(B66,Baza[[№]:[Profit]],11,0)=0,"-",VLOOKUP(B66,Baza[[№]:[Profit]],11,0)),"") ->  | O66: =IFERROR(IF(VLOOKUP(B66,Baza[[№]:[Profit]],12,0)=0,"-",VLOOKUP(B66,Baza[[№]:[Profit]],12,0)),"") ->  | P66: =IFERROR(IF(VLOOKUP(B66,Baza[[№]:[Profit]],13,0)=0,"-",VLOOKUP(B66,Baza[[№]:[Profit]],13,0)),"") ->  | Q66: =IFERROR(IF(VLOOKUP(B66,Baza[[№]:[Profit]],15,0)=0,"-",VLOOKUP(B66,Baza[[№]:[Profit]],15,0)),"") ->  | R66: =IFERROR(IF(VLOOKUP(B66,Baza[[№]:[Profit]],16,0)=0,"-",VLOOKUP(B66,Baza[[№]:[Profit]],16,0)),"") ->  | S66: =IFERROR(IF(VLOOKUP(B66,Baza[[№]:[Profit]],17,0)=0,"-",VLOOKUP(B66,Baza[[№]:[Profit]],17,0)),"") ->  | T66: =IFERROR(IF(VLOOKUP(B66,Baza[[№]:[Profit]],18,0)=0,"-",VLOOKUP(B66,Baza[[№]:[Profit]],18,0)),"") ->  | U66: =IFERROR(IF(VLOOKUP(B66,Baza[[№]:[Profit]],19,0)=0,"-",VLOOKUP(B66,Baza[[№]:[Profit]],19,0)),"") ->  | V66: =IFERROR(VLOOKUP(B66,Baza[[№]:[Profit]],20,0),"") ->  | W66: =IFERROR(IF(VLOOKUP(B66,Baza[[№]:[Profit]],21,0)=0,"-",VLOOKUP(B66,Baza[[№]:[Profit]],21,0)),"") ->  | X66: =IFERROR(IF(VLOOKUP(B66,Baza[[№]:[Profit]],22,0)=0,"-",VLOOKUP(B66,Baza[[№]:[Profit]],22,0)),"") ->  | Y66: =IFERROR(VLOOKUP(B66,Baza[[№]:[Profit]],23,0),"") ->  | Z66: =IFERROR(VLOOKUP(B66,Baza[[№]:[AFS]],24,0),"") ->  | AA66: =IF(Таблица2[[#This Row],[Profit]]="","#Н/Д",SUM($Y$40:Y66)) -> #Н/Д | AB66: =IF(Таблица2[[#This Row],[Grafik]]="#Н/Д",FALSE,TRUE) -> FALSE
A67: 28 | C67: =IFERROR(VLOOKUP(B67,Baza[[№]:[Profit]],2,0),"") ->  | D67: =IF(Таблица2[[#This Row],[NN]]="","",TEXT(Таблица2[[#This Row],[Start]],"ч:мм")&" "&IF(OR(Таблица2[[#This Row],[Room]]="WN",Таблица2[[#This Row],[Room]]="ES"),"€","$")&Таблица2[[#This Row],[B]]&" "&"["&Таблица2[[#This Row],[Room]]&"] "&Таблица2[[#This Row],[Name]]) ->  | E67: =IF(Таблица2[[#This Row],[NN]]="","",IF(OR(Таблица2[[#This Row],[Room]]="WN",Таблица2[[#This Row],[Room]]="ES"),"€","$")&Таблица2[[#This Row],[B]]&" "&"["&Таблица2[[#This Row],[Room]]&"] "&Таблица2[[#This Row],[Name]]) ->  | F67: =IFERROR(VLOOKUP(B67,Baza[[№]:[Profit]],3,0),"") ->  | G67: =IFERROR(VLOOKUP(B67,Baza[[№]:[Profit]],4,0),"") ->  | H67: =IFERROR(VLOOKUP(B67,Baza[[№]:[Profit]],5,0),"") ->  | I67: =IFERROR(VLOOKUP(B67,Baza[[№]:[Profit]],6,0),"") ->  | J67: =IFERROR(VLOOKUP(B67,Baza[[№]:[Profit]],7,0),"") ->  | K67: =IFERROR(VLOOKUP(B67,Baza[[№]:[Profit]],8,0),"") ->  | L67: =IFERROR(VLOOKUP(B67,Baza[[№]:[Profit]],9,0),"") ->  | M67: =IFERROR(VLOOKUP(B67,Baza[[№]:[Profit]],10,0),"") ->  | N67: =IFERROR(IF(VLOOKUP(B67,Baza[[№]:[Profit]],11,0)=0,"-",VLOOKUP(B67,Baza[[№]:[Profit]],11,0)),"") ->  | O67: =IFERROR(IF(VLOOKUP(B67,Baza[[№]:[Profit]],12,0)=0,"-",VLOOKUP(B67,Baza[[№]:[Profit]],12,0)),"") ->  | P67: =IFERROR(IF(VLOOKUP(B67,Baza[[№]:[Profit]],13,0)=0,"-",VLOOKUP(B67,Baza[[№]:[Profit]],13,0)),"") ->  | Q67: =IFERROR(IF(VLOOKUP(B67,Baza[[№]:[Profit]],15,0)=0,"-",VLOOKUP(B67,Baza[[№]:[Profit]],15,0)),"") ->  | R67: =IFERROR(IF(VLOOKUP(B67,Baza[[№]:[Profit]],16,0)=0,"-",VLOOKUP(B67,Baza[[№]:[Profit]],16,0)),"") ->  | S67: =IFERROR(IF(VLOOKUP(B67,Baza[[№]:[Profit]],17,0)=0,"-",VLOOKUP(B67,Baza[[№]:[Profit]],17,0)),"") ->  | T67: =IFERROR(IF(VLOOKUP(B67,Baza[[№]:[Profit]],18,0)=0,"-",VLOOKUP(B67,Baza[[№]:[Profit]],18,0)),"") ->  | U67: =IFERROR(IF(VLOOKUP(B67,Baza[[№]:[Profit]],19,0)=0,"-",VLOOKUP(B67,Baza[[№]:[Profit]],19,0)),"") ->  | V67: =IFERROR(VLOOKUP(B67,Baza[[№]:[Profit]],20,0),"") ->  | W67: =IFERROR(IF(VLOOKUP(B67,Baza[[№]:[Profit]],21,0)=0,"-",VLOOKUP(B67,Baza[[№]:[Profit]],21,0)),"") ->  | X67: =IFERROR(IF(VLOOKUP(B67,Baza[[№]:[Profit]],22,0)=0,"-",VLOOKUP(B67,Baza[[№]:[Profit]],22,0)),"") ->  | Y67: =IFERROR(VLOOKUP(B67,Baza[[№]:[Profit]],23,0),"") ->  | Z67: =IFERROR(VLOOKUP(B67,Baza[[№]:[AFS]],24,0),"") ->  | AA67: =IF(Таблица2[[#This Row],[Profit]]="","#Н/Д",SUM($Y$40:Y67)) -> #Н/Д | AB67: =IF(Таблица2[[#This Row],[Grafik]]="#Н/Д",FALSE,TRUE) -> FALSE
A68: 29 | C68: =IFERROR(VLOOKUP(B68,Baza[[№]:[Profit]],2,0),"") ->  | D68: =IF(Таблица2[[#This Row],[NN]]="","",TEXT(Таблица2[[#This Row],[Start]],"ч:мм")&" "&IF(OR(Таблица2[[#This Row],[Room]]="WN",Таблица2[[#This Row],[Room]]="ES"),"€","$")&Таблица2[[#This Row],[B]]&" "&"["&Таблица2[[#This Row],[Room]]&"] "&Таблица2[[#This Row],[Name]]) ->  | E68: =IF(Таблица2[[#This Row],[NN]]="","",IF(OR(Таблица2[[#This Row],[Room]]="WN",Таблица2[[#This Row],[Room]]="ES"),"€","$")&Таблица2[[#This Row],[B]]&" "&"["&Таблица2[[#This Row],[Room]]&"] "&Таблица2[[#This Row],[Name]]) ->  | F68: =IFERROR(VLOOKUP(B68,Baza[[№]:[Profit]],3,0),"") ->  | G68: =IFERROR(VLOOKUP(B68,Baza[[№]:[Profit]],4,0),"") ->  | H68: =IFERROR(VLOOKUP(B68,Baza[[№]:[Profit]],5,0),"") ->  | I68: =IFERROR(VLOOKUP(B68,Baza[[№]:[Profit]],6,0),"") ->  | J68: =IFERROR(VLOOKUP(B68,Baza[[№]:[Profit]],7,0),"") ->  | K68: =IFERROR(VLOOKUP(B68,Baza[[№]:[Profit]],8,0),"") ->  | L68: =IFERROR(VLOOKUP(B68,Baza[[№]:[Profit]],9,0),"") ->  | M68: =IFERROR(VLOOKUP(B68,Baza[[№]:[Profit]],10,0),"") ->  | N68: =IFERROR(IF(VLOOKUP(B68,Baza[[№]:[Profit]],11,0)=0,"-",VLOOKUP(B68,Baza[[№]:[Profit]],11,0)),"") ->  | O68: =IFERROR(IF(VLOOKUP(B68,Baza[[№]:[Profit]],12,0)=0,"-",VLOOKUP(B68,Baza[[№]:[Profit]],12,0)),"") ->  | P68: =IFERROR(IF(VLOOKUP(B68,Baza[[№]:[Profit]],13,0)=0,"-",VLOOKUP(B68,Baza[[№]:[Profit]],13,0)),"") ->  | Q68: =IFERROR(IF(VLOOKUP(B68,Baza[[№]:[Profit]],15,0)=0,"-",VLOOKUP(B68,Baza[[№]:[Profit]],15,0)),"") ->  | R68: =IFERROR(IF(VLOOKUP(B68,Baza[[№]:[Profit]],16,0)=0,"-",VLOOKUP(B68,Baza[[№]:[Profit]],16,0)),"") ->  | S68: =IFERROR(IF(VLOOKUP(B68,Baza[[№]:[Profit]],17,0)=0,"-",VLOOKUP(B68,Baza[[№]:[Profit]],17,0)),"") ->  | T68: =IFERROR(IF(VLOOKUP(B68,Baza[[№]:[Profit]],18,0)=0,"-",VLOOKUP(B68,Baza[[№]:[Profit]],18,0)),"") ->  | U68: =IFERROR(IF(VLOOKUP(B68,Baza[[№]:[Profit]],19,0)=0,"-",VLOOKUP(B68,Baza[[№]:[Profit]],19,0)),"") ->  | V68: =IFERROR(VLOOKUP(B68,Baza[[№]:[Profit]],20,0),"") ->  | W68: =IFERROR(IF(VLOOKUP(B68,Baza[[№]:[Profit]],21,0)=0,"-",VLOOKUP(B68,Baza[[№]:[Profit]],21,0)),"") ->  | X68: =IFERROR(IF(VLOOKUP(B68,Baza[[№]:[Profit]],22,0)=0,"-",VLOOKUP(B68,Baza[[№]:[Profit]],22,0)),"") ->  | Y68: =IFERROR(VLOOKUP(B68,Baza[[№]:[Profit]],23,0),"") ->  | Z68: =IFERROR(VLOOKUP(B68,Baza[[№]:[AFS]],24,0),"") ->  | AA68: =IF(Таблица2[[#This Row],[Profit]]="","#Н/Д",SUM($Y$40:Y68)) -> #Н/Д | AB68: =IF(Таблица2[[#This Row],[Grafik]]="#Н/Д",FALSE,TRUE) -> FALSE
A69: 30 | C69: =IFERROR(VLOOKUP(B69,Baza[[№]:[Profit]],2,0),"") ->  | D69: =IF(Таблица2[[#This Row],[NN]]="","",TEXT(Таблица2[[#This Row],[Start]],"ч:мм")&" "&IF(OR(Таблица2[[#This Row],[Room]]="WN",Таблица2[[#This Row],[Room]]="ES"),"€","$")&Таблица2[[#This Row],[B]]&" "&"["&Таблица2[[#This Row],[Room]]&"] "&Таблица2[[#This Row],[Name]]) ->  | E69: =IF(Таблица2[[#This Row],[NN]]="","",IF(OR(Таблица2[[#This Row],[Room]]="WN",Таблица2[[#This Row],[Room]]="ES"),"€","$")&Таблица2[[#This Row],[B]]&" "&"["&Таблица2[[#This Row],[Room]]&"] "&Таблица2[[#This Row],[Name]]) ->  | F69: =IFERROR(VLOOKUP(B69,Baza[[№]:[Profit]],3,0),"") ->  | G69: =IFERROR(VLOOKUP(B69,Baza[[№]:[Profit]],4,0),"") ->  | H69: =IFERROR(VLOOKUP(B69,Baza[[№]:[Profit]],5,0),"") ->  | I69: =IFERROR(VLOOKUP(B69,Baza[[№]:[Profit]],6,0),"") ->  | J69: =IFERROR(VLOOKUP(B69,Baza[[№]:[Profit]],7,0),"") ->  | K69: =IFERROR(VLOOKUP(B69,Baza[[№]:[Profit]],8,0),"") ->  | L69: =IFERROR(VLOOKUP(B69,Baza[[№]:[Profit]],9,0),"") ->  | M69: =IFERROR(VLOOKUP(B69,Baza[[№]:[Profit]],10,0),"") ->  | N69: =IFERROR(IF(VLOOKUP(B69,Baza[[№]:[Profit]],11,0)=0,"-",VLOOKUP(B69,Baza[[№]:[Profit]],11,0)),"") ->  | O69: =IFERROR(IF(VLOOKUP(B69,Baza[[№]:[Profit]],12,0)=0,"-",VLOOKUP(B69,Baza[[№]:[Profit]],12,0)),"") ->  | P69: =IFERROR(IF(VLOOKUP(B69,Baza[[№]:[Profit]],13,0)=0,"-",VLOOKUP(B69,Baza[[№]:[Profit]],13,0)),"") ->  | Q69: =IFERROR(IF(VLOOKUP(B69,Baza[[№]:[Profit]],15,0)=0,"-",VLOOKUP(B69,Baza[[№]:[Profit]],15,0)),"") ->  | R69: =IFERROR(IF(VLOOKUP(B69,Baza[[№]:[Profit]],16,0)=0,"-",VLOOKUP(B69,Baza[[№]:[Profit]],16,0)),"") ->  | S69: =IFERROR(IF(VLOOKUP(B69,Baza[[№]:[Profit]],17,0)=0,"-",VLOOKUP(B69,Baza[[№]:[Profit]],17,0)),"") ->  | T69: =IFERROR(IF(VLOOKUP(B69,Baza[[№]:[Profit]],18,0)=0,"-",VLOOKUP(B69,Baza[[№]:[Profit]],18,0)),"") ->  | U69: =IFERROR(IF(VLOOKUP(B69,Baza[[№]:[Profit]],19,0)=0,"-",VLOOKUP(B69,Baza[[№]:[Profit]],19,0)),"") ->  | V69: =IFERROR(VLOOKUP(B69,Baza[[№]:[Profit]],20,0),"") ->  | W69: =IFERROR(IF(VLOOKUP(B69,Baza[[№]:[Profit]],21,0)=0,"-",VLOOKUP(B69,Baza[[№]:[Profit]],21,0)),"") ->  | X69: =IFERROR(IF(VLOOKUP(B69,Baza[[№]:[Profit]],22,0)=0,"-",VLOOKUP(B69,Baza[[№]:[Profit]],22,0)),"") ->  | Y69: =IFERROR(VLOOKUP(B69,Baza[[№]:[Profit]],23,0),"") ->  | Z69: =IFERROR(VLOOKUP(B69,Baza[[№]:[AFS]],24,0),"") ->  | AA69: =IF(Таблица2[[#This Row],[Profit]]="","#Н/Д",SUM($Y$40:Y69)) -> #Н/Д | AB69: =IF(Таблица2[[#This Row],[Grafik]]="#Н/Д",FALSE,TRUE) -> FALSE
A70: 31 | C70: =IFERROR(VLOOKUP(B70,Baza[[№]:[Profit]],2,0),"") ->  | D70: =IF(Таблица2[[#This Row],[NN]]="","",TEXT(Таблица2[[#This Row],[Start]],"ч:мм")&" "&IF(OR(Таблица2[[#This Row],[Room]]="WN",Таблица2[[#This Row],[Room]]="ES"),"€","$")&Таблица2[[#This Row],[B]]&" "&"["&Таблица2[[#This Row],[Room]]&"] "&Таблица2[[#This Row],[Name]]) ->  | E70: =IF(Таблица2[[#This Row],[NN]]="","",IF(OR(Таблица2[[#This Row],[Room]]="WN",Таблица2[[#This Row],[Room]]="ES"),"€","$")&Таблица2[[#This Row],[B]]&" "&"["&Таблица2[[#This Row],[Room]]&"] "&Таблица2[[#This Row],[Name]]) ->  | F70: =IFERROR(VLOOKUP(B70,Baza[[№]:[Profit]],3,0),"") ->  | G70: =IFERROR(VLOOKUP(B70,Baza[[№]:[Profit]],4,0),"") ->  | H70: =IFERROR(VLOOKUP(B70,Baza[[№]:[Profit]],5,0),"") ->  | I70: =IFERROR(VLOOKUP(B70,Baza[[№]:[Profit]],6,0),"") ->  | J70: =IFERROR(VLOOKUP(B70,Baza[[№]:[Profit]],7,0),"") ->  | K70: =IFERROR(VLOOKUP(B70,Baza[[№]:[Profit]],8,0),"") ->  | L70: =IFERROR(VLOOKUP(B70,Baza[[№]:[Profit]],9,0),"") ->  | M70: =IFERROR(VLOOKUP(B70,Baza[[№]:[Profit]],10,0),"") ->  | N70: =IFERROR(IF(VLOOKUP(B70,Baza[[№]:[Profit]],11,0)=0,"-",VLOOKUP(B70,Baza[[№]:[Profit]],11,0)),"") ->  | O70: =IFERROR(IF(VLOOKUP(B70,Baza[[№]:[Profit]],12,0)=0,"-",VLOOKUP(B70,Baza[[№]:[Profit]],12,0)),"") ->  | P70: =IFERROR(IF(VLOOKUP(B70,Baza[[№]:[Profit]],13,0)=0,"-",VLOOKUP(B70,Baza[[№]:[Profit]],13,0)),"") ->  | Q70: =IFERROR(IF(VLOOKUP(B70,Baza[[№]:[Profit]],15,0)=0,"-",VLOOKUP(B70,Baza[[№]:[Profit]],15,0)),"") ->  | R70: =IFERROR(IF(VLOOKUP(B70,Baza[[№]:[Profit]],16,0)=0,"-",VLOOKUP(B70,Baza[[№]:[Profit]],16,0)),"") ->  | S70: =IFERROR(IF(VLOOKUP(B70,Baza[[№]:[Profit]],17,0)=0,"-",VLOOKUP(B70,Baza[[№]:[Profit]],17,0)),"") ->  | T70: =IFERROR(IF(VLOOKUP(B70,Baza[[№]:[Profit]],18,0)=0,"-",VLOOKUP(B70,Baza[[№]:[Profit]],18,0)),"") ->  | U70: =IFERROR(IF(VLOOKUP(B70,Baza[[№]:[Profit]],19,0)=0,"-",VLOOKUP(B70,Baza[[№]:[Profit]],19,0)),"") ->  | V70: =IFERROR(VLOOKUP(B70,Baza[[№]:[Profit]],20,0),"") ->  | W70: =IFERROR(IF(VLOOKUP(B70,Baza[[№]:[Profit]],21,0)=0,"-",VLOOKUP(B70,Baza[[№]:[Profit]],21,0)),"") ->  | X70: =IFERROR(IF(VLOOKUP(B70,Baza[[№]:[Profit]],22,0)=0,"-",VLOOKUP(B70,Baza[[№]:[Profit]],22,0)),"") ->  | Y70: =IFERROR(VLOOKUP(B70,Baza[[№]:[Profit]],23,0),"") ->  | Z70: =IFERROR(VLOOKUP(B70,Baza[[№]:[AFS]],24,0),"") ->  | AA70: =IF(Таблица2[[#This Row],[Profit]]="","#Н/Д",SUM($Y$40:Y70)) -> #Н/Д | AB70: =IF(Таблица2[[#This Row],[Grafik]]="#Н/Д",FALSE,TRUE) -> FALSE
A71: 32 | C71: =IFERROR(VLOOKUP(B71,Baza[[№]:[Profit]],2,0),"") ->  | D71: =IF(Таблица2[[#This Row],[NN]]="","",TEXT(Таблица2[[#This Row],[Start]],"ч:мм")&" "&IF(OR(Таблица2[[#This Row],[Room]]="WN",Таблица2[[#This Row],[Room]]="ES"),"€","$")&Таблица2[[#This Row],[B]]&" "&"["&Таблица2[[#This Row],[Room]]&"] "&Таблица2[[#This Row],[Name]]) ->  | E71: =IF(Таблица2[[#This Row],[NN]]="","",IF(OR(Таблица2[[#This Row],[Room]]="WN",Таблица2[[#This Row],[Room]]="ES"),"€","$")&Таблица2[[#This Row],[B]]&" "&"["&Таблица2[[#This Row],[Room]]&"] "&Таблица2[[#This Row],[Name]]) ->  | F71: =IFERROR(VLOOKUP(B71,Baza[[№]:[Profit]],3,0),"") ->  | G71: =IFERROR(VLOOKUP(B71,Baza[[№]:[Profit]],4,0),"") ->  | H71: =IFERROR(VLOOKUP(B71,Baza[[№]:[Profit]],5,0),"") ->  | I71: =IFERROR(VLOOKUP(B71,Baza[[№]:[Profit]],6,0),"") ->  | J71: =IFERROR(VLOOKUP(B71,Baza[[№]:[Profit]],7,0),"") ->  | K71: =IFERROR(VLOOKUP(B71,Baza[[№]:[Profit]],8,0),"") ->  | L71: =IFERROR(VLOOKUP(B71,Baza[[№]:[Profit]],9,0),"") ->  | M71: =IFERROR(VLOOKUP(B71,Baza[[№]:[Profit]],10,0),"") ->  | N71: =IFERROR(IF(VLOOKUP(B71,Baza[[№]:[Profit]],11,0)=0,"-",VLOOKUP(B71,Baza[[№]:[Profit]],11,0)),"") ->  | O71: =IFERROR(IF(VLOOKUP(B71,Baza[[№]:[Profit]],12,0)=0,"-",VLOOKUP(B71,Baza[[№]:[Profit]],12,0)),"") ->  | P71: =IFERROR(IF(VLOOKUP(B71,Baza[[№]:[Profit]],13,0)=0,"-",VLOOKUP(B71,Baza[[№]:[Profit]],13,0)),"") ->  | Q71: =IFERROR(IF(VLOOKUP(B71,Baza[[№]:[Profit]],15,0)=0,"-",VLOOKUP(B71,Baza[[№]:[Profit]],15,0)),"") ->  | R71: =IFERROR(IF(VLOOKUP(B71,Baza[[№]:[Profit]],16,0)=0,"-",VLOOKUP(B71,Baza[[№]:[Profit]],16,0)),"") ->  | S71: =IFERROR(IF(VLOOKUP(B71,Baza[[№]:[Profit]],17,0)=0,"-",VLOOKUP(B71,Baza[[№]:[Profit]],17,0)),"") ->  | T71: =IFERROR(IF(VLOOKUP(B71,Baza[[№]:[Profit]],18,0)=0,"-",VLOOKUP(B71,Baza[[№]:[Profit]],18,0)),"") ->  | U71: =IFERROR(IF(VLOOKUP(B71,Baza[[№]:[Profit]],19,0)=0,"-",VLOOKUP(B71,Baza[[№]:[Profit]],19,0)),"") ->  | V71: =IFERROR(VLOOKUP(B71,Baza[[№]:[Profit]],20,0),"") ->  | W71: =IFERROR(IF(VLOOKUP(B71,Baza[[№]:[Profit]],21,0)=0,"-",VLOOKUP(B71,Baza[[№]:[Profit]],21,0)),"") ->  | X71: =IFERROR(IF(VLOOKUP(B71,Baza[[№]:[Profit]],22,0)=0,"-",VLOOKUP(B71,Baza[[№]:[Profit]],22,0)),"") ->  | Y71: =IFERROR(VLOOKUP(B71,Baza[[№]:[Profit]],23,0),"") ->  | Z71: =IFERROR(VLOOKUP(B71,Baza[[№]:[AFS]],24,0),"") ->  | AA71: =IF(Таблица2[[#This Row],[Profit]]="","#Н/Д",SUM($Y$40:Y71)) -> #Н/Д | AB71: =IF(Таблица2[[#This Row],[Grafik]]="#Н/Д",FALSE,TRUE) -> FALSE
A72: 33 | C72: =IFERROR(VLOOKUP(B72,Baza[[№]:[Profit]],2,0),"") ->  | D72: =IF(Таблица2[[#This Row],[NN]]="","",TEXT(Таблица2[[#This Row],[Start]],"ч:мм")&" "&IF(OR(Таблица2[[#This Row],[Room]]="WN",Таблица2[[#This Row],[Room]]="ES"),"€","$")&Таблица2[[#This Row],[B]]&" "&"["&Таблица2[[#This Row],[Room]]&"] "&Таблица2[[#This Row],[Name]]) ->  | E72: =IF(Таблица2[[#This Row],[NN]]="","",IF(OR(Таблица2[[#This Row],[Room]]="WN",Таблица2[[#This Row],[Room]]="ES"),"€","$")&Таблица2[[#This Row],[B]]&" "&"["&Таблица2[[#This Row],[Room]]&"] "&Таблица2[[#This Row],[Name]]) ->  | F72: =IFERROR(VLOOKUP(B72,Baza[[№]:[Profit]],3,0),"") ->  | G72: =IFERROR(VLOOKUP(B72,Baza[[№]:[Profit]],4,0),"") ->  | H72: =IFERROR(VLOOKUP(B72,Baza[[№]:[Profit]],5,0),"") ->  | I72: =IFERROR(VLOOKUP(B72,Baza[[№]:[Profit]],6,0),"") ->  | J72: =IFERROR(VLOOKUP(B72,Baza[[№]:[Profit]],7,0),"") ->  | K72: =IFERROR(VLOOKUP(B72,Baza[[№]:[Profit]],8,0),"") ->  | L72: =IFERROR(VLOOKUP(B72,Baza[[№]:[Profit]],9,0),"") ->  | M72: =IFERROR(VLOOKUP(B72,Baza[[№]:[Profit]],10,0),"") ->  | N72: =IFERROR(IF(VLOOKUP(B72,Baza[[№]:[Profit]],11,0)=0,"-",VLOOKUP(B72,Baza[[№]:[Profit]],11,0)),"") ->  | O72: =IFERROR(IF(VLOOKUP(B72,Baza[[№]:[Profit]],12,0)=0,"-",VLOOKUP(B72,Baza[[№]:[Profit]],12,0)),"") ->  | P72: =IFERROR(IF(VLOOKUP(B72,Baza[[№]:[Profit]],13,0)=0,"-",VLOOKUP(B72,Baza[[№]:[Profit]],13,0)),"") ->  | Q72: =IFERROR(IF(VLOOKUP(B72,Baza[[№]:[Profit]],15,0)=0,"-",VLOOKUP(B72,Baza[[№]:[Profit]],15,0)),"") ->  | R72: =IFERROR(IF(VLOOKUP(B72,Baza[[№]:[Profit]],16,0)=0,"-",VLOOKUP(B72,Baza[[№]:[Profit]],16,0)),"") ->  | S72: =IFERROR(IF(VLOOKUP(B72,Baza[[№]:[Profit]],17,0)=0,"-",VLOOKUP(B72,Baza[[№]:[Profit]],17,0)),"") ->  | T72: =IFERROR(IF(VLOOKUP(B72,Baza[[№]:[Profit]],18,0)=0,"-",VLOOKUP(B72,Baza[[№]:[Profit]],18,0)),"") ->  | U72: =IFERROR(IF(VLOOKUP(B72,Baza[[№]:[Profit]],19,0)=0,"-",VLOOKUP(B72,Baza[[№]:[Profit]],19,0)),"") ->  | V72: =IFERROR(VLOOKUP(B72,Baza[[№]:[Profit]],20,0),"") ->  | W72: =IFERROR(IF(VLOOKUP(B72,Baza[[№]:[Profit]],21,0)=0,"-",VLOOKUP(B72,Baza[[№]:[Profit]],21,0)),"") ->  | X72: =IFERROR(IF(VLOOKUP(B72,Baza[[№]:[Profit]],22,0)=0,"-",VLOOKUP(B72,Baza[[№]:[Profit]],22,0)),"") ->  | Y72: =IFERROR(VLOOKUP(B72,Baza[[№]:[Profit]],23,0),"") ->  | Z72: =IFERROR(VLOOKUP(B72,Baza[[№]:[AFS]],24,0),"") ->  | AA72: =IF(Таблица2[[#This Row],[Profit]]="","#Н/Д",SUM($Y$40:Y72)) -> #Н/Д | AB72: =IF(Таблица2[[#This Row],[Grafik]]="#Н/Д",FALSE,TRUE) -> FALSE
A73: 34 | C73: =IFERROR(VLOOKUP(B73,Baza[[№]:[Profit]],2,0),"") ->  | D73: =IF(Таблица2[[#This Row],[NN]]="","",TEXT(Таблица2[[#This Row],[Start]],"ч:мм")&" "&IF(OR(Таблица2[[#This Row],[Room]]="WN",Таблица2[[#This Row],[Room]]="ES"),"€","$")&Таблица2[[#This Row],[B]]&" "&"["&Таблица2[[#This Row],[Room]]&"] "&Таблица2[[#This Row],[Name]]) ->  | E73: =IF(Таблица2[[#This Row],[NN]]="","",IF(OR(Таблица2[[#This Row],[Room]]="WN",Таблица2[[#This Row],[Room]]="ES"),"€","$")&Таблица2[[#This Row],[B]]&" "&"["&Таблица2[[#This Row],[Room]]&"] "&Таблица2[[#This Row],[Name]]) ->  | F73: =IFERROR(VLOOKUP(B73,Baza[[№]:[Profit]],3,0),"") ->  | G73: =IFERROR(VLOOKUP(B73,Baza[[№]:[Profit]],4,0),"") ->  | H73: =IFERROR(VLOOKUP(B73,Baza[[№]:[Profit]],5,0),"") ->  | I73: =IFERROR(VLOOKUP(B73,Baza[[№]:[Profit]],6,0),"") ->  | J73: =IFERROR(VLOOKUP(B73,Baza[[№]:[Profit]],7,0),"") ->  | K73: =IFERROR(VLOOKUP(B73,Baza[[№]:[Profit]],8,0),"") ->  | L73: =IFERROR(VLOOKUP(B73,Baza[[№]:[Profit]],9,0),"") ->  | M73: =IFERROR(VLOOKUP(B73,Baza[[№]:[Profit]],10,0),"") ->  | N73: =IFERROR(IF(VLOOKUP(B73,Baza[[№]:[Profit]],11,0)=0,"-",VLOOKUP(B73,Baza[[№]:[Profit]],11,0)),"") ->  | O73: =IFERROR(IF(VLOOKUP(B73,Baza[[№]:[Profit]],12,0)=0,"-",VLOOKUP(B73,Baza[[№]:[Profit]],12,0)),"") ->  | P73: =IFERROR(IF(VLOOKUP(B73,Baza[[№]:[Profit]],13,0)=0,"-",VLOOKUP(B73,Baza[[№]:[Profit]],13,0)),"") ->  | Q73: =IFERROR(IF(VLOOKUP(B73,Baza[[№]:[Profit]],15,0)=0,"-",VLOOKUP(B73,Baza[[№]:[Profit]],15,0)),"") ->  | R73: =IFERROR(IF(VLOOKUP(B73,Baza[[№]:[Profit]],16,0)=0,"-",VLOOKUP(B73,Baza[[№]:[Profit]],16,0)),"") ->  | S73: =IFERROR(IF(VLOOKUP(B73,Baza[[№]:[Profit]],17,0)=0,"-",VLOOKUP(B73,Baza[[№]:[Profit]],17,0)),"") ->  | T73: =IFERROR(IF(VLOOKUP(B73,Baza[[№]:[Profit]],18,0)=0,"-",VLOOKUP(B73,Baza[[№]:[Profit]],18,0)),"") ->  | U73: =IFERROR(IF(VLOOKUP(B73,Baza[[№]:[Profit]],19,0)=0,"-",VLOOKUP(B73,Baza[[№]:[Profit]],19,0)),"") ->  | V73: =IFERROR(VLOOKUP(B73,Baza[[№]:[Profit]],20,0),"") ->  | W73: =IFERROR(IF(VLOOKUP(B73,Baza[[№]:[Profit]],21,0)=0,"-",VLOOKUP(B73,Baza[[№]:[Profit]],21,0)),"") ->  | X73: =IFERROR(IF(VLOOKUP(B73,Baza[[№]:[Profit]],22,0)=0,"-",VLOOKUP(B73,Baza[[№]:[Profit]],22,0)),"") ->  | Y73: =IFERROR(VLOOKUP(B73,Baza[[№]:[Profit]],23,0),"") ->  | Z73: =IFERROR(VLOOKUP(B73,Baza[[№]:[AFS]],24,0),"") ->  | AA73: =IF(Таблица2[[#This Row],[Profit]]="","#Н/Д",SUM($Y$40:Y73)) -> #Н/Д | AB73: =IF(Таблица2[[#This Row],[Grafik]]="#Н/Д",FALSE,TRUE) -> FALSE
A74: 35 | C74: =IFERROR(VLOOKUP(B74,Baza[[№]:[Profit]],2,0),"") ->  | D74: =IF(Таблица2[[#This Row],[NN]]="","",TEXT(Таблица2[[#This Row],[Start]],"ч:мм")&" "&IF(OR(Таблица2[[#This Row],[Room]]="WN",Таблица2[[#This Row],[Room]]="ES"),"€","$")&Таблица2[[#This Row],[B]]&" "&"["&Таблица2[[#This Row],[Room]]&"] "&Таблица2[[#This Row],[Name]]) ->  | E74: =IF(Таблица2[[#This Row],[NN]]="","",IF(OR(Таблица2[[#This Row],[Room]]="WN",Таблица2[[#This Row],[Room]]="ES"),"€","$")&Таблица2[[#This Row],[B]]&" "&"["&Таблица2[[#This Row],[Room]]&"] "&Таблица2[[#This Row],[Name]]) ->  | F74: =IFERROR(VLOOKUP(B74,Baza[[№]:[Profit]],3,0),"") ->  | G74: =IFERROR(VLOOKUP(B74,Baza[[№]:[Profit]],4,0),"") ->  | H74: =IFERROR(VLOOKUP(B74,Baza[[№]:[Profit]],5,0),"") ->  | I74: =IFERROR(VLOOKUP(B74,Baza[[№]:[Profit]],6,0),"") ->  | J74: =IFERROR(VLOOKUP(B74,Baza[[№]:[Profit]],7,0),"") ->  | K74: =IFERROR(VLOOKUP(B74,Baza[[№]:[Profit]],8,0),"") ->  | L74: =IFERROR(VLOOKUP(B74,Baza[[№]:[Profit]],9,0),"") ->  | M74: =IFERROR(VLOOKUP(B74,Baza[[№]:[Profit]],10,0),"") ->  | N74: =IFERROR(IF(VLOOKUP(B74,Baza[[№]:[Profit]],11,0)=0,"-",VLOOKUP(B74,Baza[[№]:[Profit]],11,0)),"") ->  | O74: =IFERROR(IF(VLOOKUP(B74,Baza[[№]:[Profit]],12,0)=0,"-",VLOOKUP(B74,Baza[[№]:[Profit]],12,0)),"") ->  | P74: =IFERROR(IF(VLOOKUP(B74,Baza[[№]:[Profit]],13,0)=0,"-",VLOOKUP(B74,Baza[[№]:[Profit]],13,0)),"") ->  | Q74: =IFERROR(IF(VLOOKUP(B74,Baza[[№]:[Profit]],15,0)=0,"-",VLOOKUP(B74,Baza[[№]:[Profit]],15,0)),"") ->  | R74: =IFERROR(IF(VLOOKUP(B74,Baza[[№]:[Profit]],16,0)=0,"-",VLOOKUP(B74,Baza[[№]:[Profit]],16,0)),"") ->  | S74: =IFERROR(IF(VLOOKUP(B74,Baza[[№]:[Profit]],17,0)=0,"-",VLOOKUP(B74,Baza[[№]:[Profit]],17,0)),"") ->  | T74: =IFERROR(IF(VLOOKUP(B74,Baza[[№]:[Profit]],18,0)=0,"-",VLOOKUP(B74,Baza[[№]:[Profit]],18,0)),"") ->  | U74: =IFERROR(IF(VLOOKUP(B74,Baza[[№]:[Profit]],19,0)=0,"-",VLOOKUP(B74,Baza[[№]:[Profit]],19,0)),"") ->  | V74: =IFERROR(VLOOKUP(B74,Baza[[№]:[Profit]],20,0),"") ->  | W74: =IFERROR(IF(VLOOKUP(B74,Baza[[№]:[Profit]],21,0)=0,"-",VLOOKUP(B74,Baza[[№]:[Profit]],21,0)),"") ->  | X74: =IFERROR(IF(VLOOKUP(B74,Baza[[№]:[Profit]],22,0)=0,"-",VLOOKUP(B74,Baza[[№]:[Profit]],22,0)),"") ->  | Y74: =IFERROR(VLOOKUP(B74,Baza[[№]:[Profit]],23,0),"") ->  | Z74: =IFERROR(VLOOKUP(B74,Baza[[№]:[AFS]],24,0),"") ->  | AA74: =IF(Таблица2[[#This Row],[Profit]]="","#Н/Д",SUM($Y$40:Y74)) -> #Н/Д | AB74: =IF(Таблица2[[#This Row],[Grafik]]="#Н/Д",FALSE,TRUE) -> FALSE
A75: 36 | C75: =IFERROR(VLOOKUP(B75,Baza[[№]:[Profit]],2,0),"") ->  | D75: =IF(Таблица2[[#This Row],[NN]]="","",TEXT(Таблица2[[#This Row],[Start]],"ч:мм")&" "&IF(OR(Таблица2[[#This Row],[Room]]="WN",Таблица2[[#This Row],[Room]]="ES"),"€","$")&Таблица2[[#This Row],[B]]&" "&"["&Таблица2[[#This Row],[Room]]&"] "&Таблица2[[#This Row],[Name]]) ->  | E75: =IF(Таблица2[[#This Row],[NN]]="","",IF(OR(Таблица2[[#This Row],[Room]]="WN",Таблица2[[#This Row],[Room]]="ES"),"€","$")&Таблица2[[#This Row],[B]]&" "&"["&Таблица2[[#This Row],[Room]]&"] "&Таблица2[[#This Row],[Name]]) ->  | F75: =IFERROR(VLOOKUP(B75,Baza[[№]:[Profit]],3,0),"") ->  | G75: =IFERROR(VLOOKUP(B75,Baza[[№]:[Profit]],4,0),"") ->  | H75: =IFERROR(VLOOKUP(B75,Baza[[№]:[Profit]],5,0),"") ->  | I75: =IFERROR(VLOOKUP(B75,Baza[[№]:[Profit]],6,0),"") ->  | J75: =IFERROR(VLOOKUP(B75,Baza[[№]:[Profit]],7,0),"") ->  | K75: =IFERROR(VLOOKUP(B75,Baza[[№]:[Profit]],8,0),"") ->  | L75: =IFERROR(VLOOKUP(B75,Baza[[№]:[Profit]],9,0),"") ->  | M75: =IFERROR(VLOOKUP(B75,Baza[[№]:[Profit]],10,0),"") ->  | N75: =IFERROR(IF(VLOOKUP(B75,Baza[[№]:[Profit]],11,0)=0,"-",VLOOKUP(B75,Baza[[№]:[Profit]],11,0)),"") ->  | O75: =IFERROR(IF(VLOOKUP(B75,Baza[[№]:[Profit]],12,0)=0,"-",VLOOKUP(B75,Baza[[№]:[Profit]],12,0)),"") ->  | P75: =IFERROR(IF(VLOOKUP(B75,Baza[[№]:[Profit]],13,0)=0,"-",VLOOKUP(B75,Baza[[№]:[Profit]],13,0)),"") ->  | Q75: =IFERROR(IF(VLOOKUP(B75,Baza[[№]:[Profit]],15,0)=0,"-",VLOOKUP(B75,Baza[[№]:[Profit]],15,0)),"") ->  | R75: =IFERROR(IF(VLOOKUP(B75,Baza[[№]:[Profit]],16,0)=0,"-",VLOOKUP(B75,Baza[[№]:[Profit]],16,0)),"") ->  | S75: =IFERROR(IF(VLOOKUP(B75,Baza[[№]:[Profit]],17,0)=0,"-",VLOOKUP(B75,Baza[[№]:[Profit]],17,0)),"") ->  | T75: =IFERROR(IF(VLOOKUP(B75,Baza[[№]:[Profit]],18,0)=0,"-",VLOOKUP(B75,Baza[[№]:[Profit]],18,0)),"") ->  | U75: =IFERROR(IF(VLOOKUP(B75,Baza[[№]:[Profit]],19,0)=0,"-",VLOOKUP(B75,Baza[[№]:[Profit]],19,0)),"") ->  | V75: =IFERROR(VLOOKUP(B75,Baza[[№]:[Profit]],20,0),"") ->  | W75: =IFERROR(IF(VLOOKUP(B75,Baza[[№]:[Profit]],21,0)=0,"-",VLOOKUP(B75,Baza[[№]:[Profit]],21,0)),"") ->  | X75: =IFERROR(IF(VLOOKUP(B75,Baza[[№]:[Profit]],22,0)=0,"-",VLOOKUP(B75,Baza[[№]:[Profit]],22,0)),"") ->  | Y75: =IFERROR(VLOOKUP(B75,Baza[[№]:[Profit]],23,0),"") ->  | Z75: =IFERROR(VLOOKUP(B75,Baza[[№]:[AFS]],24,0),"") ->  | AA75: =IF(Таблица2[[#This Row],[Profit]]="","#Н/Д",SUM($Y$40:Y75)) -> #Н/Д | AB75: =IF(Таблица2[[#This Row],[Grafik]]="#Н/Д",FALSE,TRUE) -> FALSE
A76: 37 | C76: =IFERROR(VLOOKUP(B76,Baza[[№]:[Profit]],2,0),"") ->  | D76: =IF(Таблица2[[#This Row],[NN]]="","",TEXT(Таблица2[[#This Row],[Start]],"ч:мм")&" "&IF(OR(Таблица2[[#This Row],[Room]]="WN",Таблица2[[#This Row],[Room]]="ES"),"€","$")&Таблица2[[#This Row],[B]]&" "&"["&Таблица2[[#This Row],[Room]]&"] "&Таблица2[[#This Row],[Name]]) ->  | E76: =IF(Таблица2[[#This Row],[NN]]="","",IF(OR(Таблица2[[#This Row],[Room]]="WN",Таблица2[[#This Row],[Room]]="ES"),"€","$")&Таблица2[[#This Row],[B]]&" "&"["&Таблица2[[#This Row],[Room]]&"] "&Таблица2[[#This Row],[Name]]) ->  | F76: =IFERROR(VLOOKUP(B76,Baza[[№]:[Profit]],3,0),"") ->  | G76: =IFERROR(VLOOKUP(B76,Baza[[№]:[Profit]],4,0),"") ->  | H76: =IFERROR(VLOOKUP(B76,Baza[[№]:[Profit]],5,0),"") ->  | I76: =IFERROR(VLOOKUP(B76,Baza[[№]:[Profit]],6,0),"") ->  | J76: =IFERROR(VLOOKUP(B76,Baza[[№]:[Profit]],7,0),"") ->  | K76: =IFERROR(VLOOKUP(B76,Baza[[№]:[Profit]],8,0),"") ->  | L76: =IFERROR(VLOOKUP(B76,Baza[[№]:[Profit]],9,0),"") ->  | M76: =IFERROR(VLOOKUP(B76,Baza[[№]:[Profit]],10,0),"") ->  | N76: =IFERROR(IF(VLOOKUP(B76,Baza[[№]:[Profit]],11,0)=0,"-",VLOOKUP(B76,Baza[[№]:[Profit]],11,0)),"") ->  | O76: =IFERROR(IF(VLOOKUP(B76,Baza[[№]:[Profit]],12,0)=0,"-",VLOOKUP(B76,Baza[[№]:[Profit]],12,0)),"") ->  | P76: =IFERROR(IF(VLOOKUP(B76,Baza[[№]:[Profit]],13,0)=0,"-",VLOOKUP(B76,Baza[[№]:[Profit]],13,0)),"") ->  | Q76: =IFERROR(IF(VLOOKUP(B76,Baza[[№]:[Profit]],15,0)=0,"-",VLOOKUP(B76,Baza[[№]:[Profit]],15,0)),"") ->  | R76: =IFERROR(IF(VLOOKUP(B76,Baza[[№]:[Profit]],16,0)=0,"-",VLOOKUP(B76,Baza[[№]:[Profit]],16,0)),"") ->  | S76: =IFERROR(IF(VLOOKUP(B76,Baza[[№]:[Profit]],17,0)=0,"-",VLOOKUP(B76,Baza[[№]:[Profit]],17,0)),"") ->  | T76: =IFERROR(IF(VLOOKUP(B76,Baza[[№]:[Profit]],18,0)=0,"-",VLOOKUP(B76,Baza[[№]:[Profit]],18,0)),"") ->  | U76: =IFERROR(IF(VLOOKUP(B76,Baza[[№]:[Profit]],19,0)=0,"-",VLOOKUP(B76,Baza[[№]:[Profit]],19,0)),"") ->  | V76: =IFERROR(VLOOKUP(B76,Baza[[№]:[Profit]],20,0),"") ->  | W76: =IFERROR(IF(VLOOKUP(B76,Baza[[№]:[Profit]],21,0)=0,"-",VLOOKUP(B76,Baza[[№]:[Profit]],21,0)),"") ->  | X76: =IFERROR(IF(VLOOKUP(B76,Baza[[№]:[Profit]],22,0)=0,"-",VLOOKUP(B76,Baza[[№]:[Profit]],22,0)),"") ->  | Y76: =IFERROR(VLOOKUP(B76,Baza[[№]:[Profit]],23,0),"") ->  | Z76: =IFERROR(VLOOKUP(B76,Baza[[№]:[AFS]],24,0),"") ->  | AA76: =IF(Таблица2[[#This Row],[Profit]]="","#Н/Д",SUM($Y$40:Y76)) -> #Н/Д | AB76: =IF(Таблица2[[#This Row],[Grafik]]="#Н/Д",FALSE,TRUE) -> FALSE
A77: 38 | C77: =IFERROR(VLOOKUP(B77,Baza[[№]:[Profit]],2,0),"") ->  | D77: =IF(Таблица2[[#This Row],[NN]]="","",TEXT(Таблица2[[#This Row],[Start]],"ч:мм")&" "&IF(OR(Таблица2[[#This Row],[Room]]="WN",Таблица2[[#This Row],[Room]]="ES"),"€","$")&Таблица2[[#This Row],[B]]&" "&"["&Таблица2[[#This Row],[Room]]&"] "&Таблица2[[#This Row],[Name]]) ->  | E77: =IF(Таблица2[[#This Row],[NN]]="","",IF(OR(Таблица2[[#This Row],[Room]]="WN",Таблица2[[#This Row],[Room]]="ES"),"€","$")&Таблица2[[#This Row],[B]]&" "&"["&Таблица2[[#This Row],[Room]]&"] "&Таблица2[[#This Row],[Name]]) ->  | F77: =IFERROR(VLOOKUP(B77,Baza[[№]:[Profit]],3,0),"") ->  | G77: =IFERROR(VLOOKUP(B77,Baza[[№]:[Profit]],4,0),"") ->  | H77: =IFERROR(VLOOKUP(B77,Baza[[№]:[Profit]],5,0),"") ->  | I77: =IFERROR(VLOOKUP(B77,Baza[[№]:[Profit]],6,0),"") ->  | J77: =IFERROR(VLOOKUP(B77,Baza[[№]:[Profit]],7,0),"") ->  | K77: =IFERROR(VLOOKUP(B77,Baza[[№]:[Profit]],8,0),"") ->  | L77: =IFERROR(VLOOKUP(B77,Baza[[№]:[Profit]],9,0),"") ->  | M77: =IFERROR(VLOOKUP(B77,Baza[[№]:[Profit]],10,0),"") ->  | N77: =IFERROR(IF(VLOOKUP(B77,Baza[[№]:[Profit]],11,0)=0,"-",VLOOKUP(B77,Baza[[№]:[Profit]],11,0)),"") ->  | O77: =IFERROR(IF(VLOOKUP(B77,Baza[[№]:[Profit]],12,0)=0,"-",VLOOKUP(B77,Baza[[№]:[Profit]],12,0)),"") ->  | P77: =IFERROR(IF(VLOOKUP(B77,Baza[[№]:[Profit]],13,0)=0,"-",VLOOKUP(B77,Baza[[№]:[Profit]],13,0)),"") ->  | Q77: =IFERROR(IF(VLOOKUP(B77,Baza[[№]:[Profit]],15,0)=0,"-",VLOOKUP(B77,Baza[[№]:[Profit]],15,0)),"") ->  | R77: =IFERROR(IF(VLOOKUP(B77,Baza[[№]:[Profit]],16,0)=0,"-",VLOOKUP(B77,Baza[[№]:[Profit]],16,0)),"") ->  | S77: =IFERROR(IF(VLOOKUP(B77,Baza[[№]:[Profit]],17,0)=0,"-",VLOOKUP(B77,Baza[[№]:[Profit]],17,0)),"") ->  | T77: =IFERROR(IF(VLOOKUP(B77,Baza[[№]:[Profit]],18,0)=0,"-",VLOOKUP(B77,Baza[[№]:[Profit]],18,0)),"") ->  | U77: =IFERROR(IF(VLOOKUP(B77,Baza[[№]:[Profit]],19,0)=0,"-",VLOOKUP(B77,Baza[[№]:[Profit]],19,0)),"") ->  | V77: =IFERROR(VLOOKUP(B77,Baza[[№]:[Profit]],20,0),"") ->  | W77: =IFERROR(IF(VLOOKUP(B77,Baza[[№]:[Profit]],21,0)=0,"-",VLOOKUP(B77,Baza[[№]:[Profit]],21,0)),"") ->  | X77: =IFERROR(IF(VLOOKUP(B77,Baza[[№]:[Profit]],22,0)=0,"-",VLOOKUP(B77,Baza[[№]:[Profit]],22,0)),"") ->  | Y77: =IFERROR(VLOOKUP(B77,Baza[[№]:[Profit]],23,0),"") ->  | Z77: =IFERROR(VLOOKUP(B77,Baza[[№]:[AFS]],24,0),"") ->  | AA77: =IF(Таблица2[[#This Row],[Profit]]="","#Н/Д",SUM($Y$40:Y77)) -> #Н/Д | AB77: =IF(Таблица2[[#This Row],[Grafik]]="#Н/Д",FALSE,TRUE) -> FALSE
A78: 39 | C78: =IFERROR(VLOOKUP(B78,Baza[[№]:[Profit]],2,0),"") ->  | D78: =IF(Таблица2[[#This Row],[NN]]="","",TEXT(Таблица2[[#This Row],[Start]],"ч:мм")&" "&IF(OR(Таблица2[[#This Row],[Room]]="WN",Таблица2[[#This Row],[Room]]="ES"),"€","$")&Таблица2[[#This Row],[B]]&" "&"["&Таблица2[[#This Row],[Room]]&"] "&Таблица2[[#This Row],[Name]]) ->  | E78: =IF(Таблица2[[#This Row],[NN]]="","",IF(OR(Таблица2[[#This Row],[Room]]="WN",Таблица2[[#This Row],[Room]]="ES"),"€","$")&Таблица2[[#This Row],[B]]&" "&"["&Таблица2[[#This Row],[Room]]&"] "&Таблица2[[#This Row],[Name]]) ->  | F78: =IFERROR(VLOOKUP(B78,Baza[[№]:[Profit]],3,0),"") ->  | G78: =IFERROR(VLOOKUP(B78,Baza[[№]:[Profit]],4,0),"") ->  | H78: =IFERROR(VLOOKUP(B78,Baza[[№]:[Profit]],5,0),"") ->  | I78: =IFERROR(VLOOKUP(B78,Baza[[№]:[Profit]],6,0),"") ->  | J78: =IFERROR(VLOOKUP(B78,Baza[[№]:[Profit]],7,0),"") ->  | K78: =IFERROR(VLOOKUP(B78,Baza[[№]:[Profit]],8,0),"") ->  | L78: =IFERROR(VLOOKUP(B78,Baza[[№]:[Profit]],9,0),"") ->  | M78: =IFERROR(VLOOKUP(B78,Baza[[№]:[Profit]],10,0),"") ->  | N78: =IFERROR(IF(VLOOKUP(B78,Baza[[№]:[Profit]],11,0)=0,"-",VLOOKUP(B78,Baza[[№]:[Profit]],11,0)),"") ->  | O78: =IFERROR(IF(VLOOKUP(B78,Baza[[№]:[Profit]],12,0)=0,"-",VLOOKUP(B78,Baza[[№]:[Profit]],12,0)),"") ->  | P78: =IFERROR(IF(VLOOKUP(B78,Baza[[№]:[Profit]],13,0)=0,"-",VLOOKUP(B78,Baza[[№]:[Profit]],13,0)),"") ->  | Q78: =IFERROR(IF(VLOOKUP(B78,Baza[[№]:[Profit]],15,0)=0,"-",VLOOKUP(B78,Baza[[№]:[Profit]],15,0)),"") ->  | R78: =IFERROR(IF(VLOOKUP(B78,Baza[[№]:[Profit]],16,0)=0,"-",VLOOKUP(B78,Baza[[№]:[Profit]],16,0)),"") ->  | S78: =IFERROR(IF(VLOOKUP(B78,Baza[[№]:[Profit]],17,0)=0,"-",VLOOKUP(B78,Baza[[№]:[Profit]],17,0)),"") ->  | T78: =IFERROR(IF(VLOOKUP(B78,Baza[[№]:[Profit]],18,0)=0,"-",VLOOKUP(B78,Baza[[№]:[Profit]],18,0)),"") ->  | U78: =IFERROR(IF(VLOOKUP(B78,Baza[[№]:[Profit]],19,0)=0,"-",VLOOKUP(B78,Baza[[№]:[Profit]],19,0)),"") ->  | V78: =IFERROR(VLOOKUP(B78,Baza[[№]:[Profit]],20,0),"") ->  | W78: =IFERROR(IF(VLOOKUP(B78,Baza[[№]:[Profit]],21,0)=0,"-",VLOOKUP(B78,Baza[[№]:[Profit]],21,0)),"") ->  | X78: =IFERROR(IF(VLOOKUP(B78,Baza[[№]:[Profit]],22,0)=0,"-",VLOOKUP(B78,Baza[[№]:[Profit]],22,0)),"") ->  | Y78: =IFERROR(VLOOKUP(B78,Baza[[№]:[Profit]],23,0),"") ->  | Z78: =IFERROR(VLOOKUP(B78,Baza[[№]:[AFS]],24,0),"") ->  | AA78: =IF(Таблица2[[#This Row],[Profit]]="","#Н/Д",SUM($Y$40:Y78)) -> #Н/Д | AB78: =IF(Таблица2[[#This Row],[Grafik]]="#Н/Д",FALSE,TRUE) -> FALSE
A79: 40 | C79: =IFERROR(VLOOKUP(B79,Baza[[№]:[Profit]],2,0),"") ->  | D79: =IF(Таблица2[[#This Row],[NN]]="","",TEXT(Таблица2[[#This Row],[Start]],"ч:мм")&" "&IF(OR(Таблица2[[#This Row],[Room]]="WN",Таблица2[[#This Row],[Room]]="ES"),"€","$")&Таблица2[[#This Row],[B]]&" "&"["&Таблица2[[#This Row],[Room]]&"] "&Таблица2[[#This Row],[Name]]) ->  | E79: =IF(Таблица2[[#This Row],[NN]]="","",IF(OR(Таблица2[[#This Row],[Room]]="WN",Таблица2[[#This Row],[Room]]="ES"),"€","$")&Таблица2[[#This Row],[B]]&" "&"["&Таблица2[[#This Row],[Room]]&"] "&Таблица2[[#This Row],[Name]]) ->  | F79: =IFERROR(VLOOKUP(B79,Baza[[№]:[Profit]],3,0),"") ->  | G79: =IFERROR(VLOOKUP(B79,Baza[[№]:[Profit]],4,0),"") ->  | H79: =IFERROR(VLOOKUP(B79,Baza[[№]:[Profit]],5,0),"") ->  | I79: =IFERROR(VLOOKUP(B79,Baza[[№]:[Profit]],6,0),"") ->  | J79: =IFERROR(VLOOKUP(B79,Baza[[№]:[Profit]],7,0),"") ->  | K79: =IFERROR(VLOOKUP(B79,Baza[[№]:[Profit]],8,0),"") ->  | L79: =IFERROR(VLOOKUP(B79,Baza[[№]:[Profit]],9,0),"") ->  | M79: =IFERROR(VLOOKUP(B79,Baza[[№]:[Profit]],10,0),"") ->  | N79: =IFERROR(IF(VLOOKUP(B79,Baza[[№]:[Profit]],11,0)=0,"-",VLOOKUP(B79,Baza[[№]:[Profit]],11,0)),"") ->  | O79: =IFERROR(IF(VLOOKUP(B79,Baza[[№]:[Profit]],12,0)=0,"-",VLOOKUP(B79,Baza[[№]:[Profit]],12,0)),"") ->  | P79: =IFERROR(IF(VLOOKUP(B79,Baza[[№]:[Profit]],13,0)=0,"-",VLOOKUP(B79,Baza[[№]:[Profit]],13,0)),"") ->  | Q79: =IFERROR(IF(VLOOKUP(B79,Baza[[№]:[Profit]],15,0)=0,"-",VLOOKUP(B79,Baza[[№]:[Profit]],15,0)),"") ->  | R79: =IFERROR(IF(VLOOKUP(B79,Baza[[№]:[Profit]],16,0)=0,"-",VLOOKUP(B79,Baza[[№]:[Profit]],16,0)),"") ->  | S79: =IFERROR(IF(VLOOKUP(B79,Baza[[№]:[Profit]],17,0)=0,"-",VLOOKUP(B79,Baza[[№]:[Profit]],17,0)),"") ->  | T79: =IFERROR(IF(VLOOKUP(B79,Baza[[№]:[Profit]],18,0)=0,"-",VLOOKUP(B79,Baza[[№]:[Profit]],18,0)),"") ->  | U79: =IFERROR(IF(VLOOKUP(B79,Baza[[№]:[Profit]],19,0)=0,"-",VLOOKUP(B79,Baza[[№]:[Profit]],19,0)),"") ->  | V79: =IFERROR(VLOOKUP(B79,Baza[[№]:[Profit]],20,0),"") ->  | W79: =IFERROR(IF(VLOOKUP(B79,Baza[[№]:[Profit]],21,0)=0,"-",VLOOKUP(B79,Baza[[№]:[Profit]],21,0)),"") ->  | X79: =IFERROR(IF(VLOOKUP(B79,Baza[[№]:[Profit]],22,0)=0,"-",VLOOKUP(B79,Baza[[№]:[Profit]],22,0)),"") ->  | Y79: =IFERROR(VLOOKUP(B79,Baza[[№]:[Profit]],23,0),"") ->  | Z79: =IFERROR(VLOOKUP(B79,Baza[[№]:[AFS]],24,0),"") ->  | AA79: =IF(Таблица2[[#This Row],[Profit]]="","#Н/Д",SUM($Y$40:Y79)) -> #Н/Д | AB79: =IF(Таблица2[[#This Row],[Grafik]]="#Н/Д",FALSE,TRUE) -> FALSE
A80: 41 | C80: =IFERROR(VLOOKUP(B80,Baza[[№]:[Profit]],2,0),"") ->  | D80: =IF(Таблица2[[#This Row],[NN]]="","",TEXT(Таблица2[[#This Row],[Start]],"ч:мм")&" "&IF(OR(Таблица2[[#This Row],[Room]]="WN",Таблица2[[#This Row],[Room]]="ES"),"€","$")&Таблица2[[#This Row],[B]]&" "&"["&Таблица2[[#This Row],[Room]]&"] "&Таблица2[[#This Row],[Name]]) ->  | E80: =IF(Таблица2[[#This Row],[NN]]="","",IF(OR(Таблица2[[#This Row],[Room]]="WN",Таблица2[[#This Row],[Room]]="ES"),"€","$")&Таблица2[[#This Row],[B]]&" "&"["&Таблица2[[#This Row],[Room]]&"] "&Таблица2[[#This Row],[Name]]) ->  | F80: =IFERROR(VLOOKUP(B80,Baza[[№]:[Profit]],3,0),"") ->  | G80: =IFERROR(VLOOKUP(B80,Baza[[№]:[Profit]],4,0),"") ->  | H80: =IFERROR(VLOOKUP(B80,Baza[[№]:[Profit]],5,0),"") ->  | I80: =IFERROR(VLOOKUP(B80,Baza[[№]:[Profit]],6,0),"") ->  | J80: =IFERROR(VLOOKUP(B80,Baza[[№]:[Profit]],7,0),"") ->  | K80: =IFERROR(VLOOKUP(B80,Baza[[№]:[Profit]],8,0),"") ->  | L80: =IFERROR(VLOOKUP(B80,Baza[[№]:[Profit]],9,0),"") ->  | M80: =IFERROR(VLOOKUP(B80,Baza[[№]:[Profit]],10,0),"") ->  | N80: =IFERROR(IF(VLOOKUP(B80,Baza[[№]:[Profit]],11,0)=0,"-",VLOOKUP(B80,Baza[[№]:[Profit]],11,0)),"") ->  | O80: =IFERROR(IF(VLOOKUP(B80,Baza[[№]:[Profit]],12,0)=0,"-",VLOOKUP(B80,Baza[[№]:[Profit]],12,0)),"") ->  | P80: =IFERROR(IF(VLOOKUP(B80,Baza[[№]:[Profit]],13,0)=0,"-",VLOOKUP(B80,Baza[[№]:[Profit]],13,0)),"") ->  | Q80: =IFERROR(IF(VLOOKUP(B80,Baza[[№]:[Profit]],15,0)=0,"-",VLOOKUP(B80,Baza[[№]:[Profit]],15,0)),"") ->  | R80: =IFERROR(IF(VLOOKUP(B80,Baza[[№]:[Profit]],16,0)=0,"-",VLOOKUP(B80,Baza[[№]:[Profit]],16,0)),"") ->  | S80: =IFERROR(IF(VLOOKUP(B80,Baza[[№]:[Profit]],17,0)=0,"-",VLOOKUP(B80,Baza[[№]:[Profit]],17,0)),"") ->  | T80: =IFERROR(IF(VLOOKUP(B80,Baza[[№]:[Profit]],18,0)=0,"-",VLOOKUP(B80,Baza[[№]:[Profit]],18,0)),"") ->  | U80: =IFERROR(IF(VLOOKUP(B80,Baza[[№]:[Profit]],19,0)=0,"-",VLOOKUP(B80,Baza[[№]:[Profit]],19,0)),"") ->  | V80: =IFERROR(VLOOKUP(B80,Baza[[№]:[Profit]],20,0),"") ->  | W80: =IFERROR(IF(VLOOKUP(B80,Baza[[№]:[Profit]],21,0)=0,"-",VLOOKUP(B80,Baza[[№]:[Profit]],21,0)),"") ->  | X80: =IFERROR(IF(VLOOKUP(B80,Baza[[№]:[Profit]],22,0)=0,"-",VLOOKUP(B80,Baza[[№]:[Profit]],22,0)),"") ->  | Y80: =IFERROR(VLOOKUP(B80,Baza[[№]:[Profit]],23,0),"") ->  | Z80: =IFERROR(VLOOKUP(B80,Baza[[№]:[AFS]],24,0),"") ->  | AA80: =IF(Таблица2[[#This Row],[Profit]]="","#Н/Д",SUM($Y$40:Y80)) -> #Н/Д | AB80: =IF(Таблица2[[#This Row],[Grafik]]="#Н/Д",FALSE,TRUE) -> FALSE
A81: 42 | C81: =IFERROR(VLOOKUP(B81,Baza[[№]:[Profit]],2,0),"") ->  | D81: =IF(Таблица2[[#This Row],[NN]]="","",TEXT(Таблица2[[#This Row],[Start]],"ч:мм")&" "&IF(OR(Таблица2[[#This Row],[Room]]="WN",Таблица2[[#This Row],[Room]]="ES"),"€","$")&Таблица2[[#This Row],[B]]&" "&"["&Таблица2[[#This Row],[Room]]&"] "&Таблица2[[#This Row],[Name]]) ->  | E81: =IF(Таблица2[[#This Row],[NN]]="","",IF(OR(Таблица2[[#This Row],[Room]]="WN",Таблица2[[#This Row],[Room]]="ES"),"€","$")&Таблица2[[#This Row],[B]]&" "&"["&Таблица2[[#This Row],[Room]]&"] "&Таблица2[[#This Row],[Name]]) ->  | F81: =IFERROR(VLOOKUP(B81,Baza[[№]:[Profit]],3,0),"") ->  | G81: =IFERROR(VLOOKUP(B81,Baza[[№]:[Profit]],4,0),"") ->  | H81: =IFERROR(VLOOKUP(B81,Baza[[№]:[Profit]],5,0),"") ->  | I81: =IFERROR(VLOOKUP(B81,Baza[[№]:[Profit]],6,0),"") ->  | J81: =IFERROR(VLOOKUP(B81,Baza[[№]:[Profit]],7,0),"") ->  | K81: =IFERROR(VLOOKUP(B81,Baza[[№]:[Profit]],8,0),"") ->  | L81: =IFERROR(VLOOKUP(B81,Baza[[№]:[Profit]],9,0),"") ->  | M81: =IFERROR(VLOOKUP(B81,Baza[[№]:[Profit]],10,0),"") ->  | N81: =IFERROR(IF(VLOOKUP(B81,Baza[[№]:[Profit]],11,0)=0,"-",VLOOKUP(B81,Baza[[№]:[Profit]],11,0)),"") ->  | O81: =IFERROR(IF(VLOOKUP(B81,Baza[[№]:[Profit]],12,0)=0,"-",VLOOKUP(B81,Baza[[№]:[Profit]],12,0)),"") ->  | P81: =IFERROR(IF(VLOOKUP(B81,Baza[[№]:[Profit]],13,0)=0,"-",VLOOKUP(B81,Baza[[№]:[Profit]],13,0)),"") ->  | Q81: =IFERROR(IF(VLOOKUP(B81,Baza[[№]:[Profit]],15,0)=0,"-",VLOOKUP(B81,Baza[[№]:[Profit]],15,0)),"") ->  | R81: =IFERROR(IF(VLOOKUP(B81,Baza[[№]:[Profit]],16,0)=0,"-",VLOOKUP(B81,Baza[[№]:[Profit]],16,0)),"") ->  | S81: =IFERROR(IF(VLOOKUP(B81,Baza[[№]:[Profit]],17,0)=0,"-",VLOOKUP(B81,Baza[[№]:[Profit]],17,0)),"") ->  | T81: =IFERROR(IF(VLOOKUP(B81,Baza[[№]:[Profit]],18,0)=0,"-",VLOOKUP(B81,Baza[[№]:[Profit]],18,0)),"") ->  | U81: =IFERROR(IF(VLOOKUP(B81,Baza[[№]:[Profit]],19,0)=0,"-",VLOOKUP(B81,Baza[[№]:[Profit]],19,0)),"") ->  | V81: =IFERROR(VLOOKUP(B81,Baza[[№]:[Profit]],20,0),"") ->  | W81: =IFERROR(IF(VLOOKUP(B81,Baza[[№]:[Profit]],21,0)=0,"-",VLOOKUP(B81,Baza[[№]:[Profit]],21,0)),"") ->  | X81: =IFERROR(IF(VLOOKUP(B81,Baza[[№]:[Profit]],22,0)=0,"-",VLOOKUP(B81,Baza[[№]:[Profit]],22,0)),"") ->  | Y81: =IFERROR(VLOOKUP(B81,Baza[[№]:[Profit]],23,0),"") ->  | Z81: =IFERROR(VLOOKUP(B81,Baza[[№]:[AFS]],24,0),"") ->  | AA81: =IF(Таблица2[[#This Row],[Profit]]="","#Н/Д",SUM($Y$40:Y81)) -> #Н/Д | AB81: =IF(Таблица2[[#This Row],[Grafik]]="#Н/Д",FALSE,TRUE) -> FALSE
A82: 43 | C82: =IFERROR(VLOOKUP(B82,Baza[[№]:[Profit]],2,0),"") ->  | D82: =IF(Таблица2[[#This Row],[NN]]="","",TEXT(Таблица2[[#This Row],[Start]],"ч:мм")&" "&IF(OR(Таблица2[[#This Row],[Room]]="WN",Таблица2[[#This Row],[Room]]="ES"),"€","$")&Таблица2[[#This Row],[B]]&" "&"["&Таблица2[[#This Row],[Room]]&"] "&Таблица2[[#This Row],[Name]]) ->  | E82: =IF(Таблица2[[#This Row],[NN]]="","",IF(OR(Таблица2[[#This Row],[Room]]="WN",Таблица2[[#This Row],[Room]]="ES"),"€","$")&Таблица2[[#This Row],[B]]&" "&"["&Таблица2[[#This Row],[Room]]&"] "&Таблица2[[#This Row],[Name]]) ->  | F82: =IFERROR(VLOOKUP(B82,Baza[[№]:[Profit]],3,0),"") ->  | G82: =IFERROR(VLOOKUP(B82,Baza[[№]:[Profit]],4,0),"") ->  | H82: =IFERROR(VLOOKUP(B82,Baza[[№]:[Profit]],5,0),"") ->  | I82: =IFERROR(VLOOKUP(B82,Baza[[№]:[Profit]],6,0),"") ->  | J82: =IFERROR(VLOOKUP(B82,Baza[[№]:[Profit]],7,0),"") ->  | K82: =IFERROR(VLOOKUP(B82,Baza[[№]:[Profit]],8,0),"") ->  | L82: =IFERROR(VLOOKUP(B82,Baza[[№]:[Profit]],9,0),"") ->  | M82: =IFERROR(VLOOKUP(B82,Baza[[№]:[Profit]],10,0),"") ->  | N82: =IFERROR(IF(VLOOKUP(B82,Baza[[№]:[Profit]],11,0)=0,"-",VLOOKUP(B82,Baza[[№]:[Profit]],11,0)),"") ->  | O82: =IFERROR(IF(VLOOKUP(B82,Baza[[№]:[Profit]],12,0)=0,"-",VLOOKUP(B82,Baza[[№]:[Profit]],12,0)),"") ->  | P82: =IFERROR(IF(VLOOKUP(B82,Baza[[№]:[Profit]],13,0)=0,"-",VLOOKUP(B82,Baza[[№]:[Profit]],13,0)),"") ->  | Q82: =IFERROR(IF(VLOOKUP(B82,Baza[[№]:[Profit]],15,0)=0,"-",VLOOKUP(B82,Baza[[№]:[Profit]],15,0)),"") ->  | R82: =IFERROR(IF(VLOOKUP(B82,Baza[[№]:[Profit]],16,0)=0,"-",VLOOKUP(B82,Baza[[№]:[Profit]],16,0)),"") ->  | S82: =IFERROR(IF(VLOOKUP(B82,Baza[[№]:[Profit]],17,0)=0,"-",VLOOKUP(B82,Baza[[№]:[Profit]],17,0)),"") ->  | T82: =IFERROR(IF(VLOOKUP(B82,Baza[[№]:[Profit]],18,0)=0,"-",VLOOKUP(B82,Baza[[№]:[Profit]],18,0)),"") ->  | U82: =IFERROR(IF(VLOOKUP(B82,Baza[[№]:[Profit]],19,0)=0,"-",VLOOKUP(B82,Baza[[№]:[Profit]],19,0)),"") ->  | V82: =IFERROR(VLOOKUP(B82,Baza[[№]:[Profit]],20,0),"") ->  | W82: =IFERROR(IF(VLOOKUP(B82,Baza[[№]:[Profit]],21,0)=0,"-",VLOOKUP(B82,Baza[[№]:[Profit]],21,0)),"") ->  | X82: =IFERROR(IF(VLOOKUP(B82,Baza[[№]:[Profit]],22,0)=0,"-",VLOOKUP(B82,Baza[[№]:[Profit]],22,0)),"") ->  | Y82: =IFERROR(VLOOKUP(B82,Baza[[№]:[Profit]],23,0),"") ->  | Z82: =IFERROR(VLOOKUP(B82,Baza[[№]:[AFS]],24,0),"") ->  | AA82: =IF(Таблица2[[#This Row],[Profit]]="","#Н/Д",SUM($Y$40:Y82)) -> #Н/Д | AB82: =IF(Таблица2[[#This Row],[Grafik]]="#Н/Д",FALSE,TRUE) -> FALSE
A83: 44 | C83: =IFERROR(VLOOKUP(B83,Baza[[№]:[Profit]],2,0),"") ->  | D83: =IF(Таблица2[[#This Row],[NN]]="","",TEXT(Таблица2[[#This Row],[Start]],"ч:мм")&" "&IF(OR(Таблица2[[#This Row],[Room]]="WN",Таблица2[[#This Row],[Room]]="ES"),"€","$")&Таблица2[[#This Row],[B]]&" "&"["&Таблица2[[#This Row],[Room]]&"] "&Таблица2[[#This Row],[Name]]) ->  | E83: =IF(Таблица2[[#This Row],[NN]]="","",IF(OR(Таблица2[[#This Row],[Room]]="WN",Таблица2[[#This Row],[Room]]="ES"),"€","$")&Таблица2[[#This Row],[B]]&" "&"["&Таблица2[[#This Row],[Room]]&"] "&Таблица2[[#This Row],[Name]]) ->  | F83: =IFERROR(VLOOKUP(B83,Baza[[№]:[Profit]],3,0),"") ->  | G83: =IFERROR(VLOOKUP(B83,Baza[[№]:[Profit]],4,0),"") ->  | H83: =IFERROR(VLOOKUP(B83,Baza[[№]:[Profit]],5,0),"") ->  | I83: =IFERROR(VLOOKUP(B83,Baza[[№]:[Profit]],6,0),"") ->  | J83: =IFERROR(VLOOKUP(B83,Baza[[№]:[Profit]],7,0),"") ->  | K83: =IFERROR(VLOOKUP(B83,Baza[[№]:[Profit]],8,0),"") ->  | L83: =IFERROR(VLOOKUP(B83,Baza[[№]:[Profit]],9,0),"") ->  | M83: =IFERROR(VLOOKUP(B83,Baza[[№]:[Profit]],10,0),"") ->  | N83: =IFERROR(IF(VLOOKUP(B83,Baza[[№]:[Profit]],11,0)=0,"-",VLOOKUP(B83,Baza[[№]:[Profit]],11,0)),"") ->  | O83: =IFERROR(IF(VLOOKUP(B83,Baza[[№]:[Profit]],12,0)=0,"-",VLOOKUP(B83,Baza[[№]:[Profit]],12,0)),"") ->  | P83: =IFERROR(IF(VLOOKUP(B83,Baza[[№]:[Profit]],13,0)=0,"-",VLOOKUP(B83,Baza[[№]:[Profit]],13,0)),"") ->  | Q83: =IFERROR(IF(VLOOKUP(B83,Baza[[№]:[Profit]],15,0)=0,"-",VLOOKUP(B83,Baza[[№]:[Profit]],15,0)),"") ->  | R83: =IFERROR(IF(VLOOKUP(B83,Baza[[№]:[Profit]],16,0)=0,"-",VLOOKUP(B83,Baza[[№]:[Profit]],16,0)),"") ->  | S83: =IFERROR(IF(VLOOKUP(B83,Baza[[№]:[Profit]],17,0)=0,"-",VLOOKUP(B83,Baza[[№]:[Profit]],17,0)),"") ->  | T83: =IFERROR(IF(VLOOKUP(B83,Baza[[№]:[Profit]],18,0)=0,"-",VLOOKUP(B83,Baza[[№]:[Profit]],18,0)),"") ->  | U83: =IFERROR(IF(VLOOKUP(B83,Baza[[№]:[Profit]],19,0)=0,"-",VLOOKUP(B83,Baza[[№]:[Profit]],19,0)),"") ->  | V83: =IFERROR(VLOOKUP(B83,Baza[[№]:[Profit]],20,0),"") ->  | W83: =IFERROR(IF(VLOOKUP(B83,Baza[[№]:[Profit]],21,0)=0,"-",VLOOKUP(B83,Baza[[№]:[Profit]],21,0)),"") ->  | X83: =IFERROR(IF(VLOOKUP(B83,Baza[[№]:[Profit]],22,0)=0,"-",VLOOKUP(B83,Baza[[№]:[Profit]],22,0)),"") ->  | Y83: =IFERROR(VLOOKUP(B83,Baza[[№]:[Profit]],23,0),"") ->  | Z83: =IFERROR(VLOOKUP(B83,Baza[[№]:[AFS]],24,0),"") ->  | AA83: =IF(Таблица2[[#This Row],[Profit]]="","#Н/Д",SUM($Y$40:Y83)) -> #Н/Д | AB83: =IF(Таблица2[[#This Row],[Grafik]]="#Н/Д",FALSE,TRUE) -> FALSE
A84: 45 | C84: =IFERROR(VLOOKUP(B84,Baza[[№]:[Profit]],2,0),"") ->  | D84: =IF(Таблица2[[#This Row],[NN]]="","",TEXT(Таблица2[[#This Row],[Start]],"ч:мм")&" "&IF(OR(Таблица2[[#This Row],[Room]]="WN",Таблица2[[#This Row],[Room]]="ES"),"€","$")&Таблица2[[#This Row],[B]]&" "&"["&Таблица2[[#This Row],[Room]]&"] "&Таблица2[[#This Row],[Name]]) ->  | E84: =IF(Таблица2[[#This Row],[NN]]="","",IF(OR(Таблица2[[#This Row],[Room]]="WN",Таблица2[[#This Row],[Room]]="ES"),"€","$")&Таблица2[[#This Row],[B]]&" "&"["&Таблица2[[#This Row],[Room]]&"] "&Таблица2[[#This Row],[Name]]) ->  | F84: =IFERROR(VLOOKUP(B84,Baza[[№]:[Profit]],3,0),"") ->  | G84: =IFERROR(VLOOKUP(B84,Baza[[№]:[Profit]],4,0),"") ->  | H84: =IFERROR(VLOOKUP(B84,Baza[[№]:[Profit]],5,0),"") ->  | I84: =IFERROR(VLOOKUP(B84,Baza[[№]:[Profit]],6,0),"") ->  | J84: =IFERROR(VLOOKUP(B84,Baza[[№]:[Profit]],7,0),"") ->  | K84: =IFERROR(VLOOKUP(B84,Baza[[№]:[Profit]],8,0),"") ->  | L84: =IFERROR(VLOOKUP(B84,Baza[[№]:[Profit]],9,0),"") ->  | M84: =IFERROR(VLOOKUP(B84,Baza[[№]:[Profit]],10,0),"") ->  | N84: =IFERROR(IF(VLOOKUP(B84,Baza[[№]:[Profit]],11,0)=0,"-",VLOOKUP(B84,Baza[[№]:[Profit]],11,0)),"") ->  | O84: =IFERROR(IF(VLOOKUP(B84,Baza[[№]:[Profit]],12,0)=0,"-",VLOOKUP(B84,Baza[[№]:[Profit]],12,0)),"") ->  | P84: =IFERROR(IF(VLOOKUP(B84,Baza[[№]:[Profit]],13,0)=0,"-",VLOOKUP(B84,Baza[[№]:[Profit]],13,0)),"") ->  | Q84: =IFERROR(IF(VLOOKUP(B84,Baza[[№]:[Profit]],15,0)=0,"-",VLOOKUP(B84,Baza[[№]:[Profit]],15,0)),"") ->  | R84: =IFERROR(IF(VLOOKUP(B84,Baza[[№]:[Profit]],16,0)=0,"-",VLOOKUP(B84,Baza[[№]:[Profit]],16,0)),"") ->  | S84: =IFERROR(IF(VLOOKUP(B84,Baza[[№]:[Profit]],17,0)=0,"-",VLOOKUP(B84,Baza[[№]:[Profit]],17,0)),"") ->  | T84: =IFERROR(IF(VLOOKUP(B84,Baza[[№]:[Profit]],18,0)=0,"-",VLOOKUP(B84,Baza[[№]:[Profit]],18,0)),"") ->  | U84: =IFERROR(IF(VLOOKUP(B84,Baza[[№]:[Profit]],19,0)=0,"-",VLOOKUP(B84,Baza[[№]:[Profit]],19,0)),"") ->  | V84: =IFERROR(VLOOKUP(B84,Baza[[№]:[Profit]],20,0),"") ->  | W84: =IFERROR(IF(VLOOKUP(B84,Baza[[№]:[Profit]],21,0)=0,"-",VLOOKUP(B84,Baza[[№]:[Profit]],21,0)),"") ->  | X84: =IFERROR(IF(VLOOKUP(B84,Baza[[№]:[Profit]],22,0)=0,"-",VLOOKUP(B84,Baza[[№]:[Profit]],22,0)),"") ->  | Y84: =IFERROR(VLOOKUP(B84,Baza[[№]:[Profit]],23,0),"") ->  | Z84: =IFERROR(VLOOKUP(B84,Baza[[№]:[AFS]],24,0),"") ->  | AA84: =IF(Таблица2[[#This Row],[Profit]]="","#Н/Д",SUM($Y$40:Y84)) -> #Н/Д | AB84: =IF(Таблица2[[#This Row],[Grafik]]="#Н/Д",FALSE,TRUE) -> FALSE
A85: 46 | C85: =IFERROR(VLOOKUP(B85,Baza[[№]:[Profit]],2,0),"") ->  | D85: =IF(Таблица2[[#This Row],[NN]]="","",TEXT(Таблица2[[#This Row],[Start]],"ч:мм")&" "&IF(OR(Таблица2[[#This Row],[Room]]="WN",Таблица2[[#This Row],[Room]]="ES"),"€","$")&Таблица2[[#This Row],[B]]&" "&"["&Таблица2[[#This Row],[Room]]&"] "&Таблица2[[#This Row],[Name]]) ->  | E85: =IF(Таблица2[[#This Row],[NN]]="","",IF(OR(Таблица2[[#This Row],[Room]]="WN",Таблица2[[#This Row],[Room]]="ES"),"€","$")&Таблица2[[#This Row],[B]]&" "&"["&Таблица2[[#This Row],[Room]]&"] "&Таблица2[[#This Row],[Name]]) ->  | F85: =IFERROR(VLOOKUP(B85,Baza[[№]:[Profit]],3,0),"") ->  | G85: =IFERROR(VLOOKUP(B85,Baza[[№]:[Profit]],4,0),"") ->  | H85: =IFERROR(VLOOKUP(B85,Baza[[№]:[Profit]],5,0),"") ->  | I85: =IFERROR(VLOOKUP(B85,Baza[[№]:[Profit]],6,0),"") ->  | J85: =IFERROR(VLOOKUP(B85,Baza[[№]:[Profit]],7,0),"") ->  | K85: =IFERROR(VLOOKUP(B85,Baza[[№]:[Profit]],8,0),"") ->  | L85: =IFERROR(VLOOKUP(B85,Baza[[№]:[Profit]],9,0),"") ->  | M85: =IFERROR(VLOOKUP(B85,Baza[[№]:[Profit]],10,0),"") ->  | N85: =IFERROR(IF(VLOOKUP(B85,Baza[[№]:[Profit]],11,0)=0,"-",VLOOKUP(B85,Baza[[№]:[Profit]],11,0)),"") ->  | O85: =IFERROR(IF(VLOOKUP(B85,Baza[[№]:[Profit]],12,0)=0,"-",VLOOKUP(B85,Baza[[№]:[Profit]],12,0)),"") ->  | P85: =IFERROR(IF(VLOOKUP(B85,Baza[[№]:[Profit]],13,0)=0,"-",VLOOKUP(B85,Baza[[№]:[Profit]],13,0)),"") ->  | Q85: =IFERROR(IF(VLOOKUP(B85,Baza[[№]:[Profit]],15,0)=0,"-",VLOOKUP(B85,Baza[[№]:[Profit]],15,0)),"") ->  | R85: =IFERROR(IF(VLOOKUP(B85,Baza[[№]:[Profit]],16,0)=0,"-",VLOOKUP(B85,Baza[[№]:[Profit]],16,0)),"") ->  | S85: =IFERROR(IF(VLOOKUP(B85,Baza[[№]:[Profit]],17,0)=0,"-",VLOOKUP(B85,Baza[[№]:[Profit]],17,0)),"") ->  | T85: =IFERROR(IF(VLOOKUP(B85,Baza[[№]:[Profit]],18,0)=0,"-",VLOOKUP(B85,Baza[[№]:[Profit]],18,0)),"") ->  | U85: =IFERROR(IF(VLOOKUP(B85,Baza[[№]:[Profit]],19,0)=0,"-",VLOOKUP(B85,Baza[[№]:[Profit]],19,0)),"") ->  | V85: =IFERROR(VLOOKUP(B85,Baza[[№]:[Profit]],20,0),"") ->  | W85: =IFERROR(IF(VLOOKUP(B85,Baza[[№]:[Profit]],21,0)=0,"-",VLOOKUP(B85,Baza[[№]:[Profit]],21,0)),"") ->  | X85: =IFERROR(IF(VLOOKUP(B85,Baza[[№]:[Profit]],22,0)=0,"-",VLOOKUP(B85,Baza[[№]:[Profit]],22,0)),"") ->  | Y85: =IFERROR(VLOOKUP(B85,Baza[[№]:[Profit]],23,0),"") ->  | Z85: =IFERROR(VLOOKUP(B85,Baza[[№]:[AFS]],24,0),"") ->  | AA85: =IF(Таблица2[[#This Row],[Profit]]="","#Н/Д",SUM($Y$40:Y85)) -> #Н/Д | AB85: =IF(Таблица2[[#This Row],[Grafik]]="#Н/Д",FALSE,TRUE) -> FALSE
A86: 47 | C86: =IFERROR(VLOOKUP(B86,Baza[[№]:[Profit]],2,0),"") ->  | D86: =IF(Таблица2[[#This Row],[NN]]="","",TEXT(Таблица2[[#This Row],[Start]],"ч:мм")&" "&IF(OR(Таблица2[[#This Row],[Room]]="WN",Таблица2[[#This Row],[Room]]="ES"),"€","$")&Таблица2[[#This Row],[B]]&" "&"["&Таблица2[[#This Row],[Room]]&"] "&Таблица2[[#This Row],[Name]]) ->  | E86: =IF(Таблица2[[#This Row],[NN]]="","",IF(OR(Таблица2[[#This Row],[Room]]="WN",Таблица2[[#This Row],[Room]]="ES"),"€","$")&Таблица2[[#This Row],[B]]&" "&"["&Таблица2[[#This Row],[Room]]&"] "&Таблица2[[#This Row],[Name]]) ->  | F86: =IFERROR(VLOOKUP(B86,Baza[[№]:[Profit]],3,0),"") ->  | G86: =IFERROR(VLOOKUP(B86,Baza[[№]:[Profit]],4,0),"") ->  | H86: =IFERROR(VLOOKUP(B86,Baza[[№]:[Profit]],5,0),"") ->  | I86: =IFERROR(VLOOKUP(B86,Baza[[№]:[Profit]],6,0),"") ->  | J86: =IFERROR(VLOOKUP(B86,Baza[[№]:[Profit]],7,0),"") ->  | K86: =IFERROR(VLOOKUP(B86,Baza[[№]:[Profit]],8,0),"") ->  | L86: =IFERROR(VLOOKUP(B86,Baza[[№]:[Profit]],9,0),"") ->  | M86: =IFERROR(VLOOKUP(B86,Baza[[№]:[Profit]],10,0),"") ->  | N86: =IFERROR(IF(VLOOKUP(B86,Baza[[№]:[Profit]],11,0)=0,"-",VLOOKUP(B86,Baza[[№]:[Profit]],11,0)),"") ->  | O86: =IFERROR(IF(VLOOKUP(B86,Baza[[№]:[Profit]],12,0)=0,"-",VLOOKUP(B86,Baza[[№]:[Profit]],12,0)),"") ->  | P86: =IFERROR(IF(VLOOKUP(B86,Baza[[№]:[Profit]],13,0)=0,"-",VLOOKUP(B86,Baza[[№]:[Profit]],13,0)),"") ->  | Q86: =IFERROR(IF(VLOOKUP(B86,Baza[[№]:[Profit]],15,0)=0,"-",VLOOKUP(B86,Baza[[№]:[Profit]],15,0)),"") ->  | R86: =IFERROR(IF(VLOOKUP(B86,Baza[[№]:[Profit]],16,0)=0,"-",VLOOKUP(B86,Baza[[№]:[Profit]],16,0)),"") ->  | S86: =IFERROR(IF(VLOOKUP(B86,Baza[[№]:[Profit]],17,0)=0,"-",VLOOKUP(B86,Baza[[№]:[Profit]],17,0)),"") ->  | T86: =IFERROR(IF(VLOOKUP(B86,Baza[[№]:[Profit]],18,0)=0,"-",VLOOKUP(B86,Baza[[№]:[Profit]],18,0)),"") ->  | U86: =IFERROR(IF(VLOOKUP(B86,Baza[[№]:[Profit]],19,0)=0,"-",VLOOKUP(B86,Baza[[№]:[Profit]],19,0)),"") ->  | V86: =IFERROR(VLOOKUP(B86,Baza[[№]:[Profit]],20,0),"") ->  | W86: =IFERROR(IF(VLOOKUP(B86,Baza[[№]:[Profit]],21,0)=0,"-",VLOOKUP(B86,Baza[[№]:[Profit]],21,0)),"") ->  | X86: =IFERROR(IF(VLOOKUP(B86,Baza[[№]:[Profit]],22,0)=0,"-",VLOOKUP(B86,Baza[[№]:[Profit]],22,0)),"") ->  | Y86: =IFERROR(VLOOKUP(B86,Baza[[№]:[Profit]],23,0),"") ->  | Z86: =IFERROR(VLOOKUP(B86,Baza[[№]:[AFS]],24,0),"") ->  | AA86: =IF(Таблица2[[#This Row],[Profit]]="","#Н/Д",SUM($Y$40:Y86)) -> #Н/Д | AB86: =IF(Таблица2[[#This Row],[Grafik]]="#Н/Д",FALSE,TRUE) -> FALSE
A87: 48 | C87: =IFERROR(VLOOKUP(B87,Baza[[№]:[Profit]],2,0),"") ->  | D87: =IF(Таблица2[[#This Row],[NN]]="","",TEXT(Таблица2[[#This Row],[Start]],"ч:мм")&" "&IF(OR(Таблица2[[#This Row],[Room]]="WN",Таблица2[[#This Row],[Room]]="ES"),"€","$")&Таблица2[[#This Row],[B]]&" "&"["&Таблица2[[#This Row],[Room]]&"] "&Таблица2[[#This Row],[Name]]) ->  | E87: =IF(Таблица2[[#This Row],[NN]]="","",IF(OR(Таблица2[[#This Row],[Room]]="WN",Таблица2[[#This Row],[Room]]="ES"),"€","$")&Таблица2[[#This Row],[B]]&" "&"["&Таблица2[[#This Row],[Room]]&"] "&Таблица2[[#This Row],[Name]]) ->  | F87: =IFERROR(VLOOKUP(B87,Baza[[№]:[Profit]],3,0),"") ->  | G87: =IFERROR(VLOOKUP(B87,Baza[[№]:[Profit]],4,0),"") ->  | H87: =IFERROR(VLOOKUP(B87,Baza[[№]:[Profit]],5,0),"") ->  | I87: =IFERROR(VLOOKUP(B87,Baza[[№]:[Profit]],6,0),"") ->  | J87: =IFERROR(VLOOKUP(B87,Baza[[№]:[Profit]],7,0),"") ->  | K87: =IFERROR(VLOOKUP(B87,Baza[[№]:[Profit]],8,0),"") ->  | L87: =IFERROR(VLOOKUP(B87,Baza[[№]:[Profit]],9,0),"") ->  | M87: =IFERROR(VLOOKUP(B87,Baza[[№]:[Profit]],10,0),"") ->  | N87: =IFERROR(IF(VLOOKUP(B87,Baza[[№]:[Profit]],11,0)=0,"-",VLOOKUP(B87,Baza[[№]:[Profit]],11,0)),"") ->  | O87: =IFERROR(IF(VLOOKUP(B87,Baza[[№]:[Profit]],12,0)=0,"-",VLOOKUP(B87,Baza[[№]:[Profit]],12,0)),"") ->  | P87: =IFERROR(IF(VLOOKUP(B87,Baza[[№]:[Profit]],13,0)=0,"-",VLOOKUP(B87,Baza[[№]:[Profit]],13,0)),"") ->  | Q87: =IFERROR(IF(VLOOKUP(B87,Baza[[№]:[Profit]],15,0)=0,"-",VLOOKUP(B87,Baza[[№]:[Profit]],15,0)),"") ->  | R87: =IFERROR(IF(VLOOKUP(B87,Baza[[№]:[Profit]],16,0)=0,"-",VLOOKUP(B87,Baza[[№]:[Profit]],16,0)),"") ->  | S87: =IFERROR(IF(VLOOKUP(B87,Baza[[№]:[Profit]],17,0)=0,"-",VLOOKUP(B87,Baza[[№]:[Profit]],17,0)),"") ->  | T87: =IFERROR(IF(VLOOKUP(B87,Baza[[№]:[Profit]],18,0)=0,"-",VLOOKUP(B87,Baza[[№]:[Profit]],18,0)),"") ->  | U87: =IFERROR(IF(VLOOKUP(B87,Baza[[№]:[Profit]],19,0)=0,"-",VLOOKUP(B87,Baza[[№]:[Profit]],19,0)),"") ->  | V87: =IFERROR(VLOOKUP(B87,Baza[[№]:[Profit]],20,0),"") ->  | W87: =IFERROR(IF(VLOOKUP(B87,Baza[[№]:[Profit]],21,0)=0,"-",VLOOKUP(B87,Baza[[№]:[Profit]],21,0)),"") ->  | X87: =IFERROR(IF(VLOOKUP(B87,Baza[[№]:[Profit]],22,0)=0,"-",VLOOKUP(B87,Baza[[№]:[Profit]],22,0)),"") ->  | Y87: =IFERROR(VLOOKUP(B87,Baza[[№]:[Profit]],23,0),"") ->  | Z87: =IFERROR(VLOOKUP(B87,Baza[[№]:[AFS]],24,0),"") ->  | AA87: =IF(Таблица2[[#This Row],[Profit]]="","#Н/Д",SUM($Y$40:Y87)) -> #Н/Д | AB87: =IF(Таблица2[[#This Row],[Grafik]]="#Н/Д",FALSE,TRUE) -> FALSE
A88: 49 | C88: =IFERROR(VLOOKUP(B88,Baza[[№]:[Profit]],2,0),"") ->  | D88: =IF(Таблица2[[#This Row],[NN]]="","",TEXT(Таблица2[[#This Row],[Start]],"ч:мм")&" "&IF(OR(Таблица2[[#This Row],[Room]]="WN",Таблица2[[#This Row],[Room]]="ES"),"€","$")&Таблица2[[#This Row],[B]]&" "&"["&Таблица2[[#This Row],[Room]]&"] "&Таблица2[[#This Row],[Name]]) ->  | E88: =IF(Таблица2[[#This Row],[NN]]="","",IF(OR(Таблица2[[#This Row],[Room]]="WN",Таблица2[[#This Row],[Room]]="ES"),"€","$")&Таблица2[[#This Row],[B]]&" "&"["&Таблица2[[#This Row],[Room]]&"] "&Таблица2[[#This Row],[Name]]) ->  | F88: =IFERROR(VLOOKUP(B88,Baza[[№]:[Profit]],3,0),"") ->  | G88: =IFERROR(VLOOKUP(B88,Baza[[№]:[Profit]],4,0),"") ->  | H88: =IFERROR(VLOOKUP(B88,Baza[[№]:[Profit]],5,0),"") ->  | I88: =IFERROR(VLOOKUP(B88,Baza[[№]:[Profit]],6,0),"") ->  | J88: =IFERROR(VLOOKUP(B88,Baza[[№]:[Profit]],7,0),"") ->  | K88: =IFERROR(VLOOKUP(B88,Baza[[№]:[Profit]],8,0),"") ->  | L88: =IFERROR(VLOOKUP(B88,Baza[[№]:[Profit]],9,0),"") ->  | M88: =IFERROR(VLOOKUP(B88,Baza[[№]:[Profit]],10,0),"") ->  | N88: =IFERROR(IF(VLOOKUP(B88,Baza[[№]:[Profit]],11,0)=0,"-",VLOOKUP(B88,Baza[[№]:[Profit]],11,0)),"") ->  | O88: =IFERROR(IF(VLOOKUP(B88,Baza[[№]:[Profit]],12,0)=0,"-",VLOOKUP(B88,Baza[[№]:[Profit]],12,0)),"") ->  | P88: =IFERROR(IF(VLOOKUP(B88,Baza[[№]:[Profit]],13,0)=0,"-",VLOOKUP(B88,Baza[[№]:[Profit]],13,0)),"") ->  | Q88: =IFERROR(IF(VLOOKUP(B88,Baza[[№]:[Profit]],15,0)=0,"-",VLOOKUP(B88,Baza[[№]:[Profit]],15,0)),"") ->  | R88: =IFERROR(IF(VLOOKUP(B88,Baza[[№]:[Profit]],16,0)=0,"-",VLOOKUP(B88,Baza[[№]:[Profit]],16,0)),"") ->  | S88: =IFERROR(IF(VLOOKUP(B88,Baza[[№]:[Profit]],17,0)=0,"-",VLOOKUP(B88,Baza[[№]:[Profit]],17,0)),"") ->  | T88: =IFERROR(IF(VLOOKUP(B88,Baza[[№]:[Profit]],18,0)=0,"-",VLOOKUP(B88,Baza[[№]:[Profit]],18,0)),"") ->  | U88: =IFERROR(IF(VLOOKUP(B88,Baza[[№]:[Profit]],19,0)=0,"-",VLOOKUP(B88,Baza[[№]:[Profit]],19,0)),"") ->  | V88: =IFERROR(VLOOKUP(B88,Baza[[№]:[Profit]],20,0),"") ->  | W88: =IFERROR(IF(VLOOKUP(B88,Baza[[№]:[Profit]],21,0)=0,"-",VLOOKUP(B88,Baza[[№]:[Profit]],21,0)),"") ->  | X88: =IFERROR(IF(VLOOKUP(B88,Baza[[№]:[Profit]],22,0)=0,"-",VLOOKUP(B88,Baza[[№]:[Profit]],22,0)),"") ->  | Y88: =IFERROR(VLOOKUP(B88,Baza[[№]:[Profit]],23,0),"") ->  | Z88: =IFERROR(VLOOKUP(B88,Baza[[№]:[AFS]],24,0),"") ->  | AA88: =IF(Таблица2[[#This Row],[Profit]]="","#Н/Д",SUM($Y$40:Y88)) -> #Н/Д | AB88: =IF(Таблица2[[#This Row],[Grafik]]="#Н/Д",FALSE,TRUE) -> FALSE
A89: 50 | C89: =IFERROR(VLOOKUP(B89,Baza[[№]:[Profit]],2,0),"") ->  | D89: =IF(Таблица2[[#This Row],[NN]]="","",TEXT(Таблица2[[#This Row],[Start]],"ч:мм")&" "&IF(OR(Таблица2[[#This Row],[Room]]="WN",Таблица2[[#This Row],[Room]]="ES"),"€","$")&Таблица2[[#This Row],[B]]&" "&"["&Таблица2[[#This Row],[Room]]&"] "&Таблица2[[#This Row],[Name]]) ->  | E89: =IF(Таблица2[[#This Row],[NN]]="","",IF(OR(Таблица2[[#This Row],[Room]]="WN",Таблица2[[#This Row],[Room]]="ES"),"€","$")&Таблица2[[#This Row],[B]]&" "&"["&Таблица2[[#This Row],[Room]]&"] "&Таблица2[[#This Row],[Name]]) ->  | F89: =IFERROR(VLOOKUP(B89,Baza[[№]:[Profit]],3,0),"") ->  | G89: =IFERROR(VLOOKUP(B89,Baza[[№]:[Profit]],4,0),"") ->  | H89: =IFERROR(VLOOKUP(B89,Baza[[№]:[Profit]],5,0),"") ->  | I89: =IFERROR(VLOOKUP(B89,Baza[[№]:[Profit]],6,0),"") ->  | J89: =IFERROR(VLOOKUP(B89,Baza[[№]:[Profit]],7,0),"") ->  | K89: =IFERROR(VLOOKUP(B89,Baza[[№]:[Profit]],8,0),"") ->  | L89: =IFERROR(VLOOKUP(B89,Baza[[№]:[Profit]],9,0),"") ->  | M89: =IFERROR(VLOOKUP(B89,Baza[[№]:[Profit]],10,0),"") ->  | N89: =IFERROR(IF(VLOOKUP(B89,Baza[[№]:[Profit]],11,0)=0,"-",VLOOKUP(B89,Baza[[№]:[Profit]],11,0)),"") ->  | O89: =IFERROR(IF(VLOOKUP(B89,Baza[[№]:[Profit]],12,0)=0,"-",VLOOKUP(B89,Baza[[№]:[Profit]],12,0)),"") ->  | P89: =IFERROR(IF(VLOOKUP(B89,Baza[[№]:[Profit]],13,0)=0,"-",VLOOKUP(B89,Baza[[№]:[Profit]],13,0)),"") ->  | Q89: =IFERROR(IF(VLOOKUP(B89,Baza[[№]:[Profit]],15,0)=0,"-",VLOOKUP(B89,Baza[[№]:[Profit]],15,0)),"") ->  | R89: =IFERROR(IF(VLOOKUP(B89,Baza[[№]:[Profit]],16,0)=0,"-",VLOOKUP(B89,Baza[[№]:[Profit]],16,0)),"") ->  | S89: =IFERROR(IF(VLOOKUP(B89,Baza[[№]:[Profit]],17,0)=0,"-",VLOOKUP(B89,Baza[[№]:[Profit]],17,0)),"") ->  | T89: =IFERROR(IF(VLOOKUP(B89,Baza[[№]:[Profit]],18,0)=0,"-",VLOOKUP(B89,Baza[[№]:[Profit]],18,0)),"") ->  | U89: =IFERROR(IF(VLOOKUP(B89,Baza[[№]:[Profit]],19,0)=0,"-",VLOOKUP(B89,Baza[[№]:[Profit]],19,0)),"") ->  | V89: =IFERROR(VLOOKUP(B89,Baza[[№]:[Profit]],20,0),"") ->  | W89: =IFERROR(IF(VLOOKUP(B89,Baza[[№]:[Profit]],21,0)=0,"-",VLOOKUP(B89,Baza[[№]:[Profit]],21,0)),"") ->  | X89: =IFERROR(IF(VLOOKUP(B89,Baza[[№]:[Profit]],22,0)=0,"-",VLOOKUP(B89,Baza[[№]:[Profit]],22,0)),"") ->  | Y89: =IFERROR(VLOOKUP(B89,Baza[[№]:[Profit]],23,0),"") ->  | Z89: =IFERROR(VLOOKUP(B89,Baza[[№]:[AFS]],24,0),"") ->  | AA89: =IF(Таблица2[[#This Row],[Profit]]="","#Н/Д",SUM($Y$40:Y89)) -> #Н/Д | AB89: =IF(Таблица2[[#This Row],[Grafik]]="#Н/Д",FALSE,TRUE) -> FALSE
A90: 51 | C90: =IFERROR(VLOOKUP(B90,Baza[[№]:[Profit]],2,0),"") ->  | D90: =IF(Таблица2[[#This Row],[NN]]="","",TEXT(Таблица2[[#This Row],[Start]],"ч:мм")&" "&IF(OR(Таблица2[[#This Row],[Room]]="WN",Таблица2[[#This Row],[Room]]="ES"),"€","$")&Таблица2[[#This Row],[B]]&" "&"["&Таблица2[[#This Row],[Room]]&"] "&Таблица2[[#This Row],[Name]]) ->  | E90: =IF(Таблица2[[#This Row],[NN]]="","",IF(OR(Таблица2[[#This Row],[Room]]="WN",Таблица2[[#This Row],[Room]]="ES"),"€","$")&Таблица2[[#This Row],[B]]&" "&"["&Таблица2[[#This Row],[Room]]&"] "&Таблица2[[#This Row],[Name]]) ->  | F90: =IFERROR(VLOOKUP(B90,Baza[[№]:[Profit]],3,0),"") ->  | G90: =IFERROR(VLOOKUP(B90,Baza[[№]:[Profit]],4,0),"") ->  | H90: =IFERROR(VLOOKUP(B90,Baza[[№]:[Profit]],5,0),"") ->  | I90: =IFERROR(VLOOKUP(B90,Baza[[№]:[Profit]],6,0),"") ->  | J90: =IFERROR(VLOOKUP(B90,Baza[[№]:[Profit]],7,0),"") ->  | K90: =IFERROR(VLOOKUP(B90,Baza[[№]:[Profit]],8,0),"") ->  | L90: =IFERROR(VLOOKUP(B90,Baza[[№]:[Profit]],9,0),"") ->  | M90: =IFERROR(VLOOKUP(B90,Baza[[№]:[Profit]],10,0),"") ->  | N90: =IFERROR(IF(VLOOKUP(B90,Baza[[№]:[Profit]],11,0)=0,"-",VLOOKUP(B90,Baza[[№]:[Profit]],11,0)),"") ->  | O90: =IFERROR(IF(VLOOKUP(B90,Baza[[№]:[Profit]],12,0)=0,"-",VLOOKUP(B90,Baza[[№]:[Profit]],12,0)),"") ->  | P90: =IFERROR(IF(VLOOKUP(B90,Baza[[№]:[Profit]],13,0)=0,"-",VLOOKUP(B90,Baza[[№]:[Profit]],13,0)),"") ->  | Q90: =IFERROR(IF(VLOOKUP(B90,Baza[[№]:[Profit]],15,0)=0,"-",VLOOKUP(B90,Baza[[№]:[Profit]],15,0)),"") ->  | R90: =IFERROR(IF(VLOOKUP(B90,Baza[[№]:[Profit]],16,0)=0,"-",VLOOKUP(B90,Baza[[№]:[Profit]],16,0)),"") ->  | S90: =IFERROR(IF(VLOOKUP(B90,Baza[[№]:[Profit]],17,0)=0,"-",VLOOKUP(B90,Baza[[№]:[Profit]],17,0)),"") ->  | T90: =IFERROR(IF(VLOOKUP(B90,Baza[[№]:[Profit]],18,0)=0,"-",VLOOKUP(B90,Baza[[№]:[Profit]],18,0)),"") ->  | U90: =IFERROR(IF(VLOOKUP(B90,Baza[[№]:[Profit]],19,0)=0,"-",VLOOKUP(B90,Baza[[№]:[Profit]],19,0)),"") ->  | V90: =IFERROR(VLOOKUP(B90,Baza[[№]:[Profit]],20,0),"") ->  | W90: =IFERROR(IF(VLOOKUP(B90,Baza[[№]:[Profit]],21,0)=0,"-",VLOOKUP(B90,Baza[[№]:[Profit]],21,0)),"") ->  | X90: =IFERROR(IF(VLOOKUP(B90,Baza[[№]:[Profit]],22,0)=0,"-",VLOOKUP(B90,Baza[[№]:[Profit]],22,0)),"") ->  | Y90: =IFERROR(VLOOKUP(B90,Baza[[№]:[Profit]],23,0),"") ->  | Z90: =IFERROR(VLOOKUP(B90,Baza[[№]:[AFS]],24,0),"") ->  | AA90: =IF(Таблица2[[#This Row],[Profit]]="","#Н/Д",SUM($Y$40:Y90)) -> #Н/Д | AB90: =IF(Таблица2[[#This Row],[Grafik]]="#Н/Д",FALSE,TRUE) -> FALSE
A91: 52 | C91: =IFERROR(VLOOKUP(B91,Baza[[№]:[Profit]],2,0),"") ->  | D91: =IF(Таблица2[[#This Row],[NN]]="","",TEXT(Таблица2[[#This Row],[Start]],"ч:мм")&" "&IF(OR(Таблица2[[#This Row],[Room]]="WN",Таблица2[[#This Row],[Room]]="ES"),"€","$")&Таблица2[[#This Row],[B]]&" "&"["&Таблица2[[#This Row],[Room]]&"] "&Таблица2[[#This Row],[Name]]) ->  | E91: =IF(Таблица2[[#This Row],[NN]]="","",IF(OR(Таблица2[[#This Row],[Room]]="WN",Таблица2[[#This Row],[Room]]="ES"),"€","$")&Таблица2[[#This Row],[B]]&" "&"["&Таблица2[[#This Row],[Room]]&"] "&Таблица2[[#This Row],[Name]]) ->  | F91: =IFERROR(VLOOKUP(B91,Baza[[№]:[Profit]],3,0),"") ->  | G91: =IFERROR(VLOOKUP(B91,Baza[[№]:[Profit]],4,0),"") ->  | H91: =IFERROR(VLOOKUP(B91,Baza[[№]:[Profit]],5,0),"") ->  | I91: =IFERROR(VLOOKUP(B91,Baza[[№]:[Profit]],6,0),"") ->  | J91: =IFERROR(VLOOKUP(B91,Baza[[№]:[Profit]],7,0),"") ->  | K91: =IFERROR(VLOOKUP(B91,Baza[[№]:[Profit]],8,0),"") ->  | L91: =IFERROR(VLOOKUP(B91,Baza[[№]:[Profit]],9,0),"") ->  | M91: =IFERROR(VLOOKUP(B91,Baza[[№]:[Profit]],10,0),"") ->  | N91: =IFERROR(IF(VLOOKUP(B91,Baza[[№]:[Profit]],11,0)=0,"-",VLOOKUP(B91,Baza[[№]:[Profit]],11,0)),"") ->  | O91: =IFERROR(IF(VLOOKUP(B91,Baza[[№]:[Profit]],12,0)=0,"-",VLOOKUP(B91,Baza[[№]:[Profit]],12,0)),"") ->  | P91: =IFERROR(IF(VLOOKUP(B91,Baza[[№]:[Profit]],13,0)=0,"-",VLOOKUP(B91,Baza[[№]:[Profit]],13,0)),"") ->  | Q91: =IFERROR(IF(VLOOKUP(B91,Baza[[№]:[Profit]],15,0)=0,"-",VLOOKUP(B91,Baza[[№]:[Profit]],15,0)),"") ->  | R91: =IFERROR(IF(VLOOKUP(B91,Baza[[№]:[Profit]],16,0)=0,"-",VLOOKUP(B91,Baza[[№]:[Profit]],16,0)),"") ->  | S91: =IFERROR(IF(VLOOKUP(B91,Baza[[№]:[Profit]],17,0)=0,"-",VLOOKUP(B91,Baza[[№]:[Profit]],17,0)),"") ->  | T91: =IFERROR(IF(VLOOKUP(B91,Baza[[№]:[Profit]],18,0)=0,"-",VLOOKUP(B91,Baza[[№]:[Profit]],18,0)),"") ->  | U91: =IFERROR(IF(VLOOKUP(B91,Baza[[№]:[Profit]],19,0)=0,"-",VLOOKUP(B91,Baza[[№]:[Profit]],19,0)),"") ->  | V91: =IFERROR(VLOOKUP(B91,Baza[[№]:[Profit]],20,0),"") ->  | W91: =IFERROR(IF(VLOOKUP(B91,Baza[[№]:[Profit]],21,0)=0,"-",VLOOKUP(B91,Baza[[№]:[Profit]],21,0)),"") ->  | X91: =IFERROR(IF(VLOOKUP(B91,Baza[[№]:[Profit]],22,0)=0,"-",VLOOKUP(B91,Baza[[№]:[Profit]],22,0)),"") ->  | Y91: =IFERROR(VLOOKUP(B91,Baza[[№]:[Profit]],23,0),"") ->  | Z91: =IFERROR(VLOOKUP(B91,Baza[[№]:[AFS]],24,0),"") ->  | AA91: =IF(Таблица2[[#This Row],[Profit]]="","#Н/Д",SUM($Y$40:Y91)) -> #Н/Д | AB91: =IF(Таблица2[[#This Row],[Grafik]]="#Н/Д",FALSE,TRUE) -> FALSE
A92: 53 | C92: =IFERROR(VLOOKUP(B92,Baza[[№]:[Profit]],2,0),"") ->  | D92: =IF(Таблица2[[#This Row],[NN]]="","",TEXT(Таблица2[[#This Row],[Start]],"ч:мм")&" "&IF(OR(Таблица2[[#This Row],[Room]]="WN",Таблица2[[#This Row],[Room]]="ES"),"€","$")&Таблица2[[#This Row],[B]]&" "&"["&Таблица2[[#This Row],[Room]]&"] "&Таблица2[[#This Row],[Name]]) ->  | E92: =IF(Таблица2[[#This Row],[NN]]="","",IF(OR(Таблица2[[#This Row],[Room]]="WN",Таблица2[[#This Row],[Room]]="ES"),"€","$")&Таблица2[[#This Row],[B]]&" "&"["&Таблица2[[#This Row],[Room]]&"] "&Таблица2[[#This Row],[Name]]) ->  | F92: =IFERROR(VLOOKUP(B92,Baza[[№]:[Profit]],3,0),"") ->  | G92: =IFERROR(VLOOKUP(B92,Baza[[№]:[Profit]],4,0),"") ->  | H92: =IFERROR(VLOOKUP(B92,Baza[[№]:[Profit]],5,0),"") ->  | I92: =IFERROR(VLOOKUP(B92,Baza[[№]:[Profit]],6,0),"") ->  | J92: =IFERROR(VLOOKUP(B92,Baza[[№]:[Profit]],7,0),"") ->  | K92: =IFERROR(VLOOKUP(B92,Baza[[№]:[Profit]],8,0),"") ->  | L92: =IFERROR(VLOOKUP(B92,Baza[[№]:[Profit]],9,0),"") ->  | M92: =IFERROR(VLOOKUP(B92,Baza[[№]:[Profit]],10,0),"") ->  | N92: =IFERROR(IF(VLOOKUP(B92,Baza[[№]:[Profit]],11,0)=0,"-",VLOOKUP(B92,Baza[[№]:[Profit]],11,0)),"") ->  | O92: =IFERROR(IF(VLOOKUP(B92,Baza[[№]:[Profit]],12,0)=0,"-",VLOOKUP(B92,Baza[[№]:[Profit]],12,0)),"") ->  | P92: =IFERROR(IF(VLOOKUP(B92,Baza[[№]:[Profit]],13,0)=0,"-",VLOOKUP(B92,Baza[[№]:[Profit]],13,0)),"") ->  | Q92: =IFERROR(IF(VLOOKUP(B92,Baza[[№]:[Profit]],15,0)=0,"-",VLOOKUP(B92,Baza[[№]:[Profit]],15,0)),"") ->  | R92: =IFERROR(IF(VLOOKUP(B92,Baza[[№]:[Profit]],16,0)=0,"-",VLOOKUP(B92,Baza[[№]:[Profit]],16,0)),"") ->  | S92: =IFERROR(IF(VLOOKUP(B92,Baza[[№]:[Profit]],17,0)=0,"-",VLOOKUP(B92,Baza[[№]:[Profit]],17,0)),"") ->  | T92: =IFERROR(IF(VLOOKUP(B92,Baza[[№]:[Profit]],18,0)=0,"-",VLOOKUP(B92,Baza[[№]:[Profit]],18,0)),"") ->  | U92: =IFERROR(IF(VLOOKUP(B92,Baza[[№]:[Profit]],19,0)=0,"-",VLOOKUP(B92,Baza[[№]:[Profit]],19,0)),"") ->  | V92: =IFERROR(VLOOKUP(B92,Baza[[№]:[Profit]],20,0),"") ->  | W92: =IFERROR(IF(VLOOKUP(B92,Baza[[№]:[Profit]],21,0)=0,"-",VLOOKUP(B92,Baza[[№]:[Profit]],21,0)),"") ->  | X92: =IFERROR(IF(VLOOKUP(B92,Baza[[№]:[Profit]],22,0)=0,"-",VLOOKUP(B92,Baza[[№]:[Profit]],22,0)),"") ->  | Y92: =IFERROR(VLOOKUP(B92,Baza[[№]:[Profit]],23,0),"") ->  | Z92: =IFERROR(VLOOKUP(B92,Baza[[№]:[AFS]],24,0),"") ->  | AA92: =IF(Таблица2[[#This Row],[Profit]]="","#Н/Д",SUM($Y$40:Y92)) -> #Н/Д | AB92: =IF(Таблица2[[#This Row],[Grafik]]="#Н/Д",FALSE,TRUE) -> FALSE
A93: 54 | C93: =IFERROR(VLOOKUP(B93,Baza[[№]:[Profit]],2,0),"") ->  | D93: =IF(Таблица2[[#This Row],[NN]]="","",TEXT(Таблица2[[#This Row],[Start]],"ч:мм")&" "&IF(OR(Таблица2[[#This Row],[Room]]="WN",Таблица2[[#This Row],[Room]]="ES"),"€","$")&Таблица2[[#This Row],[B]]&" "&"["&Таблица2[[#This Row],[Room]]&"] "&Таблица2[[#This Row],[Name]]) ->  | E93: =IF(Таблица2[[#This Row],[NN]]="","",IF(OR(Таблица2[[#This Row],[Room]]="WN",Таблица2[[#This Row],[Room]]="ES"),"€","$")&Таблица2[[#This Row],[B]]&" "&"["&Таблица2[[#This Row],[Room]]&"] "&Таблица2[[#This Row],[Name]]) ->  | F93: =IFERROR(VLOOKUP(B93,Baza[[№]:[Profit]],3,0),"") ->  | G93: =IFERROR(VLOOKUP(B93,Baza[[№]:[Profit]],4,0),"") ->  | H93: =IFERROR(VLOOKUP(B93,Baza[[№]:[Profit]],5,0),"") ->  | I93: =IFERROR(VLOOKUP(B93,Baza[[№]:[Profit]],6,0),"") ->  | J93: =IFERROR(VLOOKUP(B93,Baza[[№]:[Profit]],7,0),"") ->  | K93: =IFERROR(VLOOKUP(B93,Baza[[№]:[Profit]],8,0),"") ->  | L93: =IFERROR(VLOOKUP(B93,Baza[[№]:[Profit]],9,0),"") ->  | M93: =IFERROR(VLOOKUP(B93,Baza[[№]:[Profit]],10,0),"") ->  | N93: =IFERROR(IF(VLOOKUP(B93,Baza[[№]:[Profit]],11,0)=0,"-",VLOOKUP(B93,Baza[[№]:[Profit]],11,0)),"") ->  | O93: =IFERROR(IF(VLOOKUP(B93,Baza[[№]:[Profit]],12,0)=0,"-",VLOOKUP(B93,Baza[[№]:[Profit]],12,0)),"") ->  | P93: =IFERROR(IF(VLOOKUP(B93,Baza[[№]:[Profit]],13,0)=0,"-",VLOOKUP(B93,Baza[[№]:[Profit]],13,0)),"") ->  | Q93: =IFERROR(IF(VLOOKUP(B93,Baza[[№]:[Profit]],15,0)=0,"-",VLOOKUP(B93,Baza[[№]:[Profit]],15,0)),"") ->  | R93: =IFERROR(IF(VLOOKUP(B93,Baza[[№]:[Profit]],16,0)=0,"-",VLOOKUP(B93,Baza[[№]:[Profit]],16,0)),"") ->  | S93: =IFERROR(IF(VLOOKUP(B93,Baza[[№]:[Profit]],17,0)=0,"-",VLOOKUP(B93,Baza[[№]:[Profit]],17,0)),"") ->  | T93: =IFERROR(IF(VLOOKUP(B93,Baza[[№]:[Profit]],18,0)=0,"-",VLOOKUP(B93,Baza[[№]:[Profit]],18,0)),"") ->  | U93: =IFERROR(IF(VLOOKUP(B93,Baza[[№]:[Profit]],19,0)=0,"-",VLOOKUP(B93,Baza[[№]:[Profit]],19,0)),"") ->  | V93: =IFERROR(VLOOKUP(B93,Baza[[№]:[Profit]],20,0),"") ->  | W93: =IFERROR(IF(VLOOKUP(B93,Baza[[№]:[Profit]],21,0)=0,"-",VLOOKUP(B93,Baza[[№]:[Profit]],21,0)),"") ->  | X93: =IFERROR(IF(VLOOKUP(B93,Baza[[№]:[Profit]],22,0)=0,"-",VLOOKUP(B93,Baza[[№]:[Profit]],22,0)),"") ->  | Y93: =IFERROR(VLOOKUP(B93,Baza[[№]:[Profit]],23,0),"") ->  | Z93: =IFERROR(VLOOKUP(B93,Baza[[№]:[AFS]],24,0),"") ->  | AA93: =IF(Таблица2[[#This Row],[Profit]]="","#Н/Д",SUM($Y$40:Y93)) -> #Н/Д | AB93: =IF(Таблица2[[#This Row],[Grafik]]="#Н/Д",FALSE,TRUE) -> FALSE
A94: 55 | C94: =IFERROR(VLOOKUP(B94,Baza[[№]:[Profit]],2,0),"") ->  | D94: =IF(Таблица2[[#This Row],[NN]]="","",TEXT(Таблица2[[#This Row],[Start]],"ч:мм")&" "&IF(OR(Таблица2[[#This Row],[Room]]="WN",Таблица2[[#This Row],[Room]]="ES"),"€","$")&Таблица2[[#This Row],[B]]&" "&"["&Таблица2[[#This Row],[Room]]&"] "&Таблица2[[#This Row],[Name]]) ->  | E94: =IF(Таблица2[[#This Row],[NN]]="","",IF(OR(Таблица2[[#This Row],[Room]]="WN",Таблица2[[#This Row],[Room]]="ES"),"€","$")&Таблица2[[#This Row],[B]]&" "&"["&Таблица2[[#This Row],[Room]]&"] "&Таблица2[[#This Row],[Name]]) ->  | F94: =IFERROR(VLOOKUP(B94,Baza[[№]:[Profit]],3,0),"") ->  | G94: =IFERROR(VLOOKUP(B94,Baza[[№]:[Profit]],4,0),"") ->  | H94: =IFERROR(VLOOKUP(B94,Baza[[№]:[Profit]],5,0),"") ->  | I94: =IFERROR(VLOOKUP(B94,Baza[[№]:[Profit]],6,0),"") ->  | J94: =IFERROR(VLOOKUP(B94,Baza[[№]:[Profit]],7,0),"") ->  | K94: =IFERROR(VLOOKUP(B94,Baza[[№]:[Profit]],8,0),"") ->  | L94: =IFERROR(VLOOKUP(B94,Baza[[№]:[Profit]],9,0),"") ->  | M94: =IFERROR(VLOOKUP(B94,Baza[[№]:[Profit]],10,0),"") ->  | N94: =IFERROR(IF(VLOOKUP(B94,Baza[[№]:[Profit]],11,0)=0,"-",VLOOKUP(B94,Baza[[№]:[Profit]],11,0)),"") ->  | O94: =IFERROR(IF(VLOOKUP(B94,Baza[[№]:[Profit]],12,0)=0,"-",VLOOKUP(B94,Baza[[№]:[Profit]],12,0)),"") ->  | P94: =IFERROR(IF(VLOOKUP(B94,Baza[[№]:[Profit]],13,0)=0,"-",VLOOKUP(B94,Baza[[№]:[Profit]],13,0)),"") ->  | Q94: =IFERROR(IF(VLOOKUP(B94,Baza[[№]:[Profit]],15,0)=0,"-",VLOOKUP(B94,Baza[[№]:[Profit]],15,0)),"") ->  | R94: =IFERROR(IF(VLOOKUP(B94,Baza[[№]:[Profit]],16,0)=0,"-",VLOOKUP(B94,Baza[[№]:[Profit]],16,0)),"") ->  | S94: =IFERROR(IF(VLOOKUP(B94,Baza[[№]:[Profit]],17,0)=0,"-",VLOOKUP(B94,Baza[[№]:[Profit]],17,0)),"") ->  | T94: =IFERROR(IF(VLOOKUP(B94,Baza[[№]:[Profit]],18,0)=0,"-",VLOOKUP(B94,Baza[[№]:[Profit]],18,0)),"") ->  | U94: =IFERROR(IF(VLOOKUP(B94,Baza[[№]:[Profit]],19,0)=0,"-",VLOOKUP(B94,Baza[[№]:[Profit]],19,0)),"") ->  | V94: =IFERROR(VLOOKUP(B94,Baza[[№]:[Profit]],20,0),"") ->  | W94: =IFERROR(IF(VLOOKUP(B94,Baza[[№]:[Profit]],21,0)=0,"-",VLOOKUP(B94,Baza[[№]:[Profit]],21,0)),"") ->  | X94: =IFERROR(IF(VLOOKUP(B94,Baza[[№]:[Profit]],22,0)=0,"-",VLOOKUP(B94,Baza[[№]:[Profit]],22,0)),"") ->  | Y94: =IFERROR(VLOOKUP(B94,Baza[[№]:[Profit]],23,0),"") ->  | Z94: =IFERROR(VLOOKUP(B94,Baza[[№]:[AFS]],24,0),"") ->  | AA94: =IF(Таблица2[[#This Row],[Profit]]="","#Н/Д",SUM($Y$40:Y94)) -> #Н/Д | AB94: =IF(Таблица2[[#This Row],[Grafik]]="#Н/Д",FALSE,TRUE) -> FALSE
A95: 56 | C95: =IFERROR(VLOOKUP(B95,Baza[[№]:[Profit]],2,0),"") ->  | D95: =IF(Таблица2[[#This Row],[NN]]="","",TEXT(Таблица2[[#This Row],[Start]],"ч:мм")&" "&IF(OR(Таблица2[[#This Row],[Room]]="WN",Таблица2[[#This Row],[Room]]="ES"),"€","$")&Таблица2[[#This Row],[B]]&" "&"["&Таблица2[[#This Row],[Room]]&"] "&Таблица2[[#This Row],[Name]]) ->  | E95: =IF(Таблица2[[#This Row],[NN]]="","",IF(OR(Таблица2[[#This Row],[Room]]="WN",Таблица2[[#This Row],[Room]]="ES"),"€","$")&Таблица2[[#This Row],[B]]&" "&"["&Таблица2[[#This Row],[Room]]&"] "&Таблица2[[#This Row],[Name]]) ->  | F95: =IFERROR(VLOOKUP(B95,Baza[[№]:[Profit]],3,0),"") ->  | G95: =IFERROR(VLOOKUP(B95,Baza[[№]:[Profit]],4,0),"") ->  | H95: =IFERROR(VLOOKUP(B95,Baza[[№]:[Profit]],5,0),"") ->  | I95: =IFERROR(VLOOKUP(B95,Baza[[№]:[Profit]],6,0),"") ->  | J95: =IFERROR(VLOOKUP(B95,Baza[[№]:[Profit]],7,0),"") ->  | K95: =IFERROR(VLOOKUP(B95,Baza[[№]:[Profit]],8,0),"") ->  | L95: =IFERROR(VLOOKUP(B95,Baza[[№]:[Profit]],9,0),"") ->  | M95: =IFERROR(VLOOKUP(B95,Baza[[№]:[Profit]],10,0),"") ->  | N95: =IFERROR(IF(VLOOKUP(B95,Baza[[№]:[Profit]],11,0)=0,"-",VLOOKUP(B95,Baza[[№]:[Profit]],11,0)),"") ->  | O95: =IFERROR(IF(VLOOKUP(B95,Baza[[№]:[Profit]],12,0)=0,"-",VLOOKUP(B95,Baza[[№]:[Profit]],12,0)),"") ->  | P95: =IFERROR(IF(VLOOKUP(B95,Baza[[№]:[Profit]],13,0)=0,"-",VLOOKUP(B95,Baza[[№]:[Profit]],13,0)),"") ->  | Q95: =IFERROR(IF(VLOOKUP(B95,Baza[[№]:[Profit]],15,0)=0,"-",VLOOKUP(B95,Baza[[№]:[Profit]],15,0)),"") ->  | R95: =IFERROR(IF(VLOOKUP(B95,Baza[[№]:[Profit]],16,0)=0,"-",VLOOKUP(B95,Baza[[№]:[Profit]],16,0)),"") ->  | S95: =IFERROR(IF(VLOOKUP(B95,Baza[[№]:[Profit]],17,0)=0,"-",VLOOKUP(B95,Baza[[№]:[Profit]],17,0)),"") ->  | T95: =IFERROR(IF(VLOOKUP(B95,Baza[[№]:[Profit]],18,0)=0,"-",VLOOKUP(B95,Baza[[№]:[Profit]],18,0)),"") ->  | U95: =IFERROR(IF(VLOOKUP(B95,Baza[[№]:[Profit]],19,0)=0,"-",VLOOKUP(B95,Baza[[№]:[Profit]],19,0)),"") ->  | V95: =IFERROR(VLOOKUP(B95,Baza[[№]:[Profit]],20,0),"") ->  | W95: =IFERROR(IF(VLOOKUP(B95,Baza[[№]:[Profit]],21,0)=0,"-",VLOOKUP(B95,Baza[[№]:[Profit]],21,0)),"") ->  | X95: =IFERROR(IF(VLOOKUP(B95,Baza[[№]:[Profit]],22,0)=0,"-",VLOOKUP(B95,Baza[[№]:[Profit]],22,0)),"") ->  | Y95: =IFERROR(VLOOKUP(B95,Baza[[№]:[Profit]],23,0),"") ->  | Z95: =IFERROR(VLOOKUP(B95,Baza[[№]:[AFS]],24,0),"") ->  | AA95: =IF(Таблица2[[#This Row],[Profit]]="","#Н/Д",SUM($Y$40:Y95)) -> #Н/Д | AB95: =IF(Таблица2[[#This Row],[Grafik]]="#Н/Д",FALSE,TRUE) -> FALSE
A96: 57 | C96: =IFERROR(VLOOKUP(B96,Baza[[№]:[Profit]],2,0),"") ->  | D96: =IF(Таблица2[[#This Row],[NN]]="","",TEXT(Таблица2[[#This Row],[Start]],"ч:мм")&" "&IF(OR(Таблица2[[#This Row],[Room]]="WN",Таблица2[[#This Row],[Room]]="ES"),"€","$")&Таблица2[[#This Row],[B]]&" "&"["&Таблица2[[#This Row],[Room]]&"] "&Таблица2[[#This Row],[Name]]) ->  | E96: =IF(Таблица2[[#This Row],[NN]]="","",IF(OR(Таблица2[[#This Row],[Room]]="WN",Таблица2[[#This Row],[Room]]="ES"),"€","$")&Таблица2[[#This Row],[B]]&" "&"["&Таблица2[[#This Row],[Room]]&"] "&Таблица2[[#This Row],[Name]]) ->  | F96: =IFERROR(VLOOKUP(B96,Baza[[№]:[Profit]],3,0),"") ->  | G96: =IFERROR(VLOOKUP(B96,Baza[[№]:[Profit]],4,0),"") ->  | H96: =IFERROR(VLOOKUP(B96,Baza[[№]:[Profit]],5,0),"") ->  | I96: =IFERROR(VLOOKUP(B96,Baza[[№]:[Profit]],6,0),"") ->  | J96: =IFERROR(VLOOKUP(B96,Baza[[№]:[Profit]],7,0),"") ->  | K96: =IFERROR(VLOOKUP(B96,Baza[[№]:[Profit]],8,0),"") ->  | L96: =IFERROR(VLOOKUP(B96,Baza[[№]:[Profit]],9,0),"") ->  | M96: =IFERROR(VLOOKUP(B96,Baza[[№]:[Profit]],10,0),"") ->  | N96: =IFERROR(IF(VLOOKUP(B96,Baza[[№]:[Profit]],11,0)=0,"-",VLOOKUP(B96,Baza[[№]:[Profit]],11,0)),"") ->  | O96: =IFERROR(IF(VLOOKUP(B96,Baza[[№]:[Profit]],12,0)=0,"-",VLOOKUP(B96,Baza[[№]:[Profit]],12,0)),"") ->  | P96: =IFERROR(IF(VLOOKUP(B96,Baza[[№]:[Profit]],13,0)=0,"-",VLOOKUP(B96,Baza[[№]:[Profit]],13,0)),"") ->  | Q96: =IFERROR(IF(VLOOKUP(B96,Baza[[№]:[Profit]],15,0)=0,"-",VLOOKUP(B96,Baza[[№]:[Profit]],15,0)),"") ->  | R96: =IFERROR(IF(VLOOKUP(B96,Baza[[№]:[Profit]],16,0)=0,"-",VLOOKUP(B96,Baza[[№]:[Profit]],16,0)),"") ->  | S96: =IFERROR(IF(VLOOKUP(B96,Baza[[№]:[Profit]],17,0)=0,"-",VLOOKUP(B96,Baza[[№]:[Profit]],17,0)),"") ->  | T96: =IFERROR(IF(VLOOKUP(B96,Baza[[№]:[Profit]],18,0)=0,"-",VLOOKUP(B96,Baza[[№]:[Profit]],18,0)),"") ->  | U96: =IFERROR(IF(VLOOKUP(B96,Baza[[№]:[Profit]],19,0)=0,"-",VLOOKUP(B96,Baza[[№]:[Profit]],19,0)),"") ->  | V96: =IFERROR(VLOOKUP(B96,Baza[[№]:[Profit]],20,0),"") ->  | W96: =IFERROR(IF(VLOOKUP(B96,Baza[[№]:[Profit]],21,0)=0,"-",VLOOKUP(B96,Baza[[№]:[Profit]],21,0)),"") ->  | X96: =IFERROR(IF(VLOOKUP(B96,Baza[[№]:[Profit]],22,0)=0,"-",VLOOKUP(B96,Baza[[№]:[Profit]],22,0)),"") ->  | Y96: =IFERROR(VLOOKUP(B96,Baza[[№]:[Profit]],23,0),"") ->  | Z96: =IFERROR(VLOOKUP(B96,Baza[[№]:[AFS]],24,0),"") ->  | AA96: =IF(Таблица2[[#This Row],[Profit]]="","#Н/Д",SUM($Y$40:Y96)) -> #Н/Д | AB96: =IF(Таблица2[[#This Row],[Grafik]]="#Н/Д",FALSE,TRUE) -> FALSE
A97: 58 | C97: =IFERROR(VLOOKUP(B97,Baza[[№]:[Profit]],2,0),"") ->  | D97: =IF(Таблица2[[#This Row],[NN]]="","",TEXT(Таблица2[[#This Row],[Start]],"ч:мм")&" "&IF(OR(Таблица2[[#This Row],[Room]]="WN",Таблица2[[#This Row],[Room]]="ES"),"€","$")&Таблица2[[#This Row],[B]]&" "&"["&Таблица2[[#This Row],[Room]]&"] "&Таблица2[[#This Row],[Name]]) ->  | E97: =IF(Таблица2[[#This Row],[NN]]="","",IF(OR(Таблица2[[#This Row],[Room]]="WN",Таблица2[[#This Row],[Room]]="ES"),"€","$")&Таблица2[[#This Row],[B]]&" "&"["&Таблица2[[#This Row],[Room]]&"] "&Таблица2[[#This Row],[Name]]) ->  | F97: =IFERROR(VLOOKUP(B97,Baza[[№]:[Profit]],3,0),"") ->  | G97: =IFERROR(VLOOKUP(B97,Baza[[№]:[Profit]],4,0),"") ->  | H97: =IFERROR(VLOOKUP(B97,Baza[[№]:[Profit]],5,0),"") ->  | I97: =IFERROR(VLOOKUP(B97,Baza[[№]:[Profit]],6,0),"") ->  | J97: =IFERROR(VLOOKUP(B97,Baza[[№]:[Profit]],7,0),"") ->  | K97: =IFERROR(VLOOKUP(B97,Baza[[№]:[Profit]],8,0),"") ->  | L97: =IFERROR(VLOOKUP(B97,Baza[[№]:[Profit]],9,0),"") ->  | M97: =IFERROR(VLOOKUP(B97,Baza[[№]:[Profit]],10,0),"") ->  | N97: =IFERROR(IF(VLOOKUP(B97,Baza[[№]:[Profit]],11,0)=0,"-",VLOOKUP(B97,Baza[[№]:[Profit]],11,0)),"") ->  | O97: =IFERROR(IF(VLOOKUP(B97,Baza[[№]:[Profit]],12,0)=0,"-",VLOOKUP(B97,Baza[[№]:[Profit]],12,0)),"") ->  | P97: =IFERROR(IF(VLOOKUP(B97,Baza[[№]:[Profit]],13,0)=0,"-",VLOOKUP(B97,Baza[[№]:[Profit]],13,0)),"") ->  | Q97: =IFERROR(IF(VLOOKUP(B97,Baza[[№]:[Profit]],15,0)=0,"-",VLOOKUP(B97,Baza[[№]:[Profit]],15,0)),"") ->  | R97: =IFERROR(IF(VLOOKUP(B97,Baza[[№]:[Profit]],16,0)=0,"-",VLOOKUP(B97,Baza[[№]:[Profit]],16,0)),"") ->  | S97: =IFERROR(IF(VLOOKUP(B97,Baza[[№]:[Profit]],17,0)=0,"-",VLOOKUP(B97,Baza[[№]:[Profit]],17,0)),"") ->  | T97: =IFERROR(IF(VLOOKUP(B97,Baza[[№]:[Profit]],18,0)=0,"-",VLOOKUP(B97,Baza[[№]:[Profit]],18,0)),"") ->  | U97: =IFERROR(IF(VLOOKUP(B97,Baza[[№]:[Profit]],19,0)=0,"-",VLOOKUP(B97,Baza[[№]:[Profit]],19,0)),"") ->  | V97: =IFERROR(VLOOKUP(B97,Baza[[№]:[Profit]],20,0),"") ->  | W97: =IFERROR(IF(VLOOKUP(B97,Baza[[№]:[Profit]],21,0)=0,"-",VLOOKUP(B97,Baza[[№]:[Profit]],21,0)),"") ->  | X97: =IFERROR(IF(VLOOKUP(B97,Baza[[№]:[Profit]],22,0)=0,"-",VLOOKUP(B97,Baza[[№]:[Profit]],22,0)),"") ->  | Y97: =IFERROR(VLOOKUP(B97,Baza[[№]:[Profit]],23,0),"") ->  | Z97: =IFERROR(VLOOKUP(B97,Baza[[№]:[AFS]],24,0),"") ->  | AA97: =IF(Таблица2[[#This Row],[Profit]]="","#Н/Д",SUM($Y$40:Y97)) -> #Н/Д | AB97: =IF(Таблица2[[#This Row],[Grafik]]="#Н/Д",FALSE,TRUE) -> FALSE
A98: 59 | C98: =IFERROR(VLOOKUP(B98,Baza[[№]:[Profit]],2,0),"") ->  | D98: =IF(Таблица2[[#This Row],[NN]]="","",TEXT(Таблица2[[#This Row],[Start]],"ч:мм")&" "&IF(OR(Таблица2[[#This Row],[Room]]="WN",Таблица2[[#This Row],[Room]]="ES"),"€","$")&Таблица2[[#This Row],[B]]&" "&"["&Таблица2[[#This Row],[Room]]&"] "&Таблица2[[#This Row],[Name]]) ->  | E98: =IF(Таблица2[[#This Row],[NN]]="","",IF(OR(Таблица2[[#This Row],[Room]]="WN",Таблица2[[#This Row],[Room]]="ES"),"€","$")&Таблица2[[#This Row],[B]]&" "&"["&Таблица2[[#This Row],[Room]]&"] "&Таблица2[[#This Row],[Name]]) ->  | F98: =IFERROR(VLOOKUP(B98,Baza[[№]:[Profit]],3,0),"") ->  | G98: =IFERROR(VLOOKUP(B98,Baza[[№]:[Profit]],4,0),"") ->  | H98: =IFERROR(VLOOKUP(B98,Baza[[№]:[Profit]],5,0),"") ->  | I98: =IFERROR(VLOOKUP(B98,Baza[[№]:[Profit]],6,0),"") ->  | J98: =IFERROR(VLOOKUP(B98,Baza[[№]:[Profit]],7,0),"") ->  | K98: =IFERROR(VLOOKUP(B98,Baza[[№]:[Profit]],8,0),"") ->  | L98: =IFERROR(VLOOKUP(B98,Baza[[№]:[Profit]],9,0),"") ->  | M98: =IFERROR(VLOOKUP(B98,Baza[[№]:[Profit]],10,0),"") ->  | N98: =IFERROR(IF(VLOOKUP(B98,Baza[[№]:[Profit]],11,0)=0,"-",VLOOKUP(B98,Baza[[№]:[Profit]],11,0)),"") ->  | O98: =IFERROR(IF(VLOOKUP(B98,Baza[[№]:[Profit]],12,0)=0,"-",VLOOKUP(B98,Baza[[№]:[Profit]],12,0)),"") ->  | P98: =IFERROR(IF(VLOOKUP(B98,Baza[[№]:[Profit]],13,0)=0,"-",VLOOKUP(B98,Baza[[№]:[Profit]],13,0)),"") ->  | Q98: =IFERROR(IF(VLOOKUP(B98,Baza[[№]:[Profit]],15,0)=0,"-",VLOOKUP(B98,Baza[[№]:[Profit]],15,0)),"") ->  | R98: =IFERROR(IF(VLOOKUP(B98,Baza[[№]:[Profit]],16,0)=0,"-",VLOOKUP(B98,Baza[[№]:[Profit]],16,0)),"") ->  | S98: =IFERROR(IF(VLOOKUP(B98,Baza[[№]:[Profit]],17,0)=0,"-",VLOOKUP(B98,Baza[[№]:[Profit]],17,0)),"") ->  | T98: =IFERROR(IF(VLOOKUP(B98,Baza[[№]:[Profit]],18,0)=0,"-",VLOOKUP(B98,Baza[[№]:[Profit]],18,0)),"") ->  | U98: =IFERROR(IF(VLOOKUP(B98,Baza[[№]:[Profit]],19,0)=0,"-",VLOOKUP(B98,Baza[[№]:[Profit]],19,0)),"") ->  | V98: =IFERROR(VLOOKUP(B98,Baza[[№]:[Profit]],20,0),"") ->  | W98: =IFERROR(IF(VLOOKUP(B98,Baza[[№]:[Profit]],21,0)=0,"-",VLOOKUP(B98,Baza[[№]:[Profit]],21,0)),"") ->  | X98: =IFERROR(IF(VLOOKUP(B98,Baza[[№]:[Profit]],22,0)=0,"-",VLOOKUP(B98,Baza[[№]:[Profit]],22,0)),"") ->  | Y98: =IFERROR(VLOOKUP(B98,Baza[[№]:[Profit]],23,0),"") ->  | Z98: =IFERROR(VLOOKUP(B98,Baza[[№]:[AFS]],24,0),"") ->  | AA98: =IF(Таблица2[[#This Row],[Profit]]="","#Н/Д",SUM($Y$40:Y98)) -> #Н/Д | AB98: =IF(Таблица2[[#This Row],[Grafik]]="#Н/Д",FALSE,TRUE) -> FALSE
A99: 60 | C99: =IFERROR(VLOOKUP(B99,Baza[[№]:[Profit]],2,0),"") ->  | D99: =IF(Таблица2[[#This Row],[NN]]="","",TEXT(Таблица2[[#This Row],[Start]],"ч:мм")&" "&IF(OR(Таблица2[[#This Row],[Room]]="WN",Таблица2[[#This Row],[Room]]="ES"),"€","$")&Таблица2[[#This Row],[B]]&" "&"["&Таблица2[[#This Row],[Room]]&"] "&Таблица2[[#This Row],[Name]]) ->  | E99: =IF(Таблица2[[#This Row],[NN]]="","",IF(OR(Таблица2[[#This Row],[Room]]="WN",Таблица2[[#This Row],[Room]]="ES"),"€","$")&Таблица2[[#This Row],[B]]&" "&"["&Таблица2[[#This Row],[Room]]&"] "&Таблица2[[#This Row],[Name]]) ->  | F99: =IFERROR(VLOOKUP(B99,Baza[[№]:[Profit]],3,0),"") ->  | G99: =IFERROR(VLOOKUP(B99,Baza[[№]:[Profit]],4,0),"") ->  | H99: =IFERROR(VLOOKUP(B99,Baza[[№]:[Profit]],5,0),"") ->  | I99: =IFERROR(VLOOKUP(B99,Baza[[№]:[Profit]],6,0),"") ->  | J99: =IFERROR(VLOOKUP(B99,Baza[[№]:[Profit]],7,0),"") ->  | K99: =IFERROR(VLOOKUP(B99,Baza[[№]:[Profit]],8,0),"") ->  | L99: =IFERROR(VLOOKUP(B99,Baza[[№]:[Profit]],9,0),"") ->  | M99: =IFERROR(VLOOKUP(B99,Baza[[№]:[Profit]],10,0),"") ->  | N99: =IFERROR(IF(VLOOKUP(B99,Baza[[№]:[Profit]],11,0)=0,"-",VLOOKUP(B99,Baza[[№]:[Profit]],11,0)),"") ->  | O99: =IFERROR(IF(VLOOKUP(B99,Baza[[№]:[Profit]],12,0)=0,"-",VLOOKUP(B99,Baza[[№]:[Profit]],12,0)),"") ->  | P99: =IFERROR(IF(VLOOKUP(B99,Baza[[№]:[Profit]],13,0)=0,"-",VLOOKUP(B99,Baza[[№]:[Profit]],13,0)),"") ->  | Q99: =IFERROR(IF(VLOOKUP(B99,Baza[[№]:[Profit]],15,0)=0,"-",VLOOKUP(B99,Baza[[№]:[Profit]],15,0)),"") ->  | R99: =IFERROR(IF(VLOOKUP(B99,Baza[[№]:[Profit]],16,0)=0,"-",VLOOKUP(B99,Baza[[№]:[Profit]],16,0)),"") ->  | S99: =IFERROR(IF(VLOOKUP(B99,Baza[[№]:[Profit]],17,0)=0,"-",VLOOKUP(B99,Baza[[№]:[Profit]],17,0)),"") ->  | T99: =IFERROR(IF(VLOOKUP(B99,Baza[[№]:[Profit]],18,0)=0,"-",VLOOKUP(B99,Baza[[№]:[Profit]],18,0)),"") ->  | U99: =IFERROR(IF(VLOOKUP(B99,Baza[[№]:[Profit]],19,0)=0,"-",VLOOKUP(B99,Baza[[№]:[Profit]],19,0)),"") ->  | V99: =IFERROR(VLOOKUP(B99,Baza[[№]:[Profit]],20,0),"") ->  | W99: =IFERROR(IF(VLOOKUP(B99,Baza[[№]:[Profit]],21,0)=0,"-",VLOOKUP(B99,Baza[[№]:[Profit]],21,0)),"") ->  | X99: =IFERROR(IF(VLOOKUP(B99,Baza[[№]:[Profit]],22,0)=0,"-",VLOOKUP(B99,Baza[[№]:[Profit]],22,0)),"") ->  | Y99: =IFERROR(VLOOKUP(B99,Baza[[№]:[Profit]],23,0),"") ->  | Z99: =IFERROR(VLOOKUP(B99,Baza[[№]:[AFS]],24,0),"") ->  | AA99: =IF(Таблица2[[#This Row],[Profit]]="","#Н/Д",SUM($Y$40:Y99)) -> #Н/Д | AB99: =IF(Таблица2[[#This Row],[Grafik]]="#Н/Д",FALSE,TRUE) -> FALSE
A100: 61 | C100: =IFERROR(VLOOKUP(B100,Baza[[№]:[Profit]],2,0),"") ->  | D100: =IF(Таблица2[[#This Row],[NN]]="","",TEXT(Таблица2[[#This Row],[Start]],"ч:мм")&" "&IF(OR(Таблица2[[#This Row],[Room]]="WN",Таблица2[[#This Row],[Room]]="ES"),"€","$")&Таблица2[[#This Row],[B]]&" "&"["&Таблица2[[#This Row],[Room]]&"] "&Таблица2[[#This Row],[Name]]) ->  | E100: =IF(Таблица2[[#This Row],[NN]]="","",IF(OR(Таблица2[[#This Row],[Room]]="WN",Таблица2[[#This Row],[Room]]="ES"),"€","$")&Таблица2[[#This Row],[B]]&" "&"["&Таблица2[[#This Row],[Room]]&"] "&Таблица2[[#This Row],[Name]]) ->  | F100: =IFERROR(VLOOKUP(B100,Baza[[№]:[Profit]],3,0),"") ->  | G100: =IFERROR(VLOOKUP(B100,Baza[[№]:[Profit]],4,0),"") ->  | H100: =IFERROR(VLOOKUP(B100,Baza[[№]:[Profit]],5,0),"") ->  | I100: =IFERROR(VLOOKUP(B100,Baza[[№]:[Profit]],6,0),"") ->  | J100: =IFERROR(VLOOKUP(B100,Baza[[№]:[Profit]],7,0),"") ->  | K100: =IFERROR(VLOOKUP(B100,Baza[[№]:[Profit]],8,0),"") ->  | L100: =IFERROR(VLOOKUP(B100,Baza[[№]:[Profit]],9,0),"") ->  | M100: =IFERROR(VLOOKUP(B100,Baza[[№]:[Profit]],10,0),"") ->  | N100: =IFERROR(IF(VLOOKUP(B100,Baza[[№]:[Profit]],11,0)=0,"-",VLOOKUP(B100,Baza[[№]:[Profit]],11,0)),"") ->  | O100: =IFERROR(IF(VLOOKUP(B100,Baza[[№]:[Profit]],12,0)=0,"-",VLOOKUP(B100,Baza[[№]:[Profit]],12,0)),"") ->  | P100: =IFERROR(IF(VLOOKUP(B100,Baza[[№]:[Profit]],13,0)=0,"-",VLOOKUP(B100,Baza[[№]:[Profit]],13,0)),"") ->  | Q100: =IFERROR(IF(VLOOKUP(B100,Baza[[№]:[Profit]],15,0)=0,"-",VLOOKUP(B100,Baza[[№]:[Profit]],15,0)),"") ->  | R100: =IFERROR(IF(VLOOKUP(B100,Baza[[№]:[Profit]],16,0)=0,"-",VLOOKUP(B100,Baza[[№]:[Profit]],16,0)),"") ->  | S100: =IFERROR(IF(VLOOKUP(B100,Baza[[№]:[Profit]],17,0)=0,"-",VLOOKUP(B100,Baza[[№]:[Profit]],17,0)),"") ->  | T100: =IFERROR(IF(VLOOKUP(B100,Baza[[№]:[Profit]],18,0)=0,"-",VLOOKUP(B100,Baza[[№]:[Profit]],18,0)),"") ->  | U100: =IFERROR(IF(VLOOKUP(B100,Baza[[№]:[Profit]],19,0)=0,"-",VLOOKUP(B100,Baza[[№]:[Profit]],19,0)),"") ->  | V100: =IFERROR(VLOOKUP(B100,Baza[[№]:[Profit]],20,0),"") ->  | W100: =IFERROR(IF(VLOOKUP(B100,Baza[[№]:[Profit]],21,0)=0,"-",VLOOKUP(B100,Baza[[№]:[Profit]],21,0)),"") ->  | X100: =IFERROR(IF(VLOOKUP(B100,Baza[[№]:[Profit]],22,0)=0,"-",VLOOKUP(B100,Baza[[№]:[Profit]],22,0)),"") ->  | Y100: =IFERROR(VLOOKUP(B100,Baza[[№]:[Profit]],23,0),"") ->  | Z100: =IFERROR(VLOOKUP(B100,Baza[[№]:[AFS]],24,0),"") ->  | AA100: =IF(Таблица2[[#This Row],[Profit]]="","#Н/Д",SUM($Y$40:Y100)) -> #Н/Д | AB100: =IF(Таблица2[[#This Row],[Grafik]]="#Н/Д",FALSE,TRUE) -> FALSE
A101: 62 | C101: =IFERROR(VLOOKUP(B101,Baza[[№]:[Profit]],2,0),"") ->  | D101: =IF(Таблица2[[#This Row],[NN]]="","",TEXT(Таблица2[[#This Row],[Start]],"ч:мм")&" "&IF(OR(Таблица2[[#This Row],[Room]]="WN",Таблица2[[#This Row],[Room]]="ES"),"€","$")&Таблица2[[#This Row],[B]]&" "&"["&Таблица2[[#This Row],[Room]]&"] "&Таблица2[[#This Row],[Name]]) ->  | E101: =IF(Таблица2[[#This Row],[NN]]="","",IF(OR(Таблица2[[#This Row],[Room]]="WN",Таблица2[[#This Row],[Room]]="ES"),"€","$")&Таблица2[[#This Row],[B]]&" "&"["&Таблица2[[#This Row],[Room]]&"] "&Таблица2[[#This Row],[Name]]) ->  | F101: =IFERROR(VLOOKUP(B101,Baza[[№]:[Profit]],3,0),"") ->  | G101: =IFERROR(VLOOKUP(B101,Baza[[№]:[Profit]],4,0),"") ->  | H101: =IFERROR(VLOOKUP(B101,Baza[[№]:[Profit]],5,0),"") ->  | I101: =IFERROR(VLOOKUP(B101,Baza[[№]:[Profit]],6,0),"") ->  | J101: =IFERROR(VLOOKUP(B101,Baza[[№]:[Profit]],7,0),"") ->  | K101: =IFERROR(VLOOKUP(B101,Baza[[№]:[Profit]],8,0),"") ->  | L101: =IFERROR(VLOOKUP(B101,Baza[[№]:[Profit]],9,0),"") ->  | M101: =IFERROR(VLOOKUP(B101,Baza[[№]:[Profit]],10,0),"") ->  | N101: =IFERROR(IF(VLOOKUP(B101,Baza[[№]:[Profit]],11,0)=0,"-",VLOOKUP(B101,Baza[[№]:[Profit]],11,0)),"") ->  | O101: =IFERROR(IF(VLOOKUP(B101,Baza[[№]:[Profit]],12,0)=0,"-",VLOOKUP(B101,Baza[[№]:[Profit]],12,0)),"") ->  | P101: =IFERROR(IF(VLOOKUP(B101,Baza[[№]:[Profit]],13,0)=0,"-",VLOOKUP(B101,Baza[[№]:[Profit]],13,0)),"") ->  | Q101: =IFERROR(IF(VLOOKUP(B101,Baza[[№]:[Profit]],15,0)=0,"-",VLOOKUP(B101,Baza[[№]:[Profit]],15,0)),"") ->  | R101: =IFERROR(IF(VLOOKUP(B101,Baza[[№]:[Profit]],16,0)=0,"-",VLOOKUP(B101,Baza[[№]:[Profit]],16,0)),"") ->  | S101: =IFERROR(IF(VLOOKUP(B101,Baza[[№]:[Profit]],17,0)=0,"-",VLOOKUP(B101,Baza[[№]:[Profit]],17,0)),"") ->  | T101: =IFERROR(IF(VLOOKUP(B101,Baza[[№]:[Profit]],18,0)=0,"-",VLOOKUP(B101,Baza[[№]:[Profit]],18,0)),"") ->  | U101: =IFERROR(IF(VLOOKUP(B101,Baza[[№]:[Profit]],19,0)=0,"-",VLOOKUP(B101,Baza[[№]:[Profit]],19,0)),"") ->  | V101: =IFERROR(VLOOKUP(B101,Baza[[№]:[Profit]],20,0),"") ->  | W101: =IFERROR(IF(VLOOKUP(B101,Baza[[№]:[Profit]],21,0)=0,"-",VLOOKUP(B101,Baza[[№]:[Profit]],21,0)),"") ->  | X101: =IFERROR(IF(VLOOKUP(B101,Baza[[№]:[Profit]],22,0)=0,"-",VLOOKUP(B101,Baza[[№]:[Profit]],22,0)),"") ->  | Y101: =IFERROR(VLOOKUP(B101,Baza[[№]:[Profit]],23,0),"") ->  | Z101: =IFERROR(VLOOKUP(B101,Baza[[№]:[AFS]],24,0),"") ->  | AA101: =IF(Таблица2[[#This Row],[Profit]]="","#Н/Д",SUM($Y$40:Y101)) -> #Н/Д | AB101: =IF(Таблица2[[#This Row],[Grafik]]="#Н/Д",FALSE,TRUE) -> FALSE
A102: 63 | C102: =IFERROR(VLOOKUP(B102,Baza[[№]:[Profit]],2,0),"") ->  | D102: =IF(Таблица2[[#This Row],[NN]]="","",TEXT(Таблица2[[#This Row],[Start]],"ч:мм")&" "&IF(OR(Таблица2[[#This Row],[Room]]="WN",Таблица2[[#This Row],[Room]]="ES"),"€","$")&Таблица2[[#This Row],[B]]&" "&"["&Таблица2[[#This Row],[Room]]&"] "&Таблица2[[#This Row],[Name]]) ->  | E102: =IF(Таблица2[[#This Row],[NN]]="","",IF(OR(Таблица2[[#This Row],[Room]]="WN",Таблица2[[#This Row],[Room]]="ES"),"€","$")&Таблица2[[#This Row],[B]]&" "&"["&Таблица2[[#This Row],[Room]]&"] "&Таблица2[[#This Row],[Name]]) ->  | F102: =IFERROR(VLOOKUP(B102,Baza[[№]:[Profit]],3,0),"") ->  | G102: =IFERROR(VLOOKUP(B102,Baza[[№]:[Profit]],4,0),"") ->  | H102: =IFERROR(VLOOKUP(B102,Baza[[№]:[Profit]],5,0),"") ->  | I102: =IFERROR(VLOOKUP(B102,Baza[[№]:[Profit]],6,0),"") ->  | J102: =IFERROR(VLOOKUP(B102,Baza[[№]:[Profit]],7,0),"") ->  | K102: =IFERROR(VLOOKUP(B102,Baza[[№]:[Profit]],8,0),"") ->  | L102: =IFERROR(VLOOKUP(B102,Baza[[№]:[Profit]],9,0),"") ->  | M102: =IFERROR(VLOOKUP(B102,Baza[[№]:[Profit]],10,0),"") ->  | N102: =IFERROR(IF(VLOOKUP(B102,Baza[[№]:[Profit]],11,0)=0,"-",VLOOKUP(B102,Baza[[№]:[Profit]],11,0)),"") ->  | O102: =IFERROR(IF(VLOOKUP(B102,Baza[[№]:[Profit]],12,0)=0,"-",VLOOKUP(B102,Baza[[№]:[Profit]],12,0)),"") ->  | P102: =IFERROR(IF(VLOOKUP(B102,Baza[[№]:[Profit]],13,0)=0,"-",VLOOKUP(B102,Baza[[№]:[Profit]],13,0)),"") ->  | Q102: =IFERROR(IF(VLOOKUP(B102,Baza[[№]:[Profit]],15,0)=0,"-",VLOOKUP(B102,Baza[[№]:[Profit]],15,0)),"") ->  | R102: =IFERROR(IF(VLOOKUP(B102,Baza[[№]:[Profit]],16,0)=0,"-",VLOOKUP(B102,Baza[[№]:[Profit]],16,0)),"") ->  | S102: =IFERROR(IF(VLOOKUP(B102,Baza[[№]:[Profit]],17,0)=0,"-",VLOOKUP(B102,Baza[[№]:[Profit]],17,0)),"") ->  | T102: =IFERROR(IF(VLOOKUP(B102,Baza[[№]:[Profit]],18,0)=0,"-",VLOOKUP(B102,Baza[[№]:[Profit]],18,0)),"") ->  | U102: =IFERROR(IF(VLOOKUP(B102,Baza[[№]:[Profit]],19,0)=0,"-",VLOOKUP(B102,Baza[[№]:[Profit]],19,0)),"") ->  | V102: =IFERROR(VLOOKUP(B102,Baza[[№]:[Profit]],20,0),"") ->  | W102: =IFERROR(IF(VLOOKUP(B102,Baza[[№]:[Profit]],21,0)=0,"-",VLOOKUP(B102,Baza[[№]:[Profit]],21,0)),"") ->  | X102: =IFERROR(IF(VLOOKUP(B102,Baza[[№]:[Profit]],22,0)=0,"-",VLOOKUP(B102,Baza[[№]:[Profit]],22,0)),"") ->  | Y102: =IFERROR(VLOOKUP(B102,Baza[[№]:[Profit]],23,0),"") ->  | Z102: =IFERROR(VLOOKUP(B102,Baza[[№]:[AFS]],24,0),"") ->  | AA102: =IF(Таблица2[[#This Row],[Profit]]="","#Н/Д",SUM($Y$40:Y102)) -> #Н/Д | AB102: =IF(Таблица2[[#This Row],[Grafik]]="#Н/Д",FALSE,TRUE) -> FALSE
A103: 64 | C103: =IFERROR(VLOOKUP(B103,Baza[[№]:[Profit]],2,0),"") ->  | D103: =IF(Таблица2[[#This Row],[NN]]="","",TEXT(Таблица2[[#This Row],[Start]],"ч:мм")&" "&IF(OR(Таблица2[[#This Row],[Room]]="WN",Таблица2[[#This Row],[Room]]="ES"),"€","$")&Таблица2[[#This Row],[B]]&" "&"["&Таблица2[[#This Row],[Room]]&"] "&Таблица2[[#This Row],[Name]]) ->  | E103: =IF(Таблица2[[#This Row],[NN]]="","",IF(OR(Таблица2[[#This Row],[Room]]="WN",Таблица2[[#This Row],[Room]]="ES"),"€","$")&Таблица2[[#This Row],[B]]&" "&"["&Таблица2[[#This Row],[Room]]&"] "&Таблица2[[#This Row],[Name]]) ->  | F103: =IFERROR(VLOOKUP(B103,Baza[[№]:[Profit]],3,0),"") ->  | G103: =IFERROR(VLOOKUP(B103,Baza[[№]:[Profit]],4,0),"") ->  | H103: =IFERROR(VLOOKUP(B103,Baza[[№]:[Profit]],5,0),"") ->  | I103: =IFERROR(VLOOKUP(B103,Baza[[№]:[Profit]],6,0),"") ->  | J103: =IFERROR(VLOOKUP(B103,Baza[[№]:[Profit]],7,0),"") ->  | K103: =IFERROR(VLOOKUP(B103,Baza[[№]:[Profit]],8,0),"") ->  | L103: =IFERROR(VLOOKUP(B103,Baza[[№]:[Profit]],9,0),"") ->  | M103: =IFERROR(VLOOKUP(B103,Baza[[№]:[Profit]],10,0),"") ->  | N103: =IFERROR(IF(VLOOKUP(B103,Baza[[№]:[Profit]],11,0)=0,"-",VLOOKUP(B103,Baza[[№]:[Profit]],11,0)),"") ->  | O103: =IFERROR(IF(VLOOKUP(B103,Baza[[№]:[Profit]],12,0)=0,"-",VLOOKUP(B103,Baza[[№]:[Profit]],12,0)),"") ->  | P103: =IFERROR(IF(VLOOKUP(B103,Baza[[№]:[Profit]],13,0)=0,"-",VLOOKUP(B103,Baza[[№]:[Profit]],13,0)),"") ->  | Q103: =IFERROR(IF(VLOOKUP(B103,Baza[[№]:[Profit]],15,0)=0,"-",VLOOKUP(B103,Baza[[№]:[Profit]],15,0)),"") ->  | R103: =IFERROR(IF(VLOOKUP(B103,Baza[[№]:[Profit]],16,0)=0,"-",VLOOKUP(B103,Baza[[№]:[Profit]],16,0)),"") ->  | S103: =IFERROR(IF(VLOOKUP(B103,Baza[[№]:[Profit]],17,0)=0,"-",VLOOKUP(B103,Baza[[№]:[Profit]],17,0)),"") ->  | T103: =IFERROR(IF(VLOOKUP(B103,Baza[[№]:[Profit]],18,0)=0,"-",VLOOKUP(B103,Baza[[№]:[Profit]],18,0)),"") ->  | U103: =IFERROR(IF(VLOOKUP(B103,Baza[[№]:[Profit]],19,0)=0,"-",VLOOKUP(B103,Baza[[№]:[Profit]],19,0)),"") ->  | V103: =IFERROR(VLOOKUP(B103,Baza[[№]:[Profit]],20,0),"") ->  | W103: =IFERROR(IF(VLOOKUP(B103,Baza[[№]:[Profit]],21,0)=0,"-",VLOOKUP(B103,Baza[[№]:[Profit]],21,0)),"") ->  | X103: =IFERROR(IF(VLOOKUP(B103,Baza[[№]:[Profit]],22,0)=0,"-",VLOOKUP(B103,Baza[[№]:[Profit]],22,0)),"") ->  | Y103: =IFERROR(VLOOKUP(B103,Baza[[№]:[Profit]],23,0),"") ->  | Z103: =IFERROR(VLOOKUP(B103,Baza[[№]:[AFS]],24,0),"") ->  | AA103: =IF(Таблица2[[#This Row],[Profit]]="","#Н/Д",SUM($Y$40:Y103)) -> #Н/Д | AB103: =IF(Таблица2[[#This Row],[Grafik]]="#Н/Д",FALSE,TRUE) -> FALSE
A104: 65 | C104: =IFERROR(VLOOKUP(B104,Baza[[№]:[Profit]],2,0),"") ->  | D104: =IF(Таблица2[[#This Row],[NN]]="","",TEXT(Таблица2[[#This Row],[Start]],"ч:мм")&" "&IF(OR(Таблица2[[#This Row],[Room]]="WN",Таблица2[[#This Row],[Room]]="ES"),"€","$")&Таблица2[[#This Row],[B]]&" "&"["&Таблица2[[#This Row],[Room]]&"] "&Таблица2[[#This Row],[Name]]) ->  | E104: =IF(Таблица2[[#This Row],[NN]]="","",IF(OR(Таблица2[[#This Row],[Room]]="WN",Таблица2[[#This Row],[Room]]="ES"),"€","$")&Таблица2[[#This Row],[B]]&" "&"["&Таблица2[[#This Row],[Room]]&"] "&Таблица2[[#This Row],[Name]]) ->  | F104: =IFERROR(VLOOKUP(B104,Baza[[№]:[Profit]],3,0),"") ->  | G104: =IFERROR(VLOOKUP(B104,Baza[[№]:[Profit]],4,0),"") ->  | H104: =IFERROR(VLOOKUP(B104,Baza[[№]:[Profit]],5,0),"") ->  | I104: =IFERROR(VLOOKUP(B104,Baza[[№]:[Profit]],6,0),"") ->  | J104: =IFERROR(VLOOKUP(B104,Baza[[№]:[Profit]],7,0),"") ->  | K104: =IFERROR(VLOOKUP(B104,Baza[[№]:[Profit]],8,0),"") ->  | L104: =IFERROR(VLOOKUP(B104,Baza[[№]:[Profit]],9,0),"") ->  | M104: =IFERROR(VLOOKUP(B104,Baza[[№]:[Profit]],10,0),"") ->  | N104: =IFERROR(IF(VLOOKUP(B104,Baza[[№]:[Profit]],11,0)=0,"-",VLOOKUP(B104,Baza[[№]:[Profit]],11,0)),"") ->  | O104: =IFERROR(IF(VLOOKUP(B104,Baza[[№]:[Profit]],12,0)=0,"-",VLOOKUP(B104,Baza[[№]:[Profit]],12,0)),"") ->  | P104: =IFERROR(IF(VLOOKUP(B104,Baza[[№]:[Profit]],13,0)=0,"-",VLOOKUP(B104,Baza[[№]:[Profit]],13,0)),"") ->  | Q104: =IFERROR(IF(VLOOKUP(B104,Baza[[№]:[Profit]],15,0)=0,"-",VLOOKUP(B104,Baza[[№]:[Profit]],15,0)),"") ->  | R104: =IFERROR(IF(VLOOKUP(B104,Baza[[№]:[Profit]],16,0)=0,"-",VLOOKUP(B104,Baza[[№]:[Profit]],16,0)),"") ->  | S104: =IFERROR(IF(VLOOKUP(B104,Baza[[№]:[Profit]],17,0)=0,"-",VLOOKUP(B104,Baza[[№]:[Profit]],17,0)),"") ->  | T104: =IFERROR(IF(VLOOKUP(B104,Baza[[№]:[Profit]],18,0)=0,"-",VLOOKUP(B104,Baza[[№]:[Profit]],18,0)),"") ->  | U104: =IFERROR(IF(VLOOKUP(B104,Baza[[№]:[Profit]],19,0)=0,"-",VLOOKUP(B104,Baza[[№]:[Profit]],19,0)),"") ->  | V104: =IFERROR(VLOOKUP(B104,Baza[[№]:[Profit]],20,0),"") ->  | W104: =IFERROR(IF(VLOOKUP(B104,Baza[[№]:[Profit]],21,0)=0,"-",VLOOKUP(B104,Baza[[№]:[Profit]],21,0)),"") ->  | X104: =IFERROR(IF(VLOOKUP(B104,Baza[[№]:[Profit]],22,0)=0,"-",VLOOKUP(B104,Baza[[№]:[Profit]],22,0)),"") ->  | Y104: =IFERROR(VLOOKUP(B104,Baza[[№]:[Profit]],23,0),"") ->  | Z104: =IFERROR(VLOOKUP(B104,Baza[[№]:[AFS]],24,0),"") ->  | AA104: =IF(Таблица2[[#This Row],[Profit]]="","#Н/Д",SUM($Y$40:Y104)) -> #Н/Д | AB104: =IF(Таблица2[[#This Row],[Grafik]]="#Н/Д",FALSE,TRUE) -> FALSE
A105: =A104+1 -> 66 | C105: =IFERROR(VLOOKUP(B105,Baza[[№]:[Profit]],2,0),"") ->  | D105: =IF(Таблица2[[#This Row],[NN]]="","",TEXT(Таблица2[[#This Row],[Start]],"ч:мм")&" "&IF(OR(Таблица2[[#This Row],[Room]]="WN",Таблица2[[#This Row],[Room]]="ES"),"€","$")&Таблица2[[#This Row],[B]]&" "&"["&Таблица2[[#This Row],[Room]]&"] "&Таблица2[[#This Row],[Name]]) ->  | E105: =IF(Таблица2[[#This Row],[NN]]="","",IF(OR(Таблица2[[#This Row],[Room]]="WN",Таблица2[[#This Row],[Room]]="ES"),"€","$")&Таблица2[[#This Row],[B]]&" "&"["&Таблица2[[#This Row],[Room]]&"] "&Таблица2[[#This Row],[Name]]) ->  | F105: =IFERROR(VLOOKUP(B105,Baza[[№]:[Profit]],3,0),"") ->  | G105: =IFERROR(VLOOKUP(B105,Baza[[№]:[Profit]],4,0),"") ->  | H105: =IFERROR(VLOOKUP(B105,Baza[[№]:[Profit]],5,0),"") ->  | I105: =IFERROR(VLOOKUP(B105,Baza[[№]:[Profit]],6,0),"") ->  | J105: =IFERROR(VLOOKUP(B105,Baza[[№]:[Profit]],7,0),"") ->  | K105: =IFERROR(VLOOKUP(B105,Baza[[№]:[Profit]],8,0),"") ->  | L105: =IFERROR(VLOOKUP(B105,Baza[[№]:[Profit]],9,0),"") ->  | M105: =IFERROR(VLOOKUP(B105,Baza[[№]:[Profit]],10,0),"") ->  | N105: =IFERROR(IF(VLOOKUP(B105,Baza[[№]:[Profit]],11,0)=0,"-",VLOOKUP(B105,Baza[[№]:[Profit]],11,0)),"") ->  | O105: =IFERROR(IF(VLOOKUP(B105,Baza[[№]:[Profit]],12,0)=0,"-",VLOOKUP(B105,Baza[[№]:[Profit]],12,0)),"") ->  | P105: =IFERROR(IF(VLOOKUP(B105,Baza[[№]:[Profit]],13,0)=0,"-",VLOOKUP(B105,Baza[[№]:[Profit]],13,0)),"") ->  | Q105: =IFERROR(IF(VLOOKUP(B105,Baza[[№]:[Profit]],15,0)=0,"-",VLOOKUP(B105,Baza[[№]:[Profit]],15,0)),"") ->  | R105: =IFERROR(IF(VLOOKUP(B105,Baza[[№]:[Profit]],16,0)=0,"-",VLOOKUP(B105,Baza[[№]:[Profit]],16,0)),"") ->  | S105: =IFERROR(IF(VLOOKUP(B105,Baza[[№]:[Profit]],17,0)=0,"-",VLOOKUP(B105,Baza[[№]:[Profit]],17,0)),"") ->  | T105: =IFERROR(IF(VLOOKUP(B105,Baza[[№]:[Profit]],18,0)=0,"-",VLOOKUP(B105,Baza[[№]:[Profit]],18,0)),"") ->  | U105: =IFERROR(IF(VLOOKUP(B105,Baza[[№]:[Profit]],19,0)=0,"-",VLOOKUP(B105,Baza[[№]:[Profit]],19,0)),"") ->  | V105: =IFERROR(VLOOKUP(B105,Baza[[№]:[Profit]],20,0),"") ->  | W105: =IFERROR(IF(VLOOKUP(B105,Baza[[№]:[Profit]],21,0)=0,"-",VLOOKUP(B105,Baza[[№]:[Profit]],21,0)),"") ->  | X105: =IFERROR(IF(VLOOKUP(B105,Baza[[№]:[Profit]],22,0)=0,"-",VLOOKUP(B105,Baza[[№]:[Profit]],22,0)),"") ->  | Y105: =IFERROR(VLOOKUP(B105,Baza[[№]:[Profit]],23,0),"") ->  | Z105: =IFERROR(VLOOKUP(B105,Baza[[№]:[AFS]],24,0),"") ->  | AA105: =IF(Таблица2[[#This Row],[Profit]]="","#Н/Д",SUM($Y$40:Y105)) -> #Н/Д | AB105: =IF(Таблица2[[#This Row],[Grafik]]="#Н/Д",FALSE,TRUE) -> FALSE
A106: 67 | C106: =IFERROR(VLOOKUP(B106,Baza[[№]:[Profit]],2,0),"") ->  | D106: =IF(Таблица2[[#This Row],[NN]]="","",TEXT(Таблица2[[#This Row],[Start]],"ч:мм")&" "&IF(OR(Таблица2[[#This Row],[Room]]="WN",Таблица2[[#This Row],[Room]]="ES"),"€","$")&Таблица2[[#This Row],[B]]&" "&"["&Таблица2[[#This Row],[Room]]&"] "&Таблица2[[#This Row],[Name]]) ->  | E106: =IF(Таблица2[[#This Row],[NN]]="","",IF(OR(Таблица2[[#This Row],[Room]]="WN",Таблица2[[#This Row],[Room]]="ES"),"€","$")&Таблица2[[#This Row],[B]]&" "&"["&Таблица2[[#This Row],[Room]]&"] "&Таблица2[[#This Row],[Name]]) ->  | F106: =IFERROR(VLOOKUP(B106,Baza[[№]:[Profit]],3,0),"") ->  | G106: =IFERROR(VLOOKUP(B106,Baza[[№]:[Profit]],4,0),"") ->  | H106: =IFERROR(VLOOKUP(B106,Baza[[№]:[Profit]],5,0),"") ->  | I106: =IFERROR(VLOOKUP(B106,Baza[[№]:[Profit]],6,0),"") ->  | J106: =IFERROR(VLOOKUP(B106,Baza[[№]:[Profit]],7,0),"") ->  | K106: =IFERROR(VLOOKUP(B106,Baza[[№]:[Profit]],8,0),"") ->  | L106: =IFERROR(VLOOKUP(B106,Baza[[№]:[Profit]],9,0),"") ->  | M106: =IFERROR(VLOOKUP(B106,Baza[[№]:[Profit]],10,0),"") ->  | N106: =IFERROR(IF(VLOOKUP(B106,Baza[[№]:[Profit]],11,0)=0,"-",VLOOKUP(B106,Baza[[№]:[Profit]],11,0)),"") ->  | O106: =IFERROR(IF(VLOOKUP(B106,Baza[[№]:[Profit]],12,0)=0,"-",VLOOKUP(B106,Baza[[№]:[Profit]],12,0)),"") ->  | P106: =IFERROR(IF(VLOOKUP(B106,Baza[[№]:[Profit]],13,0)=0,"-",VLOOKUP(B106,Baza[[№]:[Profit]],13,0)),"") ->  | Q106: =IFERROR(IF(VLOOKUP(B106,Baza[[№]:[Profit]],15,0)=0,"-",VLOOKUP(B106,Baza[[№]:[Profit]],15,0)),"") ->  | R106: =IFERROR(IF(VLOOKUP(B106,Baza[[№]:[Profit]],16,0)=0,"-",VLOOKUP(B106,Baza[[№]:[Profit]],16,0)),"") ->  | S106: =IFERROR(IF(VLOOKUP(B106,Baza[[№]:[Profit]],17,0)=0,"-",VLOOKUP(B106,Baza[[№]:[Profit]],17,0)),"") ->  | T106: =IFERROR(IF(VLOOKUP(B106,Baza[[№]:[Profit]],18,0)=0,"-",VLOOKUP(B106,Baza[[№]:[Profit]],18,0)),"") ->  | U106: =IFERROR(IF(VLOOKUP(B106,Baza[[№]:[Profit]],19,0)=0,"-",VLOOKUP(B106,Baza[[№]:[Profit]],19,0)),"") ->  | V106: =IFERROR(VLOOKUP(B106,Baza[[№]:[Profit]],20,0),"") ->  | W106: =IFERROR(IF(VLOOKUP(B106,Baza[[№]:[Profit]],21,0)=0,"-",VLOOKUP(B106,Baza[[№]:[Profit]],21,0)),"") ->  | X106: =IFERROR(IF(VLOOKUP(B106,Baza[[№]:[Profit]],22,0)=0,"-",VLOOKUP(B106,Baza[[№]:[Profit]],22,0)),"") ->  | Y106: =IFERROR(VLOOKUP(B106,Baza[[№]:[Profit]],23,0),"") ->  | Z106: =IFERROR(VLOOKUP(B106,Baza[[№]:[AFS]],24,0),"") ->  | AA106: =IF(Таблица2[[#This Row],[Profit]]="","#Н/Д",SUM($Y$40:Y106)) -> #Н/Д | AB106: =IF(Таблица2[[#This Row],[Grafik]]="#Н/Д",FALSE,TRUE) -> FALSE
A107: 68 | C107: =IFERROR(VLOOKUP(B107,Baza[[№]:[Profit]],2,0),"") ->  | D107: =IF(Таблица2[[#This Row],[NN]]="","",TEXT(Таблица2[[#This Row],[Start]],"ч:мм")&" "&IF(OR(Таблица2[[#This Row],[Room]]="WN",Таблица2[[#This Row],[Room]]="ES"),"€","$")&Таблица2[[#This Row],[B]]&" "&"["&Таблица2[[#This Row],[Room]]&"] "&Таблица2[[#This Row],[Name]]) ->  | E107: =IF(Таблица2[[#This Row],[NN]]="","",IF(OR(Таблица2[[#This Row],[Room]]="WN",Таблица2[[#This Row],[Room]]="ES"),"€","$")&Таблица2[[#This Row],[B]]&" "&"["&Таблица2[[#This Row],[Room]]&"] "&Таблица2[[#This Row],[Name]]) ->  | F107: =IFERROR(VLOOKUP(B107,Baza[[№]:[Profit]],3,0),"") ->  | G107: =IFERROR(VLOOKUP(B107,Baza[[№]:[Profit]],4,0),"") ->  | H107: =IFERROR(VLOOKUP(B107,Baza[[№]:[Profit]],5,0),"") ->  | I107: =IFERROR(VLOOKUP(B107,Baza[[№]:[Profit]],6,0),"") ->  | J107: =IFERROR(VLOOKUP(B107,Baza[[№]:[Profit]],7,0),"") ->  | K107: =IFERROR(VLOOKUP(B107,Baza[[№]:[Profit]],8,0),"") ->  | L107: =IFERROR(VLOOKUP(B107,Baza[[№]:[Profit]],9,0),"") ->  | M107: =IFERROR(VLOOKUP(B107,Baza[[№]:[Profit]],10,0),"") ->  | N107: =IFERROR(IF(VLOOKUP(B107,Baza[[№]:[Profit]],11,0)=0,"-",VLOOKUP(B107,Baza[[№]:[Profit]],11,0)),"") ->  | O107: =IFERROR(IF(VLOOKUP(B107,Baza[[№]:[Profit]],12,0)=0,"-",VLOOKUP(B107,Baza[[№]:[Profit]],12,0)),"") ->  | P107: =IFERROR(IF(VLOOKUP(B107,Baza[[№]:[Profit]],13,0)=0,"-",VLOOKUP(B107,Baza[[№]:[Profit]],13,0)),"") ->  | Q107: =IFERROR(IF(VLOOKUP(B107,Baza[[№]:[Profit]],15,0)=0,"-",VLOOKUP(B107,Baza[[№]:[Profit]],15,0)),"") ->  | R107: =IFERROR(IF(VLOOKUP(B107,Baza[[№]:[Profit]],16,0)=0,"-",VLOOKUP(B107,Baza[[№]:[Profit]],16,0)),"") ->  | S107: =IFERROR(IF(VLOOKUP(B107,Baza[[№]:[Profit]],17,0)=0,"-",VLOOKUP(B107,Baza[[№]:[Profit]],17,0)),"") ->  | T107: =IFERROR(IF(VLOOKUP(B107,Baza[[№]:[Profit]],18,0)=0,"-",VLOOKUP(B107,Baza[[№]:[Profit]],18,0)),"") ->  | U107: =IFERROR(IF(VLOOKUP(B107,Baza[[№]:[Profit]],19,0)=0,"-",VLOOKUP(B107,Baza[[№]:[Profit]],19,0)),"") ->  | V107: =IFERROR(VLOOKUP(B107,Baza[[№]:[Profit]],20,0),"") ->  | W107: =IFERROR(IF(VLOOKUP(B107,Baza[[№]:[Profit]],21,0)=0,"-",VLOOKUP(B107,Baza[[№]:[Profit]],21,0)),"") ->  | X107: =IFERROR(IF(VLOOKUP(B107,Baza[[№]:[Profit]],22,0)=0,"-",VLOOKUP(B107,Baza[[№]:[Profit]],22,0)),"") ->  | Y107: =IFERROR(VLOOKUP(B107,Baza[[№]:[Profit]],23,0),"") ->  | Z107: =IFERROR(VLOOKUP(B107,Baza[[№]:[AFS]],24,0),"") ->  | AA107: =IF(Таблица2[[#This Row],[Profit]]="","#Н/Д",SUM($Y$40:Y107)) -> #Н/Д | AB107: =IF(Таблица2[[#This Row],[Grafik]]="#Н/Д",FALSE,TRUE) -> FALSE
A108: 69 | C108: =IFERROR(VLOOKUP(B108,Baza[[№]:[Profit]],2,0),"") ->  | D108: =IF(Таблица2[[#This Row],[NN]]="","",TEXT(Таблица2[[#This Row],[Start]],"ч:мм")&" "&IF(OR(Таблица2[[#This Row],[Room]]="WN",Таблица2[[#This Row],[Room]]="ES"),"€","$")&Таблица2[[#This Row],[B]]&" "&"["&Таблица2[[#This Row],[Room]]&"] "&Таблица2[[#This Row],[Name]]) ->  | E108: =IF(Таблица2[[#This Row],[NN]]="","",IF(OR(Таблица2[[#This Row],[Room]]="WN",Таблица2[[#This Row],[Room]]="ES"),"€","$")&Таблица2[[#This Row],[B]]&" "&"["&Таблица2[[#This Row],[Room]]&"] "&Таблица2[[#This Row],[Name]]) ->  | F108: =IFERROR(VLOOKUP(B108,Baza[[№]:[Profit]],3,0),"") ->  | G108: =IFERROR(VLOOKUP(B108,Baza[[№]:[Profit]],4,0),"") ->  | H108: =IFERROR(VLOOKUP(B108,Baza[[№]:[Profit]],5,0),"") ->  | I108: =IFERROR(VLOOKUP(B108,Baza[[№]:[Profit]],6,0),"") ->  | J108: =IFERROR(VLOOKUP(B108,Baza[[№]:[Profit]],7,0),"") ->  | K108: =IFERROR(VLOOKUP(B108,Baza[[№]:[Profit]],8,0),"") ->  | L108: =IFERROR(VLOOKUP(B108,Baza[[№]:[Profit]],9,0),"") ->  | M108: =IFERROR(VLOOKUP(B108,Baza[[№]:[Profit]],10,0),"") ->  | N108: =IFERROR(IF(VLOOKUP(B108,Baza[[№]:[Profit]],11,0)=0,"-",VLOOKUP(B108,Baza[[№]:[Profit]],11,0)),"") ->  | O108: =IFERROR(IF(VLOOKUP(B108,Baza[[№]:[Profit]],12,0)=0,"-",VLOOKUP(B108,Baza[[№]:[Profit]],12,0)),"") ->  | P108: =IFERROR(IF(VLOOKUP(B108,Baza[[№]:[Profit]],13,0)=0,"-",VLOOKUP(B108,Baza[[№]:[Profit]],13,0)),"") ->  | Q108: =IFERROR(IF(VLOOKUP(B108,Baza[[№]:[Profit]],15,0)=0,"-",VLOOKUP(B108,Baza[[№]:[Profit]],15,0)),"") ->  | R108: =IFERROR(IF(VLOOKUP(B108,Baza[[№]:[Profit]],16,0)=0,"-",VLOOKUP(B108,Baza[[№]:[Profit]],16,0)),"") ->  | S108: =IFERROR(IF(VLOOKUP(B108,Baza[[№]:[Profit]],17,0)=0,"-",VLOOKUP(B108,Baza[[№]:[Profit]],17,0)),"") ->  | T108: =IFERROR(IF(VLOOKUP(B108,Baza[[№]:[Profit]],18,0)=0,"-",VLOOKUP(B108,Baza[[№]:[Profit]],18,0)),"") ->  | U108: =IFERROR(IF(VLOOKUP(B108,Baza[[№]:[Profit]],19,0)=0,"-",VLOOKUP(B108,Baza[[№]:[Profit]],19,0)),"") ->  | V108: =IFERROR(VLOOKUP(B108,Baza[[№]:[Profit]],20,0),"") ->  | W108: =IFERROR(IF(VLOOKUP(B108,Baza[[№]:[Profit]],21,0)=0,"-",VLOOKUP(B108,Baza[[№]:[Profit]],21,0)),"") ->  | X108: =IFERROR(IF(VLOOKUP(B108,Baza[[№]:[Profit]],22,0)=0,"-",VLOOKUP(B108,Baza[[№]:[Profit]],22,0)),"") ->  | Y108: =IFERROR(VLOOKUP(B108,Baza[[№]:[Profit]],23,0),"") ->  | Z108: =IFERROR(VLOOKUP(B108,Baza[[№]:[AFS]],24,0),"") ->  | AA108: =IF(Таблица2[[#This Row],[Profit]]="","#Н/Д",SUM($Y$40:Y108)) -> #Н/Д | AB108: =IF(Таблица2[[#This Row],[Grafik]]="#Н/Д",FALSE,TRUE) -> FALSE
A109: 70 | C109: =IFERROR(VLOOKUP(B109,Baza[[№]:[Profit]],2,0),"") ->  | D109: =IF(Таблица2[[#This Row],[NN]]="","",TEXT(Таблица2[[#This Row],[Start]],"ч:мм")&" "&IF(OR(Таблица2[[#This Row],[Room]]="WN",Таблица2[[#This Row],[Room]]="ES"),"€","$")&Таблица2[[#This Row],[B]]&" "&"["&Таблица2[[#This Row],[Room]]&"] "&Таблица2[[#This Row],[Name]]) ->  | E109: =IF(Таблица2[[#This Row],[NN]]="","",IF(OR(Таблица2[[#This Row],[Room]]="WN",Таблица2[[#This Row],[Room]]="ES"),"€","$")&Таблица2[[#This Row],[B]]&" "&"["&Таблица2[[#This Row],[Room]]&"] "&Таблица2[[#This Row],[Name]]) ->  | F109: =IFERROR(VLOOKUP(B109,Baza[[№]:[Profit]],3,0),"") ->  | G109: =IFERROR(VLOOKUP(B109,Baza[[№]:[Profit]],4,0),"") ->  | H109: =IFERROR(VLOOKUP(B109,Baza[[№]:[Profit]],5,0),"") ->  | I109: =IFERROR(VLOOKUP(B109,Baza[[№]:[Profit]],6,0),"") ->  | J109: =IFERROR(VLOOKUP(B109,Baza[[№]:[Profit]],7,0),"") ->  | K109: =IFERROR(VLOOKUP(B109,Baza[[№]:[Profit]],8,0),"") ->  | L109: =IFERROR(VLOOKUP(B109,Baza[[№]:[Profit]],9,0),"") ->  | M109: =IFERROR(VLOOKUP(B109,Baza[[№]:[Profit]],10,0),"") ->  | N109: =IFERROR(IF(VLOOKUP(B109,Baza[[№]:[Profit]],11,0)=0,"-",VLOOKUP(B109,Baza[[№]:[Profit]],11,0)),"") ->  | O109: =IFERROR(IF(VLOOKUP(B109,Baza[[№]:[Profit]],12,0)=0,"-",VLOOKUP(B109,Baza[[№]:[Profit]],12,0)),"") ->  | P109: =IFERROR(IF(VLOOKUP(B109,Baza[[№]:[Profit]],13,0)=0,"-",VLOOKUP(B109,Baza[[№]:[Profit]],13,0)),"") ->  | Q109: =IFERROR(IF(VLOOKUP(B109,Baza[[№]:[Profit]],15,0)=0,"-",VLOOKUP(B109,Baza[[№]:[Profit]],15,0)),"") ->  | R109: =IFERROR(IF(VLOOKUP(B109,Baza[[№]:[Profit]],16,0)=0,"-",VLOOKUP(B109,Baza[[№]:[Profit]],16,0)),"") ->  | S109: =IFERROR(IF(VLOOKUP(B109,Baza[[№]:[Profit]],17,0)=0,"-",VLOOKUP(B109,Baza[[№]:[Profit]],17,0)),"") ->  | T109: =IFERROR(IF(VLOOKUP(B109,Baza[[№]:[Profit]],18,0)=0,"-",VLOOKUP(B109,Baza[[№]:[Profit]],18,0)),"") ->  | U109: =IFERROR(IF(VLOOKUP(B109,Baza[[№]:[Profit]],19,0)=0,"-",VLOOKUP(B109,Baza[[№]:[Profit]],19,0)),"") ->  | V109: =IFERROR(VLOOKUP(B109,Baza[[№]:[Profit]],20,0),"") ->  | W109: =IFERROR(IF(VLOOKUP(B109,Baza[[№]:[Profit]],21,0)=0,"-",VLOOKUP(B109,Baza[[№]:[Profit]],21,0)),"") ->  | X109: =IFERROR(IF(VLOOKUP(B109,Baza[[№]:[Profit]],22,0)=0,"-",VLOOKUP(B109,Baza[[№]:[Profit]],22,0)),"") ->  | Y109: =IFERROR(VLOOKUP(B109,Baza[[№]:[Profit]],23,0),"") ->  | Z109: =IFERROR(VLOOKUP(B109,Baza[[№]:[AFS]],24,0),"") ->  | AA109: =IF(Таблица2[[#This Row],[Profit]]="","#Н/Д",SUM($Y$40:Y109)) -> #Н/Д | AB109: =IF(Таблица2[[#This Row],[Grafik]]="#Н/Д",FALSE,TRUE) -> FALSE
A110: 71 | C110: =IFERROR(VLOOKUP(B110,Baza[[№]:[Profit]],2,0),"") ->  | D110: =IF(Таблица2[[#This Row],[NN]]="","",TEXT(Таблица2[[#This Row],[Start]],"ч:мм")&" "&IF(OR(Таблица2[[#This Row],[Room]]="WN",Таблица2[[#This Row],[Room]]="ES"),"€","$")&Таблица2[[#This Row],[B]]&" "&"["&Таблица2[[#This Row],[Room]]&"] "&Таблица2[[#This Row],[Name]]) ->  | E110: =IF(Таблица2[[#This Row],[NN]]="","",IF(OR(Таблица2[[#This Row],[Room]]="WN",Таблица2[[#This Row],[Room]]="ES"),"€","$")&Таблица2[[#This Row],[B]]&" "&"["&Таблица2[[#This Row],[Room]]&"] "&Таблица2[[#This Row],[Name]]) ->  | F110: =IFERROR(VLOOKUP(B110,Baza[[№]:[Profit]],3,0),"") ->  | G110: =IFERROR(VLOOKUP(B110,Baza[[№]:[Profit]],4,0),"") ->  | H110: =IFERROR(VLOOKUP(B110,Baza[[№]:[Profit]],5,0),"") ->  | I110: =IFERROR(VLOOKUP(B110,Baza[[№]:[Profit]],6,0),"") ->  | J110: =IFERROR(VLOOKUP(B110,Baza[[№]:[Profit]],7,0),"") ->  | K110: =IFERROR(VLOOKUP(B110,Baza[[№]:[Profit]],8,0),"") ->  | L110: =IFERROR(VLOOKUP(B110,Baza[[№]:[Profit]],9,0),"") ->  | M110: =IFERROR(VLOOKUP(B110,Baza[[№]:[Profit]],10,0),"") ->  | N110: =IFERROR(IF(VLOOKUP(B110,Baza[[№]:[Profit]],11,0)=0,"-",VLOOKUP(B110,Baza[[№]:[Profit]],11,0)),"") ->  | O110: =IFERROR(IF(VLOOKUP(B110,Baza[[№]:[Profit]],12,0)=0,"-",VLOOKUP(B110,Baza[[№]:[Profit]],12,0)),"") ->  | P110: =IFERROR(IF(VLOOKUP(B110,Baza[[№]:[Profit]],13,0)=0,"-",VLOOKUP(B110,Baza[[№]:[Profit]],13,0)),"") ->  | Q110: =IFERROR(IF(VLOOKUP(B110,Baza[[№]:[Profit]],15,0)=0,"-",VLOOKUP(B110,Baza[[№]:[Profit]],15,0)),"") ->  | R110: =IFERROR(IF(VLOOKUP(B110,Baza[[№]:[Profit]],16,0)=0,"-",VLOOKUP(B110,Baza[[№]:[Profit]],16,0)),"") ->  | S110: =IFERROR(IF(VLOOKUP(B110,Baza[[№]:[Profit]],17,0)=0,"-",VLOOKUP(B110,Baza[[№]:[Profit]],17,0)),"") ->  | T110: =IFERROR(IF(VLOOKUP(B110,Baza[[№]:[Profit]],18,0)=0,"-",VLOOKUP(B110,Baza[[№]:[Profit]],18,0)),"") ->  | U110: =IFERROR(IF(VLOOKUP(B110,Baza[[№]:[Profit]],19,0)=0,"-",VLOOKUP(B110,Baza[[№]:[Profit]],19,0)),"") ->  | V110: =IFERROR(VLOOKUP(B110,Baza[[№]:[Profit]],20,0),"") ->  | W110: =IFERROR(IF(VLOOKUP(B110,Baza[[№]:[Profit]],21,0)=0,"-",VLOOKUP(B110,Baza[[№]:[Profit]],21,0)),"") ->  | X110: =IFERROR(IF(VLOOKUP(B110,Baza[[№]:[Profit]],22,0)=0,"-",VLOOKUP(B110,Baza[[№]:[Profit]],22,0)),"") ->  | Y110: =IFERROR(VLOOKUP(B110,Baza[[№]:[Profit]],23,0),"") ->  | Z110: =IFERROR(VLOOKUP(B110,Baza[[№]:[AFS]],24,0),"") ->  | AA110: =IF(Таблица2[[#This Row],[Profit]]="","#Н/Д",SUM($Y$40:Y110)) -> #Н/Д | AB110: =IF(Таблица2[[#This Row],[Grafik]]="#Н/Д",FALSE,TRUE) -> FALSE
A111: 72 | C111: =IFERROR(VLOOKUP(B111,Baza[[№]:[Profit]],2,0),"") ->  | D111: =IF(Таблица2[[#This Row],[NN]]="","",TEXT(Таблица2[[#This Row],[Start]],"ч:мм")&" "&IF(OR(Таблица2[[#This Row],[Room]]="WN",Таблица2[[#This Row],[Room]]="ES"),"€","$")&Таблица2[[#This Row],[B]]&" "&"["&Таблица2[[#This Row],[Room]]&"] "&Таблица2[[#This Row],[Name]]) ->  | E111: =IF(Таблица2[[#This Row],[NN]]="","",IF(OR(Таблица2[[#This Row],[Room]]="WN",Таблица2[[#This Row],[Room]]="ES"),"€","$")&Таблица2[[#This Row],[B]]&" "&"["&Таблица2[[#This Row],[Room]]&"] "&Таблица2[[#This Row],[Name]]) ->  | F111: =IFERROR(VLOOKUP(B111,Baza[[№]:[Profit]],3,0),"") ->  | G111: =IFERROR(VLOOKUP(B111,Baza[[№]:[Profit]],4,0),"") ->  | H111: =IFERROR(VLOOKUP(B111,Baza[[№]:[Profit]],5,0),"") ->  | I111: =IFERROR(VLOOKUP(B111,Baza[[№]:[Profit]],6,0),"") ->  | J111: =IFERROR(VLOOKUP(B111,Baza[[№]:[Profit]],7,0),"") ->  | K111: =IFERROR(VLOOKUP(B111,Baza[[№]:[Profit]],8,0),"") ->  | L111: =IFERROR(VLOOKUP(B111,Baza[[№]:[Profit]],9,0),"") ->  | M111: =IFERROR(VLOOKUP(B111,Baza[[№]:[Profit]],10,0),"") ->  | N111: =IFERROR(IF(VLOOKUP(B111,Baza[[№]:[Profit]],11,0)=0,"-",VLOOKUP(B111,Baza[[№]:[Profit]],11,0)),"") ->  | O111: =IFERROR(IF(VLOOKUP(B111,Baza[[№]:[Profit]],12,0)=0,"-",VLOOKUP(B111,Baza[[№]:[Profit]],12,0)),"") ->  | P111: =IFERROR(IF(VLOOKUP(B111,Baza[[№]:[Profit]],13,0)=0,"-",VLOOKUP(B111,Baza[[№]:[Profit]],13,0)),"") ->  | Q111: =IFERROR(IF(VLOOKUP(B111,Baza[[№]:[Profit]],15,0)=0,"-",VLOOKUP(B111,Baza[[№]:[Profit]],15,0)),"") ->  | R111: =IFERROR(IF(VLOOKUP(B111,Baza[[№]:[Profit]],16,0)=0,"-",VLOOKUP(B111,Baza[[№]:[Profit]],16,0)),"") ->  | S111: =IFERROR(IF(VLOOKUP(B111,Baza[[№]:[Profit]],17,0)=0,"-",VLOOKUP(B111,Baza[[№]:[Profit]],17,0)),"") ->  | T111: =IFERROR(IF(VLOOKUP(B111,Baza[[№]:[Profit]],18,0)=0,"-",VLOOKUP(B111,Baza[[№]:[Profit]],18,0)),"") ->  | U111: =IFERROR(IF(VLOOKUP(B111,Baza[[№]:[Profit]],19,0)=0,"-",VLOOKUP(B111,Baza[[№]:[Profit]],19,0)),"") ->  | V111: =IFERROR(VLOOKUP(B111,Baza[[№]:[Profit]],20,0),"") ->  | W111: =IFERROR(IF(VLOOKUP(B111,Baza[[№]:[Profit]],21,0)=0,"-",VLOOKUP(B111,Baza[[№]:[Profit]],21,0)),"") ->  | X111: =IFERROR(IF(VLOOKUP(B111,Baza[[№]:[Profit]],22,0)=0,"-",VLOOKUP(B111,Baza[[№]:[Profit]],22,0)),"") ->  | Y111: =IFERROR(VLOOKUP(B111,Baza[[№]:[Profit]],23,0),"") ->  | Z111: =IFERROR(VLOOKUP(B111,Baza[[№]:[AFS]],24,0),"") ->  | AA111: =IF(Таблица2[[#This Row],[Profit]]="","#Н/Д",SUM($Y$40:Y111)) -> #Н/Д | AB111: =IF(Таблица2[[#This Row],[Grafik]]="#Н/Д",FALSE,TRUE) -> FALSE
A112: 73 | C112: =IFERROR(VLOOKUP(B112,Baza[[№]:[Profit]],2,0),"") ->  | D112: =IF(Таблица2[[#This Row],[NN]]="","",TEXT(Таблица2[[#This Row],[Start]],"ч:мм")&" "&IF(OR(Таблица2[[#This Row],[Room]]="WN",Таблица2[[#This Row],[Room]]="ES"),"€","$")&Таблица2[[#This Row],[B]]&" "&"["&Таблица2[[#This Row],[Room]]&"] "&Таблица2[[#This Row],[Name]]) ->  | E112: =IF(Таблица2[[#This Row],[NN]]="","",IF(OR(Таблица2[[#This Row],[Room]]="WN",Таблица2[[#This Row],[Room]]="ES"),"€","$")&Таблица2[[#This Row],[B]]&" "&"["&Таблица2[[#This Row],[Room]]&"] "&Таблица2[[#This Row],[Name]]) ->  | F112: =IFERROR(VLOOKUP(B112,Baza[[№]:[Profit]],3,0),"") ->  | G112: =IFERROR(VLOOKUP(B112,Baza[[№]:[Profit]],4,0),"") ->  | H112: =IFERROR(VLOOKUP(B112,Baza[[№]:[Profit]],5,0),"") ->  | I112: =IFERROR(VLOOKUP(B112,Baza[[№]:[Profit]],6,0),"") ->  | J112: =IFERROR(VLOOKUP(B112,Baza[[№]:[Profit]],7,0),"") ->  | K112: =IFERROR(VLOOKUP(B112,Baza[[№]:[Profit]],8,0),"") ->  | L112: =IFERROR(VLOOKUP(B112,Baza[[№]:[Profit]],9,0),"") ->  | M112: =IFERROR(VLOOKUP(B112,Baza[[№]:[Profit]],10,0),"") ->  | N112: =IFERROR(IF(VLOOKUP(B112,Baza[[№]:[Profit]],11,0)=0,"-",VLOOKUP(B112,Baza[[№]:[Profit]],11,0)),"") ->  | O112: =IFERROR(IF(VLOOKUP(B112,Baza[[№]:[Profit]],12,0)=0,"-",VLOOKUP(B112,Baza[[№]:[Profit]],12,0)),"") ->  | P112: =IFERROR(IF(VLOOKUP(B112,Baza[[№]:[Profit]],13,0)=0,"-",VLOOKUP(B112,Baza[[№]:[Profit]],13,0)),"") ->  | Q112: =IFERROR(IF(VLOOKUP(B112,Baza[[№]:[Profit]],15,0)=0,"-",VLOOKUP(B112,Baza[[№]:[Profit]],15,0)),"") ->  | R112: =IFERROR(IF(VLOOKUP(B112,Baza[[№]:[Profit]],16,0)=0,"-",VLOOKUP(B112,Baza[[№]:[Profit]],16,0)),"") ->  | S112: =IFERROR(IF(VLOOKUP(B112,Baza[[№]:[Profit]],17,0)=0,"-",VLOOKUP(B112,Baza[[№]:[Profit]],17,0)),"") ->  | T112: =IFERROR(IF(VLOOKUP(B112,Baza[[№]:[Profit]],18,0)=0,"-",VLOOKUP(B112,Baza[[№]:[Profit]],18,0)),"") ->  | U112: =IFERROR(IF(VLOOKUP(B112,Baza[[№]:[Profit]],19,0)=0,"-",VLOOKUP(B112,Baza[[№]:[Profit]],19,0)),"") ->  | V112: =IFERROR(VLOOKUP(B112,Baza[[№]:[Profit]],20,0),"") ->  | W112: =IFERROR(IF(VLOOKUP(B112,Baza[[№]:[Profit]],21,0)=0,"-",VLOOKUP(B112,Baza[[№]:[Profit]],21,0)),"") ->  | X112: =IFERROR(IF(VLOOKUP(B112,Baza[[№]:[Profit]],22,0)=0,"-",VLOOKUP(B112,Baza[[№]:[Profit]],22,0)),"") ->  | Y112: =IFERROR(VLOOKUP(B112,Baza[[№]:[Profit]],23,0),"") ->  | Z112: =IFERROR(VLOOKUP(B112,Baza[[№]:[AFS]],24,0),"") ->  | AA112: =IF(Таблица2[[#This Row],[Profit]]="","#Н/Д",SUM($Y$40:Y112)) -> #Н/Д | AB112: =IF(Таблица2[[#This Row],[Grafik]]="#Н/Д",FALSE,TRUE) -> FALSE
A113: 74 | C113: =IFERROR(VLOOKUP(B113,Baza[[№]:[Profit]],2,0),"") ->  | D113: =IF(Таблица2[[#This Row],[NN]]="","",TEXT(Таблица2[[#This Row],[Start]],"ч:мм")&" "&IF(OR(Таблица2[[#This Row],[Room]]="WN",Таблица2[[#This Row],[Room]]="ES"),"€","$")&Таблица2[[#This Row],[B]]&" "&"["&Таблица2[[#This Row],[Room]]&"] "&Таблица2[[#This Row],[Name]]) ->  | E113: =IF(Таблица2[[#This Row],[NN]]="","",IF(OR(Таблица2[[#This Row],[Room]]="WN",Таблица2[[#This Row],[Room]]="ES"),"€","$")&Таблица2[[#This Row],[B]]&" "&"["&Таблица2[[#This Row],[Room]]&"] "&Таблица2[[#This Row],[Name]]) ->  | F113: =IFERROR(VLOOKUP(B113,Baza[[№]:[Profit]],3,0),"") ->  | G113: =IFERROR(VLOOKUP(B113,Baza[[№]:[Profit]],4,0),"") ->  | H113: =IFERROR(VLOOKUP(B113,Baza[[№]:[Profit]],5,0),"") ->  | I113: =IFERROR(VLOOKUP(B113,Baza[[№]:[Profit]],6,0),"") ->  | J113: =IFERROR(VLOOKUP(B113,Baza[[№]:[Profit]],7,0),"") ->  | K113: =IFERROR(VLOOKUP(B113,Baza[[№]:[Profit]],8,0),"") ->  | L113: =IFERROR(VLOOKUP(B113,Baza[[№]:[Profit]],9,0),"") ->  | M113: =IFERROR(VLOOKUP(B113,Baza[[№]:[Profit]],10,0),"") ->  | N113: =IFERROR(IF(VLOOKUP(B113,Baza[[№]:[Profit]],11,0)=0,"-",VLOOKUP(B113,Baza[[№]:[Profit]],11,0)),"") ->  | O113: =IFERROR(IF(VLOOKUP(B113,Baza[[№]:[Profit]],12,0)=0,"-",VLOOKUP(B113,Baza[[№]:[Profit]],12,0)),"") ->  | P113: =IFERROR(IF(VLOOKUP(B113,Baza[[№]:[Profit]],13,0)=0,"-",VLOOKUP(B113,Baza[[№]:[Profit]],13,0)),"") ->  | Q113: =IFERROR(IF(VLOOKUP(B113,Baza[[№]:[Profit]],15,0)=0,"-",VLOOKUP(B113,Baza[[№]:[Profit]],15,0)),"") ->  | R113: =IFERROR(IF(VLOOKUP(B113,Baza[[№]:[Profit]],16,0)=0,"-",VLOOKUP(B113,Baza[[№]:[Profit]],16,0)),"") ->  | S113: =IFERROR(IF(VLOOKUP(B113,Baza[[№]:[Profit]],17,0)=0,"-",VLOOKUP(B113,Baza[[№]:[Profit]],17,0)),"") ->  | T113: =IFERROR(IF(VLOOKUP(B113,Baza[[№]:[Profit]],18,0)=0,"-",VLOOKUP(B113,Baza[[№]:[Profit]],18,0)),"") ->  | U113: =IFERROR(IF(VLOOKUP(B113,Baza[[№]:[Profit]],19,0)=0,"-",VLOOKUP(B113,Baza[[№]:[Profit]],19,0)),"") ->  | V113: =IFERROR(VLOOKUP(B113,Baza[[№]:[Profit]],20,0),"") ->  | W113: =IFERROR(IF(VLOOKUP(B113,Baza[[№]:[Profit]],21,0)=0,"-",VLOOKUP(B113,Baza[[№]:[Profit]],21,0)),"") ->  | X113: =IFERROR(IF(VLOOKUP(B113,Baza[[№]:[Profit]],22,0)=0,"-",VLOOKUP(B113,Baza[[№]:[Profit]],22,0)),"") ->  | Y113: =IFERROR(VLOOKUP(B113,Baza[[№]:[Profit]],23,0),"") ->  | Z113: =IFERROR(VLOOKUP(B113,Baza[[№]:[AFS]],24,0),"") ->  | AA113: =IF(Таблица2[[#This Row],[Profit]]="","#Н/Д",SUM($Y$40:Y113)) -> #Н/Д | AB113: =IF(Таблица2[[#This Row],[Grafik]]="#Н/Д",FALSE,TRUE) -> FALSE
A114: 75 | C114: =IFERROR(VLOOKUP(B114,Baza[[№]:[Profit]],2,0),"") ->  | D114: =IF(Таблица2[[#This Row],[NN]]="","",TEXT(Таблица2[[#This Row],[Start]],"ч:мм")&" "&IF(OR(Таблица2[[#This Row],[Room]]="WN",Таблица2[[#This Row],[Room]]="ES"),"€","$")&Таблица2[[#This Row],[B]]&" "&"["&Таблица2[[#This Row],[Room]]&"] "&Таблица2[[#This Row],[Name]]) ->  | E114: =IF(Таблица2[[#This Row],[NN]]="","",IF(OR(Таблица2[[#This Row],[Room]]="WN",Таблица2[[#This Row],[Room]]="ES"),"€","$")&Таблица2[[#This Row],[B]]&" "&"["&Таблица2[[#This Row],[Room]]&"] "&Таблица2[[#This Row],[Name]]) ->  | F114: =IFERROR(VLOOKUP(B114,Baza[[№]:[Profit]],3,0),"") ->  | G114: =IFERROR(VLOOKUP(B114,Baza[[№]:[Profit]],4,0),"") ->  | H114: =IFERROR(VLOOKUP(B114,Baza[[№]:[Profit]],5,0),"") ->  | I114: =IFERROR(VLOOKUP(B114,Baza[[№]:[Profit]],6,0),"") ->  | J114: =IFERROR(VLOOKUP(B114,Baza[[№]:[Profit]],7,0),"") ->  | K114: =IFERROR(VLOOKUP(B114,Baza[[№]:[Profit]],8,0),"") ->  | L114: =IFERROR(VLOOKUP(B114,Baza[[№]:[Profit]],9,0),"") ->  | M114: =IFERROR(VLOOKUP(B114,Baza[[№]:[Profit]],10,0),"") ->  | N114: =IFERROR(IF(VLOOKUP(B114,Baza[[№]:[Profit]],11,0)=0,"-",VLOOKUP(B114,Baza[[№]:[Profit]],11,0)),"") ->  | O114: =IFERROR(IF(VLOOKUP(B114,Baza[[№]:[Profit]],12,0)=0,"-",VLOOKUP(B114,Baza[[№]:[Profit]],12,0)),"") ->  | P114: =IFERROR(IF(VLOOKUP(B114,Baza[[№]:[Profit]],13,0)=0,"-",VLOOKUP(B114,Baza[[№]:[Profit]],13,0)),"") ->  | Q114: =IFERROR(IF(VLOOKUP(B114,Baza[[№]:[Profit]],15,0)=0,"-",VLOOKUP(B114,Baza[[№]:[Profit]],15,0)),"") ->  | R114: =IFERROR(IF(VLOOKUP(B114,Baza[[№]:[Profit]],16,0)=0,"-",VLOOKUP(B114,Baza[[№]:[Profit]],16,0)),"") ->  | S114: =IFERROR(IF(VLOOKUP(B114,Baza[[№]:[Profit]],17,0)=0,"-",VLOOKUP(B114,Baza[[№]:[Profit]],17,0)),"") ->  | T114: =IFERROR(IF(VLOOKUP(B114,Baza[[№]:[Profit]],18,0)=0,"-",VLOOKUP(B114,Baza[[№]:[Profit]],18,0)),"") ->  | U114: =IFERROR(IF(VLOOKUP(B114,Baza[[№]:[Profit]],19,0)=0,"-",VLOOKUP(B114,Baza[[№]:[Profit]],19,0)),"") ->  | V114: =IFERROR(VLOOKUP(B114,Baza[[№]:[Profit]],20,0),"") ->  | W114: =IFERROR(IF(VLOOKUP(B114,Baza[[№]:[Profit]],21,0)=0,"-",VLOOKUP(B114,Baza[[№]:[Profit]],21,0)),"") ->  | X114: =IFERROR(IF(VLOOKUP(B114,Baza[[№]:[Profit]],22,0)=0,"-",VLOOKUP(B114,Baza[[№]:[Profit]],22,0)),"") ->  | Y114: =IFERROR(VLOOKUP(B114,Baza[[№]:[Profit]],23,0),"") ->  | Z114: =IFERROR(VLOOKUP(B114,Baza[[№]:[AFS]],24,0),"") ->  | AA114: =IF(Таблица2[[#This Row],[Profit]]="","#Н/Д",SUM($Y$40:Y114)) -> #Н/Д | AB114: =IF(Таблица2[[#This Row],[Grafik]]="#Н/Д",FALSE,TRUE) -> FALSE
A115: 76 | C115: =IFERROR(VLOOKUP(B115,Baza[[№]:[Profit]],2,0),"") ->  | D115: =IF(Таблица2[[#This Row],[NN]]="","",TEXT(Таблица2[[#This Row],[Start]],"ч:мм")&" "&IF(OR(Таблица2[[#This Row],[Room]]="WN",Таблица2[[#This Row],[Room]]="ES"),"€","$")&Таблица2[[#This Row],[B]]&" "&"["&Таблица2[[#This Row],[Room]]&"] "&Таблица2[[#This Row],[Name]]) ->  | E115: =IF(Таблица2[[#This Row],[NN]]="","",IF(OR(Таблица2[[#This Row],[Room]]="WN",Таблица2[[#This Row],[Room]]="ES"),"€","$")&Таблица2[[#This Row],[B]]&" "&"["&Таблица2[[#This Row],[Room]]&"] "&Таблица2[[#This Row],[Name]]) ->  | F115: =IFERROR(VLOOKUP(B115,Baza[[№]:[Profit]],3,0),"") ->  | G115: =IFERROR(VLOOKUP(B115,Baza[[№]:[Profit]],4,0),"") ->  | H115: =IFERROR(VLOOKUP(B115,Baza[[№]:[Profit]],5,0),"") ->  | I115: =IFERROR(VLOOKUP(B115,Baza[[№]:[Profit]],6,0),"") ->  | J115: =IFERROR(VLOOKUP(B115,Baza[[№]:[Profit]],7,0),"") ->  | K115: =IFERROR(VLOOKUP(B115,Baza[[№]:[Profit]],8,0),"") ->  | L115: =IFERROR(VLOOKUP(B115,Baza[[№]:[Profit]],9,0),"") ->  | M115: =IFERROR(VLOOKUP(B115,Baza[[№]:[Profit]],10,0),"") ->  | N115: =IFERROR(IF(VLOOKUP(B115,Baza[[№]:[Profit]],11,0)=0,"-",VLOOKUP(B115,Baza[[№]:[Profit]],11,0)),"") ->  | O115: =IFERROR(IF(VLOOKUP(B115,Baza[[№]:[Profit]],12,0)=0,"-",VLOOKUP(B115,Baza[[№]:[Profit]],12,0)),"") ->  | P115: =IFERROR(IF(VLOOKUP(B115,Baza[[№]:[Profit]],13,0)=0,"-",VLOOKUP(B115,Baza[[№]:[Profit]],13,0)),"") ->  | Q115: =IFERROR(IF(VLOOKUP(B115,Baza[[№]:[Profit]],15,0)=0,"-",VLOOKUP(B115,Baza[[№]:[Profit]],15,0)),"") ->  | R115: =IFERROR(IF(VLOOKUP(B115,Baza[[№]:[Profit]],16,0)=0,"-",VLOOKUP(B115,Baza[[№]:[Profit]],16,0)),"") ->  | S115: =IFERROR(IF(VLOOKUP(B115,Baza[[№]:[Profit]],17,0)=0,"-",VLOOKUP(B115,Baza[[№]:[Profit]],17,0)),"") ->  | T115: =IFERROR(IF(VLOOKUP(B115,Baza[[№]:[Profit]],18,0)=0,"-",VLOOKUP(B115,Baza[[№]:[Profit]],18,0)),"") ->  | U115: =IFERROR(IF(VLOOKUP(B115,Baza[[№]:[Profit]],19,0)=0,"-",VLOOKUP(B115,Baza[[№]:[Profit]],19,0)),"") ->  | V115: =IFERROR(VLOOKUP(B115,Baza[[№]:[Profit]],20,0),"") ->  | W115: =IFERROR(IF(VLOOKUP(B115,Baza[[№]:[Profit]],21,0)=0,"-",VLOOKUP(B115,Baza[[№]:[Profit]],21,0)),"") ->  | X115: =IFERROR(IF(VLOOKUP(B115,Baza[[№]:[Profit]],22,0)=0,"-",VLOOKUP(B115,Baza[[№]:[Profit]],22,0)),"") ->  | Y115: =IFERROR(VLOOKUP(B115,Baza[[№]:[Profit]],23,0),"") ->  | Z115: =IFERROR(VLOOKUP(B115,Baza[[№]:[AFS]],24,0),"") ->  | AA115: =IF(Таблица2[[#This Row],[Profit]]="","#Н/Д",SUM($Y$40:Y115)) -> #Н/Д | AB115: =IF(Таблица2[[#This Row],[Grafik]]="#Н/Д",FALSE,TRUE) -> FALSE
A116: 77 | C116: =IFERROR(VLOOKUP(B116,Baza[[№]:[Profit]],2,0),"") ->  | D116: =IF(Таблица2[[#This Row],[NN]]="","",TEXT(Таблица2[[#This Row],[Start]],"ч:мм")&" "&IF(OR(Таблица2[[#This Row],[Room]]="WN",Таблица2[[#This Row],[Room]]="ES"),"€","$")&Таблица2[[#This Row],[B]]&" "&"["&Таблица2[[#This Row],[Room]]&"] "&Таблица2[[#This Row],[Name]]) ->  | E116: =IF(Таблица2[[#This Row],[NN]]="","",IF(OR(Таблица2[[#This Row],[Room]]="WN",Таблица2[[#This Row],[Room]]="ES"),"€","$")&Таблица2[[#This Row],[B]]&" "&"["&Таблица2[[#This Row],[Room]]&"] "&Таблица2[[#This Row],[Name]]) ->  | F116: =IFERROR(VLOOKUP(B116,Baza[[№]:[Profit]],3,0),"") ->  | G116: =IFERROR(VLOOKUP(B116,Baza[[№]:[Profit]],4,0),"") ->  | H116: =IFERROR(VLOOKUP(B116,Baza[[№]:[Profit]],5,0),"") ->  | I116: =IFERROR(VLOOKUP(B116,Baza[[№]:[Profit]],6,0),"") ->  | J116: =IFERROR(VLOOKUP(B116,Baza[[№]:[Profit]],7,0),"") ->  | K116: =IFERROR(VLOOKUP(B116,Baza[[№]:[Profit]],8,0),"") ->  | L116: =IFERROR(VLOOKUP(B116,Baza[[№]:[Profit]],9,0),"") ->  | M116: =IFERROR(VLOOKUP(B116,Baza[[№]:[Profit]],10,0),"") ->  | N116: =IFERROR(IF(VLOOKUP(B116,Baza[[№]:[Profit]],11,0)=0,"-",VLOOKUP(B116,Baza[[№]:[Profit]],11,0)),"") ->  | O116: =IFERROR(IF(VLOOKUP(B116,Baza[[№]:[Profit]],12,0)=0,"-",VLOOKUP(B116,Baza[[№]:[Profit]],12,0)),"") ->  | P116: =IFERROR(IF(VLOOKUP(B116,Baza[[№]:[Profit]],13,0)=0,"-",VLOOKUP(B116,Baza[[№]:[Profit]],13,0)),"") ->  | Q116: =IFERROR(IF(VLOOKUP(B116,Baza[[№]:[Profit]],15,0)=0,"-",VLOOKUP(B116,Baza[[№]:[Profit]],15,0)),"") ->  | R116: =IFERROR(IF(VLOOKUP(B116,Baza[[№]:[Profit]],16,0)=0,"-",VLOOKUP(B116,Baza[[№]:[Profit]],16,0)),"") ->  | S116: =IFERROR(IF(VLOOKUP(B116,Baza[[№]:[Profit]],17,0)=0,"-",VLOOKUP(B116,Baza[[№]:[Profit]],17,0)),"") ->  | T116: =IFERROR(IF(VLOOKUP(B116,Baza[[№]:[Profit]],18,0)=0,"-",VLOOKUP(B116,Baza[[№]:[Profit]],18,0)),"") ->  | U116: =IFERROR(IF(VLOOKUP(B116,Baza[[№]:[Profit]],19,0)=0,"-",VLOOKUP(B116,Baza[[№]:[Profit]],19,0)),"") ->  | V116: =IFERROR(VLOOKUP(B116,Baza[[№]:[Profit]],20,0),"") ->  | W116: =IFERROR(IF(VLOOKUP(B116,Baza[[№]:[Profit]],21,0)=0,"-",VLOOKUP(B116,Baza[[№]:[Profit]],21,0)),"") ->  | X116: =IFERROR(IF(VLOOKUP(B116,Baza[[№]:[Profit]],22,0)=0,"-",VLOOKUP(B116,Baza[[№]:[Profit]],22,0)),"") ->  | Y116: =IFERROR(VLOOKUP(B116,Baza[[№]:[Profit]],23,0),"") ->  | Z116: =IFERROR(VLOOKUP(B116,Baza[[№]:[AFS]],24,0),"") ->  | AA116: =IF(Таблица2[[#This Row],[Profit]]="","#Н/Д",SUM($Y$40:Y116)) -> #Н/Д | AB116: =IF(Таблица2[[#This Row],[Grafik]]="#Н/Д",FALSE,TRUE) -> FALSE
A117: 78 | C117: =IFERROR(VLOOKUP(B117,Baza[[№]:[Profit]],2,0),"") ->  | D117: =IF(Таблица2[[#This Row],[NN]]="","",TEXT(Таблица2[[#This Row],[Start]],"ч:мм")&" "&IF(OR(Таблица2[[#This Row],[Room]]="WN",Таблица2[[#This Row],[Room]]="ES"),"€","$")&Таблица2[[#This Row],[B]]&" "&"["&Таблица2[[#This Row],[Room]]&"] "&Таблица2[[#This Row],[Name]]) ->  | E117: =IF(Таблица2[[#This Row],[NN]]="","",IF(OR(Таблица2[[#This Row],[Room]]="WN",Таблица2[[#This Row],[Room]]="ES"),"€","$")&Таблица2[[#This Row],[B]]&" "&"["&Таблица2[[#This Row],[Room]]&"] "&Таблица2[[#This Row],[Name]]) ->  | F117: =IFERROR(VLOOKUP(B117,Baza[[№]:[Profit]],3,0),"") ->  | G117: =IFERROR(VLOOKUP(B117,Baza[[№]:[Profit]],4,0),"") ->  | H117: =IFERROR(VLOOKUP(B117,Baza[[№]:[Profit]],5,0),"") ->  | I117: =IFERROR(VLOOKUP(B117,Baza[[№]:[Profit]],6,0),"") ->  | J117: =IFERROR(VLOOKUP(B117,Baza[[№]:[Profit]],7,0),"") ->  | K117: =IFERROR(VLOOKUP(B117,Baza[[№]:[Profit]],8,0),"") ->  | L117: =IFERROR(VLOOKUP(B117,Baza[[№]:[Profit]],9,0),"") ->  | M117: =IFERROR(VLOOKUP(B117,Baza[[№]:[Profit]],10,0),"") ->  | N117: =IFERROR(IF(VLOOKUP(B117,Baza[[№]:[Profit]],11,0)=0,"-",VLOOKUP(B117,Baza[[№]:[Profit]],11,0)),"") ->  | O117: =IFERROR(IF(VLOOKUP(B117,Baza[[№]:[Profit]],12,0)=0,"-",VLOOKUP(B117,Baza[[№]:[Profit]],12,0)),"") ->  | P117: =IFERROR(IF(VLOOKUP(B117,Baza[[№]:[Profit]],13,0)=0,"-",VLOOKUP(B117,Baza[[№]:[Profit]],13,0)),"") ->  | Q117: =IFERROR(IF(VLOOKUP(B117,Baza[[№]:[Profit]],15,0)=0,"-",VLOOKUP(B117,Baza[[№]:[Profit]],15,0)),"") ->  | R117: =IFERROR(IF(VLOOKUP(B117,Baza[[№]:[Profit]],16,0)=0,"-",VLOOKUP(B117,Baza[[№]:[Profit]],16,0)),"") ->  | S117: =IFERROR(IF(VLOOKUP(B117,Baza[[№]:[Profit]],17,0)=0,"-",VLOOKUP(B117,Baza[[№]:[Profit]],17,0)),"") ->  | T117: =IFERROR(IF(VLOOKUP(B117,Baza[[№]:[Profit]],18,0)=0,"-",VLOOKUP(B117,Baza[[№]:[Profit]],18,0)),"") ->  | U117: =IFERROR(IF(VLOOKUP(B117,Baza[[№]:[Profit]],19,0)=0,"-",VLOOKUP(B117,Baza[[№]:[Profit]],19,0)),"") ->  | V117: =IFERROR(VLOOKUP(B117,Baza[[№]:[Profit]],20,0),"") ->  | W117: =IFERROR(IF(VLOOKUP(B117,Baza[[№]:[Profit]],21,0)=0,"-",VLOOKUP(B117,Baza[[№]:[Profit]],21,0)),"") ->  | X117: =IFERROR(IF(VLOOKUP(B117,Baza[[№]:[Profit]],22,0)=0,"-",VLOOKUP(B117,Baza[[№]:[Profit]],22,0)),"") ->  | Y117: =IFERROR(VLOOKUP(B117,Baza[[№]:[Profit]],23,0),"") ->  | Z117: =IFERROR(VLOOKUP(B117,Baza[[№]:[AFS]],24,0),"") ->  | AA117: =IF(Таблица2[[#This Row],[Profit]]="","#Н/Д",SUM($Y$40:Y117)) -> #Н/Д | AB117: =IF(Таблица2[[#This Row],[Grafik]]="#Н/Д",FALSE,TRUE) -> FALSE
A118: 79 | C118: =IFERROR(VLOOKUP(B118,Baza[[№]:[Profit]],2,0),"") ->  | D118: =IF(Таблица2[[#This Row],[NN]]="","",TEXT(Таблица2[[#This Row],[Start]],"ч:мм")&" "&IF(OR(Таблица2[[#This Row],[Room]]="WN",Таблица2[[#This Row],[Room]]="ES"),"€","$")&Таблица2[[#This Row],[B]]&" "&"["&Таблица2[[#This Row],[Room]]&"] "&Таблица2[[#This Row],[Name]]) ->  | E118: =IF(Таблица2[[#This Row],[NN]]="","",IF(OR(Таблица2[[#This Row],[Room]]="WN",Таблица2[[#This Row],[Room]]="ES"),"€","$")&Таблица2[[#This Row],[B]]&" "&"["&Таблица2[[#This Row],[Room]]&"] "&Таблица2[[#This Row],[Name]]) ->  | F118: =IFERROR(VLOOKUP(B118,Baza[[№]:[Profit]],3,0),"") ->  | G118: =IFERROR(VLOOKUP(B118,Baza[[№]:[Profit]],4,0),"") ->  | H118: =IFERROR(VLOOKUP(B118,Baza[[№]:[Profit]],5,0),"") ->  | I118: =IFERROR(VLOOKUP(B118,Baza[[№]:[Profit]],6,0),"") ->  | J118: =IFERROR(VLOOKUP(B118,Baza[[№]:[Profit]],7,0),"") ->  | K118: =IFERROR(VLOOKUP(B118,Baza[[№]:[Profit]],8,0),"") ->  | L118: =IFERROR(VLOOKUP(B118,Baza[[№]:[Profit]],9,0),"") ->  | M118: =IFERROR(VLOOKUP(B118,Baza[[№]:[Profit]],10,0),"") ->  | N118: =IFERROR(IF(VLOOKUP(B118,Baza[[№]:[Profit]],11,0)=0,"-",VLOOKUP(B118,Baza[[№]:[Profit]],11,0)),"") ->  | O118: =IFERROR(IF(VLOOKUP(B118,Baza[[№]:[Profit]],12,0)=0,"-",VLOOKUP(B118,Baza[[№]:[Profit]],12,0)),"") ->  | P118: =IFERROR(IF(VLOOKUP(B118,Baza[[№]:[Profit]],13,0)=0,"-",VLOOKUP(B118,Baza[[№]:[Profit]],13,0)),"") ->  | Q118: =IFERROR(IF(VLOOKUP(B118,Baza[[№]:[Profit]],15,0)=0,"-",VLOOKUP(B118,Baza[[№]:[Profit]],15,0)),"") ->  | R118: =IFERROR(IF(VLOOKUP(B118,Baza[[№]:[Profit]],16,0)=0,"-",VLOOKUP(B118,Baza[[№]:[Profit]],16,0)),"") ->  | S118: =IFERROR(IF(VLOOKUP(B118,Baza[[№]:[Profit]],17,0)=0,"-",VLOOKUP(B118,Baza[[№]:[Profit]],17,0)),"") ->  | T118: =IFERROR(IF(VLOOKUP(B118,Baza[[№]:[Profit]],18,0)=0,"-",VLOOKUP(B118,Baza[[№]:[Profit]],18,0)),"") ->  | U118: =IFERROR(IF(VLOOKUP(B118,Baza[[№]:[Profit]],19,0)=0,"-",VLOOKUP(B118,Baza[[№]:[Profit]],19,0)),"") ->  | V118: =IFERROR(VLOOKUP(B118,Baza[[№]:[Profit]],20,0),"") ->  | W118: =IFERROR(IF(VLOOKUP(B118,Baza[[№]:[Profit]],21,0)=0,"-",VLOOKUP(B118,Baza[[№]:[Profit]],21,0)),"") ->  | X118: =IFERROR(IF(VLOOKUP(B118,Baza[[№]:[Profit]],22,0)=0,"-",VLOOKUP(B118,Baza[[№]:[Profit]],22,0)),"") ->  | Y118: =IFERROR(VLOOKUP(B118,Baza[[№]:[Profit]],23,0),"") ->  | Z118: =IFERROR(VLOOKUP(B118,Baza[[№]:[AFS]],24,0),"") ->  | AA118: =IF(Таблица2[[#This Row],[Profit]]="","#Н/Д",SUM($Y$40:Y118)) -> #Н/Д | AB118: =IF(Таблица2[[#This Row],[Grafik]]="#Н/Д",FALSE,TRUE) -> FALSE
A119: 80 | C119: =IFERROR(VLOOKUP(B119,Baza[[№]:[Profit]],2,0),"") ->  | D119: =IF(Таблица2[[#This Row],[NN]]="","",TEXT(Таблица2[[#This Row],[Start]],"ч:мм")&" "&IF(OR(Таблица2[[#This Row],[Room]]="WN",Таблица2[[#This Row],[Room]]="ES"),"€","$")&Таблица2[[#This Row],[B]]&" "&"["&Таблица2[[#This Row],[Room]]&"] "&Таблица2[[#This Row],[Name]]) ->  | E119: =IF(Таблица2[[#This Row],[NN]]="","",IF(OR(Таблица2[[#This Row],[Room]]="WN",Таблица2[[#This Row],[Room]]="ES"),"€","$")&Таблица2[[#This Row],[B]]&" "&"["&Таблица2[[#This Row],[Room]]&"] "&Таблица2[[#This Row],[Name]]) ->  | F119: =IFERROR(VLOOKUP(B119,Baza[[№]:[Profit]],3,0),"") ->  | G119: =IFERROR(VLOOKUP(B119,Baza[[№]:[Profit]],4,0),"") ->  | H119: =IFERROR(VLOOKUP(B119,Baza[[№]:[Profit]],5,0),"") ->  | I119: =IFERROR(VLOOKUP(B119,Baza[[№]:[Profit]],6,0),"") ->  | J119: =IFERROR(VLOOKUP(B119,Baza[[№]:[Profit]],7,0),"") ->  | K119: =IFERROR(VLOOKUP(B119,Baza[[№]:[Profit]],8,0),"") ->  | L119: =IFERROR(VLOOKUP(B119,Baza[[№]:[Profit]],9,0),"") ->  | M119: =IFERROR(VLOOKUP(B119,Baza[[№]:[Profit]],10,0),"") ->  | N119: =IFERROR(IF(VLOOKUP(B119,Baza[[№]:[Profit]],11,0)=0,"-",VLOOKUP(B119,Baza[[№]:[Profit]],11,0)),"") ->  | O119: =IFERROR(IF(VLOOKUP(B119,Baza[[№]:[Profit]],12,0)=0,"-",VLOOKUP(B119,Baza[[№]:[Profit]],12,0)),"") ->  | P119: =IFERROR(IF(VLOOKUP(B119,Baza[[№]:[Profit]],13,0)=0,"-",VLOOKUP(B119,Baza[[№]:[Profit]],13,0)),"") ->  | Q119: =IFERROR(IF(VLOOKUP(B119,Baza[[№]:[Profit]],15,0)=0,"-",VLOOKUP(B119,Baza[[№]:[Profit]],15,0)),"") ->  | R119: =IFERROR(IF(VLOOKUP(B119,Baza[[№]:[Profit]],16,0)=0,"-",VLOOKUP(B119,Baza[[№]:[Profit]],16,0)),"") ->  | S119: =IFERROR(IF(VLOOKUP(B119,Baza[[№]:[Profit]],17,0)=0,"-",VLOOKUP(B119,Baza[[№]:[Profit]],17,0)),"") ->  | T119: =IFERROR(IF(VLOOKUP(B119,Baza[[№]:[Profit]],18,0)=0,"-",VLOOKUP(B119,Baza[[№]:[Profit]],18,0)),"") ->  | U119: =IFERROR(IF(VLOOKUP(B119,Baza[[№]:[Profit]],19,0)=0,"-",VLOOKUP(B119,Baza[[№]:[Profit]],19,0)),"") ->  | V119: =IFERROR(VLOOKUP(B119,Baza[[№]:[Profit]],20,0),"") ->  | W119: =IFERROR(IF(VLOOKUP(B119,Baza[[№]:[Profit]],21,0)=0,"-",VLOOKUP(B119,Baza[[№]:[Profit]],21,0)),"") ->  | X119: =IFERROR(IF(VLOOKUP(B119,Baza[[№]:[Profit]],22,0)=0,"-",VLOOKUP(B119,Baza[[№]:[Profit]],22,0)),"") ->  | Y119: =IFERROR(VLOOKUP(B119,Baza[[№]:[Profit]],23,0),"") ->  | Z119: =IFERROR(VLOOKUP(B119,Baza[[№]:[AFS]],24,0),"") ->  | AA119: =IF(Таблица2[[#This Row],[Profit]]="","#Н/Д",SUM($Y$40:Y119)) -> #Н/Д | AB119: =IF(Таблица2[[#This Row],[Grafik]]="#Н/Д",FALSE,TRUE) -> FALSE
A120: 81 | C120: =IFERROR(VLOOKUP(B120,Baza[[№]:[Profit]],2,0),"") ->  | D120: =IF(Таблица2[[#This Row],[NN]]="","",TEXT(Таблица2[[#This Row],[Start]],"ч:мм")&" "&IF(OR(Таблица2[[#This Row],[Room]]="WN",Таблица2[[#This Row],[Room]]="ES"),"€","$")&Таблица2[[#This Row],[B]]&" "&"["&Таблица2[[#This Row],[Room]]&"] "&Таблица2[[#This Row],[Name]]) ->  | E120: =IF(Таблица2[[#This Row],[NN]]="","",IF(OR(Таблица2[[#This Row],[Room]]="WN",Таблица2[[#This Row],[Room]]="ES"),"€","$")&Таблица2[[#This Row],[B]]&" "&"["&Таблица2[[#This Row],[Room]]&"] "&Таблица2[[#This Row],[Name]]) ->  | F120: =IFERROR(VLOOKUP(B120,Baza[[№]:[Profit]],3,0),"") ->  | G120: =IFERROR(VLOOKUP(B120,Baza[[№]:[Profit]],4,0),"") ->  | H120: =IFERROR(VLOOKUP(B120,Baza[[№]:[Profit]],5,0),"") ->  | I120: =IFERROR(VLOOKUP(B120,Baza[[№]:[Profit]],6,0),"") ->  | J120: =IFERROR(VLOOKUP(B120,Baza[[№]:[Profit]],7,0),"") ->  | K120: =IFERROR(VLOOKUP(B120,Baza[[№]:[Profit]],8,0),"") ->  | L120: =IFERROR(VLOOKUP(B120,Baza[[№]:[Profit]],9,0),"") ->  | M120: =IFERROR(VLOOKUP(B120,Baza[[№]:[Profit]],10,0),"") ->  | N120: =IFERROR(IF(VLOOKUP(B120,Baza[[№]:[Profit]],11,0)=0,"-",VLOOKUP(B120,Baza[[№]:[Profit]],11,0)),"") ->  | O120: =IFERROR(IF(VLOOKUP(B120,Baza[[№]:[Profit]],12,0)=0,"-",VLOOKUP(B120,Baza[[№]:[Profit]],12,0)),"") ->  | P120: =IFERROR(IF(VLOOKUP(B120,Baza[[№]:[Profit]],13,0)=0,"-",VLOOKUP(B120,Baza[[№]:[Profit]],13,0)),"") ->  | Q120: =IFERROR(IF(VLOOKUP(B120,Baza[[№]:[Profit]],15,0)=0,"-",VLOOKUP(B120,Baza[[№]:[Profit]],15,0)),"") ->  | R120: =IFERROR(IF(VLOOKUP(B120,Baza[[№]:[Profit]],16,0)=0,"-",VLOOKUP(B120,Baza[[№]:[Profit]],16,0)),"") ->  | S120: =IFERROR(IF(VLOOKUP(B120,Baza[[№]:[Profit]],17,0)=0,"-",VLOOKUP(B120,Baza[[№]:[Profit]],17,0)),"") ->  | T120: =IFERROR(IF(VLOOKUP(B120,Baza[[№]:[Profit]],18,0)=0,"-",VLOOKUP(B120,Baza[[№]:[Profit]],18,0)),"") ->  | U120: =IFERROR(IF(VLOOKUP(B120,Baza[[№]:[Profit]],19,0)=0,"-",VLOOKUP(B120,Baza[[№]:[Profit]],19,0)),"") ->  | V120: =IFERROR(VLOOKUP(B120,Baza[[№]:[Profit]],20,0),"") ->  | W120: =IFERROR(IF(VLOOKUP(B120,Baza[[№]:[Profit]],21,0)=0,"-",VLOOKUP(B120,Baza[[№]:[Profit]],21,0)),"") ->  | X120: =IFERROR(IF(VLOOKUP(B120,Baza[[№]:[Profit]],22,0)=0,"-",VLOOKUP(B120,Baza[[№]:[Profit]],22,0)),"") ->  | Y120: =IFERROR(VLOOKUP(B120,Baza[[№]:[Profit]],23,0),"") ->  | Z120: =IFERROR(VLOOKUP(B120,Baza[[№]:[AFS]],24,0),"") ->  | AA120: =IF(Таблица2[[#This Row],[Profit]]="","#Н/Д",SUM($Y$40:Y120)) -> #Н/Д | AB120: =IF(Таблица2[[#This Row],[Grafik]]="#Н/Д",FALSE,TRUE) -> FALSE
A121: 82 | C121: =IFERROR(VLOOKUP(B121,Baza[[№]:[Profit]],2,0),"") ->  | D121: =IF(Таблица2[[#This Row],[NN]]="","",TEXT(Таблица2[[#This Row],[Start]],"ч:мм")&" "&IF(OR(Таблица2[[#This Row],[Room]]="WN",Таблица2[[#This Row],[Room]]="ES"),"€","$")&Таблица2[[#This Row],[B]]&" "&"["&Таблица2[[#This Row],[Room]]&"] "&Таблица2[[#This Row],[Name]]) ->  | E121: =IF(Таблица2[[#This Row],[NN]]="","",IF(OR(Таблица2[[#This Row],[Room]]="WN",Таблица2[[#This Row],[Room]]="ES"),"€","$")&Таблица2[[#This Row],[B]]&" "&"["&Таблица2[[#This Row],[Room]]&"] "&Таблица2[[#This Row],[Name]]) ->  | F121: =IFERROR(VLOOKUP(B121,Baza[[№]:[Profit]],3,0),"") ->  | G121: =IFERROR(VLOOKUP(B121,Baza[[№]:[Profit]],4,0),"") ->  | H121: =IFERROR(VLOOKUP(B121,Baza[[№]:[Profit]],5,0),"") ->  | I121: =IFERROR(VLOOKUP(B121,Baza[[№]:[Profit]],6,0),"") ->  | J121: =IFERROR(VLOOKUP(B121,Baza[[№]:[Profit]],7,0),"") ->  | K121: =IFERROR(VLOOKUP(B121,Baza[[№]:[Profit]],8,0),"") ->  | L121: =IFERROR(VLOOKUP(B121,Baza[[№]:[Profit]],9,0),"") ->  | M121: =IFERROR(VLOOKUP(B121,Baza[[№]:[Profit]],10,0),"") ->  | N121: =IFERROR(IF(VLOOKUP(B121,Baza[[№]:[Profit]],11,0)=0,"-",VLOOKUP(B121,Baza[[№]:[Profit]],11,0)),"") ->  | O121: =IFERROR(IF(VLOOKUP(B121,Baza[[№]:[Profit]],12,0)=0,"-",VLOOKUP(B121,Baza[[№]:[Profit]],12,0)),"") ->  | P121: =IFERROR(IF(VLOOKUP(B121,Baza[[№]:[Profit]],13,0)=0,"-",VLOOKUP(B121,Baza[[№]:[Profit]],13,0)),"") ->  | Q121: =IFERROR(IF(VLOOKUP(B121,Baza[[№]:[Profit]],15,0)=0,"-",VLOOKUP(B121,Baza[[№]:[Profit]],15,0)),"") ->  | R121: =IFERROR(IF(VLOOKUP(B121,Baza[[№]:[Profit]],16,0)=0,"-",VLOOKUP(B121,Baza[[№]:[Profit]],16,0)),"") ->  | S121: =IFERROR(IF(VLOOKUP(B121,Baza[[№]:[Profit]],17,0)=0,"-",VLOOKUP(B121,Baza[[№]:[Profit]],17,0)),"") ->  | T121: =IFERROR(IF(VLOOKUP(B121,Baza[[№]:[Profit]],18,0)=0,"-",VLOOKUP(B121,Baza[[№]:[Profit]],18,0)),"") ->  | U121: =IFERROR(IF(VLOOKUP(B121,Baza[[№]:[Profit]],19,0)=0,"-",VLOOKUP(B121,Baza[[№]:[Profit]],19,0)),"") ->  | V121: =IFERROR(VLOOKUP(B121,Baza[[№]:[Profit]],20,0),"") ->  | W121: =IFERROR(IF(VLOOKUP(B121,Baza[[№]:[Profit]],21,0)=0,"-",VLOOKUP(B121,Baza[[№]:[Profit]],21,0)),"") ->  | X121: =IFERROR(IF(VLOOKUP(B121,Baza[[№]:[Profit]],22,0)=0,"-",VLOOKUP(B121,Baza[[№]:[Profit]],22,0)),"") ->  | Y121: =IFERROR(VLOOKUP(B121,Baza[[№]:[Profit]],23,0),"") ->  | Z121: =IFERROR(VLOOKUP(B121,Baza[[№]:[AFS]],24,0),"") ->  | AA121: =IF(Таблица2[[#This Row],[Profit]]="","#Н/Д",SUM($Y$40:Y121)) -> #Н/Д | AB121: =IF(Таблица2[[#This Row],[Grafik]]="#Н/Д",FALSE,TRUE) -> FALSE
A122: 83 | C122: =IFERROR(VLOOKUP(B122,Baza[[№]:[Profit]],2,0),"") ->  | D122: =IF(Таблица2[[#This Row],[NN]]="","",TEXT(Таблица2[[#This Row],[Start]],"ч:мм")&" "&IF(OR(Таблица2[[#This Row],[Room]]="WN",Таблица2[[#This Row],[Room]]="ES"),"€","$")&Таблица2[[#This Row],[B]]&" "&"["&Таблица2[[#This Row],[Room]]&"] "&Таблица2[[#This Row],[Name]]) ->  | E122: =IF(Таблица2[[#This Row],[NN]]="","",IF(OR(Таблица2[[#This Row],[Room]]="WN",Таблица2[[#This Row],[Room]]="ES"),"€","$")&Таблица2[[#This Row],[B]]&" "&"["&Таблица2[[#This Row],[Room]]&"] "&Таблица2[[#This Row],[Name]]) ->  | F122: =IFERROR(VLOOKUP(B122,Baza[[№]:[Profit]],3,0),"") ->  | G122: =IFERROR(VLOOKUP(B122,Baza[[№]:[Profit]],4,0),"") ->  | H122: =IFERROR(VLOOKUP(B122,Baza[[№]:[Profit]],5,0),"") ->  | I122: =IFERROR(VLOOKUP(B122,Baza[[№]:[Profit]],6,0),"") ->  | J122: =IFERROR(VLOOKUP(B122,Baza[[№]:[Profit]],7,0),"") ->  | K122: =IFERROR(VLOOKUP(B122,Baza[[№]:[Profit]],8,0),"") ->  | L122: =IFERROR(VLOOKUP(B122,Baza[[№]:[Profit]],9,0),"") ->  | M122: =IFERROR(VLOOKUP(B122,Baza[[№]:[Profit]],10,0),"") ->  | N122: =IFERROR(IF(VLOOKUP(B122,Baza[[№]:[Profit]],11,0)=0,"-",VLOOKUP(B122,Baza[[№]:[Profit]],11,0)),"") ->  | O122: =IFERROR(IF(VLOOKUP(B122,Baza[[№]:[Profit]],12,0)=0,"-",VLOOKUP(B122,Baza[[№]:[Profit]],12,0)),"") ->  | P122: =IFERROR(IF(VLOOKUP(B122,Baza[[№]:[Profit]],13,0)=0,"-",VLOOKUP(B122,Baza[[№]:[Profit]],13,0)),"") ->  | Q122: =IFERROR(IF(VLOOKUP(B122,Baza[[№]:[Profit]],15,0)=0,"-",VLOOKUP(B122,Baza[[№]:[Profit]],15,0)),"") ->  | R122: =IFERROR(IF(VLOOKUP(B122,Baza[[№]:[Profit]],16,0)=0,"-",VLOOKUP(B122,Baza[[№]:[Profit]],16,0)),"") ->  | S122: =IFERROR(IF(VLOOKUP(B122,Baza[[№]:[Profit]],17,0)=0,"-",VLOOKUP(B122,Baza[[№]:[Profit]],17,0)),"") ->  | T122: =IFERROR(IF(VLOOKUP(B122,Baza[[№]:[Profit]],18,0)=0,"-",VLOOKUP(B122,Baza[[№]:[Profit]],18,0)),"") ->  | U122: =IFERROR(IF(VLOOKUP(B122,Baza[[№]:[Profit]],19,0)=0,"-",VLOOKUP(B122,Baza[[№]:[Profit]],19,0)),"") ->  | V122: =IFERROR(VLOOKUP(B122,Baza[[№]:[Profit]],20,0),"") ->  | W122: =IFERROR(IF(VLOOKUP(B122,Baza[[№]:[Profit]],21,0)=0,"-",VLOOKUP(B122,Baza[[№]:[Profit]],21,0)),"") ->  | X122: =IFERROR(IF(VLOOKUP(B122,Baza[[№]:[Profit]],22,0)=0,"-",VLOOKUP(B122,Baza[[№]:[Profit]],22,0)),"") ->  | Y122: =IFERROR(VLOOKUP(B122,Baza[[№]:[Profit]],23,0),"") ->  | Z122: =IFERROR(VLOOKUP(B122,Baza[[№]:[AFS]],24,0),"") ->  | AA122: =IF(Таблица2[[#This Row],[Profit]]="","#Н/Д",SUM($Y$40:Y122)) -> #Н/Д | AB122: =IF(Таблица2[[#This Row],[Grafik]]="#Н/Д",FALSE,TRUE) -> FALSE
A123: 84 | C123: =IFERROR(VLOOKUP(B123,Baza[[№]:[Profit]],2,0),"") ->  | D123: =IF(Таблица2[[#This Row],[NN]]="","",TEXT(Таблица2[[#This Row],[Start]],"ч:мм")&" "&IF(OR(Таблица2[[#This Row],[Room]]="WN",Таблица2[[#This Row],[Room]]="ES"),"€","$")&Таблица2[[#This Row],[B]]&" "&"["&Таблица2[[#This Row],[Room]]&"] "&Таблица2[[#This Row],[Name]]) ->  | E123: =IF(Таблица2[[#This Row],[NN]]="","",IF(OR(Таблица2[[#This Row],[Room]]="WN",Таблица2[[#This Row],[Room]]="ES"),"€","$")&Таблица2[[#This Row],[B]]&" "&"["&Таблица2[[#This Row],[Room]]&"] "&Таблица2[[#This Row],[Name]]) ->  | F123: =IFERROR(VLOOKUP(B123,Baza[[№]:[Profit]],3,0),"") ->  | G123: =IFERROR(VLOOKUP(B123,Baza[[№]:[Profit]],4,0),"") ->  | H123: =IFERROR(VLOOKUP(B123,Baza[[№]:[Profit]],5,0),"") ->  | I123: =IFERROR(VLOOKUP(B123,Baza[[№]:[Profit]],6,0),"") ->  | J123: =IFERROR(VLOOKUP(B123,Baza[[№]:[Profit]],7,0),"") ->  | K123: =IFERROR(VLOOKUP(B123,Baza[[№]:[Profit]],8,0),"") ->  | L123: =IFERROR(VLOOKUP(B123,Baza[[№]:[Profit]],9,0),"") ->  | M123: =IFERROR(VLOOKUP(B123,Baza[[№]:[Profit]],10,0),"") ->  | N123: =IFERROR(IF(VLOOKUP(B123,Baza[[№]:[Profit]],11,0)=0,"-",VLOOKUP(B123,Baza[[№]:[Profit]],11,0)),"") ->  | O123: =IFERROR(IF(VLOOKUP(B123,Baza[[№]:[Profit]],12,0)=0,"-",VLOOKUP(B123,Baza[[№]:[Profit]],12,0)),"") ->  | P123: =IFERROR(IF(VLOOKUP(B123,Baza[[№]:[Profit]],13,0)=0,"-",VLOOKUP(B123,Baza[[№]:[Profit]],13,0)),"") ->  | Q123: =IFERROR(IF(VLOOKUP(B123,Baza[[№]:[Profit]],15,0)=0,"-",VLOOKUP(B123,Baza[[№]:[Profit]],15,0)),"") ->  | R123: =IFERROR(IF(VLOOKUP(B123,Baza[[№]:[Profit]],16,0)=0,"-",VLOOKUP(B123,Baza[[№]:[Profit]],16,0)),"") ->  | S123: =IFERROR(IF(VLOOKUP(B123,Baza[[№]:[Profit]],17,0)=0,"-",VLOOKUP(B123,Baza[[№]:[Profit]],17,0)),"") ->  | T123: =IFERROR(IF(VLOOKUP(B123,Baza[[№]:[Profit]],18,0)=0,"-",VLOOKUP(B123,Baza[[№]:[Profit]],18,0)),"") ->  | U123: =IFERROR(IF(VLOOKUP(B123,Baza[[№]:[Profit]],19,0)=0,"-",VLOOKUP(B123,Baza[[№]:[Profit]],19,0)),"") ->  | V123: =IFERROR(VLOOKUP(B123,Baza[[№]:[Profit]],20,0),"") ->  | W123: =IFERROR(IF(VLOOKUP(B123,Baza[[№]:[Profit]],21,0)=0,"-",VLOOKUP(B123,Baza[[№]:[Profit]],21,0)),"") ->  | X123: =IFERROR(IF(VLOOKUP(B123,Baza[[№]:[Profit]],22,0)=0,"-",VLOOKUP(B123,Baza[[№]:[Profit]],22,0)),"") ->  | Y123: =IFERROR(VLOOKUP(B123,Baza[[№]:[Profit]],23,0),"") ->  | Z123: =IFERROR(VLOOKUP(B123,Baza[[№]:[AFS]],24,0),"") ->  | AA123: =IF(Таблица2[[#This Row],[Profit]]="","#Н/Д",SUM($Y$40:Y123)) -> #Н/Д | AB123: =IF(Таблица2[[#This Row],[Grafik]]="#Н/Д",FALSE,TRUE) -> FALSE
A124: 85 | C124: =IFERROR(VLOOKUP(B124,Baza[[№]:[Profit]],2,0),"") ->  | D124: =IF(Таблица2[[#This Row],[NN]]="","",TEXT(Таблица2[[#This Row],[Start]],"ч:мм")&" "&IF(OR(Таблица2[[#This Row],[Room]]="WN",Таблица2[[#This Row],[Room]]="ES"),"€","$")&Таблица2[[#This Row],[B]]&" "&"["&Таблица2[[#This Row],[Room]]&"] "&Таблица2[[#This Row],[Name]]) ->  | E124: =IF(Таблица2[[#This Row],[NN]]="","",IF(OR(Таблица2[[#This Row],[Room]]="WN",Таблица2[[#This Row],[Room]]="ES"),"€","$")&Таблица2[[#This Row],[B]]&" "&"["&Таблица2[[#This Row],[Room]]&"] "&Таблица2[[#This Row],[Name]]) ->  | F124: =IFERROR(VLOOKUP(B124,Baza[[№]:[Profit]],3,0),"") ->  | G124: =IFERROR(VLOOKUP(B124,Baza[[№]:[Profit]],4,0),"") ->  | H124: =IFERROR(VLOOKUP(B124,Baza[[№]:[Profit]],5,0),"") ->  | I124: =IFERROR(VLOOKUP(B124,Baza[[№]:[Profit]],6,0),"") ->  | J124: =IFERROR(VLOOKUP(B124,Baza[[№]:[Profit]],7,0),"") ->  | K124: =IFERROR(VLOOKUP(B124,Baza[[№]:[Profit]],8,0),"") ->  | L124: =IFERROR(VLOOKUP(B124,Baza[[№]:[Profit]],9,0),"") ->  | M124: =IFERROR(VLOOKUP(B124,Baza[[№]:[Profit]],10,0),"") ->  | N124: =IFERROR(IF(VLOOKUP(B124,Baza[[№]:[Profit]],11,0)=0,"-",VLOOKUP(B124,Baza[[№]:[Profit]],11,0)),"") ->  | O124: =IFERROR(IF(VLOOKUP(B124,Baza[[№]:[Profit]],12,0)=0,"-",VLOOKUP(B124,Baza[[№]:[Profit]],12,0)),"") ->  | P124: =IFERROR(IF(VLOOKUP(B124,Baza[[№]:[Profit]],13,0)=0,"-",VLOOKUP(B124,Baza[[№]:[Profit]],13,0)),"") ->  | Q124: =IFERROR(IF(VLOOKUP(B124,Baza[[№]:[Profit]],15,0)=0,"-",VLOOKUP(B124,Baza[[№]:[Profit]],15,0)),"") ->  | R124: =IFERROR(IF(VLOOKUP(B124,Baza[[№]:[Profit]],16,0)=0,"-",VLOOKUP(B124,Baza[[№]:[Profit]],16,0)),"") ->  | S124: =IFERROR(IF(VLOOKUP(B124,Baza[[№]:[Profit]],17,0)=0,"-",VLOOKUP(B124,Baza[[№]:[Profit]],17,0)),"") ->  | T124: =IFERROR(IF(VLOOKUP(B124,Baza[[№]:[Profit]],18,0)=0,"-",VLOOKUP(B124,Baza[[№]:[Profit]],18,0)),"") ->  | U124: =IFERROR(IF(VLOOKUP(B124,Baza[[№]:[Profit]],19,0)=0,"-",VLOOKUP(B124,Baza[[№]:[Profit]],19,0)),"") ->  | V124: =IFERROR(VLOOKUP(B124,Baza[[№]:[Profit]],20,0),"") ->  | W124: =IFERROR(IF(VLOOKUP(B124,Baza[[№]:[Profit]],21,0)=0,"-",VLOOKUP(B124,Baza[[№]:[Profit]],21,0)),"") ->  | X124: =IFERROR(IF(VLOOKUP(B124,Baza[[№]:[Profit]],22,0)=0,"-",VLOOKUP(B124,Baza[[№]:[Profit]],22,0)),"") ->  | Y124: =IFERROR(VLOOKUP(B124,Baza[[№]:[Profit]],23,0),"") ->  | Z124: =IFERROR(VLOOKUP(B124,Baza[[№]:[AFS]],24,0),"") ->  | AA124: =IF(Таблица2[[#This Row],[Profit]]="","#Н/Д",SUM($Y$40:Y124)) -> #Н/Д | AB124: =IF(Таблица2[[#This Row],[Grafik]]="#Н/Д",FALSE,TRUE) -> FALSE
A125: 86 | C125: =IFERROR(VLOOKUP(B125,Baza[[№]:[Profit]],2,0),"") ->  | D125: =IF(Таблица2[[#This Row],[NN]]="","",TEXT(Таблица2[[#This Row],[Start]],"ч:мм")&" "&IF(OR(Таблица2[[#This Row],[Room]]="WN",Таблица2[[#This Row],[Room]]="ES"),"€","$")&Таблица2[[#This Row],[B]]&" "&"["&Таблица2[[#This Row],[Room]]&"] "&Таблица2[[#This Row],[Name]]) ->  | E125: =IF(Таблица2[[#This Row],[NN]]="","",IF(OR(Таблица2[[#This Row],[Room]]="WN",Таблица2[[#This Row],[Room]]="ES"),"€","$")&Таблица2[[#This Row],[B]]&" "&"["&Таблица2[[#This Row],[Room]]&"] "&Таблица2[[#This Row],[Name]]) ->  | F125: =IFERROR(VLOOKUP(B125,Baza[[№]:[Profit]],3,0),"") ->  | G125: =IFERROR(VLOOKUP(B125,Baza[[№]:[Profit]],4,0),"") ->  | H125: =IFERROR(VLOOKUP(B125,Baza[[№]:[Profit]],5,0),"") ->  | I125: =IFERROR(VLOOKUP(B125,Baza[[№]:[Profit]],6,0),"") ->  | J125: =IFERROR(VLOOKUP(B125,Baza[[№]:[Profit]],7,0),"") ->  | K125: =IFERROR(VLOOKUP(B125,Baza[[№]:[Profit]],8,0),"") ->  | L125: =IFERROR(VLOOKUP(B125,Baza[[№]:[Profit]],9,0),"") ->  | M125: =IFERROR(VLOOKUP(B125,Baza[[№]:[Profit]],10,0),"") ->  | N125: =IFERROR(IF(VLOOKUP(B125,Baza[[№]:[Profit]],11,0)=0,"-",VLOOKUP(B125,Baza[[№]:[Profit]],11,0)),"") ->  | O125: =IFERROR(IF(VLOOKUP(B125,Baza[[№]:[Profit]],12,0)=0,"-",VLOOKUP(B125,Baza[[№]:[Profit]],12,0)),"") ->  | P125: =IFERROR(IF(VLOOKUP(B125,Baza[[№]:[Profit]],13,0)=0,"-",VLOOKUP(B125,Baza[[№]:[Profit]],13,0)),"") ->  | Q125: =IFERROR(IF(VLOOKUP(B125,Baza[[№]:[Profit]],15,0)=0,"-",VLOOKUP(B125,Baza[[№]:[Profit]],15,0)),"") ->  | R125: =IFERROR(IF(VLOOKUP(B125,Baza[[№]:[Profit]],16,0)=0,"-",VLOOKUP(B125,Baza[[№]:[Profit]],16,0)),"") ->  | S125: =IFERROR(IF(VLOOKUP(B125,Baza[[№]:[Profit]],17,0)=0,"-",VLOOKUP(B125,Baza[[№]:[Profit]],17,0)),"") ->  | T125: =IFERROR(IF(VLOOKUP(B125,Baza[[№]:[Profit]],18,0)=0,"-",VLOOKUP(B125,Baza[[№]:[Profit]],18,0)),"") ->  | U125: =IFERROR(IF(VLOOKUP(B125,Baza[[№]:[Profit]],19,0)=0,"-",VLOOKUP(B125,Baza[[№]:[Profit]],19,0)),"") ->  | V125: =IFERROR(VLOOKUP(B125,Baza[[№]:[Profit]],20,0),"") ->  | W125: =IFERROR(IF(VLOOKUP(B125,Baza[[№]:[Profit]],21,0)=0,"-",VLOOKUP(B125,Baza[[№]:[Profit]],21,0)),"") ->  | X125: =IFERROR(IF(VLOOKUP(B125,Baza[[№]:[Profit]],22,0)=0,"-",VLOOKUP(B125,Baza[[№]:[Profit]],22,0)),"") ->  | Y125: =IFERROR(VLOOKUP(B125,Baza[[№]:[Profit]],23,0),"") ->  | Z125: =IFERROR(VLOOKUP(B125,Baza[[№]:[AFS]],24,0),"") ->  | AA125: =IF(Таблица2[[#This Row],[Profit]]="","#Н/Д",SUM($Y$40:Y125)) -> #Н/Д | AB125: =IF(Таблица2[[#This Row],[Grafik]]="#Н/Д",FALSE,TRUE) -> FALSE
A126: 87 | C126: =IFERROR(VLOOKUP(B126,Baza[[№]:[Profit]],2,0),"") ->  | D126: =IF(Таблица2[[#This Row],[NN]]="","",TEXT(Таблица2[[#This Row],[Start]],"ч:мм")&" "&IF(OR(Таблица2[[#This Row],[Room]]="WN",Таблица2[[#This Row],[Room]]="ES"),"€","$")&Таблица2[[#This Row],[B]]&" "&"["&Таблица2[[#This Row],[Room]]&"] "&Таблица2[[#This Row],[Name]]) ->  | E126: =IF(Таблица2[[#This Row],[NN]]="","",IF(OR(Таблица2[[#This Row],[Room]]="WN",Таблица2[[#This Row],[Room]]="ES"),"€","$")&Таблица2[[#This Row],[B]]&" "&"["&Таблица2[[#This Row],[Room]]&"] "&Таблица2[[#This Row],[Name]]) ->  | F126: =IFERROR(VLOOKUP(B126,Baza[[№]:[Profit]],3,0),"") ->  | G126: =IFERROR(VLOOKUP(B126,Baza[[№]:[Profit]],4,0),"") ->  | H126: =IFERROR(VLOOKUP(B126,Baza[[№]:[Profit]],5,0),"") ->  | I126: =IFERROR(VLOOKUP(B126,Baza[[№]:[Profit]],6,0),"") ->  | J126: =IFERROR(VLOOKUP(B126,Baza[[№]:[Profit]],7,0),"") ->  | K126: =IFERROR(VLOOKUP(B126,Baza[[№]:[Profit]],8,0),"") ->  | L126: =IFERROR(VLOOKUP(B126,Baza[[№]:[Profit]],9,0),"") ->  | M126: =IFERROR(VLOOKUP(B126,Baza[[№]:[Profit]],10,0),"") ->  | N126: =IFERROR(IF(VLOOKUP(B126,Baza[[№]:[Profit]],11,0)=0,"-",VLOOKUP(B126,Baza[[№]:[Profit]],11,0)),"") ->  | O126: =IFERROR(IF(VLOOKUP(B126,Baza[[№]:[Profit]],12,0)=0,"-",VLOOKUP(B126,Baza[[№]:[Profit]],12,0)),"") ->  | P126: =IFERROR(IF(VLOOKUP(B126,Baza[[№]:[Profit]],13,0)=0,"-",VLOOKUP(B126,Baza[[№]:[Profit]],13,0)),"") ->  | Q126: =IFERROR(IF(VLOOKUP(B126,Baza[[№]:[Profit]],15,0)=0,"-",VLOOKUP(B126,Baza[[№]:[Profit]],15,0)),"") ->  | R126: =IFERROR(IF(VLOOKUP(B126,Baza[[№]:[Profit]],16,0)=0,"-",VLOOKUP(B126,Baza[[№]:[Profit]],16,0)),"") ->  | S126: =IFERROR(IF(VLOOKUP(B126,Baza[[№]:[Profit]],17,0)=0,"-",VLOOKUP(B126,Baza[[№]:[Profit]],17,0)),"") ->  | T126: =IFERROR(IF(VLOOKUP(B126,Baza[[№]:[Profit]],18,0)=0,"-",VLOOKUP(B126,Baza[[№]:[Profit]],18,0)),"") ->  | U126: =IFERROR(IF(VLOOKUP(B126,Baza[[№]:[Profit]],19,0)=0,"-",VLOOKUP(B126,Baza[[№]:[Profit]],19,0)),"") ->  | V126: =IFERROR(VLOOKUP(B126,Baza[[№]:[Profit]],20,0),"") ->  | W126: =IFERROR(IF(VLOOKUP(B126,Baza[[№]:[Profit]],21,0)=0,"-",VLOOKUP(B126,Baza[[№]:[Profit]],21,0)),"") ->  | X126: =IFERROR(IF(VLOOKUP(B126,Baza[[№]:[Profit]],22,0)=0,"-",VLOOKUP(B126,Baza[[№]:[Profit]],22,0)),"") ->  | Y126: =IFERROR(VLOOKUP(B126,Baza[[№]:[Profit]],23,0),"") ->  | Z126: =IFERROR(VLOOKUP(B126,Baza[[№]:[AFS]],24,0),"") ->  | AA126: =IF(Таблица2[[#This Row],[Profit]]="","#Н/Д",SUM($Y$40:Y126)) -> #Н/Д | AB126: =IF(Таблица2[[#This Row],[Grafik]]="#Н/Д",FALSE,TRUE) -> FALSE
A127: 88 | C127: =IFERROR(VLOOKUP(B127,Baza[[№]:[Profit]],2,0),"") ->  | D127: =IF(Таблица2[[#This Row],[NN]]="","",TEXT(Таблица2[[#This Row],[Start]],"ч:мм")&" "&IF(OR(Таблица2[[#This Row],[Room]]="WN",Таблица2[[#This Row],[Room]]="ES"),"€","$")&Таблица2[[#This Row],[B]]&" "&"["&Таблица2[[#This Row],[Room]]&"] "&Таблица2[[#This Row],[Name]]) ->  | E127: =IF(Таблица2[[#This Row],[NN]]="","",IF(OR(Таблица2[[#This Row],[Room]]="WN",Таблица2[[#This Row],[Room]]="ES"),"€","$")&Таблица2[[#This Row],[B]]&" "&"["&Таблица2[[#This Row],[Room]]&"] "&Таблица2[[#This Row],[Name]]) ->  | F127: =IFERROR(VLOOKUP(B127,Baza[[№]:[Profit]],3,0),"") ->  | G127: =IFERROR(VLOOKUP(B127,Baza[[№]:[Profit]],4,0),"") ->  | H127: =IFERROR(VLOOKUP(B127,Baza[[№]:[Profit]],5,0),"") ->  | I127: =IFERROR(VLOOKUP(B127,Baza[[№]:[Profit]],6,0),"") ->  | J127: =IFERROR(VLOOKUP(B127,Baza[[№]:[Profit]],7,0),"") ->  | K127: =IFERROR(VLOOKUP(B127,Baza[[№]:[Profit]],8,0),"") ->  | L127: =IFERROR(VLOOKUP(B127,Baza[[№]:[Profit]],9,0),"") ->  | M127: =IFERROR(VLOOKUP(B127,Baza[[№]:[Profit]],10,0),"") ->  | N127: =IFERROR(IF(VLOOKUP(B127,Baza[[№]:[Profit]],11,0)=0,"-",VLOOKUP(B127,Baza[[№]:[Profit]],11,0)),"") ->  | O127: =IFERROR(IF(VLOOKUP(B127,Baza[[№]:[Profit]],12,0)=0,"-",VLOOKUP(B127,Baza[[№]:[Profit]],12,0)),"") ->  | P127: =IFERROR(IF(VLOOKUP(B127,Baza[[№]:[Profit]],13,0)=0,"-",VLOOKUP(B127,Baza[[№]:[Profit]],13,0)),"") ->  | Q127: =IFERROR(IF(VLOOKUP(B127,Baza[[№]:[Profit]],15,0)=0,"-",VLOOKUP(B127,Baza[[№]:[Profit]],15,0)),"") ->  | R127: =IFERROR(IF(VLOOKUP(B127,Baza[[№]:[Profit]],16,0)=0,"-",VLOOKUP(B127,Baza[[№]:[Profit]],16,0)),"") ->  | S127: =IFERROR(IF(VLOOKUP(B127,Baza[[№]:[Profit]],17,0)=0,"-",VLOOKUP(B127,Baza[[№]:[Profit]],17,0)),"") ->  | T127: =IFERROR(IF(VLOOKUP(B127,Baza[[№]:[Profit]],18,0)=0,"-",VLOOKUP(B127,Baza[[№]:[Profit]],18,0)),"") ->  | U127: =IFERROR(IF(VLOOKUP(B127,Baza[[№]:[Profit]],19,0)=0,"-",VLOOKUP(B127,Baza[[№]:[Profit]],19,0)),"") ->  | V127: =IFERROR(VLOOKUP(B127,Baza[[№]:[Profit]],20,0),"") ->  | W127: =IFERROR(IF(VLOOKUP(B127,Baza[[№]:[Profit]],21,0)=0,"-",VLOOKUP(B127,Baza[[№]:[Profit]],21,0)),"") ->  | X127: =IFERROR(IF(VLOOKUP(B127,Baza[[№]:[Profit]],22,0)=0,"-",VLOOKUP(B127,Baza[[№]:[Profit]],22,0)),"") ->  | Y127: =IFERROR(VLOOKUP(B127,Baza[[№]:[Profit]],23,0),"") ->  | Z127: =IFERROR(VLOOKUP(B127,Baza[[№]:[AFS]],24,0),"") ->  | AA127: =IF(Таблица2[[#This Row],[Profit]]="","#Н/Д",SUM($Y$40:Y127)) -> #Н/Д | AB127: =IF(Таблица2[[#This Row],[Grafik]]="#Н/Д",FALSE,TRUE) -> FALSE
A128: 89 | C128: =IFERROR(VLOOKUP(B128,Baza[[№]:[Profit]],2,0),"") ->  | D128: =IF(Таблица2[[#This Row],[NN]]="","",TEXT(Таблица2[[#This Row],[Start]],"ч:мм")&" "&IF(OR(Таблица2[[#This Row],[Room]]="WN",Таблица2[[#This Row],[Room]]="ES"),"€","$")&Таблица2[[#This Row],[B]]&" "&"["&Таблица2[[#This Row],[Room]]&"] "&Таблица2[[#This Row],[Name]]) ->  | E128: =IF(Таблица2[[#This Row],[NN]]="","",IF(OR(Таблица2[[#This Row],[Room]]="WN",Таблица2[[#This Row],[Room]]="ES"),"€","$")&Таблица2[[#This Row],[B]]&" "&"["&Таблица2[[#This Row],[Room]]&"] "&Таблица2[[#This Row],[Name]]) ->  | F128: =IFERROR(VLOOKUP(B128,Baza[[№]:[Profit]],3,0),"") ->  | G128: =IFERROR(VLOOKUP(B128,Baza[[№]:[Profit]],4,0),"") ->  | H128: =IFERROR(VLOOKUP(B128,Baza[[№]:[Profit]],5,0),"") ->  | I128: =IFERROR(VLOOKUP(B128,Baza[[№]:[Profit]],6,0),"") ->  | J128: =IFERROR(VLOOKUP(B128,Baza[[№]:[Profit]],7,0),"") ->  | K128: =IFERROR(VLOOKUP(B128,Baza[[№]:[Profit]],8,0),"") ->  | L128: =IFERROR(VLOOKUP(B128,Baza[[№]:[Profit]],9,0),"") ->  | M128: =IFERROR(VLOOKUP(B128,Baza[[№]:[Profit]],10,0),"") ->  | N128: =IFERROR(IF(VLOOKUP(B128,Baza[[№]:[Profit]],11,0)=0,"-",VLOOKUP(B128,Baza[[№]:[Profit]],11,0)),"") ->  | O128: =IFERROR(IF(VLOOKUP(B128,Baza[[№]:[Profit]],12,0)=0,"-",VLOOKUP(B128,Baza[[№]:[Profit]],12,0)),"") ->  | P128: =IFERROR(IF(VLOOKUP(B128,Baza[[№]:[Profit]],13,0)=0,"-",VLOOKUP(B128,Baza[[№]:[Profit]],13,0)),"") ->  | Q128: =IFERROR(IF(VLOOKUP(B128,Baza[[№]:[Profit]],15,0)=0,"-",VLOOKUP(B128,Baza[[№]:[Profit]],15,0)),"") ->  | R128: =IFERROR(IF(VLOOKUP(B128,Baza[[№]:[Profit]],16,0)=0,"-",VLOOKUP(B128,Baza[[№]:[Profit]],16,0)),"") ->  | S128: =IFERROR(IF(VLOOKUP(B128,Baza[[№]:[Profit]],17,0)=0,"-",VLOOKUP(B128,Baza[[№]:[Profit]],17,0)),"") ->  | T128: =IFERROR(IF(VLOOKUP(B128,Baza[[№]:[Profit]],18,0)=0,"-",VLOOKUP(B128,Baza[[№]:[Profit]],18,0)),"") ->  | U128: =IFERROR(IF(VLOOKUP(B128,Baza[[№]:[Profit]],19,0)=0,"-",VLOOKUP(B128,Baza[[№]:[Profit]],19,0)),"") ->  | V128: =IFERROR(VLOOKUP(B128,Baza[[№]:[Profit]],20,0),"") ->  | W128: =IFERROR(IF(VLOOKUP(B128,Baza[[№]:[Profit]],21,0)=0,"-",VLOOKUP(B128,Baza[[№]:[Profit]],21,0)),"") ->  | X128: =IFERROR(IF(VLOOKUP(B128,Baza[[№]:[Profit]],22,0)=0,"-",VLOOKUP(B128,Baza[[№]:[Profit]],22,0)),"") ->  | Y128: =IFERROR(VLOOKUP(B128,Baza[[№]:[Profit]],23,0),"") ->  | Z128: =IFERROR(VLOOKUP(B128,Baza[[№]:[AFS]],24,0),"") ->  | AA128: =IF(Таблица2[[#This Row],[Profit]]="","#Н/Д",SUM($Y$40:Y128)) -> #Н/Д | AB128: =IF(Таблица2[[#This Row],[Grafik]]="#Н/Д",FALSE,TRUE) -> FALSE
A129: 90 | C129: =IFERROR(VLOOKUP(B129,Baza[[№]:[Profit]],2,0),"") ->  | D129: =IF(Таблица2[[#This Row],[NN]]="","",TEXT(Таблица2[[#This Row],[Start]],"ч:мм")&" "&IF(OR(Таблица2[[#This Row],[Room]]="WN",Таблица2[[#This Row],[Room]]="ES"),"€","$")&Таблица2[[#This Row],[B]]&" "&"["&Таблица2[[#This Row],[Room]]&"] "&Таблица2[[#This Row],[Name]]) ->  | E129: =IF(Таблица2[[#This Row],[NN]]="","",IF(OR(Таблица2[[#This Row],[Room]]="WN",Таблица2[[#This Row],[Room]]="ES"),"€","$")&Таблица2[[#This Row],[B]]&" "&"["&Таблица2[[#This Row],[Room]]&"] "&Таблица2[[#This Row],[Name]]) ->  | F129: =IFERROR(VLOOKUP(B129,Baza[[№]:[Profit]],3,0),"") ->  | G129: =IFERROR(VLOOKUP(B129,Baza[[№]:[Profit]],4,0),"") ->  | H129: =IFERROR(VLOOKUP(B129,Baza[[№]:[Profit]],5,0),"") ->  | I129: =IFERROR(VLOOKUP(B129,Baza[[№]:[Profit]],6,0),"") ->  | J129: =IFERROR(VLOOKUP(B129,Baza[[№]:[Profit]],7,0),"") ->  | K129: =IFERROR(VLOOKUP(B129,Baza[[№]:[Profit]],8,0),"") ->  | L129: =IFERROR(VLOOKUP(B129,Baza[[№]:[Profit]],9,0),"") ->  | M129: =IFERROR(VLOOKUP(B129,Baza[[№]:[Profit]],10,0),"") ->  | N129: =IFERROR(IF(VLOOKUP(B129,Baza[[№]:[Profit]],11,0)=0,"-",VLOOKUP(B129,Baza[[№]:[Profit]],11,0)),"") ->  | O129: =IFERROR(IF(VLOOKUP(B129,Baza[[№]:[Profit]],12,0)=0,"-",VLOOKUP(B129,Baza[[№]:[Profit]],12,0)),"") ->  | P129: =IFERROR(IF(VLOOKUP(B129,Baza[[№]:[Profit]],13,0)=0,"-",VLOOKUP(B129,Baza[[№]:[Profit]],13,0)),"") ->  | Q129: =IFERROR(IF(VLOOKUP(B129,Baza[[№]:[Profit]],15,0)=0,"-",VLOOKUP(B129,Baza[[№]:[Profit]],15,0)),"") ->  | R129: =IFERROR(IF(VLOOKUP(B129,Baza[[№]:[Profit]],16,0)=0,"-",VLOOKUP(B129,Baza[[№]:[Profit]],16,0)),"") ->  | S129: =IFERROR(IF(VLOOKUP(B129,Baza[[№]:[Profit]],17,0)=0,"-",VLOOKUP(B129,Baza[[№]:[Profit]],17,0)),"") ->  | T129: =IFERROR(IF(VLOOKUP(B129,Baza[[№]:[Profit]],18,0)=0,"-",VLOOKUP(B129,Baza[[№]:[Profit]],18,0)),"") ->  | U129: =IFERROR(IF(VLOOKUP(B129,Baza[[№]:[Profit]],19,0)=0,"-",VLOOKUP(B129,Baza[[№]:[Profit]],19,0)),"") ->  | V129: =IFERROR(VLOOKUP(B129,Baza[[№]:[Profit]],20,0),"") ->  | W129: =IFERROR(IF(VLOOKUP(B129,Baza[[№]:[Profit]],21,0)=0,"-",VLOOKUP(B129,Baza[[№]:[Profit]],21,0)),"") ->  | X129: =IFERROR(IF(VLOOKUP(B129,Baza[[№]:[Profit]],22,0)=0,"-",VLOOKUP(B129,Baza[[№]:[Profit]],22,0)),"") ->  | Y129: =IFERROR(VLOOKUP(B129,Baza[[№]:[Profit]],23,0),"") ->  | Z129: =IFERROR(VLOOKUP(B129,Baza[[№]:[AFS]],24,0),"") ->  | AA129: =IF(Таблица2[[#This Row],[Profit]]="","#Н/Д",SUM($Y$40:Y129)) -> #Н/Д | AB129: =IF(Таблица2[[#This Row],[Grafik]]="#Н/Д",FALSE,TRUE) -> FALSE
A130: 91 | C130: =IFERROR(VLOOKUP(B130,Baza[[№]:[Profit]],2,0),"") ->  | D130: =IF(Таблица2[[#This Row],[NN]]="","",TEXT(Таблица2[[#This Row],[Start]],"ч:мм")&" "&IF(OR(Таблица2[[#This Row],[Room]]="WN",Таблица2[[#This Row],[Room]]="ES"),"€","$")&Таблица2[[#This Row],[B]]&" "&"["&Таблица2[[#This Row],[Room]]&"] "&Таблица2[[#This Row],[Name]]) ->  | E130: =IF(Таблица2[[#This Row],[NN]]="","",IF(OR(Таблица2[[#This Row],[Room]]="WN",Таблица2[[#This Row],[Room]]="ES"),"€","$")&Таблица2[[#This Row],[B]]&" "&"["&Таблица2[[#This Row],[Room]]&"] "&Таблица2[[#This Row],[Name]]) ->  | F130: =IFERROR(VLOOKUP(B130,Baza[[№]:[Profit]],3,0),"") ->  | G130: =IFERROR(VLOOKUP(B130,Baza[[№]:[Profit]],4,0),"") ->  | H130: =IFERROR(VLOOKUP(B130,Baza[[№]:[Profit]],5,0),"") ->  | I130: =IFERROR(VLOOKUP(B130,Baza[[№]:[Profit]],6,0),"") ->  | J130: =IFERROR(VLOOKUP(B130,Baza[[№]:[Profit]],7,0),"") ->  | K130: =IFERROR(VLOOKUP(B130,Baza[[№]:[Profit]],8,0),"") ->  | L130: =IFERROR(VLOOKUP(B130,Baza[[№]:[Profit]],9,0),"") ->  | M130: =IFERROR(VLOOKUP(B130,Baza[[№]:[Profit]],10,0),"") ->  | N130: =IFERROR(IF(VLOOKUP(B130,Baza[[№]:[Profit]],11,0)=0,"-",VLOOKUP(B130,Baza[[№]:[Profit]],11,0)),"") ->  | O130: =IFERROR(IF(VLOOKUP(B130,Baza[[№]:[Profit]],12,0)=0,"-",VLOOKUP(B130,Baza[[№]:[Profit]],12,0)),"") ->  | P130: =IFERROR(IF(VLOOKUP(B130,Baza[[№]:[Profit]],13,0)=0,"-",VLOOKUP(B130,Baza[[№]:[Profit]],13,0)),"") ->  | Q130: =IFERROR(IF(VLOOKUP(B130,Baza[[№]:[Profit]],15,0)=0,"-",VLOOKUP(B130,Baza[[№]:[Profit]],15,0)),"") ->  | R130: =IFERROR(IF(VLOOKUP(B130,Baza[[№]:[Profit]],16,0)=0,"-",VLOOKUP(B130,Baza[[№]:[Profit]],16,0)),"") ->  | S130: =IFERROR(IF(VLOOKUP(B130,Baza[[№]:[Profit]],17,0)=0,"-",VLOOKUP(B130,Baza[[№]:[Profit]],17,0)),"") ->  | T130: =IFERROR(IF(VLOOKUP(B130,Baza[[№]:[Profit]],18,0)=0,"-",VLOOKUP(B130,Baza[[№]:[Profit]],18,0)),"") ->  | U130: =IFERROR(IF(VLOOKUP(B130,Baza[[№]:[Profit]],19,0)=0,"-",VLOOKUP(B130,Baza[[№]:[Profit]],19,0)),"") ->  | V130: =IFERROR(VLOOKUP(B130,Baza[[№]:[Profit]],20,0),"") ->  | W130: =IFERROR(IF(VLOOKUP(B130,Baza[[№]:[Profit]],21,0)=0,"-",VLOOKUP(B130,Baza[[№]:[Profit]],21,0)),"") ->  | X130: =IFERROR(IF(VLOOKUP(B130,Baza[[№]:[Profit]],22,0)=0,"-",VLOOKUP(B130,Baza[[№]:[Profit]],22,0)),"") ->  | Y130: =IFERROR(VLOOKUP(B130,Baza[[№]:[Profit]],23,0),"") ->  | Z130: =IFERROR(VLOOKUP(B130,Baza[[№]:[AFS]],24,0),"") ->  | AA130: =IF(Таблица2[[#This Row],[Profit]]="","#Н/Д",SUM($Y$40:Y130)) -> #Н/Д | AB130: =IF(Таблица2[[#This Row],[Grafik]]="#Н/Д",FALSE,TRUE) -> FALSE
A131: 92 | C131: =IFERROR(VLOOKUP(B131,Baza[[№]:[Profit]],2,0),"") ->  | D131: =IF(Таблица2[[#This Row],[NN]]="","",TEXT(Таблица2[[#This Row],[Start]],"ч:мм")&" "&IF(OR(Таблица2[[#This Row],[Room]]="WN",Таблица2[[#This Row],[Room]]="ES"),"€","$")&Таблица2[[#This Row],[B]]&" "&"["&Таблица2[[#This Row],[Room]]&"] "&Таблица2[[#This Row],[Name]]) ->  | E131: =IF(Таблица2[[#This Row],[NN]]="","",IF(OR(Таблица2[[#This Row],[Room]]="WN",Таблица2[[#This Row],[Room]]="ES"),"€","$")&Таблица2[[#This Row],[B]]&" "&"["&Таблица2[[#This Row],[Room]]&"] "&Таблица2[[#This Row],[Name]]) ->  | F131: =IFERROR(VLOOKUP(B131,Baza[[№]:[Profit]],3,0),"") ->  | G131: =IFERROR(VLOOKUP(B131,Baza[[№]:[Profit]],4,0),"") ->  | H131: =IFERROR(VLOOKUP(B131,Baza[[№]:[Profit]],5,0),"") ->  | I131: =IFERROR(VLOOKUP(B131,Baza[[№]:[Profit]],6,0),"") ->  | J131: =IFERROR(VLOOKUP(B131,Baza[[№]:[Profit]],7,0),"") ->  | K131: =IFERROR(VLOOKUP(B131,Baza[[№]:[Profit]],8,0),"") ->  | L131: =IFERROR(VLOOKUP(B131,Baza[[№]:[Profit]],9,0),"") ->  | M131: =IFERROR(VLOOKUP(B131,Baza[[№]:[Profit]],10,0),"") ->  | N131: =IFERROR(IF(VLOOKUP(B131,Baza[[№]:[Profit]],11,0)=0,"-",VLOOKUP(B131,Baza[[№]:[Profit]],11,0)),"") ->  | O131: =IFERROR(IF(VLOOKUP(B131,Baza[[№]:[Profit]],12,0)=0,"-",VLOOKUP(B131,Baza[[№]:[Profit]],12,0)),"") ->  | P131: =IFERROR(IF(VLOOKUP(B131,Baza[[№]:[Profit]],13,0)=0,"-",VLOOKUP(B131,Baza[[№]:[Profit]],13,0)),"") ->  | Q131: =IFERROR(IF(VLOOKUP(B131,Baza[[№]:[Profit]],15,0)=0,"-",VLOOKUP(B131,Baza[[№]:[Profit]],15,0)),"") ->  | R131: =IFERROR(IF(VLOOKUP(B131,Baza[[№]:[Profit]],16,0)=0,"-",VLOOKUP(B131,Baza[[№]:[Profit]],16,0)),"") ->  | S131: =IFERROR(IF(VLOOKUP(B131,Baza[[№]:[Profit]],17,0)=0,"-",VLOOKUP(B131,Baza[[№]:[Profit]],17,0)),"") ->  | T131: =IFERROR(IF(VLOOKUP(B131,Baza[[№]:[Profit]],18,0)=0,"-",VLOOKUP(B131,Baza[[№]:[Profit]],18,0)),"") ->  | U131: =IFERROR(IF(VLOOKUP(B131,Baza[[№]:[Profit]],19,0)=0,"-",VLOOKUP(B131,Baza[[№]:[Profit]],19,0)),"") ->  | V131: =IFERROR(VLOOKUP(B131,Baza[[№]:[Profit]],20,0),"") ->  | W131: =IFERROR(IF(VLOOKUP(B131,Baza[[№]:[Profit]],21,0)=0,"-",VLOOKUP(B131,Baza[[№]:[Profit]],21,0)),"") ->  | X131: =IFERROR(IF(VLOOKUP(B131,Baza[[№]:[Profit]],22,0)=0,"-",VLOOKUP(B131,Baza[[№]:[Profit]],22,0)),"") ->  | Y131: =IFERROR(VLOOKUP(B131,Baza[[№]:[Profit]],23,0),"") ->  | Z131: =IFERROR(VLOOKUP(B131,Baza[[№]:[AFS]],24,0),"") ->  | AA131: =IF(Таблица2[[#This Row],[Profit]]="","#Н/Д",SUM($Y$40:Y131)) -> #Н/Д | AB131: =IF(Таблица2[[#This Row],[Grafik]]="#Н/Д",FALSE,TRUE) -> FALSE
A132: 93 | C132: =IFERROR(VLOOKUP(B132,Baza[[№]:[Profit]],2,0),"") ->  | D132: =IF(Таблица2[[#This Row],[NN]]="","",TEXT(Таблица2[[#This Row],[Start]],"ч:мм")&" "&IF(OR(Таблица2[[#This Row],[Room]]="WN",Таблица2[[#This Row],[Room]]="ES"),"€","$")&Таблица2[[#This Row],[B]]&" "&"["&Таблица2[[#This Row],[Room]]&"] "&Таблица2[[#This Row],[Name]]) ->  | E132: =IF(Таблица2[[#This Row],[NN]]="","",IF(OR(Таблица2[[#This Row],[Room]]="WN",Таблица2[[#This Row],[Room]]="ES"),"€","$")&Таблица2[[#This Row],[B]]&" "&"["&Таблица2[[#This Row],[Room]]&"] "&Таблица2[[#This Row],[Name]]) ->  | F132: =IFERROR(VLOOKUP(B132,Baza[[№]:[Profit]],3,0),"") ->  | G132: =IFERROR(VLOOKUP(B132,Baza[[№]:[Profit]],4,0),"") ->  | H132: =IFERROR(VLOOKUP(B132,Baza[[№]:[Profit]],5,0),"") ->  | I132: =IFERROR(VLOOKUP(B132,Baza[[№]:[Profit]],6,0),"") ->  | J132: =IFERROR(VLOOKUP(B132,Baza[[№]:[Profit]],7,0),"") ->  | K132: =IFERROR(VLOOKUP(B132,Baza[[№]:[Profit]],8,0),"") ->  | L132: =IFERROR(VLOOKUP(B132,Baza[[№]:[Profit]],9,0),"") ->  | M132: =IFERROR(VLOOKUP(B132,Baza[[№]:[Profit]],10,0),"") ->  | N132: =IFERROR(IF(VLOOKUP(B132,Baza[[№]:[Profit]],11,0)=0,"-",VLOOKUP(B132,Baza[[№]:[Profit]],11,0)),"") ->  | O132: =IFERROR(IF(VLOOKUP(B132,Baza[[№]:[Profit]],12,0)=0,"-",VLOOKUP(B132,Baza[[№]:[Profit]],12,0)),"") ->  | P132: =IFERROR(IF(VLOOKUP(B132,Baza[[№]:[Profit]],13,0)=0,"-",VLOOKUP(B132,Baza[[№]:[Profit]],13,0)),"") ->  | Q132: =IFERROR(IF(VLOOKUP(B132,Baza[[№]:[Profit]],15,0)=0,"-",VLOOKUP(B132,Baza[[№]:[Profit]],15,0)),"") ->  | R132: =IFERROR(IF(VLOOKUP(B132,Baza[[№]:[Profit]],16,0)=0,"-",VLOOKUP(B132,Baza[[№]:[Profit]],16,0)),"") ->  | S132: =IFERROR(IF(VLOOKUP(B132,Baza[[№]:[Profit]],17,0)=0,"-",VLOOKUP(B132,Baza[[№]:[Profit]],17,0)),"") ->  | T132: =IFERROR(IF(VLOOKUP(B132,Baza[[№]:[Profit]],18,0)=0,"-",VLOOKUP(B132,Baza[[№]:[Profit]],18,0)),"") ->  | U132: =IFERROR(IF(VLOOKUP(B132,Baza[[№]:[Profit]],19,0)=0,"-",VLOOKUP(B132,Baza[[№]:[Profit]],19,0)),"") ->  | V132: =IFERROR(VLOOKUP(B132,Baza[[№]:[Profit]],20,0),"") ->  | W132: =IFERROR(IF(VLOOKUP(B132,Baza[[№]:[Profit]],21,0)=0,"-",VLOOKUP(B132,Baza[[№]:[Profit]],21,0)),"") ->  | X132: =IFERROR(IF(VLOOKUP(B132,Baza[[№]:[Profit]],22,0)=0,"-",VLOOKUP(B132,Baza[[№]:[Profit]],22,0)),"") ->  | Y132: =IFERROR(VLOOKUP(B132,Baza[[№]:[Profit]],23,0),"") ->  | Z132: =IFERROR(VLOOKUP(B132,Baza[[№]:[AFS]],24,0),"") ->  | AA132: =IF(Таблица2[[#This Row],[Profit]]="","#Н/Д",SUM($Y$40:Y132)) -> #Н/Д | AB132: =IF(Таблица2[[#This Row],[Grafik]]="#Н/Д",FALSE,TRUE) -> FALSE
A133: 94 | C133: =IFERROR(VLOOKUP(B133,Baza[[№]:[Profit]],2,0),"") ->  | D133: =IF(Таблица2[[#This Row],[NN]]="","",TEXT(Таблица2[[#This Row],[Start]],"ч:мм")&" "&IF(OR(Таблица2[[#This Row],[Room]]="WN",Таблица2[[#This Row],[Room]]="ES"),"€","$")&Таблица2[[#This Row],[B]]&" "&"["&Таблица2[[#This Row],[Room]]&"] "&Таблица2[[#This Row],[Name]]) ->  | E133: =IF(Таблица2[[#This Row],[NN]]="","",IF(OR(Таблица2[[#This Row],[Room]]="WN",Таблица2[[#This Row],[Room]]="ES"),"€","$")&Таблица2[[#This Row],[B]]&" "&"["&Таблица2[[#This Row],[Room]]&"] "&Таблица2[[#This Row],[Name]]) ->  | F133: =IFERROR(VLOOKUP(B133,Baza[[№]:[Profit]],3,0),"") ->  | G133: =IFERROR(VLOOKUP(B133,Baza[[№]:[Profit]],4,0),"") ->  | H133: =IFERROR(VLOOKUP(B133,Baza[[№]:[Profit]],5,0),"") ->  | I133: =IFERROR(VLOOKUP(B133,Baza[[№]:[Profit]],6,0),"") ->  | J133: =IFERROR(VLOOKUP(B133,Baza[[№]:[Profit]],7,0),"") ->  | K133: =IFERROR(VLOOKUP(B133,Baza[[№]:[Profit]],8,0),"") ->  | L133: =IFERROR(VLOOKUP(B133,Baza[[№]:[Profit]],9,0),"") ->  | M133: =IFERROR(VLOOKUP(B133,Baza[[№]:[Profit]],10,0),"") ->  | N133: =IFERROR(IF(VLOOKUP(B133,Baza[[№]:[Profit]],11,0)=0,"-",VLOOKUP(B133,Baza[[№]:[Profit]],11,0)),"") ->  | O133: =IFERROR(IF(VLOOKUP(B133,Baza[[№]:[Profit]],12,0)=0,"-",VLOOKUP(B133,Baza[[№]:[Profit]],12,0)),"") ->  | P133: =IFERROR(IF(VLOOKUP(B133,Baza[[№]:[Profit]],13,0)=0,"-",VLOOKUP(B133,Baza[[№]:[Profit]],13,0)),"") ->  | Q133: =IFERROR(IF(VLOOKUP(B133,Baza[[№]:[Profit]],15,0)=0,"-",VLOOKUP(B133,Baza[[№]:[Profit]],15,0)),"") ->  | R133: =IFERROR(IF(VLOOKUP(B133,Baza[[№]:[Profit]],16,0)=0,"-",VLOOKUP(B133,Baza[[№]:[Profit]],16,0)),"") ->  | S133: =IFERROR(IF(VLOOKUP(B133,Baza[[№]:[Profit]],17,0)=0,"-",VLOOKUP(B133,Baza[[№]:[Profit]],17,0)),"") ->  | T133: =IFERROR(IF(VLOOKUP(B133,Baza[[№]:[Profit]],18,0)=0,"-",VLOOKUP(B133,Baza[[№]:[Profit]],18,0)),"") ->  | U133: =IFERROR(IF(VLOOKUP(B133,Baza[[№]:[Profit]],19,0)=0,"-",VLOOKUP(B133,Baza[[№]:[Profit]],19,0)),"") ->  | V133: =IFERROR(VLOOKUP(B133,Baza[[№]:[Profit]],20,0),"") ->  | W133: =IFERROR(IF(VLOOKUP(B133,Baza[[№]:[Profit]],21,0)=0,"-",VLOOKUP(B133,Baza[[№]:[Profit]],21,0)),"") ->  | X133: =IFERROR(IF(VLOOKUP(B133,Baza[[№]:[Profit]],22,0)=0,"-",VLOOKUP(B133,Baza[[№]:[Profit]],22,0)),"") ->  | Y133: =IFERROR(VLOOKUP(B133,Baza[[№]:[Profit]],23,0),"") ->  | Z133: =IFERROR(VLOOKUP(B133,Baza[[№]:[AFS]],24,0),"") ->  | AA133: =IF(Таблица2[[#This Row],[Profit]]="","#Н/Д",SUM($Y$40:Y133)) -> #Н/Д | AB133: =IF(Таблица2[[#This Row],[Grafik]]="#Н/Д",FALSE,TRUE) -> FALSE
A134: 95 | C134: =IFERROR(VLOOKUP(B134,Baza[[№]:[Profit]],2,0),"") ->  | D134: =IF(Таблица2[[#This Row],[NN]]="","",TEXT(Таблица2[[#This Row],[Start]],"ч:мм")&" "&IF(OR(Таблица2[[#This Row],[Room]]="WN",Таблица2[[#This Row],[Room]]="ES"),"€","$")&Таблица2[[#This Row],[B]]&" "&"["&Таблица2[[#This Row],[Room]]&"] "&Таблица2[[#This Row],[Name]]) ->  | E134: =IF(Таблица2[[#This Row],[NN]]="","",IF(OR(Таблица2[[#This Row],[Room]]="WN",Таблица2[[#This Row],[Room]]="ES"),"€","$")&Таблица2[[#This Row],[B]]&" "&"["&Таблица2[[#This Row],[Room]]&"] "&Таблица2[[#This Row],[Name]]) ->  | F134: =IFERROR(VLOOKUP(B134,Baza[[№]:[Profit]],3,0),"") ->  | G134: =IFERROR(VLOOKUP(B134,Baza[[№]:[Profit]],4,0),"") ->  | H134: =IFERROR(VLOOKUP(B134,Baza[[№]:[Profit]],5,0),"") ->  | I134: =IFERROR(VLOOKUP(B134,Baza[[№]:[Profit]],6,0),"") ->  | J134: =IFERROR(VLOOKUP(B134,Baza[[№]:[Profit]],7,0),"") ->  | K134: =IFERROR(VLOOKUP(B134,Baza[[№]:[Profit]],8,0),"") ->  | L134: =IFERROR(VLOOKUP(B134,Baza[[№]:[Profit]],9,0),"") ->  | M134: =IFERROR(VLOOKUP(B134,Baza[[№]:[Profit]],10,0),"") ->  | N134: =IFERROR(IF(VLOOKUP(B134,Baza[[№]:[Profit]],11,0)=0,"-",VLOOKUP(B134,Baza[[№]:[Profit]],11,0)),"") ->  | O134: =IFERROR(IF(VLOOKUP(B134,Baza[[№]:[Profit]],12,0)=0,"-",VLOOKUP(B134,Baza[[№]:[Profit]],12,0)),"") ->  | P134: =IFERROR(IF(VLOOKUP(B134,Baza[[№]:[Profit]],13,0)=0,"-",VLOOKUP(B134,Baza[[№]:[Profit]],13,0)),"") ->  | Q134: =IFERROR(IF(VLOOKUP(B134,Baza[[№]:[Profit]],15,0)=0,"-",VLOOKUP(B134,Baza[[№]:[Profit]],15,0)),"") ->  | R134: =IFERROR(IF(VLOOKUP(B134,Baza[[№]:[Profit]],16,0)=0,"-",VLOOKUP(B134,Baza[[№]:[Profit]],16,0)),"") ->  | S134: =IFERROR(IF(VLOOKUP(B134,Baza[[№]:[Profit]],17,0)=0,"-",VLOOKUP(B134,Baza[[№]:[Profit]],17,0)),"") ->  | T134: =IFERROR(IF(VLOOKUP(B134,Baza[[№]:[Profit]],18,0)=0,"-",VLOOKUP(B134,Baza[[№]:[Profit]],18,0)),"") ->  | U134: =IFERROR(IF(VLOOKUP(B134,Baza[[№]:[Profit]],19,0)=0,"-",VLOOKUP(B134,Baza[[№]:[Profit]],19,0)),"") ->  | V134: =IFERROR(VLOOKUP(B134,Baza[[№]:[Profit]],20,0),"") ->  | W134: =IFERROR(IF(VLOOKUP(B134,Baza[[№]:[Profit]],21,0)=0,"-",VLOOKUP(B134,Baza[[№]:[Profit]],21,0)),"") ->  | X134: =IFERROR(IF(VLOOKUP(B134,Baza[[№]:[Profit]],22,0)=0,"-",VLOOKUP(B134,Baza[[№]:[Profit]],22,0)),"") ->  | Y134: =IFERROR(VLOOKUP(B134,Baza[[№]:[Profit]],23,0),"") ->  | Z134: =IFERROR(VLOOKUP(B134,Baza[[№]:[AFS]],24,0),"") ->  | AA134: =IF(Таблица2[[#This Row],[Profit]]="","#Н/Д",SUM($Y$40:Y134)) -> #Н/Д | AB134: =IF(Таблица2[[#This Row],[Grafik]]="#Н/Д",FALSE,TRUE) -> FALSE
A135: 96 | C135: =IFERROR(VLOOKUP(B135,Baza[[№]:[Profit]],2,0),"") ->  | D135: =IF(Таблица2[[#This Row],[NN]]="","",TEXT(Таблица2[[#This Row],[Start]],"ч:мм")&" "&IF(OR(Таблица2[[#This Row],[Room]]="WN",Таблица2[[#This Row],[Room]]="ES"),"€","$")&Таблица2[[#This Row],[B]]&" "&"["&Таблица2[[#This Row],[Room]]&"] "&Таблица2[[#This Row],[Name]]) ->  | E135: =IF(Таблица2[[#This Row],[NN]]="","",IF(OR(Таблица2[[#This Row],[Room]]="WN",Таблица2[[#This Row],[Room]]="ES"),"€","$")&Таблица2[[#This Row],[B]]&" "&"["&Таблица2[[#This Row],[Room]]&"] "&Таблица2[[#This Row],[Name]]) ->  | F135: =IFERROR(VLOOKUP(B135,Baza[[№]:[Profit]],3,0),"") ->  | G135: =IFERROR(VLOOKUP(B135,Baza[[№]:[Profit]],4,0),"") ->  | H135: =IFERROR(VLOOKUP(B135,Baza[[№]:[Profit]],5,0),"") ->  | I135: =IFERROR(VLOOKUP(B135,Baza[[№]:[Profit]],6,0),"") ->  | J135: =IFERROR(VLOOKUP(B135,Baza[[№]:[Profit]],7,0),"") ->  | K135: =IFERROR(VLOOKUP(B135,Baza[[№]:[Profit]],8,0),"") ->  | L135: =IFERROR(VLOOKUP(B135,Baza[[№]:[Profit]],9,0),"") ->  | M135: =IFERROR(VLOOKUP(B135,Baza[[№]:[Profit]],10,0),"") ->  | N135: =IFERROR(IF(VLOOKUP(B135,Baza[[№]:[Profit]],11,0)=0,"-",VLOOKUP(B135,Baza[[№]:[Profit]],11,0)),"") ->  | O135: =IFERROR(IF(VLOOKUP(B135,Baza[[№]:[Profit]],12,0)=0,"-",VLOOKUP(B135,Baza[[№]:[Profit]],12,0)),"") ->  | P135: =IFERROR(IF(VLOOKUP(B135,Baza[[№]:[Profit]],13,0)=0,"-",VLOOKUP(B135,Baza[[№]:[Profit]],13,0)),"") ->  | Q135: =IFERROR(IF(VLOOKUP(B135,Baza[[№]:[Profit]],15,0)=0,"-",VLOOKUP(B135,Baza[[№]:[Profit]],15,0)),"") ->  | R135: =IFERROR(IF(VLOOKUP(B135,Baza[[№]:[Profit]],16,0)=0,"-",VLOOKUP(B135,Baza[[№]:[Profit]],16,0)),"") ->  | S135: =IFERROR(IF(VLOOKUP(B135,Baza[[№]:[Profit]],17,0)=0,"-",VLOOKUP(B135,Baza[[№]:[Profit]],17,0)),"") ->  | T135: =IFERROR(IF(VLOOKUP(B135,Baza[[№]:[Profit]],18,0)=0,"-",VLOOKUP(B135,Baza[[№]:[Profit]],18,0)),"") ->  | U135: =IFERROR(IF(VLOOKUP(B135,Baza[[№]:[Profit]],19,0)=0,"-",VLOOKUP(B135,Baza[[№]:[Profit]],19,0)),"") ->  | V135: =IFERROR(VLOOKUP(B135,Baza[[№]:[Profit]],20,0),"") ->  | W135: =IFERROR(IF(VLOOKUP(B135,Baza[[№]:[Profit]],21,0)=0,"-",VLOOKUP(B135,Baza[[№]:[Profit]],21,0)),"") ->  | X135: =IFERROR(IF(VLOOKUP(B135,Baza[[№]:[Profit]],22,0)=0,"-",VLOOKUP(B135,Baza[[№]:[Profit]],22,0)),"") ->  | Y135: =IFERROR(VLOOKUP(B135,Baza[[№]:[Profit]],23,0),"") ->  | Z135: =IFERROR(VLOOKUP(B135,Baza[[№]:[AFS]],24,0),"") ->  | AA135: =IF(Таблица2[[#This Row],[Profit]]="","#Н/Д",SUM($Y$40:Y135)) -> #Н/Д | AB135: =IF(Таблица2[[#This Row],[Grafik]]="#Н/Д",FALSE,TRUE) -> FALSE
A136: 97 | C136: =IFERROR(VLOOKUP(B136,Baza[[№]:[Profit]],2,0),"") ->  | D136: =IF(Таблица2[[#This Row],[NN]]="","",TEXT(Таблица2[[#This Row],[Start]],"ч:мм")&" "&IF(OR(Таблица2[[#This Row],[Room]]="WN",Таблица2[[#This Row],[Room]]="ES"),"€","$")&Таблица2[[#This Row],[B]]&" "&"["&Таблица2[[#This Row],[Room]]&"] "&Таблица2[[#This Row],[Name]]) ->  | E136: =IF(Таблица2[[#This Row],[NN]]="","",IF(OR(Таблица2[[#This Row],[Room]]="WN",Таблица2[[#This Row],[Room]]="ES"),"€","$")&Таблица2[[#This Row],[B]]&" "&"["&Таблица2[[#This Row],[Room]]&"] "&Таблица2[[#This Row],[Name]]) ->  | F136: =IFERROR(VLOOKUP(B136,Baza[[№]:[Profit]],3,0),"") ->  | G136: =IFERROR(VLOOKUP(B136,Baza[[№]:[Profit]],4,0),"") ->  | H136: =IFERROR(VLOOKUP(B136,Baza[[№]:[Profit]],5,0),"") ->  | I136: =IFERROR(VLOOKUP(B136,Baza[[№]:[Profit]],6,0),"") ->  | J136: =IFERROR(VLOOKUP(B136,Baza[[№]:[Profit]],7,0),"") ->  | K136: =IFERROR(VLOOKUP(B136,Baza[[№]:[Profit]],8,0),"") ->  | L136: =IFERROR(VLOOKUP(B136,Baza[[№]:[Profit]],9,0),"") ->  | M136: =IFERROR(VLOOKUP(B136,Baza[[№]:[Profit]],10,0),"") ->  | N136: =IFERROR(IF(VLOOKUP(B136,Baza[[№]:[Profit]],11,0)=0,"-",VLOOKUP(B136,Baza[[№]:[Profit]],11,0)),"") ->  | O136: =IFERROR(IF(VLOOKUP(B136,Baza[[№]:[Profit]],12,0)=0,"-",VLOOKUP(B136,Baza[[№]:[Profit]],12,0)),"") ->  | P136: =IFERROR(IF(VLOOKUP(B136,Baza[[№]:[Profit]],13,0)=0,"-",VLOOKUP(B136,Baza[[№]:[Profit]],13,0)),"") ->  | Q136: =IFERROR(IF(VLOOKUP(B136,Baza[[№]:[Profit]],15,0)=0,"-",VLOOKUP(B136,Baza[[№]:[Profit]],15,0)),"") ->  | R136: =IFERROR(IF(VLOOKUP(B136,Baza[[№]:[Profit]],16,0)=0,"-",VLOOKUP(B136,Baza[[№]:[Profit]],16,0)),"") ->  | S136: =IFERROR(IF(VLOOKUP(B136,Baza[[№]:[Profit]],17,0)=0,"-",VLOOKUP(B136,Baza[[№]:[Profit]],17,0)),"") ->  | T136: =IFERROR(IF(VLOOKUP(B136,Baza[[№]:[Profit]],18,0)=0,"-",VLOOKUP(B136,Baza[[№]:[Profit]],18,0)),"") ->  | U136: =IFERROR(IF(VLOOKUP(B136,Baza[[№]:[Profit]],19,0)=0,"-",VLOOKUP(B136,Baza[[№]:[Profit]],19,0)),"") ->  | V136: =IFERROR(VLOOKUP(B136,Baza[[№]:[Profit]],20,0),"") ->  | W136: =IFERROR(IF(VLOOKUP(B136,Baza[[№]:[Profit]],21,0)=0,"-",VLOOKUP(B136,Baza[[№]:[Profit]],21,0)),"") ->  | X136: =IFERROR(IF(VLOOKUP(B136,Baza[[№]:[Profit]],22,0)=0,"-",VLOOKUP(B136,Baza[[№]:[Profit]],22,0)),"") ->  | Y136: =IFERROR(VLOOKUP(B136,Baza[[№]:[Profit]],23,0),"") ->  | Z136: =IFERROR(VLOOKUP(B136,Baza[[№]:[AFS]],24,0),"") ->  | AA136: =IF(Таблица2[[#This Row],[Profit]]="","#Н/Д",SUM($Y$40:Y136)) -> #Н/Д | AB136: =IF(Таблица2[[#This Row],[Grafik]]="#Н/Д",FALSE,TRUE) -> FALSE
A137: 98 | C137: =IFERROR(VLOOKUP(B137,Baza[[№]:[Profit]],2,0),"") ->  | D137: =IF(Таблица2[[#This Row],[NN]]="","",TEXT(Таблица2[[#This Row],[Start]],"ч:мм")&" "&IF(OR(Таблица2[[#This Row],[Room]]="WN",Таблица2[[#This Row],[Room]]="ES"),"€","$")&Таблица2[[#This Row],[B]]&" "&"["&Таблица2[[#This Row],[Room]]&"] "&Таблица2[[#This Row],[Name]]) ->  | E137: =IF(Таблица2[[#This Row],[NN]]="","",IF(OR(Таблица2[[#This Row],[Room]]="WN",Таблица2[[#This Row],[Room]]="ES"),"€","$")&Таблица2[[#This Row],[B]]&" "&"["&Таблица2[[#This Row],[Room]]&"] "&Таблица2[[#This Row],[Name]]) ->  | F137: =IFERROR(VLOOKUP(B137,Baza[[№]:[Profit]],3,0),"") ->  | G137: =IFERROR(VLOOKUP(B137,Baza[[№]:[Profit]],4,0),"") ->  | H137: =IFERROR(VLOOKUP(B137,Baza[[№]:[Profit]],5,0),"") ->  | I137: =IFERROR(VLOOKUP(B137,Baza[[№]:[Profit]],6,0),"") ->  | J137: =IFERROR(VLOOKUP(B137,Baza[[№]:[Profit]],7,0),"") ->  | K137: =IFERROR(VLOOKUP(B137,Baza[[№]:[Profit]],8,0),"") ->  | L137: =IFERROR(VLOOKUP(B137,Baza[[№]:[Profit]],9,0),"") ->  | M137: =IFERROR(VLOOKUP(B137,Baza[[№]:[Profit]],10,0),"") ->  | N137: =IFERROR(IF(VLOOKUP(B137,Baza[[№]:[Profit]],11,0)=0,"-",VLOOKUP(B137,Baza[[№]:[Profit]],11,0)),"") ->  | O137: =IFERROR(IF(VLOOKUP(B137,Baza[[№]:[Profit]],12,0)=0,"-",VLOOKUP(B137,Baza[[№]:[Profit]],12,0)),"") ->  | P137: =IFERROR(IF(VLOOKUP(B137,Baza[[№]:[Profit]],13,0)=0,"-",VLOOKUP(B137,Baza[[№]:[Profit]],13,0)),"") ->  | Q137: =IFERROR(IF(VLOOKUP(B137,Baza[[№]:[Profit]],15,0)=0,"-",VLOOKUP(B137,Baza[[№]:[Profit]],15,0)),"") ->  | R137: =IFERROR(IF(VLOOKUP(B137,Baza[[№]:[Profit]],16,0)=0,"-",VLOOKUP(B137,Baza[[№]:[Profit]],16,0)),"") ->  | S137: =IFERROR(IF(VLOOKUP(B137,Baza[[№]:[Profit]],17,0)=0,"-",VLOOKUP(B137,Baza[[№]:[Profit]],17,0)),"") ->  | T137: =IFERROR(IF(VLOOKUP(B137,Baza[[№]:[Profit]],18,0)=0,"-",VLOOKUP(B137,Baza[[№]:[Profit]],18,0)),"") ->  | U137: =IFERROR(IF(VLOOKUP(B137,Baza[[№]:[Profit]],19,0)=0,"-",VLOOKUP(B137,Baza[[№]:[Profit]],19,0)),"") ->  | V137: =IFERROR(VLOOKUP(B137,Baza[[№]:[Profit]],20,0),"") ->  | W137: =IFERROR(IF(VLOOKUP(B137,Baza[[№]:[Profit]],21,0)=0,"-",VLOOKUP(B137,Baza[[№]:[Profit]],21,0)),"") ->  | X137: =IFERROR(IF(VLOOKUP(B137,Baza[[№]:[Profit]],22,0)=0,"-",VLOOKUP(B137,Baza[[№]:[Profit]],22,0)),"") ->  | Y137: =IFERROR(VLOOKUP(B137,Baza[[№]:[Profit]],23,0),"") ->  | Z137: =IFERROR(VLOOKUP(B137,Baza[[№]:[AFS]],24,0),"") ->  | AA137: =IF(Таблица2[[#This Row],[Profit]]="","#Н/Д",SUM($Y$40:Y137)) -> #Н/Д | AB137: =IF(Таблица2[[#This Row],[Grafik]]="#Н/Д",FALSE,TRUE) -> FALSE
A138: 99 | C138: =IFERROR(VLOOKUP(B138,Baza[[№]:[Profit]],2,0),"") ->  | D138: =IF(Таблица2[[#This Row],[NN]]="","",TEXT(Таблица2[[#This Row],[Start]],"ч:мм")&" "&IF(OR(Таблица2[[#This Row],[Room]]="WN",Таблица2[[#This Row],[Room]]="ES"),"€","$")&Таблица2[[#This Row],[B]]&" "&"["&Таблица2[[#This Row],[Room]]&"] "&Таблица2[[#This Row],[Name]]) ->  | E138: =IF(Таблица2[[#This Row],[NN]]="","",IF(OR(Таблица2[[#This Row],[Room]]="WN",Таблица2[[#This Row],[Room]]="ES"),"€","$")&Таблица2[[#This Row],[B]]&" "&"["&Таблица2[[#This Row],[Room]]&"] "&Таблица2[[#This Row],[Name]]) ->  | F138: =IFERROR(VLOOKUP(B138,Baza[[№]:[Profit]],3,0),"") ->  | G138: =IFERROR(VLOOKUP(B138,Baza[[№]:[Profit]],4,0),"") ->  | H138: =IFERROR(VLOOKUP(B138,Baza[[№]:[Profit]],5,0),"") ->  | I138: =IFERROR(VLOOKUP(B138,Baza[[№]:[Profit]],6,0),"") ->  | J138: =IFERROR(VLOOKUP(B138,Baza[[№]:[Profit]],7,0),"") ->  | K138: =IFERROR(VLOOKUP(B138,Baza[[№]:[Profit]],8,0),"") ->  | L138: =IFERROR(VLOOKUP(B138,Baza[[№]:[Profit]],9,0),"") ->  | M138: =IFERROR(VLOOKUP(B138,Baza[[№]:[Profit]],10,0),"") ->  | N138: =IFERROR(IF(VLOOKUP(B138,Baza[[№]:[Profit]],11,0)=0,"-",VLOOKUP(B138,Baza[[№]:[Profit]],11,0)),"") ->  | O138: =IFERROR(IF(VLOOKUP(B138,Baza[[№]:[Profit]],12,0)=0,"-",VLOOKUP(B138,Baza[[№]:[Profit]],12,0)),"") ->  | P138: =IFERROR(IF(VLOOKUP(B138,Baza[[№]:[Profit]],13,0)=0,"-",VLOOKUP(B138,Baza[[№]:[Profit]],13,0)),"") ->  | Q138: =IFERROR(IF(VLOOKUP(B138,Baza[[№]:[Profit]],15,0)=0,"-",VLOOKUP(B138,Baza[[№]:[Profit]],15,0)),"") ->  | R138: =IFERROR(IF(VLOOKUP(B138,Baza[[№]:[Profit]],16,0)=0,"-",VLOOKUP(B138,Baza[[№]:[Profit]],16,0)),"") ->  | S138: =IFERROR(IF(VLOOKUP(B138,Baza[[№]:[Profit]],17,0)=0,"-",VLOOKUP(B138,Baza[[№]:[Profit]],17,0)),"") ->  | T138: =IFERROR(IF(VLOOKUP(B138,Baza[[№]:[Profit]],18,0)=0,"-",VLOOKUP(B138,Baza[[№]:[Profit]],18,0)),"") ->  | U138: =IFERROR(IF(VLOOKUP(B138,Baza[[№]:[Profit]],19,0)=0,"-",VLOOKUP(B138,Baza[[№]:[Profit]],19,0)),"") ->  | V138: =IFERROR(VLOOKUP(B138,Baza[[№]:[Profit]],20,0),"") ->  | W138: =IFERROR(IF(VLOOKUP(B138,Baza[[№]:[Profit]],21,0)=0,"-",VLOOKUP(B138,Baza[[№]:[Profit]],21,0)),"") ->  | X138: =IFERROR(IF(VLOOKUP(B138,Baza[[№]:[Profit]],22,0)=0,"-",VLOOKUP(B138,Baza[[№]:[Profit]],22,0)),"") ->  | Y138: =IFERROR(VLOOKUP(B138,Baza[[№]:[Profit]],23,0),"") ->  | Z138: =IFERROR(VLOOKUP(B138,Baza[[№]:[AFS]],24,0),"") ->  | AA138: =IF(Таблица2[[#This Row],[Profit]]="","#Н/Д",SUM($Y$40:Y138)) -> #Н/Д | AB138: =IF(Таблица2[[#This Row],[Grafik]]="#Н/Д",FALSE,TRUE) -> FALSE
A139: 100 | C139: =IFERROR(VLOOKUP(B139,Baza[[№]:[Profit]],2,0),"") ->  | D139: =IF(Таблица2[[#This Row],[NN]]="","",TEXT(Таблица2[[#This Row],[Start]],"ч:мм")&" "&IF(OR(Таблица2[[#This Row],[Room]]="WN",Таблица2[[#This Row],[Room]]="ES"),"€","$")&Таблица2[[#This Row],[B]]&" "&"["&Таблица2[[#This Row],[Room]]&"] "&Таблица2[[#This Row],[Name]]) ->  | E139: =IF(Таблица2[[#This Row],[NN]]="","",IF(OR(Таблица2[[#This Row],[Room]]="WN",Таблица2[[#This Row],[Room]]="ES"),"€","$")&Таблица2[[#This Row],[B]]&" "&"["&Таблица2[[#This Row],[Room]]&"] "&Таблица2[[#This Row],[Name]]) ->  | F139: =IFERROR(VLOOKUP(B139,Baza[[№]:[Profit]],3,0),"") ->  | G139: =IFERROR(VLOOKUP(B139,Baza[[№]:[Profit]],4,0),"") ->  | H139: =IFERROR(VLOOKUP(B139,Baza[[№]:[Profit]],5,0),"") ->  | I139: =IFERROR(VLOOKUP(B139,Baza[[№]:[Profit]],6,0),"") ->  | J139: =IFERROR(VLOOKUP(B139,Baza[[№]:[Profit]],7,0),"") ->  | K139: =IFERROR(VLOOKUP(B139,Baza[[№]:[Profit]],8,0),"") ->  | L139: =IFERROR(VLOOKUP(B139,Baza[[№]:[Profit]],9,0),"") ->  | M139: =IFERROR(VLOOKUP(B139,Baza[[№]:[Profit]],10,0),"") ->  | N139: =IFERROR(IF(VLOOKUP(B139,Baza[[№]:[Profit]],11,0)=0,"-",VLOOKUP(B139,Baza[[№]:[Profit]],11,0)),"") ->  | O139: =IFERROR(IF(VLOOKUP(B139,Baza[[№]:[Profit]],12,0)=0,"-",VLOOKUP(B139,Baza[[№]:[Profit]],12,0)),"") ->  | P139: =IFERROR(IF(VLOOKUP(B139,Baza[[№]:[Profit]],13,0)=0,"-",VLOOKUP(B139,Baza[[№]:[Profit]],13,0)),"") ->  | Q139: =IFERROR(IF(VLOOKUP(B139,Baza[[№]:[Profit]],15,0)=0,"-",VLOOKUP(B139,Baza[[№]:[Profit]],15,0)),"") ->  | R139: =IFERROR(IF(VLOOKUP(B139,Baza[[№]:[Profit]],16,0)=0,"-",VLOOKUP(B139,Baza[[№]:[Profit]],16,0)),"") ->  | S139: =IFERROR(IF(VLOOKUP(B139,Baza[[№]:[Profit]],17,0)=0,"-",VLOOKUP(B139,Baza[[№]:[Profit]],17,0)),"") ->  | T139: =IFERROR(IF(VLOOKUP(B139,Baza[[№]:[Profit]],18,0)=0,"-",VLOOKUP(B139,Baza[[№]:[Profit]],18,0)),"") ->  | U139: =IFERROR(IF(VLOOKUP(B139,Baza[[№]:[Profit]],19,0)=0,"-",VLOOKUP(B139,Baza[[№]:[Profit]],19,0)),"") ->  | V139: =IFERROR(VLOOKUP(B139,Baza[[№]:[Profit]],20,0),"") ->  | W139: =IFERROR(IF(VLOOKUP(B139,Baza[[№]:[Profit]],21,0)=0,"-",VLOOKUP(B139,Baza[[№]:[Profit]],21,0)),"") ->  | X139: =IFERROR(IF(VLOOKUP(B139,Baza[[№]:[Profit]],22,0)=0,"-",VLOOKUP(B139,Baza[[№]:[Profit]],22,0)),"") ->  | Y139: =IFERROR(VLOOKUP(B139,Baza[[№]:[Profit]],23,0),"") ->  | Z139: =IFERROR(VLOOKUP(B139,Baza[[№]:[AFS]],24,0),"") ->  | AA139: =IF(Таблица2[[#This Row],[Profit]]="","#Н/Д",SUM($Y$40:Y139)) -> #Н/Д | AB139: =IF(Таблица2[[#This Row],[Grafik]]="#Н/Д",FALSE,TRUE) -> FALSE
A140: 101 | C140: =IFERROR(VLOOKUP(B140,Baza[[№]:[Profit]],2,0),"") ->  | D140: =IF(Таблица2[[#This Row],[NN]]="","",TEXT(Таблица2[[#This Row],[Start]],"ч:мм")&" "&IF(OR(Таблица2[[#This Row],[Room]]="WN",Таблица2[[#This Row],[Room]]="ES"),"€","$")&Таблица2[[#This Row],[B]]&" "&"["&Таблица2[[#This Row],[Room]]&"] "&Таблица2[[#This Row],[Name]]) ->  | E140: =IF(Таблица2[[#This Row],[NN]]="","",IF(OR(Таблица2[[#This Row],[Room]]="WN",Таблица2[[#This Row],[Room]]="ES"),"€","$")&Таблица2[[#This Row],[B]]&" "&"["&Таблица2[[#This Row],[Room]]&"] "&Таблица2[[#This Row],[Name]]) ->  | F140: =IFERROR(VLOOKUP(B140,Baza[[№]:[Profit]],3,0),"") ->  | G140: =IFERROR(VLOOKUP(B140,Baza[[№]:[Profit]],4,0),"") ->  | H140: =IFERROR(VLOOKUP(B140,Baza[[№]:[Profit]],5,0),"") ->  | I140: =IFERROR(VLOOKUP(B140,Baza[[№]:[Profit]],6,0),"") ->  | J140: =IFERROR(VLOOKUP(B140,Baza[[№]:[Profit]],7,0),"") ->  | K140: =IFERROR(VLOOKUP(B140,Baza[[№]:[Profit]],8,0),"") ->  | L140: =IFERROR(VLOOKUP(B140,Baza[[№]:[Profit]],9,0),"") ->  | M140: =IFERROR(VLOOKUP(B140,Baza[[№]:[Profit]],10,0),"") ->  | N140: =IFERROR(IF(VLOOKUP(B140,Baza[[№]:[Profit]],11,0)=0,"-",VLOOKUP(B140,Baza[[№]:[Profit]],11,0)),"") ->  | O140: =IFERROR(IF(VLOOKUP(B140,Baza[[№]:[Profit]],12,0)=0,"-",VLOOKUP(B140,Baza[[№]:[Profit]],12,0)),"") ->  | P140: =IFERROR(IF(VLOOKUP(B140,Baza[[№]:[Profit]],13,0)=0,"-",VLOOKUP(B140,Baza[[№]:[Profit]],13,0)),"") ->  | Q140: =IFERROR(IF(VLOOKUP(B140,Baza[[№]:[Profit]],15,0)=0,"-",VLOOKUP(B140,Baza[[№]:[Profit]],15,0)),"") ->  | R140: =IFERROR(IF(VLOOKUP(B140,Baza[[№]:[Profit]],16,0)=0,"-",VLOOKUP(B140,Baza[[№]:[Profit]],16,0)),"") ->  | S140: =IFERROR(IF(VLOOKUP(B140,Baza[[№]:[Profit]],17,0)=0,"-",VLOOKUP(B140,Baza[[№]:[Profit]],17,0)),"") ->  | T140: =IFERROR(IF(VLOOKUP(B140,Baza[[№]:[Profit]],18,0)=0,"-",VLOOKUP(B140,Baza[[№]:[Profit]],18,0)),"") ->  | U140: =IFERROR(IF(VLOOKUP(B140,Baza[[№]:[Profit]],19,0)=0,"-",VLOOKUP(B140,Baza[[№]:[Profit]],19,0)),"") ->  | V140: =IFERROR(VLOOKUP(B140,Baza[[№]:[Profit]],20,0),"") ->  | W140: =IFERROR(IF(VLOOKUP(B140,Baza[[№]:[Profit]],21,0)=0,"-",VLOOKUP(B140,Baza[[№]:[Profit]],21,0)),"") ->  | X140: =IFERROR(IF(VLOOKUP(B140,Baza[[№]:[Profit]],22,0)=0,"-",VLOOKUP(B140,Baza[[№]:[Profit]],22,0)),"") ->  | Y140: =IFERROR(VLOOKUP(B140,Baza[[№]:[Profit]],23,0),"") ->  | Z140: =IFERROR(VLOOKUP(B140,Baza[[№]:[AFS]],24,0),"") ->  | AA140: =IF(Таблица2[[#This Row],[Profit]]="","#Н/Д",SUM($Y$40:Y140)) -> #Н/Д | AB140: =IF(Таблица2[[#This Row],[Grafik]]="#Н/Д",FALSE,TRUE) -> FALSE
A141: 102 | C141: =IFERROR(VLOOKUP(B141,Baza[[№]:[Profit]],2,0),"") ->  | D141: =IF(Таблица2[[#This Row],[NN]]="","",TEXT(Таблица2[[#This Row],[Start]],"ч:мм")&" "&IF(OR(Таблица2[[#This Row],[Room]]="WN",Таблица2[[#This Row],[Room]]="ES"),"€","$")&Таблица2[[#This Row],[B]]&" "&"["&Таблица2[[#This Row],[Room]]&"] "&Таблица2[[#This Row],[Name]]) ->  | E141: =IF(Таблица2[[#This Row],[NN]]="","",IF(OR(Таблица2[[#This Row],[Room]]="WN",Таблица2[[#This Row],[Room]]="ES"),"€","$")&Таблица2[[#This Row],[B]]&" "&"["&Таблица2[[#This Row],[Room]]&"] "&Таблица2[[#This Row],[Name]]) ->  | F141: =IFERROR(VLOOKUP(B141,Baza[[№]:[Profit]],3,0),"") ->  | G141: =IFERROR(VLOOKUP(B141,Baza[[№]:[Profit]],4,0),"") ->  | H141: =IFERROR(VLOOKUP(B141,Baza[[№]:[Profit]],5,0),"") ->  | I141: =IFERROR(VLOOKUP(B141,Baza[[№]:[Profit]],6,0),"") ->  | J141: =IFERROR(VLOOKUP(B141,Baza[[№]:[Profit]],7,0),"") ->  | K141: =IFERROR(VLOOKUP(B141,Baza[[№]:[Profit]],8,0),"") ->  | L141: =IFERROR(VLOOKUP(B141,Baza[[№]:[Profit]],9,0),"") ->  | M141: =IFERROR(VLOOKUP(B141,Baza[[№]:[Profit]],10,0),"") ->  | N141: =IFERROR(IF(VLOOKUP(B141,Baza[[№]:[Profit]],11,0)=0,"-",VLOOKUP(B141,Baza[[№]:[Profit]],11,0)),"") ->  | O141: =IFERROR(IF(VLOOKUP(B141,Baza[[№]:[Profit]],12,0)=0,"-",VLOOKUP(B141,Baza[[№]:[Profit]],12,0)),"") ->  | P141: =IFERROR(IF(VLOOKUP(B141,Baza[[№]:[Profit]],13,0)=0,"-",VLOOKUP(B141,Baza[[№]:[Profit]],13,0)),"") ->  | Q141: =IFERROR(IF(VLOOKUP(B141,Baza[[№]:[Profit]],15,0)=0,"-",VLOOKUP(B141,Baza[[№]:[Profit]],15,0)),"") ->  | R141: =IFERROR(IF(VLOOKUP(B141,Baza[[№]:[Profit]],16,0)=0,"-",VLOOKUP(B141,Baza[[№]:[Profit]],16,0)),"") ->  | S141: =IFERROR(IF(VLOOKUP(B141,Baza[[№]:[Profit]],17,0)=0,"-",VLOOKUP(B141,Baza[[№]:[Profit]],17,0)),"") ->  | T141: =IFERROR(IF(VLOOKUP(B141,Baza[[№]:[Profit]],18,0)=0,"-",VLOOKUP(B141,Baza[[№]:[Profit]],18,0)),"") ->  | U141: =IFERROR(IF(VLOOKUP(B141,Baza[[№]:[Profit]],19,0)=0,"-",VLOOKUP(B141,Baza[[№]:[Profit]],19,0)),"") ->  | V141: =IFERROR(VLOOKUP(B141,Baza[[№]:[Profit]],20,0),"") ->  | W141: =IFERROR(IF(VLOOKUP(B141,Baza[[№]:[Profit]],21,0)=0,"-",VLOOKUP(B141,Baza[[№]:[Profit]],21,0)),"") ->  | X141: =IFERROR(IF(VLOOKUP(B141,Baza[[№]:[Profit]],22,0)=0,"-",VLOOKUP(B141,Baza[[№]:[Profit]],22,0)),"") ->  | Y141: =IFERROR(VLOOKUP(B141,Baza[[№]:[Profit]],23,0),"") ->  | Z141: =IFERROR(VLOOKUP(B141,Baza[[№]:[AFS]],24,0),"") ->  | AA141: =IF(Таблица2[[#This Row],[Profit]]="","#Н/Д",SUM($Y$40:Y141)) -> #Н/Д | AB141: =IF(Таблица2[[#This Row],[Grafik]]="#Н/Д",FALSE,TRUE) -> FALSE
A142: 103 | C142: =IFERROR(VLOOKUP(B142,Baza[[№]:[Profit]],2,0),"") ->  | D142: =IF(Таблица2[[#This Row],[NN]]="","",TEXT(Таблица2[[#This Row],[Start]],"ч:мм")&" "&IF(OR(Таблица2[[#This Row],[Room]]="WN",Таблица2[[#This Row],[Room]]="ES"),"€","$")&Таблица2[[#This Row],[B]]&" "&"["&Таблица2[[#This Row],[Room]]&"] "&Таблица2[[#This Row],[Name]]) ->  | E142: =IF(Таблица2[[#This Row],[NN]]="","",IF(OR(Таблица2[[#This Row],[Room]]="WN",Таблица2[[#This Row],[Room]]="ES"),"€","$")&Таблица2[[#This Row],[B]]&" "&"["&Таблица2[[#This Row],[Room]]&"] "&Таблица2[[#This Row],[Name]]) ->  | F142: =IFERROR(VLOOKUP(B142,Baza[[№]:[Profit]],3,0),"") ->  | G142: =IFERROR(VLOOKUP(B142,Baza[[№]:[Profit]],4,0),"") ->  | H142: =IFERROR(VLOOKUP(B142,Baza[[№]:[Profit]],5,0),"") ->  | I142: =IFERROR(VLOOKUP(B142,Baza[[№]:[Profit]],6,0),"") ->  | J142: =IFERROR(VLOOKUP(B142,Baza[[№]:[Profit]],7,0),"") ->  | K142: =IFERROR(VLOOKUP(B142,Baza[[№]:[Profit]],8,0),"") ->  | L142: =IFERROR(VLOOKUP(B142,Baza[[№]:[Profit]],9,0),"") ->  | M142: =IFERROR(VLOOKUP(B142,Baza[[№]:[Profit]],10,0),"") ->  | N142: =IFERROR(IF(VLOOKUP(B142,Baza[[№]:[Profit]],11,0)=0,"-",VLOOKUP(B142,Baza[[№]:[Profit]],11,0)),"") ->  | O142: =IFERROR(IF(VLOOKUP(B142,Baza[[№]:[Profit]],12,0)=0,"-",VLOOKUP(B142,Baza[[№]:[Profit]],12,0)),"") ->  | P142: =IFERROR(IF(VLOOKUP(B142,Baza[[№]:[Profit]],13,0)=0,"-",VLOOKUP(B142,Baza[[№]:[Profit]],13,0)),"") ->  | Q142: =IFERROR(IF(VLOOKUP(B142,Baza[[№]:[Profit]],15,0)=0,"-",VLOOKUP(B142,Baza[[№]:[Profit]],15,0)),"") ->  | R142: =IFERROR(IF(VLOOKUP(B142,Baza[[№]:[Profit]],16,0)=0,"-",VLOOKUP(B142,Baza[[№]:[Profit]],16,0)),"") ->  | S142: =IFERROR(IF(VLOOKUP(B142,Baza[[№]:[Profit]],17,0)=0,"-",VLOOKUP(B142,Baza[[№]:[Profit]],17,0)),"") ->  | T142: =IFERROR(IF(VLOOKUP(B142,Baza[[№]:[Profit]],18,0)=0,"-",VLOOKUP(B142,Baza[[№]:[Profit]],18,0)),"") ->  | U142: =IFERROR(IF(VLOOKUP(B142,Baza[[№]:[Profit]],19,0)=0,"-",VLOOKUP(B142,Baza[[№]:[Profit]],19,0)),"") ->  | V142: =IFERROR(VLOOKUP(B142,Baza[[№]:[Profit]],20,0),"") ->  | W142: =IFERROR(IF(VLOOKUP(B142,Baza[[№]:[Profit]],21,0)=0,"-",VLOOKUP(B142,Baza[[№]:[Profit]],21,0)),"") ->  | X142: =IFERROR(IF(VLOOKUP(B142,Baza[[№]:[Profit]],22,0)=0,"-",VLOOKUP(B142,Baza[[№]:[Profit]],22,0)),"") ->  | Y142: =IFERROR(VLOOKUP(B142,Baza[[№]:[Profit]],23,0),"") ->  | Z142: =IFERROR(VLOOKUP(B142,Baza[[№]:[AFS]],24,0),"") ->  | AA142: =IF(Таблица2[[#This Row],[Profit]]="","#Н/Д",SUM($Y$40:Y142)) -> #Н/Д | AB142: =IF(Таблица2[[#This Row],[Grafik]]="#Н/Д",FALSE,TRUE) -> FALSE
A143: 104 | C143: =IFERROR(VLOOKUP(B143,Baza[[№]:[Profit]],2,0),"") ->  | D143: =IF(Таблица2[[#This Row],[NN]]="","",TEXT(Таблица2[[#This Row],[Start]],"ч:мм")&" "&IF(OR(Таблица2[[#This Row],[Room]]="WN",Таблица2[[#This Row],[Room]]="ES"),"€","$")&Таблица2[[#This Row],[B]]&" "&"["&Таблица2[[#This Row],[Room]]&"] "&Таблица2[[#This Row],[Name]]) ->  | E143: =IF(Таблица2[[#This Row],[NN]]="","",IF(OR(Таблица2[[#This Row],[Room]]="WN",Таблица2[[#This Row],[Room]]="ES"),"€","$")&Таблица2[[#This Row],[B]]&" "&"["&Таблица2[[#This Row],[Room]]&"] "&Таблица2[[#This Row],[Name]]) ->  | F143: =IFERROR(VLOOKUP(B143,Baza[[№]:[Profit]],3,0),"") ->  | G143: =IFERROR(VLOOKUP(B143,Baza[[№]:[Profit]],4,0),"") ->  | H143: =IFERROR(VLOOKUP(B143,Baza[[№]:[Profit]],5,0),"") ->  | I143: =IFERROR(VLOOKUP(B143,Baza[[№]:[Profit]],6,0),"") ->  | J143: =IFERROR(VLOOKUP(B143,Baza[[№]:[Profit]],7,0),"") ->  | K143: =IFERROR(VLOOKUP(B143,Baza[[№]:[Profit]],8,0),"") ->  | L143: =IFERROR(VLOOKUP(B143,Baza[[№]:[Profit]],9,0),"") ->  | M143: =IFERROR(VLOOKUP(B143,Baza[[№]:[Profit]],10,0),"") ->  | N143: =IFERROR(IF(VLOOKUP(B143,Baza[[№]:[Profit]],11,0)=0,"-",VLOOKUP(B143,Baza[[№]:[Profit]],11,0)),"") ->  | O143: =IFERROR(IF(VLOOKUP(B143,Baza[[№]:[Profit]],12,0)=0,"-",VLOOKUP(B143,Baza[[№]:[Profit]],12,0)),"") ->  | P143: =IFERROR(IF(VLOOKUP(B143,Baza[[№]:[Profit]],13,0)=0,"-",VLOOKUP(B143,Baza[[№]:[Profit]],13,0)),"") ->  | Q143: =IFERROR(IF(VLOOKUP(B143,Baza[[№]:[Profit]],15,0)=0,"-",VLOOKUP(B143,Baza[[№]:[Profit]],15,0)),"") ->  | R143: =IFERROR(IF(VLOOKUP(B143,Baza[[№]:[Profit]],16,0)=0,"-",VLOOKUP(B143,Baza[[№]:[Profit]],16,0)),"") ->  | S143: =IFERROR(IF(VLOOKUP(B143,Baza[[№]:[Profit]],17,0)=0,"-",VLOOKUP(B143,Baza[[№]:[Profit]],17,0)),"") ->  | T143: =IFERROR(IF(VLOOKUP(B143,Baza[[№]:[Profit]],18,0)=0,"-",VLOOKUP(B143,Baza[[№]:[Profit]],18,0)),"") ->  | U143: =IFERROR(IF(VLOOKUP(B143,Baza[[№]:[Profit]],19,0)=0,"-",VLOOKUP(B143,Baza[[№]:[Profit]],19,0)),"") ->  | V143: =IFERROR(VLOOKUP(B143,Baza[[№]:[Profit]],20,0),"") ->  | W143: =IFERROR(IF(VLOOKUP(B143,Baza[[№]:[Profit]],21,0)=0,"-",VLOOKUP(B143,Baza[[№]:[Profit]],21,0)),"") ->  | X143: =IFERROR(IF(VLOOKUP(B143,Baza[[№]:[Profit]],22,0)=0,"-",VLOOKUP(B143,Baza[[№]:[Profit]],22,0)),"") ->  | Y143: =IFERROR(VLOOKUP(B143,Baza[[№]:[Profit]],23,0),"") ->  | Z143: =IFERROR(VLOOKUP(B143,Baza[[№]:[AFS]],24,0),"") ->  | AA143: =IF(Таблица2[[#This Row],[Profit]]="","#Н/Д",SUM($Y$40:Y143)) -> #Н/Д | AB143: =IF(Таблица2[[#This Row],[Grafik]]="#Н/Д",FALSE,TRUE) -> FALSE
A144: 105 | C144: =IFERROR(VLOOKUP(B144,Baza[[№]:[Profit]],2,0),"") ->  | D144: =IF(Таблица2[[#This Row],[NN]]="","",TEXT(Таблица2[[#This Row],[Start]],"ч:мм")&" "&IF(OR(Таблица2[[#This Row],[Room]]="WN",Таблица2[[#This Row],[Room]]="ES"),"€","$")&Таблица2[[#This Row],[B]]&" "&"["&Таблица2[[#This Row],[Room]]&"] "&Таблица2[[#This Row],[Name]]) ->  | E144: =IF(Таблица2[[#This Row],[NN]]="","",IF(OR(Таблица2[[#This Row],[Room]]="WN",Таблица2[[#This Row],[Room]]="ES"),"€","$")&Таблица2[[#This Row],[B]]&" "&"["&Таблица2[[#This Row],[Room]]&"] "&Таблица2[[#This Row],[Name]]) ->  | F144: =IFERROR(VLOOKUP(B144,Baza[[№]:[Profit]],3,0),"") ->  | G144: =IFERROR(VLOOKUP(B144,Baza[[№]:[Profit]],4,0),"") ->  | H144: =IFERROR(VLOOKUP(B144,Baza[[№]:[Profit]],5,0),"") ->  | I144: =IFERROR(VLOOKUP(B144,Baza[[№]:[Profit]],6,0),"") ->  | J144: =IFERROR(VLOOKUP(B144,Baza[[№]:[Profit]],7,0),"") ->  | K144: =IFERROR(VLOOKUP(B144,Baza[[№]:[Profit]],8,0),"") ->  | L144: =IFERROR(VLOOKUP(B144,Baza[[№]:[Profit]],9,0),"") ->  | M144: =IFERROR(VLOOKUP(B144,Baza[[№]:[Profit]],10,0),"") ->  | N144: =IFERROR(IF(VLOOKUP(B144,Baza[[№]:[Profit]],11,0)=0,"-",VLOOKUP(B144,Baza[[№]:[Profit]],11,0)),"") ->  | O144: =IFERROR(IF(VLOOKUP(B144,Baza[[№]:[Profit]],12,0)=0,"-",VLOOKUP(B144,Baza[[№]:[Profit]],12,0)),"") ->  | P144: =IFERROR(IF(VLOOKUP(B144,Baza[[№]:[Profit]],13,0)=0,"-",VLOOKUP(B144,Baza[[№]:[Profit]],13,0)),"") ->  | Q144: =IFERROR(IF(VLOOKUP(B144,Baza[[№]:[Profit]],15,0)=0,"-",VLOOKUP(B144,Baza[[№]:[Profit]],15,0)),"") ->  | R144: =IFERROR(IF(VLOOKUP(B144,Baza[[№]:[Profit]],16,0)=0,"-",VLOOKUP(B144,Baza[[№]:[Profit]],16,0)),"") ->  | S144: =IFERROR(IF(VLOOKUP(B144,Baza[[№]:[Profit]],17,0)=0,"-",VLOOKUP(B144,Baza[[№]:[Profit]],17,0)),"") ->  | T144: =IFERROR(IF(VLOOKUP(B144,Baza[[№]:[Profit]],18,0)=0,"-",VLOOKUP(B144,Baza[[№]:[Profit]],18,0)),"") ->  | U144: =IFERROR(IF(VLOOKUP(B144,Baza[[№]:[Profit]],19,0)=0,"-",VLOOKUP(B144,Baza[[№]:[Profit]],19,0)),"") ->  | V144: =IFERROR(VLOOKUP(B144,Baza[[№]:[Profit]],20,0),"") ->  | W144: =IFERROR(IF(VLOOKUP(B144,Baza[[№]:[Profit]],21,0)=0,"-",VLOOKUP(B144,Baza[[№]:[Profit]],21,0)),"") ->  | X144: =IFERROR(IF(VLOOKUP(B144,Baza[[№]:[Profit]],22,0)=0,"-",VLOOKUP(B144,Baza[[№]:[Profit]],22,0)),"") ->  | Y144: =IFERROR(VLOOKUP(B144,Baza[[№]:[Profit]],23,0),"") ->  | Z144: =IFERROR(VLOOKUP(B144,Baza[[№]:[AFS]],24,0),"") ->  | AA144: =IF(Таблица2[[#This Row],[Profit]]="","#Н/Д",SUM($Y$40:Y144)) -> #Н/Д | AB144: =IF(Таблица2[[#This Row],[Grafik]]="#Н/Д",FALSE,TRUE) -> FALSE
A145: 106 | C145: =IFERROR(VLOOKUP(B145,Baza[[№]:[Profit]],2,0),"") ->  | D145: =IF(Таблица2[[#This Row],[NN]]="","",TEXT(Таблица2[[#This Row],[Start]],"ч:мм")&" "&IF(OR(Таблица2[[#This Row],[Room]]="WN",Таблица2[[#This Row],[Room]]="ES"),"€","$")&Таблица2[[#This Row],[B]]&" "&"["&Таблица2[[#This Row],[Room]]&"] "&Таблица2[[#This Row],[Name]]) ->  | E145: =IF(Таблица2[[#This Row],[NN]]="","",IF(OR(Таблица2[[#This Row],[Room]]="WN",Таблица2[[#This Row],[Room]]="ES"),"€","$")&Таблица2[[#This Row],[B]]&" "&"["&Таблица2[[#This Row],[Room]]&"] "&Таблица2[[#This Row],[Name]]) ->  | F145: =IFERROR(VLOOKUP(B145,Baza[[№]:[Profit]],3,0),"") ->  | G145: =IFERROR(VLOOKUP(B145,Baza[[№]:[Profit]],4,0),"") ->  | H145: =IFERROR(VLOOKUP(B145,Baza[[№]:[Profit]],5,0),"") ->  | I145: =IFERROR(VLOOKUP(B145,Baza[[№]:[Profit]],6,0),"") ->  | J145: =IFERROR(VLOOKUP(B145,Baza[[№]:[Profit]],7,0),"") ->  | K145: =IFERROR(VLOOKUP(B145,Baza[[№]:[Profit]],8,0),"") ->  | L145: =IFERROR(VLOOKUP(B145,Baza[[№]:[Profit]],9,0),"") ->  | M145: =IFERROR(VLOOKUP(B145,Baza[[№]:[Profit]],10,0),"") ->  | N145: =IFERROR(IF(VLOOKUP(B145,Baza[[№]:[Profit]],11,0)=0,"-",VLOOKUP(B145,Baza[[№]:[Profit]],11,0)),"") ->  | O145: =IFERROR(IF(VLOOKUP(B145,Baza[[№]:[Profit]],12,0)=0,"-",VLOOKUP(B145,Baza[[№]:[Profit]],12,0)),"") ->  | P145: =IFERROR(IF(VLOOKUP(B145,Baza[[№]:[Profit]],13,0)=0,"-",VLOOKUP(B145,Baza[[№]:[Profit]],13,0)),"") ->  | Q145: =IFERROR(IF(VLOOKUP(B145,Baza[[№]:[Profit]],15,0)=0,"-",VLOOKUP(B145,Baza[[№]:[Profit]],15,0)),"") ->  | R145: =IFERROR(IF(VLOOKUP(B145,Baza[[№]:[Profit]],16,0)=0,"-",VLOOKUP(B145,Baza[[№]:[Profit]],16,0)),"") ->  | S145: =IFERROR(IF(VLOOKUP(B145,Baza[[№]:[Profit]],17,0)=0,"-",VLOOKUP(B145,Baza[[№]:[Profit]],17,0)),"") ->  | T145: =IFERROR(IF(VLOOKUP(B145,Baza[[№]:[Profit]],18,0)=0,"-",VLOOKUP(B145,Baza[[№]:[Profit]],18,0)),"") ->  | U145: =IFERROR(IF(VLOOKUP(B145,Baza[[№]:[Profit]],19,0)=0,"-",VLOOKUP(B145,Baza[[№]:[Profit]],19,0)),"") ->  | V145: =IFERROR(VLOOKUP(B145,Baza[[№]:[Profit]],20,0),"") ->  | W145: =IFERROR(IF(VLOOKUP(B145,Baza[[№]:[Profit]],21,0)=0,"-",VLOOKUP(B145,Baza[[№]:[Profit]],21,0)),"") ->  | X145: =IFERROR(IF(VLOOKUP(B145,Baza[[№]:[Profit]],22,0)=0,"-",VLOOKUP(B145,Baza[[№]:[Profit]],22,0)),"") ->  | Y145: =IFERROR(VLOOKUP(B145,Baza[[№]:[Profit]],23,0),"") ->  | Z145: =IFERROR(VLOOKUP(B145,Baza[[№]:[AFS]],24,0),"") ->  | AA145: =IF(Таблица2[[#This Row],[Profit]]="","#Н/Д",SUM($Y$40:Y145)) -> #Н/Д | AB145: =IF(Таблица2[[#This Row],[Grafik]]="#Н/Д",FALSE,TRUE) -> FALSE
A146: 107 | C146: =IFERROR(VLOOKUP(B146,Baza[[№]:[Profit]],2,0),"") ->  | D146: =IF(Таблица2[[#This Row],[NN]]="","",TEXT(Таблица2[[#This Row],[Start]],"ч:мм")&" "&IF(OR(Таблица2[[#This Row],[Room]]="WN",Таблица2[[#This Row],[Room]]="ES"),"€","$")&Таблица2[[#This Row],[B]]&" "&"["&Таблица2[[#This Row],[Room]]&"] "&Таблица2[[#This Row],[Name]]) ->  | E146: =IF(Таблица2[[#This Row],[NN]]="","",IF(OR(Таблица2[[#This Row],[Room]]="WN",Таблица2[[#This Row],[Room]]="ES"),"€","$")&Таблица2[[#This Row],[B]]&" "&"["&Таблица2[[#This Row],[Room]]&"] "&Таблица2[[#This Row],[Name]]) ->  | F146: =IFERROR(VLOOKUP(B146,Baza[[№]:[Profit]],3,0),"") ->  | G146: =IFERROR(VLOOKUP(B146,Baza[[№]:[Profit]],4,0),"") ->  | H146: =IFERROR(VLOOKUP(B146,Baza[[№]:[Profit]],5,0),"") ->  | I146: =IFERROR(VLOOKUP(B146,Baza[[№]:[Profit]],6,0),"") ->  | J146: =IFERROR(VLOOKUP(B146,Baza[[№]:[Profit]],7,0),"") ->  | K146: =IFERROR(VLOOKUP(B146,Baza[[№]:[Profit]],8,0),"") ->  | L146: =IFERROR(VLOOKUP(B146,Baza[[№]:[Profit]],9,0),"") ->  | M146: =IFERROR(VLOOKUP(B146,Baza[[№]:[Profit]],10,0),"") ->  | N146: =IFERROR(IF(VLOOKUP(B146,Baza[[№]:[Profit]],11,0)=0,"-",VLOOKUP(B146,Baza[[№]:[Profit]],11,0)),"") ->  | O146: =IFERROR(IF(VLOOKUP(B146,Baza[[№]:[Profit]],12,0)=0,"-",VLOOKUP(B146,Baza[[№]:[Profit]],12,0)),"") ->  | P146: =IFERROR(IF(VLOOKUP(B146,Baza[[№]:[Profit]],13,0)=0,"-",VLOOKUP(B146,Baza[[№]:[Profit]],13,0)),"") ->  | Q146: =IFERROR(IF(VLOOKUP(B146,Baza[[№]:[Profit]],15,0)=0,"-",VLOOKUP(B146,Baza[[№]:[Profit]],15,0)),"") ->  | R146: =IFERROR(IF(VLOOKUP(B146,Baza[[№]:[Profit]],16,0)=0,"-",VLOOKUP(B146,Baza[[№]:[Profit]],16,0)),"") ->  | S146: =IFERROR(IF(VLOOKUP(B146,Baza[[№]:[Profit]],17,0)=0,"-",VLOOKUP(B146,Baza[[№]:[Profit]],17,0)),"") ->  | T146: =IFERROR(IF(VLOOKUP(B146,Baza[[№]:[Profit]],18,0)=0,"-",VLOOKUP(B146,Baza[[№]:[Profit]],18,0)),"") ->  | U146: =IFERROR(IF(VLOOKUP(B146,Baza[[№]:[Profit]],19,0)=0,"-",VLOOKUP(B146,Baza[[№]:[Profit]],19,0)),"") ->  | V146: =IFERROR(VLOOKUP(B146,Baza[[№]:[Profit]],20,0),"") ->  | W146: =IFERROR(IF(VLOOKUP(B146,Baza[[№]:[Profit]],21,0)=0,"-",VLOOKUP(B146,Baza[[№]:[Profit]],21,0)),"") ->  | X146: =IFERROR(IF(VLOOKUP(B146,Baza[[№]:[Profit]],22,0)=0,"-",VLOOKUP(B146,Baza[[№]:[Profit]],22,0)),"") ->  | Y146: =IFERROR(VLOOKUP(B146,Baza[[№]:[Profit]],23,0),"") ->  | Z146: =IFERROR(VLOOKUP(B146,Baza[[№]:[AFS]],24,0),"") ->  | AA146: =IF(Таблица2[[#This Row],[Profit]]="","#Н/Д",SUM($Y$40:Y146)) -> #Н/Д | AB146: =IF(Таблица2[[#This Row],[Grafik]]="#Н/Д",FALSE,TRUE) -> FALSE
A147: 108 | C147: =IFERROR(VLOOKUP(B147,Baza[[№]:[Profit]],2,0),"") ->  | D147: =IF(Таблица2[[#This Row],[NN]]="","",TEXT(Таблица2[[#This Row],[Start]],"ч:мм")&" "&IF(OR(Таблица2[[#This Row],[Room]]="WN",Таблица2[[#This Row],[Room]]="ES"),"€","$")&Таблица2[[#This Row],[B]]&" "&"["&Таблица2[[#This Row],[Room]]&"] "&Таблица2[[#This Row],[Name]]) ->  | E147: =IF(Таблица2[[#This Row],[NN]]="","",IF(OR(Таблица2[[#This Row],[Room]]="WN",Таблица2[[#This Row],[Room]]="ES"),"€","$")&Таблица2[[#This Row],[B]]&" "&"["&Таблица2[[#This Row],[Room]]&"] "&Таблица2[[#This Row],[Name]]) ->  | F147: =IFERROR(VLOOKUP(B147,Baza[[№]:[Profit]],3,0),"") ->  | G147: =IFERROR(VLOOKUP(B147,Baza[[№]:[Profit]],4,0),"") ->  | H147: =IFERROR(VLOOKUP(B147,Baza[[№]:[Profit]],5,0),"") ->  | I147: =IFERROR(VLOOKUP(B147,Baza[[№]:[Profit]],6,0),"") ->  | J147: =IFERROR(VLOOKUP(B147,Baza[[№]:[Profit]],7,0),"") ->  | K147: =IFERROR(VLOOKUP(B147,Baza[[№]:[Profit]],8,0),"") ->  | L147: =IFERROR(VLOOKUP(B147,Baza[[№]:[Profit]],9,0),"") ->  | M147: =IFERROR(VLOOKUP(B147,Baza[[№]:[Profit]],10,0),"") ->  | N147: =IFERROR(IF(VLOOKUP(B147,Baza[[№]:[Profit]],11,0)=0,"-",VLOOKUP(B147,Baza[[№]:[Profit]],11,0)),"") ->  | O147: =IFERROR(IF(VLOOKUP(B147,Baza[[№]:[Profit]],12,0)=0,"-",VLOOKUP(B147,Baza[[№]:[Profit]],12,0)),"") ->  | P147: =IFERROR(IF(VLOOKUP(B147,Baza[[№]:[Profit]],13,0)=0,"-",VLOOKUP(B147,Baza[[№]:[Profit]],13,0)),"") ->  | Q147: =IFERROR(IF(VLOOKUP(B147,Baza[[№]:[Profit]],15,0)=0,"-",VLOOKUP(B147,Baza[[№]:[Profit]],15,0)),"") ->  | R147: =IFERROR(IF(VLOOKUP(B147,Baza[[№]:[Profit]],16,0)=0,"-",VLOOKUP(B147,Baza[[№]:[Profit]],16,0)),"") ->  | S147: =IFERROR(IF(VLOOKUP(B147,Baza[[№]:[Profit]],17,0)=0,"-",VLOOKUP(B147,Baza[[№]:[Profit]],17,0)),"") ->  | T147: =IFERROR(IF(VLOOKUP(B147,Baza[[№]:[Profit]],18,0)=0,"-",VLOOKUP(B147,Baza[[№]:[Profit]],18,0)),"") ->  | U147: =IFERROR(IF(VLOOKUP(B147,Baza[[№]:[Profit]],19,0)=0,"-",VLOOKUP(B147,Baza[[№]:[Profit]],19,0)),"") ->  | V147: =IFERROR(VLOOKUP(B147,Baza[[№]:[Profit]],20,0),"") ->  | W147: =IFERROR(IF(VLOOKUP(B147,Baza[[№]:[Profit]],21,0)=0,"-",VLOOKUP(B147,Baza[[№]:[Profit]],21,0)),"") ->  | X147: =IFERROR(IF(VLOOKUP(B147,Baza[[№]:[Profit]],22,0)=0,"-",VLOOKUP(B147,Baza[[№]:[Profit]],22,0)),"") ->  | Y147: =IFERROR(VLOOKUP(B147,Baza[[№]:[Profit]],23,0),"") ->  | Z147: =IFERROR(VLOOKUP(B147,Baza[[№]:[AFS]],24,0),"") ->  | AA147: =IF(Таблица2[[#This Row],[Profit]]="","#Н/Д",SUM($Y$40:Y147)) -> #Н/Д | AB147: =IF(Таблица2[[#This Row],[Grafik]]="#Н/Д",FALSE,TRUE) -> FALSE
A148: 109 | C148: =IFERROR(VLOOKUP(B148,Baza[[№]:[Profit]],2,0),"") ->  | D148: =IF(Таблица2[[#This Row],[NN]]="","",TEXT(Таблица2[[#This Row],[Start]],"ч:мм")&" "&IF(OR(Таблица2[[#This Row],[Room]]="WN",Таблица2[[#This Row],[Room]]="ES"),"€","$")&Таблица2[[#This Row],[B]]&" "&"["&Таблица2[[#This Row],[Room]]&"] "&Таблица2[[#This Row],[Name]]) ->  | E148: =IF(Таблица2[[#This Row],[NN]]="","",IF(OR(Таблица2[[#This Row],[Room]]="WN",Таблица2[[#This Row],[Room]]="ES"),"€","$")&Таблица2[[#This Row],[B]]&" "&"["&Таблица2[[#This Row],[Room]]&"] "&Таблица2[[#This Row],[Name]]) ->  | F148: =IFERROR(VLOOKUP(B148,Baza[[№]:[Profit]],3,0),"") ->  | G148: =IFERROR(VLOOKUP(B148,Baza[[№]:[Profit]],4,0),"") ->  | H148: =IFERROR(VLOOKUP(B148,Baza[[№]:[Profit]],5,0),"") ->  | I148: =IFERROR(VLOOKUP(B148,Baza[[№]:[Profit]],6,0),"") ->  | J148: =IFERROR(VLOOKUP(B148,Baza[[№]:[Profit]],7,0),"") ->  | K148: =IFERROR(VLOOKUP(B148,Baza[[№]:[Profit]],8,0),"") ->  | L148: =IFERROR(VLOOKUP(B148,Baza[[№]:[Profit]],9,0),"") ->  | M148: =IFERROR(VLOOKUP(B148,Baza[[№]:[Profit]],10,0),"") ->  | N148: =IFERROR(IF(VLOOKUP(B148,Baza[[№]:[Profit]],11,0)=0,"-",VLOOKUP(B148,Baza[[№]:[Profit]],11,0)),"") ->  | O148: =IFERROR(IF(VLOOKUP(B148,Baza[[№]:[Profit]],12,0)=0,"-",VLOOKUP(B148,Baza[[№]:[Profit]],12,0)),"") ->  | P148: =IFERROR(IF(VLOOKUP(B148,Baza[[№]:[Profit]],13,0)=0,"-",VLOOKUP(B148,Baza[[№]:[Profit]],13,0)),"") ->  | Q148: =IFERROR(IF(VLOOKUP(B148,Baza[[№]:[Profit]],15,0)=0,"-",VLOOKUP(B148,Baza[[№]:[Profit]],15,0)),"") ->  | R148: =IFERROR(IF(VLOOKUP(B148,Baza[[№]:[Profit]],16,0)=0,"-",VLOOKUP(B148,Baza[[№]:[Profit]],16,0)),"") ->  | S148: =IFERROR(IF(VLOOKUP(B148,Baza[[№]:[Profit]],17,0)=0,"-",VLOOKUP(B148,Baza[[№]:[Profit]],17,0)),"") ->  | T148: =IFERROR(IF(VLOOKUP(B148,Baza[[№]:[Profit]],18,0)=0,"-",VLOOKUP(B148,Baza[[№]:[Profit]],18,0)),"") ->  | U148: =IFERROR(IF(VLOOKUP(B148,Baza[[№]:[Profit]],19,0)=0,"-",VLOOKUP(B148,Baza[[№]:[Profit]],19,0)),"") ->  | V148: =IFERROR(VLOOKUP(B148,Baza[[№]:[Profit]],20,0),"") ->  | W148: =IFERROR(IF(VLOOKUP(B148,Baza[[№]:[Profit]],21,0)=0,"-",VLOOKUP(B148,Baza[[№]:[Profit]],21,0)),"") ->  | X148: =IFERROR(IF(VLOOKUP(B148,Baza[[№]:[Profit]],22,0)=0,"-",VLOOKUP(B148,Baza[[№]:[Profit]],22,0)),"") ->  | Y148: =IFERROR(VLOOKUP(B148,Baza[[№]:[Profit]],23,0),"") ->  | Z148: =IFERROR(VLOOKUP(B148,Baza[[№]:[AFS]],24,0),"") ->  | AA148: =IF(Таблица2[[#This Row],[Profit]]="","#Н/Д",SUM($Y$40:Y148)) -> #Н/Д | AB148: =IF(Таблица2[[#This Row],[Grafik]]="#Н/Д",FALSE,TRUE) -> FALSE
A149: 110 | C149: =IFERROR(VLOOKUP(B149,Baza[[№]:[Profit]],2,0),"") ->  | D149: =IF(Таблица2[[#This Row],[NN]]="","",TEXT(Таблица2[[#This Row],[Start]],"ч:мм")&" "&IF(OR(Таблица2[[#This Row],[Room]]="WN",Таблица2[[#This Row],[Room]]="ES"),"€","$")&Таблица2[[#This Row],[B]]&" "&"["&Таблица2[[#This Row],[Room]]&"] "&Таблица2[[#This Row],[Name]]) ->  | E149: =IF(Таблица2[[#This Row],[NN]]="","",IF(OR(Таблица2[[#This Row],[Room]]="WN",Таблица2[[#This Row],[Room]]="ES"),"€","$")&Таблица2[[#This Row],[B]]&" "&"["&Таблица2[[#This Row],[Room]]&"] "&Таблица2[[#This Row],[Name]]) ->  | F149: =IFERROR(VLOOKUP(B149,Baza[[№]:[Profit]],3,0),"") ->  | G149: =IFERROR(VLOOKUP(B149,Baza[[№]:[Profit]],4,0),"") ->  | H149: =IFERROR(VLOOKUP(B149,Baza[[№]:[Profit]],5,0),"") ->  | I149: =IFERROR(VLOOKUP(B149,Baza[[№]:[Profit]],6,0),"") ->  | J149: =IFERROR(VLOOKUP(B149,Baza[[№]:[Profit]],7,0),"") ->  | K149: =IFERROR(VLOOKUP(B149,Baza[[№]:[Profit]],8,0),"") ->  | L149: =IFERROR(VLOOKUP(B149,Baza[[№]:[Profit]],9,0),"") ->  | M149: =IFERROR(VLOOKUP(B149,Baza[[№]:[Profit]],10,0),"") ->  | N149: =IFERROR(IF(VLOOKUP(B149,Baza[[№]:[Profit]],11,0)=0,"-",VLOOKUP(B149,Baza[[№]:[Profit]],11,0)),"") ->  | O149: =IFERROR(IF(VLOOKUP(B149,Baza[[№]:[Profit]],12,0)=0,"-",VLOOKUP(B149,Baza[[№]:[Profit]],12,0)),"") ->  | P149: =IFERROR(IF(VLOOKUP(B149,Baza[[№]:[Profit]],13,0)=0,"-",VLOOKUP(B149,Baza[[№]:[Profit]],13,0)),"") ->  | Q149: =IFERROR(IF(VLOOKUP(B149,Baza[[№]:[Profit]],15,0)=0,"-",VLOOKUP(B149,Baza[[№]:[Profit]],15,0)),"") ->  | R149: =IFERROR(IF(VLOOKUP(B149,Baza[[№]:[Profit]],16,0)=0,"-",VLOOKUP(B149,Baza[[№]:[Profit]],16,0)),"") ->  | S149: =IFERROR(IF(VLOOKUP(B149,Baza[[№]:[Profit]],17,0)=0,"-",VLOOKUP(B149,Baza[[№]:[Profit]],17,0)),"") ->  | T149: =IFERROR(IF(VLOOKUP(B149,Baza[[№]:[Profit]],18,0)=0,"-",VLOOKUP(B149,Baza[[№]:[Profit]],18,0)),"") ->  | U149: =IFERROR(IF(VLOOKUP(B149,Baza[[№]:[Profit]],19,0)=0,"-",VLOOKUP(B149,Baza[[№]:[Profit]],19,0)),"") ->  | V149: =IFERROR(VLOOKUP(B149,Baza[[№]:[Profit]],20,0),"") ->  | W149: =IFERROR(IF(VLOOKUP(B149,Baza[[№]:[Profit]],21,0)=0,"-",VLOOKUP(B149,Baza[[№]:[Profit]],21,0)),"") ->  | X149: =IFERROR(IF(VLOOKUP(B149,Baza[[№]:[Profit]],22,0)=0,"-",VLOOKUP(B149,Baza[[№]:[Profit]],22,0)),"") ->  | Y149: =IFERROR(VLOOKUP(B149,Baza[[№]:[Profit]],23,0),"") ->  | Z149: =IFERROR(VLOOKUP(B149,Baza[[№]:[AFS]],24,0),"") ->  | AA149: =IF(Таблица2[[#This Row],[Profit]]="","#Н/Д",SUM($Y$40:Y149)) -> #Н/Д | AB149: =IF(Таблица2[[#This Row],[Grafik]]="#Н/Д",FALSE,TRUE) -> FALSE
A150: 111 | C150: =IFERROR(VLOOKUP(B150,Baza[[№]:[Profit]],2,0),"") ->  | D150: =IF(Таблица2[[#This Row],[NN]]="","",TEXT(Таблица2[[#This Row],[Start]],"ч:мм")&" "&IF(OR(Таблица2[[#This Row],[Room]]="WN",Таблица2[[#This Row],[Room]]="ES"),"€","$")&Таблица2[[#This Row],[B]]&" "&"["&Таблица2[[#This Row],[Room]]&"] "&Таблица2[[#This Row],[Name]]) ->  | E150: =IF(Таблица2[[#This Row],[NN]]="","",IF(OR(Таблица2[[#This Row],[Room]]="WN",Таблица2[[#This Row],[Room]]="ES"),"€","$")&Таблица2[[#This Row],[B]]&" "&"["&Таблица2[[#This Row],[Room]]&"] "&Таблица2[[#This Row],[Name]]) ->  | F150: =IFERROR(VLOOKUP(B150,Baza[[№]:[Profit]],3,0),"") ->  | G150: =IFERROR(VLOOKUP(B150,Baza[[№]:[Profit]],4,0),"") ->  | H150: =IFERROR(VLOOKUP(B150,Baza[[№]:[Profit]],5,0),"") ->  | I150: =IFERROR(VLOOKUP(B150,Baza[[№]:[Profit]],6,0),"") ->  | J150: =IFERROR(VLOOKUP(B150,Baza[[№]:[Profit]],7,0),"") ->  | K150: =IFERROR(VLOOKUP(B150,Baza[[№]:[Profit]],8,0),"") ->  | L150: =IFERROR(VLOOKUP(B150,Baza[[№]:[Profit]],9,0),"") ->  | M150: =IFERROR(VLOOKUP(B150,Baza[[№]:[Profit]],10,0),"") ->  | N150: =IFERROR(IF(VLOOKUP(B150,Baza[[№]:[Profit]],11,0)=0,"-",VLOOKUP(B150,Baza[[№]:[Profit]],11,0)),"") ->  | O150: =IFERROR(IF(VLOOKUP(B150,Baza[[№]:[Profit]],12,0)=0,"-",VLOOKUP(B150,Baza[[№]:[Profit]],12,0)),"") ->  | P150: =IFERROR(IF(VLOOKUP(B150,Baza[[№]:[Profit]],13,0)=0,"-",VLOOKUP(B150,Baza[[№]:[Profit]],13,0)),"") ->  | Q150: =IFERROR(IF(VLOOKUP(B150,Baza[[№]:[Profit]],15,0)=0,"-",VLOOKUP(B150,Baza[[№]:[Profit]],15,0)),"") ->  | R150: =IFERROR(IF(VLOOKUP(B150,Baza[[№]:[Profit]],16,0)=0,"-",VLOOKUP(B150,Baza[[№]:[Profit]],16,0)),"") ->  | S150: =IFERROR(IF(VLOOKUP(B150,Baza[[№]:[Profit]],17,0)=0,"-",VLOOKUP(B150,Baza[[№]:[Profit]],17,0)),"") ->  | T150: =IFERROR(IF(VLOOKUP(B150,Baza[[№]:[Profit]],18,0)=0,"-",VLOOKUP(B150,Baza[[№]:[Profit]],18,0)),"") ->  | U150: =IFERROR(IF(VLOOKUP(B150,Baza[[№]:[Profit]],19,0)=0,"-",VLOOKUP(B150,Baza[[№]:[Profit]],19,0)),"") ->  | V150: =IFERROR(VLOOKUP(B150,Baza[[№]:[Profit]],20,0),"") ->  | W150: =IFERROR(IF(VLOOKUP(B150,Baza[[№]:[Profit]],21,0)=0,"-",VLOOKUP(B150,Baza[[№]:[Profit]],21,0)),"") ->  | X150: =IFERROR(IF(VLOOKUP(B150,Baza[[№]:[Profit]],22,0)=0,"-",VLOOKUP(B150,Baza[[№]:[Profit]],22,0)),"") ->  | Y150: =IFERROR(VLOOKUP(B150,Baza[[№]:[Profit]],23,0),"") ->  | Z150: =IFERROR(VLOOKUP(B150,Baza[[№]:[AFS]],24,0),"") ->  | AA150: =IF(Таблица2[[#This Row],[Profit]]="","#Н/Д",SUM($Y$40:Y150)) -> #Н/Д | AB150: =IF(Таблица2[[#This Row],[Grafik]]="#Н/Д",FALSE,TRUE) -> FALSE
A151: 112 | C151: =IFERROR(VLOOKUP(B151,Baza[[№]:[Profit]],2,0),"") ->  | D151: =IF(Таблица2[[#This Row],[NN]]="","",TEXT(Таблица2[[#This Row],[Start]],"ч:мм")&" "&IF(OR(Таблица2[[#This Row],[Room]]="WN",Таблица2[[#This Row],[Room]]="ES"),"€","$")&Таблица2[[#This Row],[B]]&" "&"["&Таблица2[[#This Row],[Room]]&"] "&Таблица2[[#This Row],[Name]]) ->  | E151: =IF(Таблица2[[#This Row],[NN]]="","",IF(OR(Таблица2[[#This Row],[Room]]="WN",Таблица2[[#This Row],[Room]]="ES"),"€","$")&Таблица2[[#This Row],[B]]&" "&"["&Таблица2[[#This Row],[Room]]&"] "&Таблица2[[#This Row],[Name]]) ->  | F151: =IFERROR(VLOOKUP(B151,Baza[[№]:[Profit]],3,0),"") ->  | G151: =IFERROR(VLOOKUP(B151,Baza[[№]:[Profit]],4,0),"") ->  | H151: =IFERROR(VLOOKUP(B151,Baza[[№]:[Profit]],5,0),"") ->  | I151: =IFERROR(VLOOKUP(B151,Baza[[№]:[Profit]],6,0),"") ->  | J151: =IFERROR(VLOOKUP(B151,Baza[[№]:[Profit]],7,0),"") ->  | K151: =IFERROR(VLOOKUP(B151,Baza[[№]:[Profit]],8,0),"") ->  | L151: =IFERROR(VLOOKUP(B151,Baza[[№]:[Profit]],9,0),"") ->  | M151: =IFERROR(VLOOKUP(B151,Baza[[№]:[Profit]],10,0),"") ->  | N151: =IFERROR(IF(VLOOKUP(B151,Baza[[№]:[Profit]],11,0)=0,"-",VLOOKUP(B151,Baza[[№]:[Profit]],11,0)),"") ->  | O151: =IFERROR(IF(VLOOKUP(B151,Baza[[№]:[Profit]],12,0)=0,"-",VLOOKUP(B151,Baza[[№]:[Profit]],12,0)),"") ->  | P151: =IFERROR(IF(VLOOKUP(B151,Baza[[№]:[Profit]],13,0)=0,"-",VLOOKUP(B151,Baza[[№]:[Profit]],13,0)),"") ->  | Q151: =IFERROR(IF(VLOOKUP(B151,Baza[[№]:[Profit]],15,0)=0,"-",VLOOKUP(B151,Baza[[№]:[Profit]],15,0)),"") ->  | R151: =IFERROR(IF(VLOOKUP(B151,Baza[[№]:[Profit]],16,0)=0,"-",VLOOKUP(B151,Baza[[№]:[Profit]],16,0)),"") ->  | S151: =IFERROR(IF(VLOOKUP(B151,Baza[[№]:[Profit]],17,0)=0,"-",VLOOKUP(B151,Baza[[№]:[Profit]],17,0)),"") ->  | T151: =IFERROR(IF(VLOOKUP(B151,Baza[[№]:[Profit]],18,0)=0,"-",VLOOKUP(B151,Baza[[№]:[Profit]],18,0)),"") ->  | U151: =IFERROR(IF(VLOOKUP(B151,Baza[[№]:[Profit]],19,0)=0,"-",VLOOKUP(B151,Baza[[№]:[Profit]],19,0)),"") ->  | V151: =IFERROR(VLOOKUP(B151,Baza[[№]:[Profit]],20,0),"") ->  | W151: =IFERROR(IF(VLOOKUP(B151,Baza[[№]:[Profit]],21,0)=0,"-",VLOOKUP(B151,Baza[[№]:[Profit]],21,0)),"") ->  | X151: =IFERROR(IF(VLOOKUP(B151,Baza[[№]:[Profit]],22,0)=0,"-",VLOOKUP(B151,Baza[[№]:[Profit]],22,0)),"") ->  | Y151: =IFERROR(VLOOKUP(B151,Baza[[№]:[Profit]],23,0),"") ->  | Z151: =IFERROR(VLOOKUP(B151,Baza[[№]:[AFS]],24,0),"") ->  | AA151: =IF(Таблица2[[#This Row],[Profit]]="","#Н/Д",SUM($Y$40:Y151)) -> #Н/Д | AB151: =IF(Таблица2[[#This Row],[Grafik]]="#Н/Д",FALSE,TRUE) -> FALSE
A152: 113 | C152: =IFERROR(VLOOKUP(B152,Baza[[№]:[Profit]],2,0),"") ->  | D152: =IF(Таблица2[[#This Row],[NN]]="","",TEXT(Таблица2[[#This Row],[Start]],"ч:мм")&" "&IF(OR(Таблица2[[#This Row],[Room]]="WN",Таблица2[[#This Row],[Room]]="ES"),"€","$")&Таблица2[[#This Row],[B]]&" "&"["&Таблица2[[#This Row],[Room]]&"] "&Таблица2[[#This Row],[Name]]) ->  | E152: =IF(Таблица2[[#This Row],[NN]]="","",IF(OR(Таблица2[[#This Row],[Room]]="WN",Таблица2[[#This Row],[Room]]="ES"),"€","$")&Таблица2[[#This Row],[B]]&" "&"["&Таблица2[[#This Row],[Room]]&"] "&Таблица2[[#This Row],[Name]]) ->  | F152: =IFERROR(VLOOKUP(B152,Baza[[№]:[Profit]],3,0),"") ->  | G152: =IFERROR(VLOOKUP(B152,Baza[[№]:[Profit]],4,0),"") ->  | H152: =IFERROR(VLOOKUP(B152,Baza[[№]:[Profit]],5,0),"") ->  | I152: =IFERROR(VLOOKUP(B152,Baza[[№]:[Profit]],6,0),"") ->  | J152: =IFERROR(VLOOKUP(B152,Baza[[№]:[Profit]],7,0),"") ->  | K152: =IFERROR(VLOOKUP(B152,Baza[[№]:[Profit]],8,0),"") ->  | L152: =IFERROR(VLOOKUP(B152,Baza[[№]:[Profit]],9,0),"") ->  | M152: =IFERROR(VLOOKUP(B152,Baza[[№]:[Profit]],10,0),"") ->  | N152: =IFERROR(IF(VLOOKUP(B152,Baza[[№]:[Profit]],11,0)=0,"-",VLOOKUP(B152,Baza[[№]:[Profit]],11,0)),"") ->  | O152: =IFERROR(IF(VLOOKUP(B152,Baza[[№]:[Profit]],12,0)=0,"-",VLOOKUP(B152,Baza[[№]:[Profit]],12,0)),"") ->  | P152: =IFERROR(IF(VLOOKUP(B152,Baza[[№]:[Profit]],13,0)=0,"-",VLOOKUP(B152,Baza[[№]:[Profit]],13,0)),"") ->  | Q152: =IFERROR(IF(VLOOKUP(B152,Baza[[№]:[Profit]],15,0)=0,"-",VLOOKUP(B152,Baza[[№]:[Profit]],15,0)),"") ->  | R152: =IFERROR(IF(VLOOKUP(B152,Baza[[№]:[Profit]],16,0)=0,"-",VLOOKUP(B152,Baza[[№]:[Profit]],16,0)),"") ->  | S152: =IFERROR(IF(VLOOKUP(B152,Baza[[№]:[Profit]],17,0)=0,"-",VLOOKUP(B152,Baza[[№]:[Profit]],17,0)),"") ->  | T152: =IFERROR(IF(VLOOKUP(B152,Baza[[№]:[Profit]],18,0)=0,"-",VLOOKUP(B152,Baza[[№]:[Profit]],18,0)),"") ->  | U152: =IFERROR(IF(VLOOKUP(B152,Baza[[№]:[Profit]],19,0)=0,"-",VLOOKUP(B152,Baza[[№]:[Profit]],19,0)),"") ->  | V152: =IFERROR(VLOOKUP(B152,Baza[[№]:[Profit]],20,0),"") ->  | W152: =IFERROR(IF(VLOOKUP(B152,Baza[[№]:[Profit]],21,0)=0,"-",VLOOKUP(B152,Baza[[№]:[Profit]],21,0)),"") ->  | X152: =IFERROR(IF(VLOOKUP(B152,Baza[[№]:[Profit]],22,0)=0,"-",VLOOKUP(B152,Baza[[№]:[Profit]],22,0)),"") ->  | Y152: =IFERROR(VLOOKUP(B152,Baza[[№]:[Profit]],23,0),"") ->  | Z152: =IFERROR(VLOOKUP(B152,Baza[[№]:[AFS]],24,0),"") ->  | AA152: =IF(Таблица2[[#This Row],[Profit]]="","#Н/Д",SUM($Y$40:Y152)) -> #Н/Д | AB152: =IF(Таблица2[[#This Row],[Grafik]]="#Н/Д",FALSE,TRUE) -> FALSE
A153: 114 | C153: =IFERROR(VLOOKUP(B153,Baza[[№]:[Profit]],2,0),"") ->  | D153: =IF(Таблица2[[#This Row],[NN]]="","",TEXT(Таблица2[[#This Row],[Start]],"ч:мм")&" "&IF(OR(Таблица2[[#This Row],[Room]]="WN",Таблица2[[#This Row],[Room]]="ES"),"€","$")&Таблица2[[#This Row],[B]]&" "&"["&Таблица2[[#This Row],[Room]]&"] "&Таблица2[[#This Row],[Name]]) ->  | E153: =IF(Таблица2[[#This Row],[NN]]="","",IF(OR(Таблица2[[#This Row],[Room]]="WN",Таблица2[[#This Row],[Room]]="ES"),"€","$")&Таблица2[[#This Row],[B]]&" "&"["&Таблица2[[#This Row],[Room]]&"] "&Таблица2[[#This Row],[Name]]) ->  | F153: =IFERROR(VLOOKUP(B153,Baza[[№]:[Profit]],3,0),"") ->  | G153: =IFERROR(VLOOKUP(B153,Baza[[№]:[Profit]],4,0),"") ->  | H153: =IFERROR(VLOOKUP(B153,Baza[[№]:[Profit]],5,0),"") ->  | I153: =IFERROR(VLOOKUP(B153,Baza[[№]:[Profit]],6,0),"") ->  | J153: =IFERROR(VLOOKUP(B153,Baza[[№]:[Profit]],7,0),"") ->  | K153: =IFERROR(VLOOKUP(B153,Baza[[№]:[Profit]],8,0),"") ->  | L153: =IFERROR(VLOOKUP(B153,Baza[[№]:[Profit]],9,0),"") ->  | M153: =IFERROR(VLOOKUP(B153,Baza[[№]:[Profit]],10,0),"") ->  | N153: =IFERROR(IF(VLOOKUP(B153,Baza[[№]:[Profit]],11,0)=0,"-",VLOOKUP(B153,Baza[[№]:[Profit]],11,0)),"") ->  | O153: =IFERROR(IF(VLOOKUP(B153,Baza[[№]:[Profit]],12,0)=0,"-",VLOOKUP(B153,Baza[[№]:[Profit]],12,0)),"") ->  | P153: =IFERROR(IF(VLOOKUP(B153,Baza[[№]:[Profit]],13,0)=0,"-",VLOOKUP(B153,Baza[[№]:[Profit]],13,0)),"") ->  | Q153: =IFERROR(IF(VLOOKUP(B153,Baza[[№]:[Profit]],15,0)=0,"-",VLOOKUP(B153,Baza[[№]:[Profit]],15,0)),"") ->  | R153: =IFERROR(IF(VLOOKUP(B153,Baza[[№]:[Profit]],16,0)=0,"-",VLOOKUP(B153,Baza[[№]:[Profit]],16,0)),"") ->  | S153: =IFERROR(IF(VLOOKUP(B153,Baza[[№]:[Profit]],17,0)=0,"-",VLOOKUP(B153,Baza[[№]:[Profit]],17,0)),"") ->  | T153: =IFERROR(IF(VLOOKUP(B153,Baza[[№]:[Profit]],18,0)=0,"-",VLOOKUP(B153,Baza[[№]:[Profit]],18,0)),"") ->  | U153: =IFERROR(IF(VLOOKUP(B153,Baza[[№]:[Profit]],19,0)=0,"-",VLOOKUP(B153,Baza[[№]:[Profit]],19,0)),"") ->  | V153: =IFERROR(VLOOKUP(B153,Baza[[№]:[Profit]],20,0),"") ->  | W153: =IFERROR(IF(VLOOKUP(B153,Baza[[№]:[Profit]],21,0)=0,"-",VLOOKUP(B153,Baza[[№]:[Profit]],21,0)),"") ->  | X153: =IFERROR(IF(VLOOKUP(B153,Baza[[№]:[Profit]],22,0)=0,"-",VLOOKUP(B153,Baza[[№]:[Profit]],22,0)),"") ->  | Y153: =IFERROR(VLOOKUP(B153,Baza[[№]:[Profit]],23,0),"") ->  | Z153: =IFERROR(VLOOKUP(B153,Baza[[№]:[AFS]],24,0),"") ->  | AA153: =IF(Таблица2[[#This Row],[Profit]]="","#Н/Д",SUM($Y$40:Y153)) -> #Н/Д | AB153: =IF(Таблица2[[#This Row],[Grafik]]="#Н/Д",FALSE,TRUE) -> FALSE
A154: 115 | C154: =IFERROR(VLOOKUP(B154,Baza[[№]:[Profit]],2,0),"") ->  | D154: =IF(Таблица2[[#This Row],[NN]]="","",TEXT(Таблица2[[#This Row],[Start]],"ч:мм")&" "&IF(OR(Таблица2[[#This Row],[Room]]="WN",Таблица2[[#This Row],[Room]]="ES"),"€","$")&Таблица2[[#This Row],[B]]&" "&"["&Таблица2[[#This Row],[Room]]&"] "&Таблица2[[#This Row],[Name]]) ->  | E154: =IF(Таблица2[[#This Row],[NN]]="","",IF(OR(Таблица2[[#This Row],[Room]]="WN",Таблица2[[#This Row],[Room]]="ES"),"€","$")&Таблица2[[#This Row],[B]]&" "&"["&Таблица2[[#This Row],[Room]]&"] "&Таблица2[[#This Row],[Name]]) ->  | F154: =IFERROR(VLOOKUP(B154,Baza[[№]:[Profit]],3,0),"") ->  | G154: =IFERROR(VLOOKUP(B154,Baza[[№]:[Profit]],4,0),"") ->  | H154: =IFERROR(VLOOKUP(B154,Baza[[№]:[Profit]],5,0),"") ->  | I154: =IFERROR(VLOOKUP(B154,Baza[[№]:[Profit]],6,0),"") ->  | J154: =IFERROR(VLOOKUP(B154,Baza[[№]:[Profit]],7,0),"") ->  | K154: =IFERROR(VLOOKUP(B154,Baza[[№]:[Profit]],8,0),"") ->  | L154: =IFERROR(VLOOKUP(B154,Baza[[№]:[Profit]],9,0),"") ->  | M154: =IFERROR(VLOOKUP(B154,Baza[[№]:[Profit]],10,0),"") ->  | N154: =IFERROR(IF(VLOOKUP(B154,Baza[[№]:[Profit]],11,0)=0,"-",VLOOKUP(B154,Baza[[№]:[Profit]],11,0)),"") ->  | O154: =IFERROR(IF(VLOOKUP(B154,Baza[[№]:[Profit]],12,0)=0,"-",VLOOKUP(B154,Baza[[№]:[Profit]],12,0)),"") ->  | P154: =IFERROR(IF(VLOOKUP(B154,Baza[[№]:[Profit]],13,0)=0,"-",VLOOKUP(B154,Baza[[№]:[Profit]],13,0)),"") ->  | Q154: =IFERROR(IF(VLOOKUP(B154,Baza[[№]:[Profit]],15,0)=0,"-",VLOOKUP(B154,Baza[[№]:[Profit]],15,0)),"") ->  | R154: =IFERROR(IF(VLOOKUP(B154,Baza[[№]:[Profit]],16,0)=0,"-",VLOOKUP(B154,Baza[[№]:[Profit]],16,0)),"") ->  | S154: =IFERROR(IF(VLOOKUP(B154,Baza[[№]:[Profit]],17,0)=0,"-",VLOOKUP(B154,Baza[[№]:[Profit]],17,0)),"") ->  | T154: =IFERROR(IF(VLOOKUP(B154,Baza[[№]:[Profit]],18,0)=0,"-",VLOOKUP(B154,Baza[[№]:[Profit]],18,0)),"") ->  | U154: =IFERROR(IF(VLOOKUP(B154,Baza[[№]:[Profit]],19,0)=0,"-",VLOOKUP(B154,Baza[[№]:[Profit]],19,0)),"") ->  | V154: =IFERROR(VLOOKUP(B154,Baza[[№]:[Profit]],20,0),"") ->  | W154: =IFERROR(IF(VLOOKUP(B154,Baza[[№]:[Profit]],21,0)=0,"-",VLOOKUP(B154,Baza[[№]:[Profit]],21,0)),"") ->  | X154: =IFERROR(IF(VLOOKUP(B154,Baza[[№]:[Profit]],22,0)=0,"-",VLOOKUP(B154,Baza[[№]:[Profit]],22,0)),"") ->  | Y154: =IFERROR(VLOOKUP(B154,Baza[[№]:[Profit]],23,0),"") ->  | Z154: =IFERROR(VLOOKUP(B154,Baza[[№]:[AFS]],24,0),"") ->  | AA154: =IF(Таблица2[[#This Row],[Profit]]="","#Н/Д",SUM($Y$40:Y154)) -> #Н/Д | AB154: =IF(Таблица2[[#This Row],[Grafik]]="#Н/Д",FALSE,TRUE) -> FALSE
A155: 116 | C155: =IFERROR(VLOOKUP(B155,Baza[[№]:[Profit]],2,0),"") ->  | D155: =IF(Таблица2[[#This Row],[NN]]="","",TEXT(Таблица2[[#This Row],[Start]],"ч:мм")&" "&IF(OR(Таблица2[[#This Row],[Room]]="WN",Таблица2[[#This Row],[Room]]="ES"),"€","$")&Таблица2[[#This Row],[B]]&" "&"["&Таблица2[[#This Row],[Room]]&"] "&Таблица2[[#This Row],[Name]]) ->  | E155: =IF(Таблица2[[#This Row],[NN]]="","",IF(OR(Таблица2[[#This Row],[Room]]="WN",Таблица2[[#This Row],[Room]]="ES"),"€","$")&Таблица2[[#This Row],[B]]&" "&"["&Таблица2[[#This Row],[Room]]&"] "&Таблица2[[#This Row],[Name]]) ->  | F155: =IFERROR(VLOOKUP(B155,Baza[[№]:[Profit]],3,0),"") ->  | G155: =IFERROR(VLOOKUP(B155,Baza[[№]:[Profit]],4,0),"") ->  | H155: =IFERROR(VLOOKUP(B155,Baza[[№]:[Profit]],5,0),"") ->  | I155: =IFERROR(VLOOKUP(B155,Baza[[№]:[Profit]],6,0),"") ->  | J155: =IFERROR(VLOOKUP(B155,Baza[[№]:[Profit]],7,0),"") ->  | K155: =IFERROR(VLOOKUP(B155,Baza[[№]:[Profit]],8,0),"") ->  | L155: =IFERROR(VLOOKUP(B155,Baza[[№]:[Profit]],9,0),"") ->  | M155: =IFERROR(VLOOKUP(B155,Baza[[№]:[Profit]],10,0),"") ->  | N155: =IFERROR(IF(VLOOKUP(B155,Baza[[№]:[Profit]],11,0)=0,"-",VLOOKUP(B155,Baza[[№]:[Profit]],11,0)),"") ->  | O155: =IFERROR(IF(VLOOKUP(B155,Baza[[№]:[Profit]],12,0)=0,"-",VLOOKUP(B155,Baza[[№]:[Profit]],12,0)),"") ->  | P155: =IFERROR(IF(VLOOKUP(B155,Baza[[№]:[Profit]],13,0)=0,"-",VLOOKUP(B155,Baza[[№]:[Profit]],13,0)),"") ->  | Q155: =IFERROR(IF(VLOOKUP(B155,Baza[[№]:[Profit]],15,0)=0,"-",VLOOKUP(B155,Baza[[№]:[Profit]],15,0)),"") ->  | R155: =IFERROR(IF(VLOOKUP(B155,Baza[[№]:[Profit]],16,0)=0,"-",VLOOKUP(B155,Baza[[№]:[Profit]],16,0)),"") ->  | S155: =IFERROR(IF(VLOOKUP(B155,Baza[[№]:[Profit]],17,0)=0,"-",VLOOKUP(B155,Baza[[№]:[Profit]],17,0)),"") ->  | T155: =IFERROR(IF(VLOOKUP(B155,Baza[[№]:[Profit]],18,0)=0,"-",VLOOKUP(B155,Baza[[№]:[Profit]],18,0)),"") ->  | U155: =IFERROR(IF(VLOOKUP(B155,Baza[[№]:[Profit]],19,0)=0,"-",VLOOKUP(B155,Baza[[№]:[Profit]],19,0)),"") ->  | V155: =IFERROR(VLOOKUP(B155,Baza[[№]:[Profit]],20,0),"") ->  | W155: =IFERROR(IF(VLOOKUP(B155,Baza[[№]:[Profit]],21,0)=0,"-",VLOOKUP(B155,Baza[[№]:[Profit]],21,0)),"") ->  | X155: =IFERROR(IF(VLOOKUP(B155,Baza[[№]:[Profit]],22,0)=0,"-",VLOOKUP(B155,Baza[[№]:[Profit]],22,0)),"") ->  | Y155: =IFERROR(VLOOKUP(B155,Baza[[№]:[Profit]],23,0),"") ->  | Z155: =IFERROR(VLOOKUP(B155,Baza[[№]:[AFS]],24,0),"") ->  | AA155: =IF(Таблица2[[#This Row],[Profit]]="","#Н/Д",SUM($Y$40:Y155)) -> #Н/Д | AB155: =IF(Таблица2[[#This Row],[Grafik]]="#Н/Д",FALSE,TRUE) -> FALSE
A156: 117 | C156: =IFERROR(VLOOKUP(B156,Baza[[№]:[Profit]],2,0),"") ->  | D156: =IF(Таблица2[[#This Row],[NN]]="","",TEXT(Таблица2[[#This Row],[Start]],"ч:мм")&" "&IF(OR(Таблица2[[#This Row],[Room]]="WN",Таблица2[[#This Row],[Room]]="ES"),"€","$")&Таблица2[[#This Row],[B]]&" "&"["&Таблица2[[#This Row],[Room]]&"] "&Таблица2[[#This Row],[Name]]) ->  | E156: =IF(Таблица2[[#This Row],[NN]]="","",IF(OR(Таблица2[[#This Row],[Room]]="WN",Таблица2[[#This Row],[Room]]="ES"),"€","$")&Таблица2[[#This Row],[B]]&" "&"["&Таблица2[[#This Row],[Room]]&"] "&Таблица2[[#This Row],[Name]]) ->  | F156: =IFERROR(VLOOKUP(B156,Baza[[№]:[Profit]],3,0),"") ->  | G156: =IFERROR(VLOOKUP(B156,Baza[[№]:[Profit]],4,0),"") ->  | H156: =IFERROR(VLOOKUP(B156,Baza[[№]:[Profit]],5,0),"") ->  | I156: =IFERROR(VLOOKUP(B156,Baza[[№]:[Profit]],6,0),"") ->  | J156: =IFERROR(VLOOKUP(B156,Baza[[№]:[Profit]],7,0),"") ->  | K156: =IFERROR(VLOOKUP(B156,Baza[[№]:[Profit]],8,0),"") ->  | L156: =IFERROR(VLOOKUP(B156,Baza[[№]:[Profit]],9,0),"") ->  | M156: =IFERROR(VLOOKUP(B156,Baza[[№]:[Profit]],10,0),"") ->  | N156: =IFERROR(IF(VLOOKUP(B156,Baza[[№]:[Profit]],11,0)=0,"-",VLOOKUP(B156,Baza[[№]:[Profit]],11,0)),"") ->  | O156: =IFERROR(IF(VLOOKUP(B156,Baza[[№]:[Profit]],12,0)=0,"-",VLOOKUP(B156,Baza[[№]:[Profit]],12,0)),"") ->  | P156: =IFERROR(IF(VLOOKUP(B156,Baza[[№]:[Profit]],13,0)=0,"-",VLOOKUP(B156,Baza[[№]:[Profit]],13,0)),"") ->  | Q156: =IFERROR(IF(VLOOKUP(B156,Baza[[№]:[Profit]],15,0)=0,"-",VLOOKUP(B156,Baza[[№]:[Profit]],15,0)),"") ->  | R156: =IFERROR(IF(VLOOKUP(B156,Baza[[№]:[Profit]],16,0)=0,"-",VLOOKUP(B156,Baza[[№]:[Profit]],16,0)),"") ->  | S156: =IFERROR(IF(VLOOKUP(B156,Baza[[№]:[Profit]],17,0)=0,"-",VLOOKUP(B156,Baza[[№]:[Profit]],17,0)),"") ->  | T156: =IFERROR(IF(VLOOKUP(B156,Baza[[№]:[Profit]],18,0)=0,"-",VLOOKUP(B156,Baza[[№]:[Profit]],18,0)),"") ->  | U156: =IFERROR(IF(VLOOKUP(B156,Baza[[№]:[Profit]],19,0)=0,"-",VLOOKUP(B156,Baza[[№]:[Profit]],19,0)),"") ->  | V156: =IFERROR(VLOOKUP(B156,Baza[[№]:[Profit]],20,0),"") ->  | W156: =IFERROR(IF(VLOOKUP(B156,Baza[[№]:[Profit]],21,0)=0,"-",VLOOKUP(B156,Baza[[№]:[Profit]],21,0)),"") ->  | X156: =IFERROR(IF(VLOOKUP(B156,Baza[[№]:[Profit]],22,0)=0,"-",VLOOKUP(B156,Baza[[№]:[Profit]],22,0)),"") ->  | Y156: =IFERROR(VLOOKUP(B156,Baza[[№]:[Profit]],23,0),"") ->  | Z156: =IFERROR(VLOOKUP(B156,Baza[[№]:[AFS]],24,0),"") ->  | AA156: =IF(Таблица2[[#This Row],[Profit]]="","#Н/Д",SUM($Y$40:Y156)) -> #Н/Д | AB156: =IF(Таблица2[[#This Row],[Grafik]]="#Н/Д",FALSE,TRUE) -> FALSE
A157: 118 | C157: =IFERROR(VLOOKUP(B157,Baza[[№]:[Profit]],2,0),"") ->  | D157: =IF(Таблица2[[#This Row],[NN]]="","",TEXT(Таблица2[[#This Row],[Start]],"ч:мм")&" "&IF(OR(Таблица2[[#This Row],[Room]]="WN",Таблица2[[#This Row],[Room]]="ES"),"€","$")&Таблица2[[#This Row],[B]]&" "&"["&Таблица2[[#This Row],[Room]]&"] "&Таблица2[[#This Row],[Name]]) ->  | E157: =IF(Таблица2[[#This Row],[NN]]="","",IF(OR(Таблица2[[#This Row],[Room]]="WN",Таблица2[[#This Row],[Room]]="ES"),"€","$")&Таблица2[[#This Row],[B]]&" "&"["&Таблица2[[#This Row],[Room]]&"] "&Таблица2[[#This Row],[Name]]) ->  | F157: =IFERROR(VLOOKUP(B157,Baza[[№]:[Profit]],3,0),"") ->  | G157: =IFERROR(VLOOKUP(B157,Baza[[№]:[Profit]],4,0),"") ->  | H157: =IFERROR(VLOOKUP(B157,Baza[[№]:[Profit]],5,0),"") ->  | I157: =IFERROR(VLOOKUP(B157,Baza[[№]:[Profit]],6,0),"") ->  | J157: =IFERROR(VLOOKUP(B157,Baza[[№]:[Profit]],7,0),"") ->  | K157: =IFERROR(VLOOKUP(B157,Baza[[№]:[Profit]],8,0),"") ->  | L157: =IFERROR(VLOOKUP(B157,Baza[[№]:[Profit]],9,0),"") ->  | M157: =IFERROR(VLOOKUP(B157,Baza[[№]:[Profit]],10,0),"") ->  | N157: =IFERROR(IF(VLOOKUP(B157,Baza[[№]:[Profit]],11,0)=0,"-",VLOOKUP(B157,Baza[[№]:[Profit]],11,0)),"") ->  | O157: =IFERROR(IF(VLOOKUP(B157,Baza[[№]:[Profit]],12,0)=0,"-",VLOOKUP(B157,Baza[[№]:[Profit]],12,0)),"") ->  | P157: =IFERROR(IF(VLOOKUP(B157,Baza[[№]:[Profit]],13,0)=0,"-",VLOOKUP(B157,Baza[[№]:[Profit]],13,0)),"") ->  | Q157: =IFERROR(IF(VLOOKUP(B157,Baza[[№]:[Profit]],15,0)=0,"-",VLOOKUP(B157,Baza[[№]:[Profit]],15,0)),"") ->  | R157: =IFERROR(IF(VLOOKUP(B157,Baza[[№]:[Profit]],16,0)=0,"-",VLOOKUP(B157,Baza[[№]:[Profit]],16,0)),"") ->  | S157: =IFERROR(IF(VLOOKUP(B157,Baza[[№]:[Profit]],17,0)=0,"-",VLOOKUP(B157,Baza[[№]:[Profit]],17,0)),"") ->  | T157: =IFERROR(IF(VLOOKUP(B157,Baza[[№]:[Profit]],18,0)=0,"-",VLOOKUP(B157,Baza[[№]:[Profit]],18,0)),"") ->  | U157: =IFERROR(IF(VLOOKUP(B157,Baza[[№]:[Profit]],19,0)=0,"-",VLOOKUP(B157,Baza[[№]:[Profit]],19,0)),"") ->  | V157: =IFERROR(VLOOKUP(B157,Baza[[№]:[Profit]],20,0),"") ->  | W157: =IFERROR(IF(VLOOKUP(B157,Baza[[№]:[Profit]],21,0)=0,"-",VLOOKUP(B157,Baza[[№]:[Profit]],21,0)),"") ->  | X157: =IFERROR(IF(VLOOKUP(B157,Baza[[№]:[Profit]],22,0)=0,"-",VLOOKUP(B157,Baza[[№]:[Profit]],22,0)),"") ->  | Y157: =IFERROR(VLOOKUP(B157,Baza[[№]:[Profit]],23,0),"") ->  | Z157: =IFERROR(VLOOKUP(B157,Baza[[№]:[AFS]],24,0),"") ->  | AA157: =IF(Таблица2[[#This Row],[Profit]]="","#Н/Д",SUM($Y$40:Y157)) -> #Н/Д | AB157: =IF(Таблица2[[#This Row],[Grafik]]="#Н/Д",FALSE,TRUE) -> FALSE
